{"text_format":"1","workbook":"xlsx","n_sheets":2,"sheets":["CAMPOS","ANUARIO 2016-2017-LICENCIATURA"],"not_rendered":{"charts":0,"images":4,"macros":1,"external_links":0,"defined_names":41,"comments":1,"pivot_tables":1},"unopened":[],"bounds":{"document_bytes":16777216,"sheet_cells":100000,"rows_first":2000,"rows_last":500,"rows_between":2000,"halvings":0,"cell_chars":16384,"cell_head_chars":4096},"cells_cut":0,"cells_raw":0,"read":"whole","date_system":"1900"}

{"sheet":"CAMPOS","index":0,"n_rows":133,"n_cols":70,"rows_kept":133,"cut":false,"hidden":true,"merged":[]}
[null,"CAMPOS AMPLIOS",null,null,"CAMPOS ESPECÍFICOS",null,null,"CAMPOS DETALLADOS",null,null,null,"CAMPOS UNITARIOS",null,null,null,null,null,null,"CAMPOS UNITARIOS",null,null,null,null,null,null,null,null,null,null,null,null,null,null,null,null,null,null,null,null,null,null,null,null,null,null,null,null,null,null,null,null,null,null,null,null,null,null,null,null,null,null,null,null,null,null,111,"DIDÁCTICA, PEDAGOGÍA Y CURRÍCULO",null,12801,"FORMACIÓN DOCENTE PARA EDUCACIÓN INICIAL"]
[null,1,{"$f":"\"--OCULTAR CAMPOS DE FORMACIÓN--\"","v":"--OCULTAR CAMPOS DE FORMACIÓN--"},1,"11",{"$f":"\"--OCULTAR CAMPOS DE FORMACIÓN--\"","v":"--OCULTAR CAMPOS DE FORMACIÓN--"},11,"111",{"$f":"\"--OCULTAR CAMPOS DE FORMACIÓN--\"","v":"--OCULTAR CAMPOS DE FORMACIÓN--"},128,"1281",{"$f":"\"--OCULTAR CAMPOS DE FORMACIÓN--\"","v":"--OCULTAR CAMPOS DE FORMACIÓN--"},null,null,null,null,null,null,"--OCULTAR CAMPOS DE FORMACIÓN--",null,null,null,null,null,null,null,null,null,null,null,null,null,null,null,null,null,null,null,null,null,null,null,null,null,null,null,null,null,null,null,null,null,null,null,null,null,null,null,null,null,null,null,null,null,null,112,"PLANEACIÓN Y EVALUACIÓN EDUCATIVA",null,12802,"FORMACIÓN DOCENTE PARA EDUCACIÓN ESPECIAL"]
[null,2,{"$f":"\"--VER TODOS LOS CAMPOS DE FORMACIÓN--\"","v":"--VER TODOS LOS CAMPOS DE FORMACIÓN--"},1,"12",{"$f":"\"--VER TODOS LOS CAMPOS DE FORMACIÓN--\"","v":"--VER TODOS LOS CAMPOS DE FORMACIÓN--"},11,"112",{"$f":"\"--VER TODOS LOS CAMPOS DE FORMACIÓN--\"","v":"--VER TODOS LOS CAMPOS DE FORMACIÓN--"},128,"1282",{"$f":"\"--VER TODOS LOS CAMPOS DE FORMACIÓN--\"","v":"--VER TODOS LOS CAMPOS DE FORMACIÓN--"},null,null,null,null,null,null,"--VER TODOS LOS CAMPOS DE FORMACIÓN--",null,null,null,null,null,null,null,null,null,null,null,null,null,null,null,null,null,null,null,null,null,null,null,null,null,null,null,null,null,null,null,null,null,null,null,null,null,null,null,null,null,null,null,null,null,null,113,"ORIENTACIÓN Y ASESORÍA EDUCATIVA",null,12803,"FORMACIÓN DOCENTE EN EDUCACIÓN PARA ADULTOS"]
[1,3,"EDUCACIÓN",1,"13","CIENCIAS DE LA EDUCACIÓN",11,"113","DIDÁCTICA, PEDAGOGÍA Y CURRÍCULO",128,"1283","FORMACIÓN DOCENTE PARA EDUCACIÓN INICIAL",null,null,null,null,null,12801,"FORMACIÓN DOCENTE PARA EDUCACIÓN INICIAL",null,null,null,null,null,null,null,null,null,null,null,null,null,null,null,null,null,null,null,null,null,null,null,null,null,null,null,null,null,null,null,null,null,null,null,null,null,null,null,null,null,null,null,null,null,null,114,"TECNOLOGÍA EDUCATIVA",null,33501,"ADMINISTRACIÓN DE SISTEMAS EDUCATIVOS"]
[2,4,"ARTES Y HUMANIDADES",1,"14","FORMACIÓN DOCENTE",11,"114","PLANEACIÓN Y EVALUACIÓN EDUCATIVA",128,"1284","FORMACIÓN DOCENTE PARA EDUCACIÓN ESPECIAL",null,null,null,null,null,12802,"FORMACIÓN DOCENTE PARA EDUCACIÓN ESPECIAL",null,null,null,null,null,null,null,null,null,null,null,null,null,null,null,null,null,null,null,null,null,null,null,null,null,null,null,null,null,null,null,null,null,null,null,null,null,null,null,null,null,null,null,null,null,null,110,"CIENCIAS DE LA EDUCACIÓN, PROGRAMAS MULTIDISCIPLINARIOS O GENERALES",null,33502,"ADMINISTRACIÓN DE EMPRESAS"]
[3,5,"CIENCIAS SOCIALES, ADMINISTRACIÓN Y DERECHO",2,"21",{"$f":"\"--OCULTAR CAMPOS DE FORMACIÓN--\"","v":"--OCULTAR CAMPOS DE FORMACIÓN--"},11,"115","ORIENTACIÓN Y ASESORÍA EDUCATIVA",128,"1285","FORMACIÓN DOCENTE EN EDUCACIÓN PARA ADULTOS",null,null,null,null,null,12803,"FORMACIÓN DOCENTE EN EDUCACIÓN PARA ADULTOS",null,null,null,null,null,null,null,null,null,null,null,null,null,null,null,null,null,null,null,null,null,null,null,null,null,null,null,null,null,null,null,null,null,null,null,null,null,null,null,null,null,null,null,null,null,null,121,"FORMACIÓN DOCENTE PARA EDUCACIÓN BÁSICA, NIVEL PREESCOLAR",null,33503,"ADMINISTRACIÓN PÚBLICA"]
[4,6,"CIENCIAS NATURALES, EXACTAS Y DE LA COMPUTACIÓN",2,"22",{"$f":"\"--VER TODOS LOS CAMPOS DE FORMACIÓN--\"","v":"--VER TODOS LOS CAMPOS DE FORMACIÓN--"},11,"116","TECNOLOGÍA EDUCATIVA",335,"3351",{"$f":"\"--OCULTAR CAMPOS DE FORMACIÓN--\"","v":"--OCULTAR CAMPOS DE FORMACIÓN--"},null,null,null,null,null,1284,"--OCULTAR CAMPOS DE FORMACIÓN--",null,null,null,null,null,null,null,null,null,null,null,null,null,null,null,null,null,null,null,null,null,null,null,null,null,null,null,null,null,null,null,null,null,null,null,null,null,null,null,null,null,null,null,null,null,null,122,"FORMACIÓN DOCENTE PARA EDUCACIÓN BÁSICA, NIVEL PRIMARIA",null,33504,"ADMINISTRACIÓN EN EL CAMPO DE LA INGENIERÍA Y LA CONSTRUCCIÓN"]
[5,7,"INGENIERÍA, MANUFACTURA Y CONSTRUCCIÓN",2,"23","ARTES",11,"117","CIENCIAS DE LA EDUCACIÓN, PROGRAMAS MULTIDISCIPLINARIOS O GENERALES",335,"3352",{"$f":"\"--VER TODOS LOS CAMPOS DE FORMACIÓN--\"","v":"--VER TODOS LOS CAMPOS DE FORMACIÓN--"},null,null,null,null,null,1285,"--VER TODOS LOS CAMPOS DE FORMACIÓN--",null,null,null,null,null,null,null,null,null,null,null,null,null,null,null,null,null,null,null,null,null,null,null,null,null,null,null,null,null,null,null,null,null,null,null,null,null,null,null,null,null,null,null,null,null,null,123,"FORMACIÓN DOCENTE PARA EDUCACIÓN BÁSICA, NIVEL SECUNDARIA",null,33505,"ADMINISTRACIÓN EN EL CAMPO DE LA AGRONOMÍA"]
[6,8,"AGRONOMÍA Y VETERINARIA",2,"24","HUMANIDADES",12,"121",{"$f":"\"--OCULTAR CAMPOS DE FORMACIÓN--\"","v":"--OCULTAR CAMPOS DE FORMACIÓN--"},335,"3353","ADMINISTRACIÓN DE SISTEMAS EDUCATIVOS",null,null,null,null,null,33501,"ADMINISTRACIÓN DE SISTEMAS EDUCATIVOS",null,null,null,null,null,null,null,null,null,null,null,null,null,null,null,null,null,null,null,null,null,null,null,null,null,null,null,null,null,null,null,null,null,null,null,null,null,null,null,null,null,null,null,null,null,null,124,"FORMACIÓN DOCENTE PARA EDUCACIÓN DE NIVEL MEDIO SUPERIOR",null,33506,"ADMINISTRACIÓN EN EL CAMPO DE LA SALUD"]
[7,9,"SALUD",3,"31",{"$f":"\"--OCULTAR CAMPOS DE FORMACIÓN--\"","v":"--OCULTAR CAMPOS DE FORMACIÓN--"},12,"122",{"$f":"\"--VER TODOS LOS CAMPOS DE FORMACIÓN--\"","v":"--VER TODOS LOS CAMPOS DE FORMACIÓN--"},335,"3354","ADMINISTRACIÓN DE EMPRESAS",null,null,null,null,null,33502,"ADMINISTRACIÓN DE EMPRESAS",null,null,null,null,null,null,null,null,null,null,null,null,null,null,null,null,null,null,null,null,null,null,null,null,null,null,null,null,null,null,null,null,null,null,null,null,null,null,null,null,null,null,null,null,null,null,125,"FORMACIÓN DOCENTE PARA EDUCACIÓN DE NIVEL SUPERIOR",null,33507,"ADMINISTRACIÓN TURÍSTICA"]
[8,10,"SERVICIOS",3,"32",{"$f":"\"--VER TODOS LOS CAMPOS DE FORMACIÓN--\"","v":"--VER TODOS LOS CAMPOS DE FORMACIÓN--"},12,"123","FORMACIÓN DOCENTE PARA EDUCACIÓN BÁSICA, NIVEL PREESCOLAR",335,"3355","ADMINISTRACIÓN PÚBLICA",null,null,null,null,null,33503,"ADMINISTRACIÓN PÚBLICA",null,null,null,null,null,null,null,null,null,null,null,null,null,null,null,null,null,null,null,null,null,null,null,null,null,null,null,null,null,null,null,null,null,null,null,null,null,null,null,null,null,null,null,null,null,null,126,"FORMACIÓN DOCENTE PARA EDUCACIÓN FÍSICA, ARTÍSTICA O TECNOLÓGICA",null,33508,"ADMINISTRACIÓN DE RESTAURANTES Y GASTRONOMÍA"]
[null,null,null,3,"33","CIENCIAS SOCIALES Y ESTUDIOS DEL COMPORTAMIENTO",12,"124","FORMACIÓN DOCENTE PARA EDUCACIÓN BÁSICA, NIVEL PRIMARIA",335,"3356","ADMINISTRACIÓN EN EL CAMPO DE LA INGENIERÍA Y LA CONSTRUCCIÓN",null,null,null,null,null,33504,"ADMINISTRACIÓN EN EL CAMPO DE LA INGENIERÍA Y LA CONSTRUCCIÓN",null,null,null,null,null,null,null,null,null,null,null,null,null,null,null,null,null,null,null,null,null,null,null,null,null,null,null,null,null,null,null,null,null,null,null,null,null,null,null,null,null,null,null,null,null,null,127,"FORMACIÓN DOCENTE PARA LA ENSEÑANZA DE ASIGNATURAS ESPECÍFICAS",null,33509,"ADMINISTRACIÓN EN EL CAMPO DE ARTES Y HUMANIDADES"]
[null,null,null,3,"34","CIENCIAS DE LA INFORMACIÓN",12,"125","FORMACIÓN DOCENTE PARA EDUCACIÓN BÁSICA, NIVEL SECUNDARIA",335,"3357","ADMINISTRACIÓN EN EL CAMPO DE LA AGRONOMÍA",null,null,null,null,null,33505,"ADMINISTRACIÓN EN EL CAMPO DE LA AGRONOMÍA",null,null,null,null,null,null,null,null,null,null,null,null,null,null,null,null,null,null,null,null,null,null,null,null,null,null,null,null,null,null,null,null,null,null,null,null,null,null,null,null,null,null,null,null,null,null,128,"FORMACIÓN DOCENTE PARA OTROS SERVICIOS EDUCATIVOS",null,33510,"ADMINISTRACIÓN EN EL DEPORTE"]
[null,null,{"$f":"\"--\"","v":"--"},3,"35","NEGOCIOS Y ADMINISTRACIÓN",12,"126","FORMACIÓN DOCENTE PARA EDUCACIÓN DE NIVEL MEDIO SUPERIOR",335,"3358","ADMINISTRACIÓN EN EL CAMPO DE LA SALUD",null,null,null,null,null,33506,"ADMINISTRACIÓN EN EL CAMPO DE LA SALUD",null,null,null,null,null,null,null,null,null,null,null,null,null,null,null,null,null,null,null,null,null,null,null,null,null,null,null,null,null,null,null,null,null,null,null,null,null,null,null,null,null,null,null,null,null,null,120,"FORMACIÓN DOCENTE, PROGRAMAS MULTIDISCIPLINARIOS O GENERALES",null,71101,"MEDICINA GENERAL"]
[null,null,null,3,"36","DERECHO",12,"127","FORMACIÓN DOCENTE PARA EDUCACIÓN DE NIVEL SUPERIOR",335,"3359","ADMINISTRACIÓN TURÍSTICA",null,null,null,null,null,33507,"ADMINISTRACIÓN TURÍSTICA",null,null,null,null,null,null,null,null,null,null,null,null,null,null,null,null,null,null,null,null,null,null,null,null,null,null,null,null,null,null,null,null,null,null,null,null,null,null,null,null,null,null,null,null,null,null,211,"BELLAS ARTES",null,71102,"ALERGOLOGÍA E INMUNOLOGÍA"]
[null,null,null,4,"41",{"$f":"\"--OCULTAR CAMPOS DE FORMACIÓN--\"","v":"--OCULTAR CAMPOS DE FORMACIÓN--"},12,"128","FORMACIÓN DOCENTE PARA EDUCACIÓN FÍSICA, ARTÍSTICA O TECNOLÓGICA",335,"33510","ADMINISTRACIÓN DE RESTAURANTES Y GASTRONOMÍA",null,null,null,null,null,33508,"ADMINISTRACIÓN DE RESTAURANTES Y GASTRONOMÍA",null,null,null,null,null,null,null,null,null,null,null,null,null,null,null,null,null,null,null,null,null,null,null,null,null,null,null,null,null,null,null,null,null,null,null,null,null,null,null,null,null,null,null,null,null,null,212,"MÚSICA Y ARTES ESCÉNICAS",null,71103,"ANESTESIOLOGÍA"]
[null,null,null,4,"42",{"$f":"\"--VER TODOS LOS CAMPOS DE FORMACIÓN--\"","v":"--VER TODOS LOS CAMPOS DE FORMACIÓN--"},12,"129","FORMACIÓN DOCENTE PARA LA ENSEÑANZA DE ASIGNATURAS ESPECÍFICAS",335,"33511","ADMINISTRACIÓN EN EL CAMPO DE ARTES Y HUMANIDADES",null,null,null,null,null,33509,"ADMINISTRACIÓN EN EL CAMPO DE ARTES Y HUMANIDADES",null,null,null,null,null,null,null,null,null,null,null,null,null,null,null,null,null,null,null,null,null,null,null,null,null,null,null,null,null,null,null,null,null,null,null,null,null,null,null,null,null,null,null,null,null,null,213,"TÉCNICAS AUDIOVISUALES Y PRODUCCIÓN DE MEDIOS ",null,71104,"ANGIOLOGÍA"]
[null,null,null,4,"43","CIENCIAS NATURALES",12,"1210","FORMACIÓN DOCENTE PARA OTROS SERVICIOS EDUCATIVOS",335,"33512","ADMINISTRACIÓN EN EL DEPORTE",null,null,null,null,null,33510,"ADMINISTRACIÓN EN EL DEPORTE",null,null,null,null,null,null,null,null,null,null,null,null,null,null,null,null,null,null,null,null,null,null,null,null,null,null,null,null,null,null,null,null,null,null,null,null,null,null,null,null,null,null,null,null,null,null,214,"DISEÑO",null,71105,"AUDIOLOGÍA"]
[null,null,null,4,"44","CIENCIAS FÍSICAS, QUÍMICAS Y DE LA TIERRA",12,"1211","FORMACIÓN DOCENTE, PROGRAMAS MULTIDISCIPLINARIOS O GENERALES",711,"7111","--OCULTAR CAMPOS DE FORMACIÓN--",null,null,null,null,null,33511,"--OCULTAR CAMPOS DE FORMACIÓN--",null,null,null,null,null,null,null,null,null,null,null,null,null,null,null,null,null,null,null,null,null,null,null,null,null,null,null,null,null,null,null,null,null,null,null,null,null,null,null,null,null,null,null,null,null,null,215,"TÉCNICAS Y HABILIDADES ARTESANALES",null,71106,"CARDIOLOGÍA"]
[null,null,null,4,"45","MATEMÁTICAS Y ESTADÍSTICA",21,"211",{"$f":"\"--OCULTAR CAMPOS DE FORMACIÓN--\"","v":"--OCULTAR CAMPOS DE FORMACIÓN--"},711,"7112","--VER TODOS LOS CAMPOS DE FORMACIÓN--",null,null,null,null,null,33512,"--VER TODOS LOS CAMPOS DE FORMACIÓN--",null,null,null,null,null,null,null,null,null,null,null,null,null,null,null,null,null,null,null,null,null,null,null,null,null,null,null,null,null,null,null,null,null,null,null,null,null,null,null,null,null,null,null,null,null,null,210,"ARTES, PROGRAMAS MULTIDISCIPLINARIOS O GENERALES",null,71107,"CIRUGÍA GENERAL"]
[null,null,null,4,"46","CIENCIAS DE LA COMPUTACIÓN",21,"212",{"$f":"\"--VER TODOS LOS CAMPOS DE FORMACIÓN--\"","v":"--VER TODOS LOS CAMPOS DE FORMACIÓN--"},711,"7113","MEDICINA GENERAL",null,null,null,null,null,71101,"MEDICINA GENERAL",null,null,null,null,null,null,null,null,null,null,null,null,null,null,null,null,null,null,null,null,null,null,null,null,null,null,null,null,null,null,null,null,null,null,null,null,null,null,null,null,null,null,null,null,null,null,221,"TEOLOGÍA",null,71108,"CIRUGÍA DE ESPECIALIDAD"]
[null,null,null,5,"51",{"$f":"\"--OCULTAR CAMPOS DE FORMACIÓN--\"","v":"--OCULTAR CAMPOS DE FORMACIÓN--"},21,"213","BELLAS ARTES",711,"7114","ALERGOLOGÍA E INMUNOLOGÍA",null,null,null,null,null,71102,"ALERGOLOGÍA E INMUNOLOGÍA",null,null,null,null,null,null,null,null,null,null,null,null,null,null,null,null,null,null,null,null,null,null,null,null,null,null,null,null,null,null,null,null,null,null,null,null,null,null,null,null,null,null,null,null,null,null,222,"LENGUAS EXTRANJERAS",null,71109,"DERMATOLOGÍA"]
[null,null,null,5,"52",{"$f":"\"--VER TODOS LOS CAMPOS DE FORMACIÓN--\"","v":"--VER TODOS LOS CAMPOS DE FORMACIÓN--"},21,"214","MÚSICA Y ARTES ESCÉNICAS",711,"7115","ANESTESIOLOGÍA",null,null,null,null,null,71103,"ANESTESIOLOGÍA",null,null,null,null,null,null,null,null,null,null,null,null,null,null,null,null,null,null,null,null,null,null,null,null,null,null,null,null,null,null,null,null,null,null,null,null,null,null,null,null,null,null,null,null,null,null,223,"LITERATURA",null,71110,"ENDOCRINOLOGÍA"]
[null,null,null,5,"53","INGENIERÍA INDUSTRIAL, MECÁNICA, ELECTRÓNICA Y TECNOLOGÍA",21,"215","TÉCNICAS AUDIOVISUALES Y PRODUCCIÓN DE MEDIOS ",711,"7116","ANGIOLOGÍA",null,null,null,null,null,71104,"ANGIOLOGÍA",null,null,null,null,null,null,null,null,null,null,null,null,null,null,null,null,null,null,null,null,null,null,null,null,null,null,null,null,null,null,null,null,null,null,null,null,null,null,null,null,null,null,null,null,null,null,224,"HISTORIA Y ARQUEOLOGÍA",null,71111,"ENDOSCOPÍA"]
[null,null,null,5,"54","MANUFACTURAS Y PROCESOS",21,"216","DISEÑO",711,"7117","AUDIOLOGÍA",null,null,null,null,null,71105,"AUDIOLOGÍA",null,null,null,null,null,null,null,null,null,null,null,null,null,null,null,null,null,null,null,null,null,null,null,null,null,null,null,null,null,null,null,null,null,null,null,null,null,null,null,null,null,null,null,null,null,null,225,"FILOSOFÍA Y ÉTICA",null,71112,"GASTROENTEROLOGÍA"]
[null,null,null,5,"55","ARQUITECTURA Y CONSTRUCCIÓN",21,"217","TÉCNICAS Y HABILIDADES ARTESANALES",711,"7118","CARDIOLOGÍA",null,null,null,null,null,71106,"CARDIOLOGÍA",null,null,null,null,null,null,null,null,null,null,null,null,null,null,null,null,null,null,null,null,null,null,null,null,null,null,null,null,null,null,null,null,null,null,null,null,null,null,null,null,null,null,null,null,null,null,220,"HUMANIDADES, PROGRAMAS MULTIDISCIPLINARIOS O GENERALES",null,71113,"GENÉTICA MÉDICA"]
[null,null,null,6,"61",{"$f":"\"--OCULTAR CAMPOS DE FORMACIÓN--\"","v":"--OCULTAR CAMPOS DE FORMACIÓN--"},21,"218","ARTES, PROGRAMAS MULTIDISCIPLINARIOS O GENERALES",711,"7119","CIRUGÍA GENERAL",null,null,null,null,null,71107,"CIRUGÍA GENERAL",null,null,null,null,null,null,null,null,null,null,null,null,null,null,null,null,null,null,null,null,null,null,null,null,null,null,null,null,null,null,null,null,null,null,null,null,null,null,null,null,null,null,null,null,null,null,311,"PSICOLOGÍA",null,71114,"GERIATRÍA"]
[null,null,null,6,"62",{"$f":"\"--VER TODOS LOS CAMPOS DE FORMACIÓN--\"","v":"--VER TODOS LOS CAMPOS DE FORMACIÓN--"},22,"221",{"$f":"\"--OCULTAR CAMPOS DE FORMACIÓN--\"","v":"--OCULTAR CAMPOS DE FORMACIÓN--"},711,"71110","CIRUGÍA DE ESPECIALIDAD",null,null,null,null,null,71108,"CIRUGÍA DE ESPECIALIDAD",null,null,null,null,null,null,null,null,null,null,null,null,null,null,null,null,null,null,null,null,null,null,null,null,null,null,null,null,null,null,null,null,null,null,null,null,null,null,null,null,null,null,null,null,null,null,312,"SOCIOLOGÍA Y ANTROPOLOGÍA",null,71115,"GINECOLOGÍA Y OBSTETRICIA"]
[null,null,null,6,"63","AGRONOMÍA, SILVICULTURA Y PESCA",22,"222",{"$f":"\"--VER TODOS LOS CAMPOS DE FORMACIÓN--\"","v":"--VER TODOS LOS CAMPOS DE FORMACIÓN--"},711,"71111","DERMATOLOGÍA",null,null,null,null,null,71109,"DERMATOLOGÍA",null,null,null,null,null,null,null,null,null,null,null,null,null,null,null,null,null,null,null,null,null,null,null,null,null,null,null,null,null,null,null,null,null,null,null,null,null,null,null,null,null,null,null,null,null,null,313,"CIENCIAS POLÍTICAS",null,71116,"HEMATOLOGÍA"]
[null,null,null,6,"64","VETERINARIA",22,"223","TEOLOGÍA",711,"71112","ENDOCRINOLOGÍA",null,null,null,null,null,71110,"ENDOCRINOLOGÍA",null,null,null,null,null,null,null,null,null,null,null,null,null,null,null,null,null,null,null,null,null,null,null,null,null,null,null,null,null,null,null,null,null,null,null,null,null,null,null,null,null,null,null,null,null,null,314,"ECONOMÍA",null,71117,"HOMEOPATÍA Y MEDICINA DE TERAPIA COMPLEMENTARIA"]
[null,null,null,7,"71",{"$f":"\"--OCULTAR CAMPOS DE FORMACIÓN--\"","v":"--OCULTAR CAMPOS DE FORMACIÓN--"},22,"224","LENGUAS EXTRANJERAS",711,"71113","ENDOSCOPÍA",null,null,null,null,null,71111,"ENDOSCOPÍA",null,null,null,null,null,null,null,null,null,null,null,null,null,null,null,null,null,null,null,null,null,null,null,null,null,null,null,null,null,null,null,null,null,null,null,null,null,null,null,null,null,null,null,null,null,null,315,"TRABAJO ATENCIÓN SOCIAL",null,71118,"INFECTOLOGÍA"]
[null,null,null,7,"72",{"$f":"\"--VER TODOS LOS CAMPOS DE FORMACIÓN--\"","v":"--VER TODOS LOS CAMPOS DE FORMACIÓN--"},22,"225","LITERATURA",711,"71114","GASTROENTEROLOGÍA",null,null,null,null,null,71112,"GASTROENTEROLOGÍA",null,null,null,null,null,null,null,null,null,null,null,null,null,null,null,null,null,null,null,null,null,null,null,null,null,null,null,null,null,null,null,null,null,null,null,null,null,null,null,null,null,null,null,null,null,null,310,"CIENCIAS SOCIALES Y ESTUDIOS DEL COMPORTAMIENTO, PROGRAMAS MULTIDISCIPLINARIOS O GENERALES",null,71119,"MEDICINA INTERNA Y MEDICINA DE URGENCIAS"]
[null,null,null,7,"73","SALUD",22,"226","HISTORIA Y ARQUEOLOGÍA",711,"71115","GENÉTICA MÉDICA",null,null,null,null,null,71113,"GENÉTICA MÉDICA",null,null,null,null,null,null,null,null,null,null,null,null,null,null,null,null,null,null,null,null,null,null,null,null,null,null,null,null,null,null,null,null,null,null,null,null,null,null,null,null,null,null,null,null,null,null,321,"COMUNICACIÓN Y PERIODISMO",null,71120,"MEDICINA DEL DEPORTE"]
[null,null,null,8,"81",{"$f":"\"--OCULTAR CAMPOS DE FORMACIÓN--\"","v":"--OCULTAR CAMPOS DE FORMACIÓN--"},22,"227","FILOSOFÍA Y ÉTICA",711,"71116","GERIATRÍA",null,null,null,null,null,71114,"GERIATRÍA",null,null,null,null,null,null,null,null,null,null,null,null,null,null,null,null,null,null,null,null,null,null,null,null,null,null,null,null,null,null,null,null,null,null,null,null,null,null,null,null,null,null,null,null,null,null,322,"BIBLIOTECONOMÍA",null,71121,"MEDICINA DEL TRABAJO"]
[null,null,null,8,"82",{"$f":"\"--VER TODOS LOS CAMPOS DE FORMACIÓN--\"","v":"--VER TODOS LOS CAMPOS DE FORMACIÓN--"},22,"228","HUMANIDADES, PROGRAMAS MULTIDISCIPLINARIOS O GENERALES",711,"71117","GINECOLOGÍA Y OBSTETRICIA",null,null,null,null,null,71115,"GINECOLOGÍA Y OBSTETRICIA",null,null,null,null,null,null,null,null,null,null,null,null,null,null,null,null,null,null,null,null,null,null,null,null,null,null,null,null,null,null,null,null,null,null,null,null,null,null,null,null,null,null,null,null,null,null,331,"NEGOCIOS Y COMERCIO",null,71122,"MEDICINA FAMILIAR"]
[null,null,null,8,"83","SERVICIOS PERSONALES",31,"311",{"$f":"\"--OCULTAR CAMPOS DE FORMACIÓN--\"","v":"--OCULTAR CAMPOS DE FORMACIÓN--"},711,"71118","HEMATOLOGÍA",null,null,null,null,null,71116,"HEMATOLOGÍA",null,null,null,null,null,null,null,null,null,null,null,null,null,null,null,null,null,null,null,null,null,null,null,null,null,null,null,null,null,null,null,null,null,null,null,null,null,null,null,null,null,null,null,null,null,null,332,"MERCADOTECNIA Y PUBLICIDAD",null,71123,"MEDICINA FORENSE"]
[null,null,null,8,"84","SERVICIOS DE TRANSPORTE",31,"312",{"$f":"\"--VER TODOS LOS CAMPOS DE FORMACIÓN--\"","v":"--VER TODOS LOS CAMPOS DE FORMACIÓN--"},711,"71119","HOMEOPATÍA Y MEDICINA DE TERAPIA COMPLEMENTARIA",null,null,null,null,null,71117,"HOMEOPATÍA Y MEDICINA DE TERAPIA COMPLEMENTARIA",null,null,null,null,null,null,null,null,null,null,null,null,null,null,null,null,null,null,null,null,null,null,null,null,null,null,null,null,null,null,null,null,null,null,null,null,null,null,null,null,null,null,null,null,null,null,333,"FINANZAS, BANCA Y SEGUROS",null,71124,"NEFROLOGÍA"]
[null,null,null,8,"85","SEGURIDAD INDUSTRIAL",31,"313","PSICOLOGÍA",711,"71120","INFECTOLOGÍA",null,null,null,null,null,71118,"INFECTOLOGÍA",null,null,null,null,null,null,null,null,null,null,null,null,null,null,null,null,null,null,null,null,null,null,null,null,null,null,null,null,null,null,null,null,null,null,null,null,null,null,null,null,null,null,null,null,null,null,334,"CONTABILIDAD Y FISCALIZACIÓN",null,71125,"NEONATOLOGÍA Y PEDIATRÍA"]
[null,null,null,8,"86","SERVICIOS DE SEGURIDAD",31,"314","SOCIOLOGÍA Y ANTROPOLOGÍA",711,"71121","MEDICINA INTERNA Y MEDICINA DE URGENCIAS",null,null,null,null,null,71119,"MEDICINA INTERNA Y MEDICINA DE URGENCIAS",null,null,null,null,null,null,null,null,null,null,null,null,null,null,null,null,null,null,null,null,null,null,null,null,null,null,null,null,null,null,null,null,null,null,null,null,null,null,null,null,null,null,null,null,null,null,335,"ADMINISTRACIÓN Y GESTIÓN DE EMPRESAS",null,71126,"NEUMOLOGÍA"]
[null,null,null,null,"0","TODOS LOS CAMPOS",31,"315","CIENCIAS POLÍTICAS",711,"71122","MEDICINA DEL DEPORTE",null,null,null,null,null,71120,"MEDICINA DEL DEPORTE",null,null,null,null,null,null,null,null,null,null,null,null,null,null,null,null,null,null,null,null,null,null,null,null,null,null,null,null,null,null,null,null,null,null,null,null,null,null,null,null,null,null,null,null,null,null,330,"NEGOCIOS Y ADMINISTRACIÓN, PROGRAMAS MULTIDISCIPLINARIOS O GENERALES",null,71127,"NEUROLOGÍA"]
[null,null,null,null,null,null,31,"316","ECONOMÍA",711,"71123","MEDICINA DEL TRABAJO",null,null,null,null,null,71121,"MEDICINA DEL TRABAJO",null,null,null,null,null,null,null,null,null,null,null,null,null,null,null,null,null,null,null,null,null,null,null,null,null,null,null,null,null,null,null,null,null,null,null,null,null,null,null,null,null,null,null,null,null,null,341,"DERECHO",null,71128,"OFTALMOLOGÍA"]
[null,null,null,null,null,null,31,"317","TRABAJO ATENCIÓN SOCIAL",711,"71124","MEDICINA FAMILIAR",null,null,null,null,null,71122,"MEDICINA FAMILIAR",null,null,null,null,null,null,null,null,null,null,null,null,null,null,null,null,null,null,null,null,null,null,null,null,null,null,null,null,null,null,null,null,null,null,null,null,null,null,null,null,null,null,null,null,null,null,342,"CRIMINOLOGÍA",null,71129,"ONCOLOGÍA"]
[null,null,null,null,null,null,31,"318","CIENCIAS SOCIALES Y ESTUDIOS DEL COMPORTAMIENTO, PROGRAMAS MULTIDISCIPLINARIOS O GENERALES",711,"71125","MEDICINA FORENSE",null,null,null,null,null,71123,"MEDICINA FORENSE",null,null,null,null,null,null,null,null,null,null,null,null,null,null,null,null,null,null,null,null,null,null,null,null,null,null,null,null,null,null,null,null,null,null,null,null,null,null,null,null,null,null,null,null,null,null,411,"BIOLOGÍA Y BIOQUÍMICA",null,71130,"OTORRINOLARINGOLOGÍA"]
[null,null,null,null,null,null,32,"321",{"$f":"\"--OCULTAR CAMPOS DE FORMACIÓN--\"","v":"--OCULTAR CAMPOS DE FORMACIÓN--"},711,"71126","NEFROLOGÍA",null,null,null,null,null,71124,"NEFROLOGÍA",null,null,null,null,null,null,null,null,null,null,null,null,null,null,null,null,null,null,null,null,null,null,null,null,null,null,null,null,null,null,null,null,null,null,null,null,null,null,null,null,null,null,null,null,null,null,412,"CIENCIAS AMBIENTALES",null,71131,"PATOLOGÍA Y ANATOMÍA PATOLÓGICA"]
[null,null,null,null,null,null,32,"322",{"$f":"\"--VER TODOS LOS CAMPOS DE FORMACIÓN--\"","v":"--VER TODOS LOS CAMPOS DE FORMACIÓN--"},711,"71127","NEONATOLOGÍA Y PEDIATRÍA",null,null,null,null,null,71125,"NEONATOLOGÍA Y PEDIATRÍA",null,null,null,null,null,null,null,null,null,null,null,null,null,null,null,null,null,null,null,null,null,null,null,null,null,null,null,null,null,null,null,null,null,null,null,null,null,null,null,null,null,null,null,null,null,null,421,"FÍSICA",null,71132,"PROCTOLOGÍA"]
[null,null,null,null,null,null,32,"323","COMUNICACIÓN Y PERIODISMO",711,"71128","NEUMOLOGÍA",null,null,null,null,null,71126,"NEUMOLOGÍA",null,null,null,null,null,null,null,null,null,null,null,null,null,null,null,null,null,null,null,null,null,null,null,null,null,null,null,null,null,null,null,null,null,null,null,null,null,null,null,null,null,null,null,null,null,null,422,"QUÍMICA",null,71133,"PSIQUIATRÍA"]
[null,null,null,null,null,null,32,"324","BIBLIOTECONOMÍA",711,"71129","NEUROLOGÍA",null,null,null,null,null,71127,"NEUROLOGÍA",null,null,null,null,null,null,null,null,null,null,null,null,null,null,null,null,null,null,null,null,null,null,null,null,null,null,null,null,null,null,null,null,null,null,null,null,null,null,null,null,null,null,null,null,null,null,423,"CIENCIAS DE LA TIERRA Y DE LA ATMÓSFERA",null,71134,"RADIOLOGÍA"]
[null,null,null,null,null,null,33,"331",{"$f":"\"--OCULTAR CAMPOS DE FORMACIÓN--\"","v":"--OCULTAR CAMPOS DE FORMACIÓN--"},711,"71130","OFTALMOLOGÍA",null,null,null,null,null,71128,"OFTALMOLOGÍA",null,null,null,null,null,null,null,null,null,null,null,null,null,null,null,null,null,null,null,null,null,null,null,null,null,null,null,null,null,null,null,null,null,null,null,null,null,null,null,null,null,null,null,null,null,null,420,"CIENCIAS FÍSICAS, QUÍMICAS Y DE LA TIERRA, PROGRAMAS MULTIDISCIPLINARIOS O GENERALES",null,71135,"REUMATOLOGÍA"]
[null,null,null,null,null,null,33,"332",{"$f":"\"--VER TODOS LOS CAMPOS DE FORMACIÓN--\"","v":"--VER TODOS LOS CAMPOS DE FORMACIÓN--"},711,"71131","ONCOLOGÍA",null,null,null,null,null,71129,"ONCOLOGÍA",null,null,null,null,null,null,null,null,null,null,null,null,null,null,null,null,null,null,null,null,null,null,null,null,null,null,null,null,null,null,null,null,null,null,null,null,null,null,null,null,null,null,null,null,null,null,431,"MATEMÁTICAS",null,71136,"TRAUMATOLOGÍA Y ORTOPEDIA"]
[null,null,null,null,null,null,33,"333","NEGOCIOS Y COMERCIO",711,"71132","OTORRINOLARINGOLOGÍA",null,null,null,null,null,71130,"OTORRINOLARINGOLOGÍA",null,null,null,null,null,null,null,null,null,null,null,null,null,null,null,null,null,null,null,null,null,null,null,null,null,null,null,null,null,null,null,null,null,null,null,null,null,null,null,null,null,null,null,null,null,null,432,"ESTADÍSTICA",null,71137,"UROLOGÍA"]
[null,null,null,null,null,null,33,"334","MERCADOTECNIA Y PUBLICIDAD",711,"71133","PATOLOGÍA Y ANATOMÍA PATOLÓGICA",null,null,null,null,null,71131,"PATOLOGÍA Y ANATOMÍA PATOLÓGICA",null,null,null,null,null,null,null,null,null,null,null,null,null,null,null,null,null,null,null,null,null,null,null,null,null,null,null,null,null,null,null,null,null,null,null,null,null,null,null,null,null,null,null,null,null,null,441,"CIENCIAS DE LA COMPUTACIÓN"]
[null,null,null,null,null,null,33,"335","FINANZAS, BANCA Y SEGUROS",711,"71134","PROCTOLOGÍA",null,null,null,null,null,71132,"PROCTOLOGÍA",null,null,null,null,null,null,null,null,null,null,null,null,null,null,null,null,null,null,null,null,null,null,null,null,null,null,null,null,null,null,null,null,null,null,null,null,null,null,null,null,null,null,null,null,null,null,511,"INGENIERÍA MECÁNICA Y METALURGIA"]
[null,null,null,null,null,null,33,"336","CONTABILIDAD Y FISCALIZACIÓN",711,"71135","PSIQUIATRÍA",null,null,null,null,null,71133,"PSIQUIATRÍA",null,null,null,null,null,null,null,null,null,null,null,null,null,null,null,null,null,null,null,null,null,null,null,null,null,null,null,null,null,null,null,null,null,null,null,null,null,null,null,null,null,null,null,null,null,null,512,"ELECTRICIDAD Y GENERACIÓN DE ENERGÍA"]
[null,null,null,null,null,null,33,"337","ADMINISTRACIÓN Y GESTIÓN DE EMPRESAS",711,"71136","RADIOLOGÍA",null,null,null,null,null,71134,"RADIOLOGÍA",null,null,null,null,null,null,null,null,null,null,null,null,null,null,null,null,null,null,null,null,null,null,null,null,null,null,null,null,null,null,null,null,null,null,null,null,null,null,null,null,null,null,null,null,null,null,513,"ELECTRÓNICA Y AUTOMATIZACIÓN"]
[null,null,null,null,null,null,33,"338","NEGOCIOS Y ADMINISTRACIÓN, PROGRAMAS MULTIDISCIPLINARIOS O GENERALES",711,"71137","REUMATOLOGÍA",null,null,null,null,null,71135,"REUMATOLOGÍA",null,null,null,null,null,null,null,null,null,null,null,null,null,null,null,null,null,null,null,null,null,null,null,null,null,null,null,null,null,null,null,null,null,null,null,null,null,null,null,null,null,null,null,null,null,null,514,"INGENIERÍA QUÍMICA"]
[null,null,null,null,null,null,34,"341",{"$f":"\"--OCULTAR CAMPOS DE FORMACIÓN--\"","v":"--OCULTAR CAMPOS DE FORMACIÓN--"},711,"71138","TRAUMATOLOGÍA Y ORTOPEDIA",null,null,null,null,null,71136,"TRAUMATOLOGÍA Y ORTOPEDIA",null,null,null,null,null,null,null,null,null,null,null,null,null,null,null,null,null,null,null,null,null,null,null,null,null,null,null,null,null,null,null,null,null,null,null,null,null,null,null,null,null,null,null,null,null,null,515,"INGENIERÍA DE VEHÍCULOS DE MOTOR, BARCOS Y AERONAVES"]
[null,null,null,null,null,null,34,"342",{"$f":"\"--VER TODOS LOS CAMPOS DE FORMACIÓN--\"","v":"--VER TODOS LOS CAMPOS DE FORMACIÓN--"},711,"71139","UROLOGÍA",null,null,null,null,null,71137,"UROLOGÍA",null,null,null,null,null,null,null,null,null,null,null,null,null,null,null,null,null,null,null,null,null,null,null,null,null,null,null,null,null,null,null,null,null,null,null,null,null,null,null,null,null,null,null,null,null,null,516,"TECNOLOGÍA Y PROTECCIÓN DEL MEDIO AMBIENTE"]
[null,null,null,null,null,null,34,"343","DERECHO",null,null,null,null,null,null,null,null,71138,null,null,null,null,null,null,null,null,null,null,null,null,null,null,null,null,null,null,null,null,null,null,null,null,null,null,null,null,null,null,null,null,null,null,null,null,null,null,null,null,null,null,null,null,null,null,null,517,"TECNOLOGÍA DE LA INFORMACIÓN Y DE LA COMUNICACIÓN "]
[null,null,null,null,null,null,34,"344","CRIMINOLOGÍA",null,null,null,null,null,null,null,null,71139,null,null,null,null,null,null,null,null,null,null,null,null,null,null,null,null,null,null,null,null,null,null,null,null,null,null,null,null,null,null,null,null,null,null,null,null,null,null,null,null,null,null,null,null,null,null,null,510,"INGENIERÍA INDUSTRIAL, MECÁNICA, ELECTRÓNICA Y TECNOLOGÍA, PROGRAMAS MULTIDISCIPLINARIOS O GENERALES"]
[null,null,null,null,null,null,41,"411",{"$f":"\"--OCULTAR CAMPOS DE FORMACIÓN--\"","v":"--OCULTAR CAMPOS DE FORMACIÓN--"},null,null,null,null,null,null,null,null,null,null,null,null,null,null,null,null,null,null,null,null,null,null,null,null,null,null,null,null,null,null,null,null,null,null,null,null,null,null,null,null,null,null,null,null,null,null,null,null,null,null,null,null,null,null,null,null,521,"INDUSTRIA DE LA ALIMENTACIÓN"]
[null,null,null,null,null,null,41,"412",{"$f":"\"--VER TODOS LOS CAMPOS DE FORMACIÓN--\"","v":"--VER TODOS LOS CAMPOS DE FORMACIÓN--"},null,null,null,null,null,null,null,null,null,null,null,null,null,null,null,null,null,null,null,null,null,null,null,null,null,null,null,null,null,null,null,null,null,null,null,null,null,null,null,null,null,null,null,null,null,null,null,null,null,null,null,null,null,null,null,null,522,"INDUSTRIA TEXTIL, DEL CALZADO Y PIEL"]
[null,null,null,null,null,null,41,"413","BIOLOGÍA Y BIOQUÍMICA",null,null,null,null,null,null,null,null,null,null,null,null,null,null,null,null,null,null,null,null,null,null,null,null,null,null,null,null,null,null,null,null,null,null,null,null,null,null,null,null,null,null,null,null,null,null,null,null,null,null,null,null,null,null,null,null,523,"INDUSTRIAS DE MATERIALES DIVERSOS (MADERA, PAPEL, PLÁSTICO Y VIDRIO)"]
[null,null,null,null,null,null,41,"414","CIENCIAS AMBIENTALES",null,null,null,null,null,null,null,null,null,null,null,null,null,null,null,null,null,null,null,null,null,null,null,null,null,null,null,null,null,null,null,null,null,null,null,null,null,null,null,null,null,null,null,null,null,null,null,null,null,null,null,null,null,null,null,null,524,"MINERÍA Y EXTRACCIÓN"]
[null,null,null,null,null,null,42,"421",{"$f":"\"--OCULTAR CAMPOS DE FORMACIÓN--\"","v":"--OCULTAR CAMPOS DE FORMACIÓN--"},null,null,null,null,null,null,null,null,null,null,null,null,null,null,null,null,null,null,null,null,null,null,null,null,null,null,null,null,null,null,null,null,null,null,null,null,null,null,null,null,null,null,null,null,null,null,null,null,null,null,null,null,null,null,null,null,520,"MANUFACTURAS Y PROCESOS, PROGRAMAS MULTIDISCIPLINARIOS O GENERALES"]
[null,null,null,null,null,null,42,"422",{"$f":"\"--VER TODOS LOS CAMPOS DE FORMACIÓN--\"","v":"--VER TODOS LOS CAMPOS DE FORMACIÓN--"},null,null,null,null,null,null,null,null,null,null,null,null,null,null,null,null,null,null,null,null,null,null,null,null,null,null,null,null,null,null,null,null,null,null,null,null,null,null,null,null,null,null,null,null,null,null,null,null,null,null,null,null,null,null,null,null,531,"ARQUITECTURA Y URBANISMO"]
[null,null,null,null,null,null,42,"423","FÍSICA",null,null,null,null,null,null,null,null,null,null,null,null,null,null,null,null,null,null,null,null,null,null,null,null,null,null,null,null,null,null,null,null,null,null,null,null,null,null,null,null,null,null,null,null,null,null,null,null,null,null,null,null,null,null,null,null,532,"CONSTRUCCIÓN E INGENIERÍA CIVIL"]
[null,null,null,null,null,null,42,"424","QUÍMICA",null,null,null,null,null,null,null,null,null,null,null,null,null,null,null,null,null,null,null,null,null,null,null,null,null,null,null,null,null,null,null,null,null,null,null,null,null,null,null,null,null,null,null,null,null,null,null,null,null,null,null,null,null,null,null,null,611,"PRODUCCIÓN Y EXPLOTACIÓN AGRÍCOLA Y GANADERA"]
[null,null,null,null,null,null,42,"425","CIENCIAS DE LA TIERRA Y DE LA ATMÓSFERA",null,null,null,null,null,null,null,null,null,null,null,null,null,null,null,null,null,null,null,null,null,null,null,null,null,null,null,null,null,null,null,null,null,null,null,null,null,null,null,null,null,null,null,null,null,null,null,null,null,null,null,null,null,null,null,null,612,"HORTICULTURA"]
[null,null,null,null,null,null,42,"426","CIENCIAS FÍSICAS, QUÍMICAS Y DE LA TIERRA, PROGRAMAS MULTIDISCIPLINARIOS O GENERALES",null,null,null,null,null,null,null,null,null,null,null,null,null,null,null,null,null,null,null,null,null,null,null,null,null,null,null,null,null,null,null,null,null,null,null,null,null,null,null,null,null,null,null,null,null,null,null,null,null,null,null,null,null,null,null,null,613,"SILVICULTURA"]
[null,null,null,null,null,null,43,"431",{"$f":"\"--OCULTAR CAMPOS DE FORMACIÓN--\"","v":"--OCULTAR CAMPOS DE FORMACIÓN--"},null,null,null,null,null,null,null,null,null,null,null,null,null,null,null,null,null,null,null,null,null,null,null,null,null,null,null,null,null,null,null,null,null,null,null,null,null,null,null,null,null,null,null,null,null,null,null,null,null,null,null,null,null,null,null,null,614,"PESCA"]
[null,null,null,null,null,null,43,"432",{"$f":"\"--VER TODOS LOS CAMPOS DE FORMACIÓN--\"","v":"--VER TODOS LOS CAMPOS DE FORMACIÓN--"},null,null,null,null,null,null,null,null,null,null,null,null,null,null,null,null,null,null,null,null,null,null,null,null,null,null,null,null,null,null,null,null,null,null,null,null,null,null,null,null,null,null,null,null,null,null,null,null,null,null,null,null,null,null,null,null,610,"AGRONOMÍA, SILVICULTURA Y PESCA, PROGRAMAS MULTIDISCIPLINARIOS O GENERALES"]
[null,null,null,null,null,null,43,"433","MATEMÁTICAS",null,null,null,null,null,null,null,null,null,null,null,null,null,null,null,null,null,null,null,null,null,null,null,null,null,null,null,null,null,null,null,null,null,null,null,null,null,null,null,null,null,null,null,null,null,null,null,null,null,null,null,null,null,null,null,null,621,"VETERINARIA"]
[null,null,null,null,null,null,43,"434","ESTADÍSTICA",null,null,null,null,null,null,null,null,null,null,null,null,null,null,null,null,null,null,null,null,null,null,null,null,null,null,null,null,null,null,null,null,null,null,null,null,null,null,null,null,null,null,null,null,null,null,null,null,null,null,null,null,null,null,null,null,711,"MEDICINA"]
[null,null,null,null,null,null,44,"441",{"$f":"\"--OCULTAR CAMPOS DE FORMACIÓN--\"","v":"--OCULTAR CAMPOS DE FORMACIÓN--"},null,null,null,null,null,null,null,null,null,null,null,null,null,null,null,null,null,null,null,null,null,null,null,null,null,null,null,null,null,null,null,null,null,null,null,null,null,null,null,null,null,null,null,null,null,null,null,null,null,null,null,null,null,null,null,null,712,"ENFERMERÍA Y CUIDADOS"]
[null,null,null,null,null,null,44,"442",{"$f":"\"--VER TODOS LOS CAMPOS DE FORMACIÓN--\"","v":"--VER TODOS LOS CAMPOS DE FORMACIÓN--"},null,null,null,null,null,null,null,null,null,null,null,null,null,null,null,null,null,null,null,null,null,null,null,null,null,null,null,null,null,null,null,null,null,null,null,null,null,null,null,null,null,null,null,null,null,null,null,null,null,null,null,null,null,null,null,null,713,"ESTOMATOLOGÍA Y ODONTOLOGÍA"]
[null,null,null,null,null,null,44,"443","CIENCIAS DE LA COMPUTACIÓN",null,null,null,null,null,null,null,null,null,null,null,null,null,null,null,null,null,null,null,null,null,null,null,null,null,null,null,null,null,null,null,null,null,null,null,null,null,null,null,null,null,null,null,null,null,null,null,null,null,null,null,null,null,null,null,null,714,"DIAGNÓSTICO MÉDICO Y TECNOLOGÍA DEL TRATAMIENTO"]
[null,null,null,null,null,null,51,"511",{"$f":"\"--OCULTAR CAMPOS DE FORMACIÓN--\"","v":"--OCULTAR CAMPOS DE FORMACIÓN--"},null,null,null,null,null,null,null,null,null,null,null,null,null,null,null,null,null,null,null,null,null,null,null,null,null,null,null,null,null,null,null,null,null,null,null,null,null,null,null,null,null,null,null,null,null,null,null,null,null,null,null,null,null,null,null,null,715,"TERAPIA Y REHABILITACIÓN"]
[null,null,null,null,null,null,51,"512",{"$f":"\"--VER TODOS LOS CAMPOS DE FORMACIÓN--\"","v":"--VER TODOS LOS CAMPOS DE FORMACIÓN--"},null,null,null,null,null,null,null,null,null,null,null,null,null,null,null,null,null,null,null,null,null,null,null,null,null,null,null,null,null,null,null,null,null,null,null,null,null,null,null,null,null,null,null,null,null,null,null,null,null,null,null,null,null,null,null,null,716,"FARMACIA"]
[null,null,null,null,null,null,51,"513","INGENIERÍA MECÁNICA Y METALURGIA",null,null,null,null,null,null,null,null,null,null,null,null,null,null,null,null,null,null,null,null,null,null,null,null,null,null,null,null,null,null,null,null,null,null,null,null,null,null,null,null,null,null,null,null,null,null,null,null,null,null,null,null,null,null,null,null,717,"SALUD PÚBLICA"]
[null,null,null,null,null,null,51,"514","ELECTRICIDAD Y GENERACIÓN DE ENERGÍA",null,null,null,null,null,null,null,null,null,null,null,null,null,null,null,null,null,null,null,null,null,null,null,null,null,null,null,null,null,null,null,null,null,null,null,null,null,null,null,null,null,null,null,null,null,null,null,null,null,null,null,null,null,null,null,null,710,"SALUD, PROGRAMAS MULTIDISCIPLINARIOS O GENERALES"]
[null,null,null,null,null,null,51,"515","ELECTRÓNICA Y AUTOMATIZACIÓN",null,null,null,null,null,null,null,null,null,null,null,null,null,null,null,null,null,null,null,null,null,null,null,null,null,null,null,null,null,null,null,null,null,null,null,null,null,null,null,null,null,null,null,null,null,null,null,null,null,null,null,null,null,null,null,null,811,"DEPORTES"]
[null,null,null,null,null,null,51,"516","INGENIERÍA QUÍMICA",null,null,null,null,null,null,null,null,null,null,null,null,null,null,null,null,null,null,null,null,null,null,null,null,null,null,null,null,null,null,null,null,null,null,null,null,null,null,null,null,null,null,null,null,null,null,null,null,null,null,null,null,null,null,null,null,812,"SERVICIOS DE EMBALSAMIENTO"]
[null,null,null,null,null,null,51,"517","INGENIERÍA DE VEHÍCULOS DE MOTOR, BARCOS Y AERONAVES",null,null,null,null,null,null,null,null,null,null,null,null,null,null,null,null,null,null,null,null,null,null,null,null,null,null,null,null,null,null,null,null,null,null,null,null,null,null,null,null,null,null,null,null,null,null,null,null,null,null,null,null,null,null,null,null,813,"SERVICIOS DE BELLEZA"]
[null,null,null,null,null,null,51,"518","TECNOLOGÍA Y PROTECCIÓN DEL MEDIO AMBIENTE",null,null,null,null,null,null,null,null,null,null,null,null,null,null,null,null,null,null,null,null,null,null,null,null,null,null,null,null,null,null,null,null,null,null,null,null,null,null,null,null,null,null,null,null,null,null,null,null,null,null,null,null,null,null,null,null,814,"SECRETARIADO Y ASISTENCIA ADMINISTRATIVA"]
[null,null,null,null,null,null,51,"519","TECNOLOGÍA DE LA INFORMACIÓN Y DE LA COMUNICACIÓN ",null,null,null,null,null,null,null,null,null,null,null,null,null,null,null,null,null,null,null,null,null,null,null,null,null,null,null,null,null,null,null,null,null,null,null,null,null,null,null,null,null,null,null,null,null,null,null,null,null,null,null,null,null,null,null,null,821,"SERVICIOS DE TRANSPORTE"]
[null,null,null,null,null,null,51,"5110","INGENIERÍA INDUSTRIAL, MECÁNICA, ELECTRÓNICA Y TECNOLOGÍA, PROGRAMAS MULTIDISCIPLINARIOS O GENERALES",null,null,null,null,null,null,null,null,null,null,null,null,null,null,null,null,null,null,null,null,null,null,null,null,null,null,null,null,null,null,null,null,null,null,null,null,null,null,null,null,null,null,null,null,null,null,null,null,null,null,null,null,null,null,null,null,831,"SEGURIDAD INDUSTRIAL"]
[null,null,null,null,null,null,52,"521",{"$f":"\"--OCULTAR CAMPOS DE FORMACIÓN--\"","v":"--OCULTAR CAMPOS DE FORMACIÓN--"},null,null,null,null,null,null,null,null,null,null,null,null,null,null,null,null,null,null,null,null,null,null,null,null,null,null,null,null,null,null,null,null,null,null,null,null,null,null,null,null,null,null,null,null,null,null,null,null,null,null,null,null,null,null,null,null,841,"SEGURIDAD PÚBLICA"]
[null,null,null,null,null,null,52,"522",{"$f":"\"--VER TODOS LOS CAMPOS DE FORMACIÓN--\"","v":"--VER TODOS LOS CAMPOS DE FORMACIÓN--"},null,null,null,null,null,null,null,null,null,null,null,null,null,null,null,null,null,null,null,null,null,null,null,null,null,null,null,null,null,null,null,null,null,null,null,null,null,null,null,null,null,null,null,null,null,null,null,null,null,null,null,null,null,null,null,null,842,"SERVICIOS MILITARES"]
[null,null,null,null,null,null,52,"523","INDUSTRIA DE LA ALIMENTACIÓN"]
[null,null,null,null,null,null,52,"524","INDUSTRIA TEXTIL, DEL CALZADO Y PIEL"]
[null,null,null,null,null,null,52,"525","INDUSTRIAS DE MATERIALES DIVERSOS (MADERA, PAPEL, PLÁSTICO Y VIDRIO)"]
[null,null,null,null,null,null,52,"526","MINERÍA Y EXTRACCIÓN"]
[null,null,null,null,null,null,52,"527","MANUFACTURAS Y PROCESOS, PROGRAMAS MULTIDISCIPLINARIOS O GENERALES"]
[null,null,null,null,null,null,53,"531",{"$f":"\"--OCULTAR CAMPOS DE FORMACIÓN--\"","v":"--OCULTAR CAMPOS DE FORMACIÓN--"}]
[null,null,null,null,null,null,53,"532",{"$f":"\"--VER TODOS LOS CAMPOS DE FORMACIÓN--\"","v":"--VER TODOS LOS CAMPOS DE FORMACIÓN--"}]
[null,null,null,null,null,null,53,"533","ARQUITECTURA Y URBANISMO"]
[null,null,null,null,null,null,53,"534","CONSTRUCCIÓN E INGENIERÍA CIVIL"]
[null,null,null,null,null,null,61,"611",{"$f":"\"--OCULTAR CAMPOS DE FORMACIÓN--\"","v":"--OCULTAR CAMPOS DE FORMACIÓN--"}]
[null,null,null,null,null,null,61,"612",{"$f":"\"--VER TODOS LOS CAMPOS DE FORMACIÓN--\"","v":"--VER TODOS LOS CAMPOS DE FORMACIÓN--"}]
[null,null,null,null,null,null,61,"613","PRODUCCIÓN Y EXPLOTACIÓN AGRÍCOLA Y GANADERA"]
[null,null,null,null,null,null,61,"614","HORTICULTURA"]
[null,null,null,null,null,null,61,"615","SILVICULTURA"]
[null,null,null,null,null,null,61,"616","PESCA"]
[null,null,null,null,null,null,61,"617","AGRONOMÍA, SILVICULTURA Y PESCA, PROGRAMAS MULTIDISCIPLINARIOS O GENERALES"]
[null,null,null,null,null,null,62,"621",{"$f":"\"--OCULTAR CAMPOS DE FORMACIÓN--\"","v":"--OCULTAR CAMPOS DE FORMACIÓN--"}]
[null,null,null,null,null,null,62,"622",{"$f":"\"--VER TODOS LOS CAMPOS DE FORMACIÓN--\"","v":"--VER TODOS LOS CAMPOS DE FORMACIÓN--"}]
[null,null,null,null,null,null,62,"623","VETERINARIA"]
[null,null,null,null,null,null,71,"711",{"$f":"\"--OCULTAR CAMPOS DE FORMACIÓN--\"","v":"--OCULTAR CAMPOS DE FORMACIÓN--"}]
[null,null,null,null,null,null,71,"712",{"$f":"\"--VER TODOS LOS CAMPOS DE FORMACIÓN--\"","v":"--VER TODOS LOS CAMPOS DE FORMACIÓN--"}]
[null,null,null,null,null,null,71,"713","MEDICINA"]
[null,null,null,null,null,null,71,"714","ENFERMERÍA Y CUIDADOS"]
[null,null,null,null,null,null,71,"715","ESTOMATOLOGÍA Y ODONTOLOGÍA"]
[null,null,null,null,null,null,71,"716","DIAGNÓSTICO MÉDICO Y TECNOLOGÍA DEL TRATAMIENTO"]
[null,null,null,null,null,null,71,"717","TERAPIA Y REHABILITACIÓN"]
[null,null,null,null,null,null,71,"718","FARMACIA"]
[null,null,null,null,null,null,71,"719","SALUD PÚBLICA"]
[null,null,null,null,null,null,71,"7110","SALUD, PROGRAMAS MULTIDISCIPLINARIOS O GENERALES"]
[null,null,null,null,null,null,81,"811",{"$f":"\"--OCULTAR CAMPOS DE FORMACIÓN--\"","v":"--OCULTAR CAMPOS DE FORMACIÓN--"}]
[null,null,null,null,null,null,81,"812",{"$f":"\"--VER TODOS LOS CAMPOS DE FORMACIÓN--\"","v":"--VER TODOS LOS CAMPOS DE FORMACIÓN--"}]
[null,null,null,null,null,null,81,"813","DEPORTES"]
[null,null,null,null,null,null,81,"814","SERVICIOS DE EMBALSAMIENTO"]
[null,null,null,null,null,null,81,"815","SERVICIOS DE BELLEZA"]
[null,null,null,null,null,null,81,"816","SECRETARIADO Y ASISTENCIA ADMINISTRATIVA"]
[null,null,null,null,null,null,82,"821",{"$f":"\"--OCULTAR CAMPOS DE FORMACIÓN--\"","v":"--OCULTAR CAMPOS DE FORMACIÓN--"}]
[null,null,null,null,null,null,82,"822",{"$f":"\"--VER TODOS LOS CAMPOS DE FORMACIÓN--\"","v":"--VER TODOS LOS CAMPOS DE FORMACIÓN--"}]
[null,null,null,null,null,null,82,"823","SERVICIOS DE TRANSPORTE"]
[null,null,null,null,null,null,83,"831",{"$f":"\"--OCULTAR CAMPOS DE FORMACIÓN--\"","v":"--OCULTAR CAMPOS DE FORMACIÓN--"}]
[null,null,null,null,null,null,83,"832",{"$f":"\"--VER TODOS LOS CAMPOS DE FORMACIÓN--\"","v":"--VER TODOS LOS CAMPOS DE FORMACIÓN--"}]
[null,null,null,null,null,null,83,"833","SEGURIDAD INDUSTRIAL"]
[null,null,null,null,null,null,84,"841",{"$f":"\"--OCULTAR CAMPOS DE FORMACIÓN--\"","v":"--OCULTAR CAMPOS DE FORMACIÓN--"}]
[null,null,null,null,null,null,84,"842",{"$f":"\"--VER TODOS LOS CAMPOS DE FORMACIÓN--\"","v":"--VER TODOS LOS CAMPOS DE FORMACIÓN--"}]
[null,null,null,null,null,null,84,"843","SEGURIDAD PÚBLICA"]
[null,null,null,null,null,null,84,"844","SERVICIOS MILITARES"]

{"sheet":"ANUARIO 2016-2017-LICENCIATURA","index":1,"n_rows":23246,"n_cols":97,"rows_kept":4500,"cut":true,"hidden":false,"merged":[],"bounds":{"rows_first":2000,"rows_last":500,"rows_between":2000,"halvings":0}}
[null,null,null,null,null,null,null,null,null,null,null,null,null,null,null,null,null,null,null,null,null,null,null,null,null,null,null,null,null,null,null,null,null,null,null,null,null,null,null,null,null,null,null,null,null,null,null,null,null,null,null,null,null,null,null,null,null,null,null,null,null,null,null,null,null,true,{"$f":"IF(BN1=TRUE,1,0)+IF(BN2=TRUE,1,0)+IF(BN3=TRUE,1,0)","v":3},{"$f":"IF(BQ1=TRUE,1,0)+IF(BQ2=TRUE,1,0)+IF(BQ4=TRUE,1,0)+IF(BQ3=TRUE,1,0)","v":1},false,{"$f":"IF(AND(BQ1=FALSE,BQ2=FALSE,BQ3=FALSE,BQ4=FALSE,BQ7=FALSE,BQ8=FALSE),0,1)","v":1},true,null,"Sin grupo de edad",null,1,null,null,null,null,null,true,{"$f":"IF(AND(CC1=FALSE,CC2=FALSE,CC3=FALSE),0,1)","v":1},true,{"$f":"IF(AND(CE1=FALSE,CE2=FALSE),0,1)","v":1},null,null,1,null,{"$f":"CK2&CK3&CK4","v":"TÉCNICO SUPERIOR, LICENCIATURA EN EDUCACIÓN NORMAL Y LICENCIATURA UNIVERSITARIA Y TECNOLÓGICA: MATRÍCULA. MODALIDAD ESCOLARIZADA Y NO ESCOLARIZADA."},null,1,{"$f":"VLOOKUP(CM1,PROCEDENCIA,3,FALSE)","v":0},3,1,1,1,1]
[null,null,null,null,null,null,null,null,null,null,null,null,null,null,null,null,null,null,null,null,null,null,null,null,null,null,null,null,null,null,null,null,null,null,null,null,null,null,null,null,null,null,null,null,null,null,null,null,null,null,null,null,null,null,null,null,null,null,null,null,null,null,null,null,null,true,{"$f":"IF(BN2=TRUE,1,0)+IF(BN3=TRUE,1,0)","v":2},{"$f":"IF(BQ2=TRUE,1,0)+IF(BQ4=TRUE,1,0)+IF(BQ3=TRUE,1,0)","v":1},true,{"$f":"IF(AND(BQ1=TRUE,BQ2=TRUE,BQ3=TRUE,BQ4=TRUE,BQ7=TRUE,BQ8=TRUE),1,0)","v":0},false,null,"de menores de 17 años","17 años",1,null,null,null,null,null,false,null,true,null,null,null,null,null,{"$f":"IF(BN1=TRUE, \"TÉCNICO SUPERIOR\"&IF(BO1=1,\": \",IF(BO1=2,\" Y \",\", \")),\"\")&IF(BN2=TRUE, \"LICENCIATURA EN EDUCACIÓN NORMAL\"&IF(BO2=1,\": \",\" Y \"),\"\")&IF(BN3=TRUE,\"LICENCIATURA UNIVERSITARIA Y TECNOLÓGICA: \",\"\")","v":"TÉCNICO SUPERIOR, LICENCIATURA EN EDUCACIÓN NORMAL Y LICENCIATURA UNIVERSITARIA Y TECNOLÓGICA: "},null,null,{"$f":"VLOOKUP(CM1,PROCEDENCIA,2,FALSE)","v":"Procedencia de nuevo ingreso"},null,{"$f":"VLOOKUP(CP1,CAMPLIO,2,FALSE)","v":"--OCULTAR CAMPOS DE FORMACIÓN--"},{"$f":"VLOOKUP(CP1-2&CQ1,CESPECIFICO,2,FALSE)","v":{"$error":"#N/A"}},{"$f":"VLOOKUP(CP1-2&CQ1-2&CR1,CDETALLADO,2,FALSE)","v":{"$error":"#N/A"}},{"$f":"VLOOKUP(CP1-2&CQ1-2&CR1-2&CS1,CUNITARIO,2,FALSE)","v":{"$error":"#N/A"}}]
[null,null,null,null,null,null,null,null,null,null,null,null,null,null,null,null,null,null,null,null,null,null,null,null,null,null,null,null,null,null,null,null,null,null,null,null,null,null,null,null,null,null,null,null,null,null,null,null,null,null,null,null,null,null,null,null,null,null,null,null,null,null,null,null,null,true,{"$f":"IF(BN3=TRUE,1,0)","v":1},{"$f":"IF(BQ3=TRUE,1,0)","v":0},false,null,null,null,"de 18 años","18 años",null,null,null,null,null,null,false,null,true,{"$f":"IF(AND(CE3=FALSE,CE4=FALSE),0,1)","v":1},null,null,null,null,{"$f":"IF(BR2=1,\"POBLACIÓN ESCOLAR\",IF(BQ7=TRUE,\"LUGARES OFERTADOS\"&IF(BR7=1,\"\",IF(BR7=2,\" Y \",\", \")),\"\")&IF(BQ8=TRUE,\"SOLICITUDES DE PRIMER INGRESO\"&IF(BR8=1,\"\",IF(BR8=2,\" Y \",\", \")),\"\")&IF(BQ1=TRUE,\"PRIMER INGRESO\"&IF(BP1=1,\"\",IF(BP1=2,\" Y \",\", \")),\"\")&IF(BQ2=TRUE,\"MATRÍCULA\"&IF(BP2=1,\"\",IF(BP2=2,\" Y \",\", \")),\"\")&IF(BQ4=TRUE,\"EGRESADOS\"&IF(BP4=1,\"\",\" Y \"),\"\")&IF(BQ3=TRUE,\"TITULADOS\",\"\"))","v":"MATRÍCULA"},null,null,null,null,null,1,1,1]
[null,null,null,null,null,null,null,null,null,null,null,null,null,null,null,null,null,null,null,null,null,null,null,null,null,null,null,null,null,null,null,null,null,null,null,null,null,null,null,null,null,null,null,null,null,null,null,null,null,null,null,null,null,null,null,null,null,null,null,null,null,null,null,null,null,null,null,{"$f":"IF(BQ4=TRUE,1,0)+IF(BQ3=TRUE,1,0)","v":0},false,null,null,null,"de 19 años","19 años",null,null,null,null,null,null,1,null,true,null,null,null,null,null,{"$f":"IF(AND(BN5=TRUE,BN6=TRUE),\". MODALIDAD ESCOLARIZADA Y NO ESCOLARIZADA.\",IF(BN5=TRUE,\". MODALIDAD ESCOLARIZADA.\",\". MODALIDAD NO ESCOLARIZADA.\"))","v":". MODALIDAD ESCOLARIZADA Y NO ESCOLARIZADA."}]
[null,null,null,null,null,null,null,null,null,null,null,null,null,null,null,null,null,null,null,null,null,null,null,null,null,null,null,null,null,null,null,null,null,null,null,null,null,null,null,null,null,null,null,null,null,null,null,null,null,null,null,null,null,null,null,null,null,null,null,null,null,null,null,null,null,true,{"$f":"IF(AND(BN5=FALSE,BN6=FALSE),0,1)","v":1},null,null,null,null,null,"de 20 años","20 años",null,null,null,null,null,null,0]
[null,null,null,null,null,null,null,null,null,null,null,null,null,null,null,null,null,null,null,null,null,null,null,null,null,null,null,null,null,null,null,null,null,null,null,null,null,null,null,null,null,null,null,null,null,null,null,null,null,null,null,null,null,null,null,null,null,null,null,null,null,null,null,null,null,true,null,null,null,null,null,null,"de 21 años","21 años",null,null,null,null,null,null,0]
[null,null,null,null,null,null,null,null,null,null,null,null,null,null,null,null,null,null,null,null,null,null,null,null,null,null,null,null,null,null,null,null,null,null,null,null,null,null,null,null,null,null,null,null,null,null,null,null,null,null,null,null,null,null,null,null,null,null,null,null,null,null,null,null,null,null,null,null,false,{"$f":"IF(BQ7=TRUE,1,0)+IF(BQ8=TRUE,1,0)+IF(BQ1=TRUE,1,0)+IF(BQ2=TRUE,1,0)+IF(BQ4=TRUE,1,0)+IF(BQ3=TRUE,1,0)","v":1},null,null,"de 22 años","22 años",null,null,null,null,null,null,true]
[null,null,null,null,null,null,null,null,null,null,null,null,null,null,null,null,null,null,null,null,null,null,null,null,null,null,null,null,null,null,null,null,null,null,null,null,null,null,null,null,null,null,null,null,null,null,null,null,null,null,null,null,null,null,null,null,null,null,null,null,null,null,null,null,null,null,null,null,false,{"$f":"IF(BQ8=TRUE,1,0)+IF(BQ1=TRUE,1,0)+IF(BQ2=TRUE,1,0)+IF(BQ4=TRUE,1,0)+IF(BQ3=TRUE,1,0)","v":1},null,null,"de 23 años","23 años",null,null,null,null,null,null,1]
[null,null,null,null,null,null,null,null,null,null,null,null,null,null,null,null,null,null,null,null,null,null,null,null,null,null,null,null,null,null,null,null,null,null,null,null,null,null,null,null,null,null,null,null,null,null,null,null,null,null,null,null,null,null,null,null,null,null,null,null,null,null,null,null,null,null,null,null,null,null,null,null,"de 24 años","24 años",null,null,null,null,null,null,false]
[null,null,null,null,null,null,null,null,null,null,null,null,null,null,null,null,null,null,null,null,null,null,null,null,null,null,null,null,null,null,null,null,null,null,null,null,null,null,null,null,null,null,null,null,null,null,null,null,null,null,null,null,null,null,null,null,null,null,null,null,null,null,null,null,null,null,null,null,null,null,null,null,"de 25 años","25 años",null,null,null,null,null,null,true]
[null,null,null,null,null,null,null,null,null,null,null,null,null,null,null,null,null,null,null,null,null,null,null,null,null,null,null,null,null,null,null,null,null,null,null,null,null,null,null,null,null,null,null,null,null,null,null,null,null,null,null,null,null,null,null,null,null,null,null,null,null,null,null,null,null,null,null,null,null,null,null,null,"de 26 años","26 años",null,null,null,null,null,null,0]
[null,null,null,null,null,null,null,null,null,null,null,null,null,null,null,null,null,null,null,null,null,null,null,null,null,null,null,null,null,null,null,null,null,null,null,null,null,null,null,null,null,null,null,null,null,null,null,null,null,null,null,null,null,null,null,null,null,null,null,null,null,null,null,null,null,null,null,null,null,null,null,null,"de 27 años","27 años",null,null,null,null,null,null,1]
[null,null,null,null,null,null,null,null,null,null,null,null,null,null,null,null,null,null,null,null,null,null,null,null,null,null,null,null,null,null,null,null,null,null,null,null,null,null,null,null,null,null,null,null,null,null,null,null,null,null,null,null,null,null,null,null,null,null,null,null,null,null,null,null,null,null,null,null,null,null,null,null,"de 28 años","28 años"]
[null,null,null,null,null,null,null,null,null,null,null,null,null,null,null,null,null,null,null,null,null,null,null,null,null,null,null,null,null,null,null,null,null,null,null,null,null,null,null,null,null,null,null,null,null,null,null,null,null,null,null,null,null,null,null,null,null,null,null,null,null,null,null,null,null,null,null,null,null,null,null,null,"de 29 años","29 años"]
[null,null,null,null,null,null,null,null,null,null,null,null,null,null,null,null,null,null,null,null,null,null,null,null,null,null,null,null,null,null,null,null,null,null,null,null,null,null,null,null,null,null,null,null,null,null,null,null,null,null,null,null,null,null,null,null,null,null,null,null,null,null,null,null,null,null,null,null,null,null,null,null,"de 30 años","34 años"]
[null,null,null,null,null,null,null,null,null,null,null,null,null,null,null,null,null,null,null,null,null,null,null,null,null,null,null,null,null,null,null,null,null,null,null,null,null,null,null,null,null,null,null,null,null,null,null,null,null,null,null,null,null,null,null,null,null,null,null,null,null,null,null,null,null,null,null,null,null,null,null,null,"de 35 años","39 años"]
[null,null,null,null,null,"MODALIDAD2","(Todas)",null,null,null,null,null,null,null,null,null,null,null,null,null,null,null,null,null,null,null,null,null,null,null,null,null,null,null,null,null,null,null,null,null,null,null,null,null,null,null,null,null,null,null,null,null,null,null,null,null,null,null,null,null,null,null,null,null,null,null,null,null,null,null,null,null,"de 40 años","mayores de 40 años"]
[null,null,null,null,null,"NIVEL","(Todas)"]
[null,null,null,null,null,"AFILIACIÓN","(Todas)"]
[null,null,null,null,null,"SOSTENIMIENTO","(Todas)"]
[null,null,null,null,null,"TÉCNICO SUPERIOR, LICENCIATURA EN EDUCACIÓN NORMAL Y LICENCIATURA UNIVERSITARIA Y TECNOLÓGICA: MATRÍCULA. MODALIDAD ESCOLARIZADA Y NO ESCOLARIZADA."]
[null,null,null,null,null,null,"Matrícula Hombres","Matrícula Mujeres","Matrícula Total"]
[null,null,null,null,null,"AGUASCALIENTES",26118,25863,51981]
[null,null,null,null,null,"CENTRO DE ESTUDIOS SUPERIORES DEL ESTADO DE AGUASCALIENTES",130,80,210]
[null,null,null,null,null,"LICENCIATURA EN ADMINISTRACIÓN DE EMPRESAS",32,28,60]
[null,null,null,null,null,"LICENCIATURA EN ADMINISTRACIÓN PÚBLICA",18,12,30]
[null,null,null,null,null,"LICENCIATURA EN CIENCIAS DE LA COMUNICACIÓN",11,9,20]
[null,null,null,null,null,"LICENCIATURA EN DERECHO",69,31,100]
[null,null,null,null,null,"CENTRO REGIONAL DE EDUCACIÓN NORMAL DE AGUASCALIENTES",68,517,585]
[null,null,null,null,null,"LICENCIATURA EN EDUCACIÓN ESPECIAL EN EL ÁREA DE ATENCIÓN AUDITIVA Y DE LENGUAJE",10,113,123]
[null,null,null,null,null,"LICENCIATURA EN EDUCACIÓN PREESCOLAR",2,288,290]
[null,null,null,null,null,"LICENCIATURA EN EDUCACIÓN PRIMARIA",56,116,172]
[null,null,null,null,null,"CENTRO UNIVERSITARIO BRITÁNICO DE MÉXICO",373,636,1009]
[null,null,null,null,null,"LICENCIATURA EN ADMINISTRACIÓN DE EMPRESAS",58,61,119]
[null,null,null,null,null,"LICENCIATURA EN ARQUITECTURA",53,20,73]
[null,null,null,null,null,"LICENCIATURA EN COMERCIO INTERNACIONAL",3,5,8,null,null,null,null,null,null,null,null,null,null,null,null,null,null,null,null,null,null,null,null,null,null,null,null,null,null,null,null,null,null,null,null,null,null,null,null,null,null,null,null,null,null,null,null,null,null,null,null,null,null,null,null,null,null,null,null,null,1,"Procedencia de nuevo ingreso"]
[null,null,null,null,null,"LICENCIATURA EN CONTABILIDAD Y DERECHO FISCAL",9,27,36,null,null,null,null,null,null,null,null,null,null,null,null,null,null,null,null,null,null,null,null,null,null,null,null,null,null,null,null,null,null,null,null,null,null,null,null,null,null,null,null,null,null,null,null,null,null,null,null,null,null,null,null,null,null,null,null,null,2,"EE. UU.","EUA"]
[null,null,null,null,null,"LICENCIATURA EN CONTABILIDAD Y FINANZAS",4,9,13,null,null,null,null,null,null,null,null,null,null,null,null,null,null,null,null,null,null,null,null,null,null,null,null,null,null,null,null,null,null,null,null,null,null,null,null,null,null,null,null,null,null,null,null,null,null,null,null,null,null,null,null,null,null,null,null,null,3,"Canadá","CAN"]
[null,null,null,null,null,"LICENCIATURA EN DERECHO",104,131,235,null,null,null,null,null,null,null,null,null,null,null,null,null,null,null,null,null,null,null,null,null,null,null,null,null,null,null,null,null,null,null,null,null,null,null,null,null,null,null,null,null,null,null,null,null,null,null,null,null,null,null,null,null,null,null,null,null,4,"Centro América y el Caribe","CA"]
[null,null,null,null,null,"LICENCIATURA EN MERCADOTECNIA Y DISEÑO GRÁFICO",23,15,38,null,null,null,null,null,null,null,null,null,null,null,null,null,null,null,null,null,null,null,null,null,null,null,null,null,null,null,null,null,null,null,null,null,null,null,null,null,null,null,null,null,null,null,null,null,null,null,null,null,null,null,null,null,null,null,null,null,5,"Sudamérica","SA"]
[null,null,null,null,null,"LICENCIATURA EN MERCADOTECNIA Y MEDIOS DE COMUNICACIÓN",33,40,73,null,null,null,null,null,null,null,null,null,null,null,null,null,null,null,null,null,null,null,null,null,null,null,null,null,null,null,null,null,null,null,null,null,null,null,null,null,null,null,null,null,null,null,null,null,null,null,null,null,null,null,null,null,null,null,null,null,6,"Europa","EUR"]
[null,null,null,null,null,"LICENCIATURA EN MERCADOTECNIA Y NEGOCIOS INTERNACIONALES",14,13,27,null,null,null,null,null,null,null,null,null,null,null,null,null,null,null,null,null,null,null,null,null,null,null,null,null,null,null,null,null,null,null,null,null,null,null,null,null,null,null,null,null,null,null,null,null,null,null,null,null,null,null,null,null,null,null,null,null,7,"África, Asia y Oceanía","AAO"]
[null,null,null,null,null,"LICENCIATURA EN MERCADOTECNIA Y RELACIONES PÚBLICAS",4,11,15,null,null,null,null,null,null,null,null,null,null,null,null,null,null,null,null,null,null,null,null,null,null,null,null,null,null,null,null,null,null,null,null,null,null,null,null,null,null,null,null,null,null,null,null,null,null,null,null,null,null,null,null,null,null,null,null,null,8,"Aguascalientes","AGU"]
[null,null,null,null,null,"LICENCIATURA EN PEDAGOGÍA",7,147,154,null,null,null,null,null,null,null,null,null,null,null,null,null,null,null,null,null,null,null,null,null,null,null,null,null,null,null,null,null,null,null,null,null,null,null,null,null,null,null,null,null,null,null,null,null,null,null,null,null,null,null,null,null,null,null,null,null,9,"Baja California","BC"]
[null,null,null,null,null,"LICENCIATURA EN PSICOLOGÍA",61,157,218,null,null,null,null,null,null,null,null,null,null,null,null,null,null,null,null,null,null,null,null,null,null,null,null,null,null,null,null,null,null,null,null,null,null,null,null,null,null,null,null,null,null,null,null,null,null,null,null,null,null,null,null,null,null,null,null,null,10,"Baja California Sur","BCS"]
[null,null,null,null,null,"CENTRO UNIVERSITARIO GALILEA",29,22,51,null,null,null,null,null,null,null,null,null,null,null,null,null,null,null,null,null,null,null,null,null,null,null,null,null,null,null,null,null,null,null,null,null,null,null,null,null,null,null,null,null,null,null,null,null,null,null,null,null,null,null,null,null,null,null,null,null,11,"Campeche","CAM"]
[null,null,null,null,null,"LICENCIATURA EN DERECHO",22,12,34,null,null,null,null,null,null,null,null,null,null,null,null,null,null,null,null,null,null,null,null,null,null,null,null,null,null,null,null,null,null,null,null,null,null,null,null,null,null,null,null,null,null,null,null,null,null,null,null,null,null,null,null,null,null,null,null,null,12,"Chiapas","CHIA"]
[null,null,null,null,null,"LICENCIATURA EN PSICOLOGÍA",7,10,17,null,null,null,null,null,null,null,null,null,null,null,null,null,null,null,null,null,null,null,null,null,null,null,null,null,null,null,null,null,null,null,null,null,null,null,null,null,null,null,null,null,null,null,null,null,null,null,null,null,null,null,null,null,null,null,null,null,13,"Chihuahua","CHIH"]
[null,null,null,null,null,"CENTRO UNIVERSITARIO INTERNACIONAL DE MÉXICO",35,1,36,null,null,null,null,null,null,null,null,null,null,null,null,null,null,null,null,null,null,null,null,null,null,null,null,null,null,null,null,null,null,null,null,null,null,null,null,null,null,null,null,null,null,null,null,null,null,null,null,null,null,null,null,null,null,null,null,null,14,"Coahuila","COA"]
[null,null,null,null,null,"LICENCIATURA EN INGENIERÍA EN MECÁNICA AUTOMOTRIZ",35,1,36,null,null,null,null,null,null,null,null,null,null,null,null,null,null,null,null,null,null,null,null,null,null,null,null,null,null,null,null,null,null,null,null,null,null,null,null,null,null,null,null,null,null,null,null,null,null,null,null,null,null,null,null,null,null,null,null,null,15,"Colima","COL"]
[null,null,null,null,null,"COLEGIO LATINOAMERICANO DE EDUCACIÓN AVANZADA",321,9,330,null,null,null,null,null,null,null,null,null,null,null,null,null,null,null,null,null,null,null,null,null,null,null,null,null,null,null,null,null,null,null,null,null,null,null,null,null,null,null,null,null,null,null,null,null,null,null,null,null,null,null,null,null,null,null,null,null,16,"Distrito Federal","DF"]
[null,null,null,null,null,"LICENCIATURA EN ATENCIÓN PREHOSPITALARIA",41,4,45,null,null,null,null,null,null,null,null,null,null,null,null,null,null,null,null,null,null,null,null,null,null,null,null,null,null,null,null,null,null,null,null,null,null,null,null,null,null,null,null,null,null,null,null,null,null,null,null,null,null,null,null,null,null,null,null,null,17,"Durango","DUR"]
[null,null,null,null,null,"LICENCIATURA EN PROTECCIÓN CIVIL",277,4,281,null,null,null,null,null,null,null,null,null,null,null,null,null,null,null,null,null,null,null,null,null,null,null,null,null,null,null,null,null,null,null,null,null,null,null,null,null,null,null,null,null,null,null,null,null,null,null,null,null,null,null,null,null,null,null,null,null,18,"Guanajuato","GUA"]
[null,null,null,null,null,"PROFESIONAL ASOCIADO EN PROTECCIÓN CIVIL",2,0,2,null,null,null,null,null,null,null,null,null,null,null,null,null,null,null,null,null,null,null,null,null,null,null,null,null,null,null,null,null,null,null,null,null,null,null,null,null,null,null,null,null,null,null,null,null,null,null,null,null,null,null,null,null,null,null,null,null,19,"Guerrero","GUE"]
[null,null,null,null,null,"TÉCNICO SUPERIOR UNIVERSITARIO EN ATENCIÓN PREHOSPITALARIA",1,1,2,null,null,null,null,null,null,null,null,null,null,null,null,null,null,null,null,null,null,null,null,null,null,null,null,null,null,null,null,null,null,null,null,null,null,null,null,null,null,null,null,null,null,null,null,null,null,null,null,null,null,null,null,null,null,null,null,null,20,"Hidalgo","HID"]
[null,null,null,null,null,"ESCUELA NORMAL DE AGUASCALIENTES",0,397,397,null,null,null,null,null,null,null,null,null,null,null,null,null,null,null,null,null,null,null,null,null,null,null,null,null,null,null,null,null,null,null,null,null,null,null,null,null,null,null,null,null,null,null,null,null,null,null,null,null,null,null,null,null,null,null,null,null,21,"Jalisco","JAL"]
[null,null,null,null,null,"LICENCIATURA EN EDUCACIÓN PREESCOLAR",0,240,240,null,null,null,null,null,null,null,null,null,null,null,null,null,null,null,null,null,null,null,null,null,null,null,null,null,null,null,null,null,null,null,null,null,null,null,null,null,null,null,null,null,null,null,null,null,null,null,null,null,null,null,null,null,null,null,null,null,22,"México","MEX"]
[null,null,null,null,null,"LICENCIATURA EN EDUCACIÓN PRIMARIA",0,157,157,null,null,null,null,null,null,null,null,null,null,null,null,null,null,null,null,null,null,null,null,null,null,null,null,null,null,null,null,null,null,null,null,null,null,null,null,null,null,null,null,null,null,null,null,null,null,null,null,null,null,null,null,null,null,null,null,null,23,"Michoacán","MIC"]
[null,null,null,null,null,"ESCUELA NORMAL DE RINCÓN DE ROMOS DR. RAFAEL FRANCISCO AGUILAR LOMELÍ\u008d",170,199,369,null,null,null,null,null,null,null,null,null,null,null,null,null,null,null,null,null,null,null,null,null,null,null,null,null,null,null,null,null,null,null,null,null,null,null,null,null,null,null,null,null,null,null,null,null,null,null,null,null,null,null,null,null,null,null,null,null,24,"Morelos","MOR"]
[null,null,null,null,null,"LICENCIATURA EN EDUCACIÓN FÍSICA",125,56,181,null,null,null,null,null,null,null,null,null,null,null,null,null,null,null,null,null,null,null,null,null,null,null,null,null,null,null,null,null,null,null,null,null,null,null,null,null,null,null,null,null,null,null,null,null,null,null,null,null,null,null,null,null,null,null,null,null,25,"Nayarit","NAY"]
[null,null,null,null,null,"LICENCIATURA EN EDUCACIÓN PRIMARIA",45,143,188,null,null,null,null,null,null,null,null,null,null,null,null,null,null,null,null,null,null,null,null,null,null,null,null,null,null,null,null,null,null,null,null,null,null,null,null,null,null,null,null,null,null,null,null,null,null,null,null,null,null,null,null,null,null,null,null,null,26,"Nuevo León","NL"]
[null,null,null,null,null,"ESCUELA NORMAL GUADALUPE VICTORIA",4,16,20,null,null,null,null,null,null,null,null,null,null,null,null,null,null,null,null,null,null,null,null,null,null,null,null,null,null,null,null,null,null,null,null,null,null,null,null,null,null,null,null,null,null,null,null,null,null,null,null,null,null,null,null,null,null,null,null,null,27,"Oaxaca","OAX"]
[null,null,null,null,null,"LICENCIATURA EN EDUCACIÓN ESPECIAL EN EL ÁREA DE ATENCIÓN INTELECTUAL",0,5,5,null,null,null,null,null,null,null,null,null,null,null,null,null,null,null,null,null,null,null,null,null,null,null,null,null,null,null,null,null,null,null,null,null,null,null,null,null,null,null,null,null,null,null,null,null,null,null,null,null,null,null,null,null,null,null,null,null,28,"Puebla","PUE"]
[null,null,null,null,null,"LICENCIATURA EN EDUCACIÓN PRIMARIA",4,11,15,null,null,null,null,null,null,null,null,null,null,null,null,null,null,null,null,null,null,null,null,null,null,null,null,null,null,null,null,null,null,null,null,null,null,null,null,null,null,null,null,null,null,null,null,null,null,null,null,null,null,null,null,null,null,null,null,null,29,"Querétaro","QUE"]
[null,null,null,null,null,"ESCUELA NORMAL RURAL JUSTO SIERRA MÉNDEZ",0,384,384,null,null,null,null,null,null,null,null,null,null,null,null,null,null,null,null,null,null,null,null,null,null,null,null,null,null,null,null,null,null,null,null,null,null,null,null,null,null,null,null,null,null,null,null,null,null,null,null,null,null,null,null,null,null,null,null,null,30,"Quintana Roo","QR"]
[null,null,null,null,null,"LICENCIATURA EN EDUCACIÓN PRIMARIA",0,384,384,null,null,null,null,null,null,null,null,null,null,null,null,null,null,null,null,null,null,null,null,null,null,null,null,null,null,null,null,null,null,null,null,null,null,null,null,null,null,null,null,null,null,null,null,null,null,null,null,null,null,null,null,null,null,null,null,null,31,"San Luis Potosí","SLP"]
[null,null,null,null,null,"INSTITUTO ALAMEDA A.C.",18,37,55,null,null,null,null,null,null,null,null,null,null,null,null,null,null,null,null,null,null,null,null,null,null,null,null,null,null,null,null,null,null,null,null,null,null,null,null,null,null,null,null,null,null,null,null,null,null,null,null,null,null,null,null,null,null,null,null,null,32,"Sinaloa","SIN"]
[null,null,null,null,null,"LICENCIATURA EN DERECHO",14,20,34,null,null,null,null,null,null,null,null,null,null,null,null,null,null,null,null,null,null,null,null,null,null,null,null,null,null,null,null,null,null,null,null,null,null,null,null,null,null,null,null,null,null,null,null,null,null,null,null,null,null,null,null,null,null,null,null,null,33,"Sonora","SON"]
[null,null,null,null,null,"LICENCIATURA EN ENFERMERÍA",4,17,21,null,null,null,null,null,null,null,null,null,null,null,null,null,null,null,null,null,null,null,null,null,null,null,null,null,null,null,null,null,null,null,null,null,null,null,null,null,null,null,null,null,null,null,null,null,null,null,null,null,null,null,null,null,null,null,null,null,34,"Tabasco","TAB"]
[null,null,null,null,null,"INSTITUTO CULTURAL DE AGUASCALIENTES",175,265,440,null,null,null,null,null,null,null,null,null,null,null,null,null,null,null,null,null,null,null,null,null,null,null,null,null,null,null,null,null,null,null,null,null,null,null,null,null,null,null,null,null,null,null,null,null,null,null,null,null,null,null,null,null,null,null,null,null,35,"Tamaulipas","TAM"]
[null,null,null,null,null,"LICENCIATURA EN ARTES VISUALES",66,71,137,null,null,null,null,null,null,null,null,null,null,null,null,null,null,null,null,null,null,null,null,null,null,null,null,null,null,null,null,null,null,null,null,null,null,null,null,null,null,null,null,null,null,null,null,null,null,null,null,null,null,null,null,null,null,null,null,null,36,"Tlaxcala","TLA"]
[null,null,null,null,null,"LICENCIATURA EN DANZA CLÁSICA EN LA MODALIDAD DE INTERPRETE",3,68,71,null,null,null,null,null,null,null,null,null,null,null,null,null,null,null,null,null,null,null,null,null,null,null,null,null,null,null,null,null,null,null,null,null,null,null,null,null,null,null,null,null,null,null,null,null,null,null,null,null,null,null,null,null,null,null,null,null,37,"Veracruz","VER"]
[null,null,null,null,null,"LICENCIATURA EN DANZA CONTEMPORÁNEA EN LA MODALIDAD DE INTERPRETE",13,34,47,null,null,null,null,null,null,null,null,null,null,null,null,null,null,null,null,null,null,null,null,null,null,null,null,null,null,null,null,null,null,null,null,null,null,null,null,null,null,null,null,null,null,null,null,null,null,null,null,null,null,null,null,null,null,null,null,null,38,"Yucatán","YUC"]
[null,null,null,null,null,"LICENCIATURA EN DOCENCIA DE LA DANZA CLÁSICA FOLKLÓRICA MEXICANA",20,17,37,null,null,null,null,null,null,null,null,null,null,null,null,null,null,null,null,null,null,null,null,null,null,null,null,null,null,null,null,null,null,null,null,null,null,null,null,null,null,null,null,null,null,null,null,null,null,null,null,null,null,null,null,null,null,null,null,null,39,"Zacatecas","ZAC"]
[null,null,null,null,null,"LICENCIATURA EN TEATRO",24,31,55]
[null,null,null,null,null,"TÉCNICO SUPERIOR UNIVERSITARIO EN CANTO",7,7,14]
[null,null,null,null,null,"TÉCNICO SUPERIOR UNIVERSITARIO EN INSTRUMENTISTA EJECUTANTE",42,37,79]
[null,null,null,null,null,"INSTITUTO DE POSGRADOS Y ESPECIALIDADES",15,21,36]
[null,null,null,null,null,"LICENCIATURA EN ADMINISTRACIÓN",1,4,5]
[null,null,null,null,null,"LICENCIATURA EN CONTADURÍA PÚBLICA E IMPUESTOS",14,17,31]
[null,null,null,null,null,"INSTITUTO TECNOLÓGICO DE AGUASCALIENTES",4008,2168,6176]
[null,null,null,null,null,"INGENIERÍA ELÉCTRICA",262,14,276]
[null,null,null,null,null,"INGENIERÍA ELECTRÓNICA",0,0,0]
[null,null,null,null,null,"INGENIERÍA EN ELÉCTRICA",0,0,0]
[null,null,null,null,null,"INGENIERÍA EN ELECTRÓNICA",503,50,553]
[null,null,null,null,null,"INGENIERÍA EN GESTIÓN EMPRESARIAL",278,658,936]
[null,null,null,null,null,"INGENIERÍA EN MATERIALES",109,49,158]
[null,null,null,null,null,"INGENIERÍA EN SISTEMAS DE COMPUTACIÓN",41,3,44]
[null,null,null,null,null,"INGENIERÍA EN TECNOLOGÍA DE LA INFORMACIÓN Y COMUNICACIÓN",549,234,783]
[null,null,null,null,null,"INGENIERÍA INDUSTRIAL",1143,561,1704]
[null,null,null,null,null,"INGENIERÍA MECÁNICA",0,0,0]
[null,null,null,null,null,"INGENIERÍA QUÍMICA",0,0,0]
[null,null,null,null,null,"LICENCIATURA EN ADMINISTRACIÓN",118,285,403]
[null,null,null,null,null,"LICENCIATURA EN INFORMÁTICA",0,0,0]
[null,null,null,null,null,"LICENCIATURA EN INGENIERÍA MECÁNICA",788,56,844]
[null,null,null,null,null,"LICENCIATURA EN INGENIERÍA QUÍMICA",217,258,475]
[null,null,null,null,null,"INSTITUTO TECNOLÓGICO DE PABELLÓN DE ARTEAGA",518,358,876]
[null,null,null,null,null,"INGENIERÍA EN GESTIÓN EMPRESARIAL",181,227,408]
[null,null,null,null,null,"INGENIERÍA EN LOGÍSTICA",33,58,91]
[null,null,null,null,null,"INGENIERÍA EN MECATRÓNICA",129,7,136]
[null,null,null,null,null,"INGENIERÍA EN TECNOLOGÍAS DE LA INFORMACIÓN Y COMUNICACIÓN",27,15,42]
[null,null,null,null,null,"INGENIERÍA INDUSTRIAL",148,51,199]
[null,null,null,null,null,"INSTITUTO TECNOLÓGICO EL LLANO AGUASCALIENTES",609,455,1064]
[null,null,null,null,null,"INGENIERÍA EN AGRONOMÍA",211,61,272]
[null,null,null,null,null,"INGENIERÍA EN BIOTECNOLOGÍA",38,52,90]
[null,null,null,null,null,"INGENIERÍA EN GESTIÓN EMPRESARIAL",148,156,304]
[null,null,null,null,null,"INGENIERÍA EN INNOVACIÓN AGRÍCOLA SUSTENTABLE",48,9,57]
[null,null,null,null,null,"INGENIERÍA EN TECNOLOGÍAS DE LA INFORMACIÓN Y COMUNICACIONES",70,43,113]
[null,null,null,null,null,"LICENCIATURA EN ADMINISTRACIÓN",94,134,228]
[null,null,null,null,null,"LICENCIATURA EN INFORMÁTICA",0,0,0]
[null,null,null,null,null,"INSTITUTO TECNOLÓGICO Y DE ESTUDIOS SUPERIORES DE MONTERREY",351,232,583]
[null,null,null,null,null,"ARQUITECTURA",25,21,46]
[null,null,null,null,null,"INGENIERÍA EN MECATRÓNICA",66,15,81]
[null,null,null,null,null,"INGENIERÍA EN TECNOLOGÍAS DE INFORMACIÓN Y COMUNICACIONES",18,1,19]
[null,null,null,null,null,"INGENIERÍA INDUSTRIAL Y DE SISTEMAS",58,29,87]
[null,null,null,null,null,"LICENCIATURA EN ADMINISTRACIÓN FINANCIERA",45,25,70]
[null,null,null,null,null,"LICENCIATURA EN COMERCIO INTERNACIONAL",34,48,82]
[null,null,null,null,null,"LICENCIATURA EN DISEÑO INDUSTRIAL",6,7,13]
[null,null,null,null,null,"LICENCIATURA EN INNOVACIÓN Y DIRECCIÓN DE NEGOCIOS",51,33,84]
[null,null,null,null,null,"LICENCIATURA EN MERCADOTECNIA Y COMUNICACIÓN",9,40,49]
[null,null,null,null,null,"TRONCO COMÚN EN INGENIERÍA",5,0,5]
[null,null,null,null,null,"TRONCO COMÚN EN LICENCIATURA",34,13,47]
[null,null,null,null,null,"INSTITUTO UNIVERSITARIO DEL CENTRO DE MÉXICO",108,131,239]
[null,null,null,null,null,"LICENCIATURA EN ADMINISTRACIÓN",22,28,50]
[null,null,null,null,null,"LICENCIATURA EN CRIMINOLOGÍA",39,49,88]
[null,null,null,null,null,"LICENCIATURA EN DERECHO",14,13,27]
[null,null,null,null,null,"LICENCIATURA EN PEDAGOGÍA",9,15,24]
[null,null,null,null,null,"LICENCIATURA EN PSICOLOGÍA SOCIAL",24,26,50]
[null,null,null,null,null,"ISSADE INSTITUTO SUPERIOR DE SISTEMA ABIERTO DE ENSEÑANZA",12,9,21]
[null,null,null,null,null,"LICENCIATURA EN NEGOCIACIÓN INTERNACIONAL",12,9,21]
[null,null,null,null,null,"TECNOLÓGICO PROFESIONAL EN HOTELERÍA Y RESTAURANTES HUGO ALBERTO MEDRANO PARADA",28,27,55]
[null,null,null,null,null,"LICENCIATURA EN GASTRONOMÍA",28,27,55]
[null,null,null,null,null,"UNIDAD U.P.N. 011 AGUASCALIENTES",15,114,129]
[null,null,null,null,null,"LICENCIATURA EN EDUCACIÓN",0,0,0]
[null,null,null,null,null,"LICENCIATURA EN INTERVENCIÓN EDUCATIVA",15,114,129]
[null,null,null,null,null,"UNIVERSIDAD AUTÓNOMA DE AGUASCALIENTES",7151,8404,15555]
[null,null,null,null,null,"ARQUITECTURA",182,185,367]
[null,null,null,null,null,"CONTADOR PÚBLICO",263,402,665]
[null,null,null,null,null,"INGENIERÍA AGROINDUSTRIAL",58,76,134]
[null,null,null,null,null,"INGENIERÍA AGRÓNOMO",95,35,130]
[null,null,null,null,null,"INGENIERÍA AUTOMOTRIZ",278,14,292]
[null,null,null,null,null,"INGENIERÍA BIOMÉDICA",162,131,293]
[null,null,null,null,null,"INGENIERÍA BIOQUÍMICA",88,105,193]
[null,null,null,null,null,"INGENIERÍA CIVIL",336,49,385]
[null,null,null,null,null,"INGENIERÍA ELECTRÓNICA",121,14,135]
[null,null,null,null,null,"INGENIERÍA EN COMPUTACIÓN INTELIGENTE",159,34,193]
[null,null,null,null,null,"INGENIERÍA EN DISEÑO MECÁNICO",90,9,99]
[null,null,null,null,null,"INGENIERÍA EN ENERGÍAS RENOVABLES",76,44,120]
[null,null,null,null,null,"INGENIERÍA EN MANUFACTURA Y AUTOMATIZACIÓN INDUSTRIAL",88,19,107]
[null,null,null,null,null,"INGENIERÍA EN SISTEMAS COMPUTACIONALES",456,111,567]
[null,null,null,null,null,"INGENIERÍA INDUSTRIAL ESTADÍSTICO",112,82,194]
[null,null,null,null,null,"INGENIERÍA ROBÓTICA",200,39,239]
[null,null,null,null,null,"LICENCIATURA ASESOR PSICOPEDAGÓGICO",15,160,175]
[null,null,null,null,null,"LICENCIATURA EN ADMINISTRACIÓN DE EMPRESAS",269,328,597]
[null,null,null,null,null,"LICENCIATURA EN ADMINISTRACIÓN DE LA PRODUCCIÓN Y SERVICIOS",71,85,156]
[null,null,null,null,null,"LICENCIATURA EN ADMINISTRACIÓN FINANCIERA",145,173,318]
[null,null,null,null,null,"LICENCIATURA EN ADMINISTRACIÓN Y GESTIÓN FISCAL DE PYMES",70,117,187]
[null,null,null,null,null,"LICENCIATURA EN AGRONEGOCIOS",121,94,215]
[null,null,null,null,null,"LICENCIATURA EN ANÁLISIS QUÍMICO BIOLÓGICOS",97,226,323]
[null,null,null,null,null,"LICENCIATURA EN ARTES CINEMATOGRÁFICAS Y AUDIOVISUALES",58,28,86]
[null,null,null,null,null,"LICENCIATURA EN ARTES ESCÉNICAS",21,48,69]
[null,null,null,null,null,"LICENCIATURA EN BIOLOGÍA",80,106,186]
[null,null,null,null,null,"LICENCIATURA EN BIOTECNOLOGÍA",79,110,189]
[null,null,null,null,null,"LICENCIATURA EN CIENCIAS AMBIENTALES",29,52,81]
[null,null,null,null,null,"LICENCIATURA EN CIENCIAS DEL ARTE Y GESTIÓN CULTURAL",37,90,127]
[null,null,null,null,null,"LICENCIATURA EN CIENCIAS POLÍTICAS Y ADMINISTRACIÓN PÚBLICA",88,74,162]
[null,null,null,null,null,"LICENCIATURA EN COMERCIO ELECTRÓNICO",88,85,173]
[null,null,null,null,null,"LICENCIATURA EN COMERCIO INTERNACIONAL",98,139,237]
[null,null,null,null,null,"LICENCIATURA EN COMUNICACIÓN E INFORMACIÓN",69,90,159]
[null,null,null,null,null,"LICENCIATURA EN COMUNICACIÓN ORGANIZACIONAL",41,132,173]
[null,null,null,null,null,"LICENCIATURA EN CULTURA FÍSICA Y DEL DEPORTE",128,38,166]
[null,null,null,null,null,"LICENCIATURA EN DERECHO",335,386,721]
[null,null,null,null,null,"LICENCIATURA EN DISEÑO DE INTERIORES",16,128,144]
[null,null,null,null,null,"LICENCIATURA EN DISEÑO DE MODAS E INDUMENTARIA Y TEXTILES",29,267,296]
[null,null,null,null,null,"LICENCIATURA EN DISEÑO GRÁFICO",123,186,309]
[null,null,null,null,null,"LICENCIATURA EN DISEÑO INDUSTRIAL",129,157,286]
[null,null,null,null,null,"LICENCIATURA EN DOCENCIA DE FRANCÉS Y ESPAÑOL COMO LENGUA EXTRANJERA",26,79,105]
[null,null,null,null,null,"LICENCIATURA EN DOCENCIA DEL IDIOMA INGLÉS",62,149,211]
[null,null,null,null,null,"LICENCIATURA EN ECONOMÍA",93,50,143]
[null,null,null,null,null,"LICENCIATURA EN ENFERMERÍA",120,416,536]
[null,null,null,null,null,"LICENCIATURA EN FILOSOFÍA",37,32,69]
[null,null,null,null,null,"LICENCIATURA EN GESTIÓN TURÍSTICA",34,116,150]
[null,null,null,null,null,"LICENCIATURA EN HISTORIA",64,46,110]
[null,null,null,null,null,"LICENCIATURA EN LETRAS HISPÁNICAS",41,107,148]
[null,null,null,null,null,"LICENCIATURA EN LOGÍSTICA EMPRESARIAL",136,189,325]
[null,null,null,null,null,"LICENCIATURA EN MATEMÁTICAS APLICADAS",50,26,76]
[null,null,null,null,null,"LICENCIATURA EN MERCADOTECNIA",162,232,394]
[null,null,null,null,null,"LICENCIATURA EN MÚSICA",51,27,78]
[null,null,null,null,null,"LICENCIATURA EN NUTRICIÓN",56,212,268]
[null,null,null,null,null,"LICENCIATURA EN OPTOMETRÍA",61,88,149]
[null,null,null,null,null,"LICENCIATURA EN PSICOLOGÍA",87,273,360]
[null,null,null,null,null,"LICENCIATURA EN RELACIONES INDUSTRIALES",87,272,359]
[null,null,null,null,null,"LICENCIATURA EN SALUD PÚBLICA",0,0,0]
[null,null,null,null,null,"LICENCIATURA EN SOCIOLOGÍA",24,41,65]
[null,null,null,null,null,"LICENCIATURA EN TECNOLOGÍAS DE INFORMACIÓN",135,57,192]
[null,null,null,null,null,"LICENCIATURA EN TERAPIA FÍSICA",34,130,164]
[null,null,null,null,null,"LICENCIATURA EN TRABAJO SOCIAL",11,213,224]
[null,null,null,null,null,"LICENCIATURA EN URBANISMO",102,39,141]
[null,null,null,null,null,"MÉDICO CIRUJANO",344,408,752]
[null,null,null,null,null,"MÉDICO ESTOMATÓLOGO",139,314,453]
[null,null,null,null,null,"MÉDICO VETERINARIO ZOOTECNISTA",195,240,435]
[null,null,null,null,null,"UNIVERSIDAD DE DURANGO",83,58,141]
[null,null,null,null,null,"LICENCIATURA EN ARQUITECTURA",44,18,62]
[null,null,null,null,null,"LICENCIATURA EN CRIMINOLOGÍA",7,17,24]
[null,null,null,null,null,"LICENCIATURA EN DERECHO",25,20,45]
[null,null,null,null,null,"LICENCIATURA EN GASTRONOMÍA Y ADMINISTRACIÓN",7,3,10]
[null,null,null,null,null,"UNIVERSIDAD DE ESTUDIOS AVANZADOS",596,1126,1722]
[null,null,null,null,null,"LICENCIATURA EN ADMINISTRACIÓN DE EMPRESAS",54,74,128]
[null,null,null,null,null,"LICENCIATURA EN CIENCIAS DE LA EDUCACIÓN",5,28,33]
[null,null,null,null,null,"LICENCIATURA EN CONTADURÍA PÚBLICA",31,58,89]
[null,null,null,null,null,"LICENCIATURA EN DERECHO",66,95,161]
[null,null,null,null,null,"LICENCIATURA EN DISEÑO DE ANIMACIÓN DIGITAL",47,27,74]
[null,null,null,null,null,"LICENCIATURA EN ENFERMERÍA",201,452,653]
[null,null,null,null,null,"LICENCIATURA EN FISIOTERAPIA",63,168,231]
[null,null,null,null,null,"LICENCIATURA EN INGENIERO ARQUITECTO",77,41,118]
[null,null,null,null,null,"LICENCIATURA EN NUTRICIÓN",4,17,21]
[null,null,null,null,null,"LICENCIATURA EN PSICOLOGÍA",17,67,84]
[null,null,null,null,null,"LICENCIATURA EN PSICOLOGÍA CLÍNICA",22,46,68]
[null,null,null,null,null,"LICENCIATURA EN PSICOPEDAGOGÍA",9,53,62]
[null,null,null,null,null,"UNIVERSIDAD DE LEÓN, PLANTEL AGUASCALIENTES",0,0,0]
[null,null,null,null,null,"LICENCIATURA EN ARQUITECTURA",0,0,0]
[null,null,null,null,null,"LICENCIATURA EN DERECHO",0,0,0]
[null,null,null,null,null,"UNIVERSIDAD DEL DESARROLLO PROFESIONAL",224,455,679]
[null,null,null,null,null,"CONTADOR PÚBLICO",24,59,83]
[null,null,null,null,null,"LICENCIATURA EN ADMINISTRACIÓN",31,68,99]
[null,null,null,null,null,"LICENCIATURA EN COMERCIO INTERNACIONAL",0,0,0]
[null,null,null,null,null,"LICENCIATURA EN COMUNICACIÓN E IMAGEN PÚBLICA",14,22,36]
[null,null,null,null,null,"LICENCIATURA EN DERECHO",49,54,103]
[null,null,null,null,null,"LICENCIATURA EN DISEÑO GRÁFICO Y MULTIMEDIA",3,10,13]
[null,null,null,null,null,"LICENCIATURA EN EDUCACIÓN",31,162,193]
[null,null,null,null,null,"LICENCIATURA EN ENSEÑANZA DEL IDIOMA INGLÉS",28,36,64]
[null,null,null,null,null,"LICENCIATURA EN INGENIERÍA EN SISTEMAS COMPUTACIONALES",28,4,32]
[null,null,null,null,null,"LICENCIATURA EN PSICOLOGÍA INDUSTRIAL",16,40,56]
[null,null,null,null,null,"LICENCIATURA EN PUBLICIDAD Y MERCADOTECNIA",0,0,0]
[null,null,null,null,null,"UNIVERSIDAD DEL VALLE DE ATEMAJAC",0,0,0]
[null,null,null,null,null,"LICENCIATURA EN DERECHO",0,0,0]
[null,null,null,null,null,"UNIVERSIDAD DEL VALLE DE MÉXICO",403,461,864]
[null,null,null,null,null,"ARQUITECTURA",61,38,99]
[null,null,null,null,null,"INGENIERÍA EN MECATRÓNICA",44,8,52]
[null,null,null,null,null,"INGENIERÍA INDUSTRIAL Y DE SISTEMAS",6,0,6]
[null,null,null,null,null,"LICENCIATURA EN ADMINISTRACIÓN",53,37,90]
[null,null,null,null,null,"LICENCIATURA EN COMERCIO INTERNACIONAL",27,25,52]
[null,null,null,null,null,"LICENCIATURA EN COMUNICACIÓN",18,24,42]
[null,null,null,null,null,"LICENCIATURA EN CONTADURÍA Y FINANZAS",3,6,9]
[null,null,null,null,null,"LICENCIATURA EN DERECHO",63,55,118]
[null,null,null,null,null,"LICENCIATURA EN DISEÑO GRÁFICO",2,1,3]
[null,null,null,null,null,"LICENCIATURA EN EDUCACIÓN",1,7,8]
[null,null,null,null,null,"LICENCIATURA EN FISIOTERAPIA",34,70,104]
[null,null,null,null,null,"LICENCIATURA EN MERCADOTECNIA",0,0,0]
[null,null,null,null,null,"LICENCIATURA EN NUTRICIÓN",2,4,6]
[null,null,null,null,null,"LICENCIATURA EN PSICOLOGÍA",20,51,71]
[null,null,null,null,null,"LICENCIATURA EN RELACIONES INTERNACIONALES",5,10,15]
[null,null,null,null,null,"LICENCIATURA EN SISTEMAS DE COMPUTACIÓN ADMINISTRATIVA",0,0,0]
[null,null,null,null,null,"LICENCIATURA EN VENTAS",4,2,6]
[null,null,null,null,null,"LICENCIATURA INTERNACIONAL EN ADMINISTRACIÓN DE EMPRESAS DE LA HOSPITALIDAD",60,123,183]
[null,null,null,null,null,"UNIVERSIDAD INTERAMERICANA PARA EL DESARROLLO",818,764,1582]
[null,null,null,null,null,"LICENCIATURA EN ADMINISTRACIÓN DE EMPRESAS",311,349,660]
[null,null,null,null,null,"LICENCIATURA EN ADMINISTRACIÓN Y DIRECCIÓN EMPRESARIAL",31,31,62]
[null,null,null,null,null,"LICENCIATURA EN CIENCIAS Y TÉCNICAS DE LA COMUNICACIÓN",35,42,77]
[null,null,null,null,null,"LICENCIATURA EN DERECHO",306,247,553]
[null,null,null,null,null,"LICENCIATURA EN DISEÑO E INDUSTRIA DEL VESTIDO",6,24,30]
[null,null,null,null,null,"LICENCIATURA EN DISEÑO GRÁFICO DIGITAL",17,12,29]
[null,null,null,null,null,"LICENCIATURA EN INGENIERÍA EN SISTEMAS DE INFORMACIÓN",28,1,29]
[null,null,null,null,null,"LICENCIATURA EN MERCADOTECNIA",56,38,94]
[null,null,null,null,null,"LICENCIATURA EN PSICOLOGÍA ORGANIZACIONAL",0,16,16]
[null,null,null,null,null,"LICENCIATURA EN TECNOLOGÍA EDUCATIVA",0,0,0]
[null,null,null,null,null,"LICENCIATURA EN EDUCACIÓN FÍSICA Y DEPORTES",28,4,32]
[null,null,null,null,null,"UNIVERSIDAD LA CONCORDIA",1175,1665,2840]
[null,null,null,null,null,"LICENCIATURA EN ADMINISTRACIÓN FINANCIERA",40,40,80]
[null,null,null,null,null,"LICENCIATURA EN ARTES ESCÉNICAS Y AUDIOVISUALES",9,10,19]
[null,null,null,null,null,"LICENCIATURA EN CIENCIAS DEL DEPORTE",37,10,47]
[null,null,null,null,null,"LICENCIATURA EN COMUNICACIÓN INTERINSTITUCIONAL",0,0,0]
[null,null,null,null,null,"LICENCIATURA EN COMUNICACIÓN Y RELACIONES PÚBLICAS",11,14,25]
[null,null,null,null,null,"LICENCIATURA EN CONTABILIDAD FINANCIERA",6,8,14]
[null,null,null,null,null,"LICENCIATURA EN DERECHO",176,172,348]
[null,null,null,null,null,"LICENCIATURA EN DISEÑO ARQUITECTÓNICO Y DE INTERIORES",67,49,116]
[null,null,null,null,null,"LICENCIATURA EN ECONOMÍA Y ADMINISTRACIÓN EMPRESARIAL",9,18,27]
[null,null,null,null,null,"LICENCIATURA EN GASTRONOMÍA",67,76,143]
[null,null,null,null,null,"LICENCIATURA EN INFORMÁTICA Y ADMINISTRACIÓN",58,23,81]
[null,null,null,null,null,"LICENCIATURA EN INGENIERÍA INDUSTRIAL Y CAPITAL HUMANO",172,55,227]
[null,null,null,null,null,"LICENCIATURA EN MERCADOTECNIA Y DISEÑO GRÁFICO",66,37,103]
[null,null,null,null,null,"LICENCIATURA EN MERCADOTECNIA Y MEDIOS DE COMUNICACIÓN",84,89,173]
[null,null,null,null,null,"LICENCIATURA EN MERCADOTECNIA Y NEGOCIOS INTERNACIONALES",10,16,26]
[null,null,null,null,null,"LICENCIATURA EN MERCADOTECNIA Y RELACIONES PÚBLICAS",4,3,7]
[null,null,null,null,null,"LICENCIATURA EN NUTRICIÓN",43,111,154]
[null,null,null,null,null,"LICENCIATURA EN PEDAGOGÍA INFANTIL",11,200,211]
[null,null,null,null,null,"LICENCIATURA EN PSICOLOGÍA HUMANISTA",64,195,259]
[null,null,null,null,null,"LICENCIATURA EN PSICOLOGÍA HUMANÍSTICA",14,40,54]
[null,null,null,null,null,"LICENCIATURA EN TERAPIA FÍSICA Y REHABILITACIÓN",111,286,397]
[null,null,null,null,null,"MÉDICO ESTOMATÓLOGO",116,213,329]
[null,null,null,null,null,"UNIVERSIDAD LAS AMÉRICAS DE CENTRO OCCIDENTE",239,419,658]
[null,null,null,null,null,"LICENCIATURA EN CIENCIAS DE LA EDUCACIÓN",34,127,161]
[null,null,null,null,null,"LICENCIATURA EN COMERCIO INTERNACIONAL",27,18,45]
[null,null,null,null,null,"LICENCIATURA EN CONTADURÍA PÚBLICA",34,56,90]
[null,null,null,null,null,"LICENCIATURA EN DERECHO",110,89,199]
[null,null,null,null,null,"LICENCIATURA EN MERCADOTECNIA",16,11,27]
[null,null,null,null,null,"NIVELACIÓN A LICENCIATURA EN ENFERMERÍA",18,118,136]
[null,null,null,null,null,"UNIVERSIDAD LATINOAMERICANA, S.C.",17,25,42]
[null,null,null,null,null,"INGENIERÍA INDUSTRIAL EN PRODUCCIÓN",3,5,8]
[null,null,null,null,null,"LICENCIATURA EN ADMINISTRACIÓN",6,13,19]
[null,null,null,null,null,"LICENCIATURA EN CONTADURÍA",0,1,1]
[null,null,null,null,null,"LICENCIATURA EN DERECHO",2,5,7]
[null,null,null,null,null,"LICENCIATURA EN MERCADOTECNIA",6,1,7]
[null,null,null,null,null,"UNIVERSIDAD PANAMERICANA",610,570,1180]
[null,null,null,null,null,"INGENIERÍA EN ELECTRÓNICA Y SISTEMAS DIGITALES",19,6,25]
[null,null,null,null,null,"INGENIERÍA EN INNOVACIÓN Y DISEÑO",29,58,87]
[null,null,null,null,null,"INGENIERÍA EN MECATRÓNICA",61,15,76]
[null,null,null,null,null,"INGENIERÍA INDUSTRIAL",86,38,124]
[null,null,null,null,null,"LICENCIATURA EN ADMINISTRACIÓN DE LA MERCADOTECNIA",27,32,59]
[null,null,null,null,null,"LICENCIATURA EN ADMINISTRACIÓN Y DIRECCIÓN",53,40,93]
[null,null,null,null,null,"LICENCIATURA EN ADMINISTRACIÓN Y DIRECCIÓN DE EMPRESAS FAMILIARES",20,6,26]
[null,null,null,null,null,"LICENCIATURA EN ADMINISTRACIÓN Y FINANZAS",60,37,97]
[null,null,null,null,null,"LICENCIATURA EN ADMINISTRACIÓN Y NEGOCIOS INTERNACIONALES",37,74,111]
[null,null,null,null,null,"LICENCIATURA EN CONTADURÍA",27,27,54]
[null,null,null,null,null,"LICENCIATURA EN DERECHO",79,81,160]
[null,null,null,null,null,"LICENCIATURA EN DIRECCIÓN DE NEGOCIOS GASTRONÓMICOS",25,52,77]
[null,null,null,null,null,"LICENCIATURA EN INGENIERÍA EN INTELIGENCIA ARTIFICIAL",47,7,54]
[null,null,null,null,null,"LICENCIATURA EN INGENIERÍA EN TECNOLOGÍAS ENERGÉTICAS",29,12,41]
[null,null,null,null,null,"LICENCIATURA EN PEDAGOGÍA",10,51,61]
[null,null,null,null,null,"LICENCIATURA EN PSICOPEDAGOGÍA",1,34,35]
[null,null,null,null,null,"UNIVERSIDAD POLITÉCNICA DE AGUASCALIENTES",1601,745,2346]
[null,null,null,null,null,"INGENIERÍA EN ELECTRÓNICA",111,32,143]
[null,null,null,null,null,"INGENIERÍA EN ENERGÍA",117,59,176]
[null,null,null,null,null,"INGENIERÍA EN MECATRÓNICA",458,95,553]
[null,null,null,null,null,"INGENIERÍA EN SISTEMAS ESTRATÉGICOS DE INFORMACIÓN ESPECIALIZACIÓN EN REDES",154,53,207]
[null,null,null,null,null,"INGENIERÍA INDUSTRIAL",242,207,449]
[null,null,null,null,null,"INGENIERÍA MECÁNICA AUTOMOTRIZ",397,28,425]
[null,null,null,null,null,"LICENCIATURA EN NEGOCIOS Y ADMINISTRACIÓN",122,271,393]
[null,null,null,null,null,"UNIVERSIDAD TECNOLÓGICA DE AGUASCALIENTES",2661,1835,4496]
[null,null,null,null,null,"CONTADOR PÚBLICO",21,36,57]
[null,null,null,null,null,"INGENIERÍA EN DESARROLLO E INNOVACIÓN EMPRESARIAL",116,206,322]
[null,null,null,null,null,"INGENIERÍA EN DESARROLLO EMPRESARIAL Y DIRECCIÓN DE PROYECTOS",18,35,53]
[null,null,null,null,null,"INGENIERÍA EN MANTENIMIENTO INDUSTRIAL",165,11,176]
[null,null,null,null,null,"INGENIERÍA EN MECATRÓNICA",127,14,141]
[null,null,null,null,null,"INGENIERÍA EN SISTEMAS PRODUCTIVOS",77,35,112]
[null,null,null,null,null,"INGENIERÍA EN TECNOLOGÍAS DE LA INFORMACIÓN Y COMUNICACIONES",96,31,127]
[null,null,null,null,null,"INGENIERÍA FINANCIERA Y FISCAL",15,41,56]
[null,null,null,null,null,"LICENCIATURA EN PROTECCIÓN CIVIL Y EMERGENCIA",20,50,70]
[null,null,null,null,null,"TÉCNICO SUPERIOR UNIVERSITARIO EN ADMINISTRACIÓN",82,200,282]
[null,null,null,null,null,"TÉCNICO SUPERIOR UNIVERSITARIO EN ADMINISTRACIÓN ÁREA ADMINISTRACIÓN Y EVALUACIÓN DE PROYECTOS",38,52,90]
[null,null,null,null,null,"TÉCNICO SUPERIOR UNIVERSITARIO EN ADMINISTRACIÓN ÁREA RECURSOS HUMANOS",49,118,167]
[null,null,null,null,null,"TÉCNICO SUPERIOR UNIVERSITARIO EN CONTADURÍA",108,191,299]
[null,null,null,null,null,"TÉCNICO SUPERIOR UNIVERSITARIO EN DESARROLLO DE NEGOCIOS ÁREA LOGÍSTICA Y TRANSPORTE",19,40,59]
[null,null,null,null,null,"TÉCNICO SUPERIOR UNIVERSITARIO EN DESARROLLO DE NEGOCIOS ÁREA MERCADOTECNIA",139,215,354]
[null,null,null,null,null,"TÉCNICO SUPERIOR UNIVERSITARIO EN ENERGÍAS RENOVABLES ÁREA ENERGÍA SOLAR",28,14,42]
[null,null,null,null,null,"TÉCNICO SUPERIOR UNIVERSITARIO EN MANTENIMIENTO ÁREA INDUSTRIAL",402,60,462]
[null,null,null,null,null,"TÉCNICO SUPERIOR UNIVERSITARIO EN MECÁNICA ÁREA AUTOMOTRIZ",70,10,80]
[null,null,null,null,null,"TÉCNICO SUPERIOR UNIVERSITARIO EN MECATRÓNICA",310,40,350]
[null,null,null,null,null,"TÉCNICO SUPERIOR UNIVERSITARIO EN MECATRÓNICA ÁREA SISTEMAS DE MANUFACTURA FLEXIBLE",141,7,148]
[null,null,null,null,null,"TÉCNICO SUPERIOR UNIVERSITARIO EN MECATRÓNICA, ÁREA AUTOMATIZACIÓN",11,3,14]
[null,null,null,null,null,"TÉCNICO SUPERIOR UNIVERSITARIO EN PARAMÉDICO",112,181,293]
[null,null,null,null,null,"TÉCNICO SUPERIOR UNIVERSITARIO EN PROCESOS INDUSTRIALES ÁREA MANUFACTURA",235,145,380]
[null,null,null,null,null,"TÉCNICO SUPERIOR UNIVERSITARIO EN TECNOLOGÍAS DE LA INFORMACIÓN Y COMUNICACIÓN",144,56,200]
[null,null,null,null,null,"TÉCNICO SUPERIOR UNIVERSITARIO EN TECNOLOGÍAS DE LA INFORMACIÓN Y COMUNICACIÓN ÁREA REDES Y TELECOMUNICACIONES",31,19,50]
[null,null,null,null,null,"TÉCNICO SUPERIOR UNIVERSITARIO EN TECNOLOGÍAS DE LA INFORMACIÓN Y COMUNICACIÓN ÁREA SISTEMAS INFORMÁTICOS",78,25,103]
[null,null,null,null,null,"INGENIERÍA TÉCNICA EN ROBÓTICA INDUSTRIAL",9,0,9]
[null,null,null,null,null,"UNIVERSIDAD TECNOLÓGICA DE CALVILLO",164,168,332]
[null,null,null,null,null,"INGENIERÍA EN SISTEMAS PRODUCTIVOS",8,4,12]
[null,null,null,null,null,"LICENCIATURA EN DESARROLLO E INNOVACIÓN EMPRESARIAL",13,24,37]
[null,null,null,null,null,"TÉCNICO SUPERIOR UNIVERSITARIO EN ADMINISTRACIÓN ÁREA RECURSOS HUMANOS",11,49,60]
[null,null,null,null,null,"TÉCNICO SUPERIOR UNIVERSITARIO EN DESARROLLO DE NEGOCIOS ÁREA MERCADOTECNIA",15,20,35]
[null,null,null,null,null,"TÉCNICO SUPERIOR UNIVERSITARIO EN MANTENIMIENTO ÁREA INDUSTRIAL",48,2,50]
[null,null,null,null,null,"TÉCNICO SUPERIOR UNIVERSITARIO EN PROCESOS INDUSTRIALES ÁREA MANUFACTURA",25,29,54]
[null,null,null,null,null,"TÉCNICO SUPERIOR UNIVERSITARIO EN TURISMO ÁREA DESARROLLO DE PRODUCTOS ALTERNATIVOS",23,28,51]
[null,null,null,null,null,"TÉCNICO SUPERIOR UNIVERSITARIO EN TECNOLOGÍAS DE LA INFORMACIÓN Y LA COMUNICACIÓN ÁREA INFORMÁTICA ADMINISTRATIVA",21,12,33]
[null,null,null,null,null,"UNIVERSIDAD TECNOLÓGICA DEL NORTE DE AGUASCALIENTES",1437,1074,2511]
[null,null,null,null,null,"INGENIERÍA EN AGRICULTURA SUSTENTABLE Y PROTEGIDA",45,9,54]
[null,null,null,null,null,"INGENIERÍA EN DESARROLLO E INNOVACIÓN EMPRESARIAL",54,166,220]
[null,null,null,null,null,"INGENIERÍA EN MANTENIMIENTO INDUSTRIAL",104,16,120]
[null,null,null,null,null,"INGENIERÍA EN MECATRÓNICA",100,26,126]
[null,null,null,null,null,"INGENIERÍA EN SISTEMAS PRODUCTIVOS",40,29,69]
[null,null,null,null,null,"INGENIERÍA EN TECNOLOGÍAS DE LA INFORMACIÓN Y COMUNICACIONES",50,44,94]
[null,null,null,null,null,"INGENIERÍA FISCAL Y FINANCIERA",35,47,82]
[null,null,null,null,null,"TÉCNICO SUPERIOR UNIVERSITARIO EN ADMINISTRACIÓN ÁREA ADMINISTRACIÓN Y EVALUACIÓN DE PROYECTOS",30,44,74]
[null,null,null,null,null,"TÉCNICO SUPERIOR UNIVERSITARIO EN ADMINISTRACIÓN ÁREA RECURSOS HUMANOS",83,238,321]
[null,null,null,null,null,"TÉCNICO SUPERIOR UNIVERSITARIO EN AGRICULTURA SUSTENTABLE Y PROTEGIDA",55,21,76]
[null,null,null,null,null,"TÉCNICO SUPERIOR UNIVERSITARIO EN CONTADURÍA",45,95,140]
[null,null,null,null,null,"TÉCNICO SUPERIOR UNIVERSITARIO EN DESARROLLO DE NEGOCIOS ÁREA LOGÍSTICA Y TRANSPORTE",18,62,80]
[null,null,null,null,null,"TÉCNICO SUPERIOR UNIVERSITARIO EN DESARROLLO DE NEGOCIOS ÁREA MERCADOTECNIA",40,57,97]
[null,null,null,null,null,"TÉCNICO SUPERIOR UNIVERSITARIO EN MANTENIMIENTO ÁREA INDUSTRIAL",254,31,285]
[null,null,null,null,null,"TÉCNICO SUPERIOR UNIVERSITARIO EN MECÁNICA ÁREA AUTOMOTRIZ",120,9,129]
[null,null,null,null,null,"TÉCNICO SUPERIOR UNIVERSITARIO EN MECATRÓNICA ÁREA SISTEMAS DE MANUFACTURA FLEXIBLE",74,18,92]
[null,null,null,null,null,"TÉCNICO SUPERIOR UNIVERSITARIO EN MECATRÓNICA, ÁREA AUTOMATIZACIÓN",87,19,106]
[null,null,null,null,null,"TÉCNICO SUPERIOR UNIVERSITARIO EN PROCESOS INDUSTRIALES ÁREA AUTOMOTRIZ",53,21,74]
[null,null,null,null,null,"TÉCNICO SUPERIOR UNIVERSITARIO EN PROCESOS INDUSTRIALES ÁREA MANUFACTURA",45,53,98]
[null,null,null,null,null,"TÉCNICO SUPERIOR UNIVERSITARIO EN TECNOLOGÍAS DE LA INFORMACIÓN Y COMUNICACIÓN ÁREA SISTEMAS INFORMÁTICOS",14,8,22]
[null,null,null,null,null,"TÉCNICO SUPERIOR UNIVERSITARIO EN TECNOLOGÍAS DE LA INFORMACIÓN Y COMUNICACIÓN ÁREA MULTIMEDIA Y COMERCIO ELECTRÓNICO",26,17,43]
[null,null,null,null,null,"TÉCNICO SUPERIOR UNIVERSITARIO EN TECNOLOGÍAS DE LA INFORMACIÓN Y LA COMUNICACIÓN ÁREA INFORMÁTICA ADMINISTRATIVA",65,44,109]
[null,null,null,null,null,"UNIVERSIDAD TECNOLÓGICA EL RETOÑO",408,368,776]
[null,null,null,null,null,"INGENIERÍA EN DESARROLLO E INNOVACIÓN EMPRESARIAL",6,17,23]
[null,null,null,null,null,"INGENIERÍA EN MECATRÓNICA",21,4,25]
[null,null,null,null,null,"INGENIERÍA EN TECNOLOGÍA DE LA INFORMACIÓN",8,7,15]
[null,null,null,null,null,"TÉCNICO SUPERIOR UNIVERSITARIO EN ADMINISTRACIÓN ÁREA RECURSOS HUMANOS",62,129,191]
[null,null,null,null,null,"TÉCNICO SUPERIOR UNIVERSITARIO EN DESARROLLO DE NEGOCIOS ÁREA MERCADOTECNIA",50,79,129]
[null,null,null,null,null,"TÉCNICO SUPERIOR UNIVERSITARIO EN MECATRÓNICA",148,32,180]
[null,null,null,null,null,"TÉCNICO SUPERIOR UNIVERSITARIO EN TECNOLOGÍAS DE LA INFORMACIÓN",83,35,118]
[null,null,null,null,null,"TÉCNICO SUPERIOR UNIVERSITARIO EN LENGUA INGLESA",30,65,95]
[null,null,null,null,null,"UNIVERSIDAD CUAUHTÉMOC",1006,856,1862]
[null,null,null,null,null,"INGENIERÍA CIVIL",91,10,101]
[null,null,null,null,null,"LICENCIATURA EN ADMINISTRACIÓN",7,7,14]
[null,null,null,null,null,"LICENCIATURA EN ADMINISTRACIÓN DE EMPRESAS",11,8,19]
[null,null,null,null,null,"LICENCIATURA EN ARQUITECTURA",112,45,157]
[null,null,null,null,null,"LICENCIATURA EN COMERCIO INTERNACIONAL",8,1,9]
[null,null,null,null,null,"LICENCIATURA EN COMERCIO Y NEGOCIOS INTERNACIONALES",49,36,85]
[null,null,null,null,null,"LICENCIATURA EN COMUNICACIÓN",23,26,49]
[null,null,null,null,null,"LICENCIATURA EN CONTADURÍA",8,13,21]
[null,null,null,null,null,"LICENCIATURA EN CONTADURÍA Y SISTEMAS FINANCIEROS",24,10,34]
[null,null,null,null,null,"LICENCIATURA EN DERECHO",239,170,409]
[null,null,null,null,null,"LICENCIATURA EN DISEÑO GRÁFICO",14,10,24]
[null,null,null,null,null,"LICENCIATURA EN KINESIOLOGÍA",73,70,143]
[null,null,null,null,null,"LICENCIATURA EN NUTRICIÓN",11,53,64]
[null,null,null,null,null,"LICENCIATURA EN ODONTOLOGÍA",52,85,137]
[null,null,null,null,null,"LICENCIATURA EN PSICOLOGÍA",13,72,85]
[null,null,null,null,null,"LICENCIATURA EN PUBLICIDAD",12,11,23]
[null,null,null,null,null,"LICENCIATURA EN SERVICIOS DE GASTRONOMÍA",24,23,47]
[null,null,null,null,null,"LICENCIATURA EN TURISMO",1,2,3]
[null,null,null,null,null,"LICENCIATURA EN VETERINARIA Y ZOOTECNIA",57,26,83]
[null,null,null,null,null,"MÉDICO CIRUJANO INTEGRAL",177,178,355]
[null,null,null,null,null,"UNIVERSIDAD VILLASUNCION",183,309,492]
[null,null,null,null,null,"LICENCIATURA EN CRIMINOLOGÍA",136,184,320]
[null,null,null,null,null,"LICENCIATURA EN DERECHO",9,19,28]
[null,null,null,null,null,"LICENCIATURA EN ENFERMERÍA",38,106,144]
[null,null,null,null,null,"UNIVERSIDAD BONAGENS",225,229,454]
[null,null,null,null,null,"LICENCIATURA EN ARTES ESCÉNICAS Y AUDIOVISUALES",2,3,5]
[null,null,null,null,null,"LICENCIATURA EN CIENCIAS DEL DEPORTE",106,26,132]
[null,null,null,null,null,"LICENCIATURA EN CRIMINOLOGÍA",27,31,58]
[null,null,null,null,null,"LICENCIATURA EN DERECHO",19,8,27]
[null,null,null,null,null,"LICENCIATURA EN DISEÑO ARQUITECTÓNICO Y DE INTERIORES",10,3,13]
[null,null,null,null,null,"LICENCIATURA EN DISEÑO TEXTIL Y CREACIÓN DE MODAS",6,21,27]
[null,null,null,null,null,"LICENCIATURA EN MERCADOTECNIA Y NEGOCIOS INTERNACIONALES",10,4,14]
[null,null,null,null,null,"LICENCIATURA EN NEGOCIOS GASTRONÓMICOS Y EMPRESAS TURÍSTICAS",27,52,79]
[null,null,null,null,null,"LICENCIATURA EN NUTRICIÓN",11,23,34]
[null,null,null,null,null,"LICENCIATURA EN PEDAGOGÍA INFANTIL",2,34,36]
[null,null,null,null,null,"LICENCIATURA EN PSICOLOGÍA HUMANISTA",5,24,29]
[null,null,null,null,null,"INSTITUTO DE EDUCACIÓN SUPERIOR AUTOMOTRÍZ",35,0,35]
[null,null,null,null,null,"TÉCNICO SUPERIOR UNIVERSITARIO EN MANTENIMIENTO",35,0,35]
[null,null,null,null,null,"ESCUELA NORMAL SUPERIOR FEDERAL DE AGUASCALIENTES PROFESOR JOSÉ SANTOS VALDÉS",95,254,349]
[null,null,null,null,null,"LICENCIATURA EN EDUCACIÓN SECUNDARIA CON ESPECIALIDAD EN BIOLOGÍA",7,11,18]
[null,null,null,null,null,"LICENCIATURA EN EDUCACIÓN SECUNDARIA CON ESPECIALIDAD EN ESPAÑOL",29,98,127]
[null,null,null,null,null,"LICENCIATURA EN EDUCACIÓN SECUNDARIA CON ESPECIALIDAD EN FÍSICA",0,2,2]
[null,null,null,null,null,"LICENCIATURA EN EDUCACIÓN SECUNDARIA CON ESPECIALIDAD EN FORMACIÓN CÍVICA Y ÉTICA",6,16,22]
[null,null,null,null,null,"LICENCIATURA EN EDUCACIÓN SECUNDARIA CON ESPECIALIDAD EN GEOGRAFÍA",4,15,19]
[null,null,null,null,null,"LICENCIATURA EN EDUCACIÓN SECUNDARIA CON ESPECIALIDAD EN HISTORIA",18,34,52]
[null,null,null,null,null,"LICENCIATURA EN EDUCACIÓN SECUNDARIA CON ESPECIALIDAD EN LENGUA EXTRANJERA (INGLÉS)",7,37,44]
[null,null,null,null,null,"LICENCIATURA EN EDUCACIÓN SECUNDARIA CON ESPECIALIDAD EN MATEMÁTICAS",24,41,65]
[null,null,null,null,null,"LICENCIATURA EN EDUCACIÓN SECUNDARIA CON ESPECIALIDAD EN QUÍMICA",0,0,0]
[null,null,null,null,null,"BAJA CALIFORNIA",59433,60222,119655]
[null,null,null,null,null,"ACADEMIA DE SEGURIDAD PÚBLICA DEL ESTADO DE BAJA CALIFORNIA",230,55,285]
[null,null,null,null,null,"LICENCIATURA EN SEGURIDAD PÚBLICA",230,55,285]
[null,null,null,null,null,"ATENEO UNIVERSITARIO",27,29,56]
[null,null,null,null,null,"LICENCIATURA EN CRIMINALÍSTICA",27,29,56]
[null,null,null,null,null,"BENEMÉRITA ESCUELA NORMAL ESTATAL, PROFESOR JESÚS PRADO LUNA",44,222,266]
[null,null,null,null,null,"LICENCIATURA EN EDUCACIÓN PREESCOLAR",2,106,108]
[null,null,null,null,null,"LICENCIATURA EN EDUCACIÓN PRIMARIA",19,76,95]
[null,null,null,null,null,"LICENCIATURA EN EDUCACIÓN SECUNDARIA CON ESPECIALIDAD EN MATEMÁTICAS",5,11,16]
[null,null,null,null,null,"LICENCIATURA EN EDUCACIÓN SECUNDARIA CON ESPECIALIDAD EN TELESECUNDARIA",18,29,47]
[null,null,null,null,null,"BENEMÉRITA ESCUELA NORMAL PARA LIC. EN EDUCACIÓN PRESCOLAR EDUCADORA ROSAURA ZAPATA",0,112,112]
[null,null,null,null,null,"LICENCIATURA EN EDUCACIÓN PREESCOLAR",0,112,112]
[null,null,null,null,null,"BENEMÉRITA ESCUELA NORMAL URBANA FEDERAL FRONTERIZA",67,273,340]
[null,null,null,null,null,"LICENCIATURA EN EDUCACIÓN ESPECIAL EN EL ÁREA DE ATENCIÓN AUDITIVA Y DE LENGUAJE",7,58,65]
[null,null,null,null,null,"LICENCIATURA EN EDUCACIÓN ESPECIAL EN EL ÁREA DE ATENCIÓN MOTRIZ",10,61,71]
[null,null,null,null,null,"LICENCIATURA EN EDUCACIÓN PRIMARIA",25,90,115]
[null,null,null,null,null,"LICENCIATURA EN EDUCACIÓN SECUNDARIA CON ESPECIALIDAD EN ESPAÑOL",12,34,46]
[null,null,null,null,null,"LICENCIATURA EN EDUCACIÓN SECUNDARIA CON ESPECIALIDAD EN HISTORIA",3,16,19]
[null,null,null,null,null,"LICENCIATURA EN EDUCACIÓN SECUNDARIA CON ESPECIALIDAD EN MATEMÁTICAS",10,14,24]
[null,null,null,null,null,"CENTRO DE ENSEÑANZA TÉCNICA Y SUPERIOR",1945,1359,3304]
[null,null,null,null,null,"INGENIERÍA DE SOFTWARE",10,4,14]
[null,null,null,null,null,"INGENIERÍA EN CIBERNÉTICA ELECTRÓNICA",112,34,146]
[null,null,null,null,null,"INGENIERÍA EN CIENCIAS COMPUTACIONALES",118,17,135]
[null,null,null,null,null,"INGENIERÍA EN DISEÑO GRÁFICO DIGITAL",90,123,213]
[null,null,null,null,null,"INGENIERÍA INDUSTRIAL",135,61,196]
[null,null,null,null,null,"INGENIERÍA MECÁNICA",121,15,136]
[null,null,null,null,null,"INGENIERÍA MECATRÓNICA",125,21,146]
[null,null,null,null,null,"LICENCIATURA EN ADMINISTRACIÓN DE EMPRESAS",144,90,234]
[null,null,null,null,null,"LICENCIATURA EN ADMINISTRACIÓN DE MERCADOTECNIA",73,130,203]
[null,null,null,null,null,"LICENCIATURA EN ADMINISTRACIÓN DE MERCADOTECNIA CON OPCIÓN EN CREACIÓN Y DESARROLLO DE EMPRESAS",2,2,4]
[null,null,null,null,null,"LICENCIATURA EN ADMINISTRACIÓN DE MERCADOTECNIA CON OPCIÓN EN PUBLICIDAD",6,11,17]
[null,null,null,null,null,"LICENCIATURA EN ADMINISTRACIÓN DE NEGOCIOS",30,18,48]
[null,null,null,null,null,"LICENCIATURA EN ADMINISTRACIÓN DE NEGOCIOS CON CONCENTRACIÓN EN FINANZAS",17,8,25]
[null,null,null,null,null,"LICENCIATURA EN ADMINISTRACIÓN DE NEGOCIOS CON CONCENTRACIÓN EN LOGÍSTICA Y PROCESOS",18,4,22]
[null,null,null,null,null,"LICENCIATURA EN ADMINISTRACIÓN DE NEGOCIOS CON CONCENTRACIÓN EN RECURSOS HUMANOS",13,26,39]
[null,null,null,null,null,"LICENCIATURA EN CONTADOR PÚBLICO INTERNACIONAL",77,76,153]
[null,null,null,null,null,"LICENCIATURA EN DERECHO",90,85,175]
[null,null,null,null,null,"LICENCIATURA EN DISEÑO GRÁFICO",12,31,43]
[null,null,null,null,null,"LICENCIATURA EN DISEÑO GRÁFICO CON OPCIÓN EN DISEÑO DE ESPACIOS",0,3,3]
[null,null,null,null,null,"LICENCIATURA EN DISEÑO GRÁFICO CON OPCIÓN EN DISEÑO DE PROYECTOS WEB",0,3,3]
[null,null,null,null,null,"LICENCIATURA EN DISEÑO GRÁFICO CON OPCIÓN EN PUBLICIDAD",0,7,7]
[null,null,null,null,null,"LICENCIATURA EN INGENIERÍA DE SOFTWARE",11,4,15]
[null,null,null,null,null,"LICENCIATURA EN INGENIERÍA EN ENERGÍAS RENOVABLES",65,47,112]
[null,null,null,null,null,"LICENCIATURA EN INGENIERÍA INDUSTRIAL",145,68,213]
[null,null,null,null,null,"LICENCIATURA EN INGENIERÍA MECÁNICA",134,21,155]
[null,null,null,null,null,"LICENCIATURA EN INGENIERÍA MECATRÓNICA",142,25,167]
[null,null,null,null,null,"LICENCIATURA EN NEGOCIOS INTERNACIONALES",214,214,428]
[null,null,null,null,null,"LICENCIATURA EN PSICOLOGÍA CLÍNICA",25,117,142]
[null,null,null,null,null,"LICENCIATURA EN PSICOLOGÍA EDUCATIVA",2,11,13]
[null,null,null,null,null,"LICENCIATURA EN PSICOLOGÍA INFANTIL",2,57,59]
[null,null,null,null,null,"LICENCIATURA EN PSICOLOGÍA ORGANIZACIONAL",9,26,35]
[null,null,null,null,null,"LICENCIATURA EN DISEÑO GRAFICO CON OPCIÓN EN DISEÑO MULTIMEDIA",3,0,3]
[null,null,null,null,null,"CENTRO DE ESTUDIOS SUPERIORES CECYT",58,126,184]
[null,null,null,null,null,"LICENCIATURA EN ADMINISTRACIÓN DE EMPRESAS",10,15,25]
[null,null,null,null,null,"LICENCIATURA EN COMERCIO INTERNACIONAL Y ADUANAS",28,19,47]
[null,null,null,null,null,"LICENCIATURA EN CONTADURÍA",5,2,7]
[null,null,null,null,null,"LICENCIATURA EN DERECHO",5,14,19]
[null,null,null,null,null,"LICENCIATURA EN PEDAGOGÍA",10,76,86]
[null,null,null,null,null,"CENTRO DE ESTUDIOS SUPERIORES DE LA FRONTERA (UNIFRONT)",111,215,326]
[null,null,null,null,null,"LICENCIATURA EN CRIMINOLOGÍA",50,42,92]
[null,null,null,null,null,"LICENCIATURA EN GASTRONOMÍA",48,66,114]
[null,null,null,null,null,"LICENCIATURA EN PSICOLOGÍA",6,37,43]
[null,null,null,null,null,"LICENCIATURA EN PSICOPEDAGOGÍA",3,44,47]
[null,null,null,null,null,"LICENCIATURA EN TRABAJO SOCIAL",4,26,30]
[null,null,null,null,null,"CENTRO DE ESTUDIOS SUPERIORES DEL NOROESTE",354,353,707]
[null,null,null,null,null,"INGENIERÍA EN DESARROLLO DE SOFTWARE",34,3,37]
[null,null,null,null,null,"INGENIERÍA EN MULTIMEDIA",37,8,45]
[null,null,null,null,null,"LICENCIATURA EN ADMINISTRACIÓN DE EMPRESAS",57,108,165]
[null,null,null,null,null,"LICENCIATURA EN ADUANAS Y LOGÍSTICA",76,63,139]
[null,null,null,null,null,"LICENCIATURA EN CONTADURÍA PÚBLICA",25,23,48]
[null,null,null,null,null,"LICENCIATURA EN DERECHO",57,42,99]
[null,null,null,null,null,"LICENCIATURA EN NEGOCIOS INTERNACIONALES",41,28,69]
[null,null,null,null,null,"LICENCIATURA EN PSICOLOGÍA",24,45,69]
[null,null,null,null,null,"LICENCIATURA EN PSICOLOGÍA EDUCATIVA",3,33,36]
[null,null,null,null,null,"CENTRO DE ESTUDIOS SUPERIORES EDUMAX",11,11,22]
[null,null,null,null,null,"LICENCIATURA EN ADMINISTRACIÓN",0,0,0]
[null,null,null,null,null,"LICENCIATURA EN CIENCIAS DE LA EDUCACIÓN",0,0,0]
[null,null,null,null,null,"LICENCIATURA EN CRIMINOLOGÍA",4,0,4]
[null,null,null,null,null,"LICENCIATURA EN DERECHO",7,11,18]
[null,null,null,null,null,"CENTRO DE ESTUDIOS SUPERIORES EN CIENCIAS PENALES A.C.",174,162,336]
[null,null,null,null,null,"LICENCIATURA EN CRIMINOLOGÍA",164,153,317]
[null,null,null,null,null,"LICENCIATURA EN DERECHO",10,9,19]
[null,null,null,null,null,"CENTRO DE ESTUDIOS SUPERIORES METROPOLITANO DE AGUA CALIENTE",13,8,21]
[null,null,null,null,null,"LICENCIATURA EN DERECHO",11,6,17]
[null,null,null,null,null,"LICENCIATURA EN DESARROLLO ORGANIZACIONAL",2,2,4]
[null,null,null,null,null,"CENTRO DE ESTUDIOS SUPERIORES, CULINARY ART SCHOOL",80,108,188]
[null,null,null,null,null,"LICENCIATURA EN ARTE CULINARIO",80,108,188]
[null,null,null,null,null,"CENTRO DE ESTUDIOS UNIVERSITARIOS 16 DE SEPTIEMBRE",509,511,1020]
[null,null,null,null,null,"LICENCIATURA EN ADMINISTRACIÓN DE EMPRESAS",84,83,167]
[null,null,null,null,null,"LICENCIATURA EN ADMINISTRACIÓN INDUSTRIAL",72,28,100]
[null,null,null,null,null,"LICENCIATURA EN CONTADURÍA",20,28,48]
[null,null,null,null,null,"LICENCIATURA EN DERECHO",243,184,427]
[null,null,null,null,null,"LICENCIATURA EN EDUCACIÓN",68,170,238]
[null,null,null,null,null,"LICENCIATURA EN MERCADOTECNIA Y PUBLICIDAD",22,18,40]
[null,null,null,null,null,"CENTRO DE ESTUDIOS UNIVERSITARIOS DE BAJA CALIFORNIA",39,94,133]
[null,null,null,null,null,"LICENCIATURA EN EDUCACIÓN EN ÁREA DE CIENCIAS SOCIALES",31,43,74]
[null,null,null,null,null,"LICENCIATURA EN EDUCACIÓN EN EL ÁREA DE ESPAÑOL Y LITERATURA",8,51,59]
[null,null,null,null,null,"LICENCIATURA EN ENSEÑANZA DE LAS CIENCIAS NATURALES EN BACHILLERATO",0,0,0]
[null,null,null,null,null,"CENTRO DE ESTUDIOS UNIVERSITARIOS DE MEXICALI",200,394,594]
[null,null,null,null,null,"LICENCIATURA EN ADMINISTRACIÓN DE EMPRESAS",46,63,109]
[null,null,null,null,null,"LICENCIATURA EN CIENCIAS DE LA EDUCACIÓN",24,171,195]
[null,null,null,null,null,"LICENCIATURA EN COMERCIO EXTERIOR Y ADUANAS",24,24,48]
[null,null,null,null,null,"LICENCIATURA EN CRIMINOLOGÍA",40,38,78]
[null,null,null,null,null,"LICENCIATURA EN DERECHO",66,98,164]
[null,null,null,null,null,"CENTRO DE ESTUDIOS UNIVERSITARIOS XOCHICALCO",1913,2534,4447]
[null,null,null,null,null,"ARQUITECTO",0,0,0]
[null,null,null,null,null,"LICENCIATURA EN ADMINISTRACIÓN",0,0,0]
[null,null,null,null,null,"LICENCIATURA EN ADMINISTRACIÓN Y DESARROLLO EMPRESARIAL",97,66,163]
[null,null,null,null,null,"LICENCIATURA EN ARQUITECTURA",83,56,139]
[null,null,null,null,null,"LICENCIATURA EN CIENCIAS DE LA EDUCACIÓN",6,22,28]
[null,null,null,null,null,"LICENCIATURA EN COMERCIO EXTERIOR Y ADUANAS",37,35,72]
[null,null,null,null,null,"LICENCIATURA EN COMERCIO INTERNACIONAL",11,5,16]
[null,null,null,null,null,"LICENCIATURA EN COMERCIO INTERNACIONAL Y ADUANAS",115,123,238]
[null,null,null,null,null,"LICENCIATURA EN COMUNICACIÓN",6,8,14]
[null,null,null,null,null,"LICENCIATURA EN COMUNICACIÓN Y RELACIONES PÚBLICAS",19,29,48]
[null,null,null,null,null,"LICENCIATURA EN CRIMINALÍSTICA",135,120,255]
[null,null,null,null,null,"LICENCIATURA EN DERECHO",154,161,315]
[null,null,null,null,null,"LICENCIATURA EN DISEÑO",58,152,210]
[null,null,null,null,null,"LICENCIATURA EN MERCADOTECNIA",30,32,62]
[null,null,null,null,null,"LICENCIATURA EN NUTRICIÓN",89,325,414]
[null,null,null,null,null,"LICENCIATURA EN OPTOMETRÍA",33,57,90]
[null,null,null,null,null,"LICENCIATURA EN PSICOLOGÍA",57,247,304]
[null,null,null,null,null,"MEDICINA GENERAL",363,438,801]
[null,null,null,null,null,"MÉDICO CIRUJANO",0,0,0]
[null,null,null,null,null,"MÉDICO GENERAL",620,658,1278]
[null,null,null,null,null,"CENTRO DE INVESTIGACIÓN PARA EL DESARROLLO HUMANO CIDH UNIVERSIDAD",26,52,78]
[null,null,null,null,null,"LICENCIATURA EN ADMINISTRACIÓN EN MERCADOTECNIA",4,10,14]
[null,null,null,null,null,"LICENCIATURA EN DERECHO",12,10,22]
[null,null,null,null,null,"LICENCIATURA EN PSICOLOGÍA FAMILIAR",10,32,42]
[null,null,null,null,null,"CENTRO EDUCATIVO CALIFORNIA A.C.",48,115,163]
[null,null,null,null,null,"LICENCIATURA EN CIENCIAS DE LA EDUCACIÓN",17,67,84]
[null,null,null,null,null,"LICENCIATURA EN CRIMINOLOGÍA",15,10,25]
[null,null,null,null,null,"LICENCIATURA EN DERECHO",16,38,54]
[null,null,null,null,null,"CENTRO INTERNACIONAL DE ESTUDIOS SUPERIORES, A.C.",53,62,115]
[null,null,null,null,null,"LICENCIATURA EN ADMINISTRACIÓN DE EMPRESAS",28,30,58]
[null,null,null,null,null,"LICENCIATURA EN CIENCIAS DE LA EDUCACIÓN",3,15,18]
[null,null,null,null,null,"LICENCIATURA EN COMERCIO EXTERIOR Y ADUANAS",14,9,23]
[null,null,null,null,null,"LICENCIATURA EN CONTADURÍA PÚBLICA",0,0,0]
[null,null,null,null,null,"LICENCIATURA EN DERECHO",0,0,0]
[null,null,null,null,null,"LICENCIATURA EN PSICOLOGÍA",8,8,16]
[null,null,null,null,null,"CENTRO SUPERIOR DE PEDAGOGÍA MENTOR MEXICANO",3,35,38]
[null,null,null,null,null,"LICENCIATURA EN EDUCACIÓN PREESCOLAR",0,0,0]
[null,null,null,null,null,"LICENCIATURA EN EDUCACIÓN PRIMARIA",3,35,38]
[null,null,null,null,null,"CENTRO TECNOLÓGICO SIGLO XXI FUNDADORES",56,102,158]
[null,null,null,null,null,"LICENCIATURA EN ADMINISTRACIÓN",25,35,60]
[null,null,null,null,null,"LICENCIATURA EN DERECHO",25,16,41]
[null,null,null,null,null,"LICENCIATURA EN EDUCACIÓN",6,51,57]
[null,null,null,null,null,"CENTRO UNIVERSITARIO DE BAJA CALIFORNIA",181,192,373]
[null,null,null,null,null,"LICENCIATURA EN ADMINISTRACIÓN DE NEGOCIOS Y COMERCIO INTERNACIONAL",20,29,49]
[null,null,null,null,null,"LICENCIATURA EN CRIMINOLOGÍA Y SEGURIDAD PÚBLICA",81,70,151]
[null,null,null,null,null,"LICENCIATURA EN DERECHO",68,63,131]
[null,null,null,null,null,"LICENCIATURA EN GASTRONOMÍA CON ÉNFASIS NUTRICIONAL",3,4,7]
[null,null,null,null,null,"LICENCIATURA EN PSICOLOGÍA Y MECANISMOS ALTERNATIVOS DE SOLUCIÓN DE CONTROVERSIAS",9,26,35]
[null,null,null,null,null,"ESCUELA DE DANZA GLORIA CAMPOBELLO",0,2,2]
[null,null,null,null,null,"LICENCIATURA EN DANZA",0,2,2]
[null,null,null,null,null,"ESCUELA DE DISEÑO DE MODAS DE BAJA CALIFORNIA",4,14,18]
[null,null,null,null,null,"LICENCIATURA EN DISEÑO DE MODAS",4,14,18]
[null,null,null,null,null,"ESCUELA DE ENFERMERÍA DEL INSTITUTO MEXICANO DEL SEGURO SOCIAL",55,221,276]
[null,null,null,null,null,"LICENCIATURA EN ENFERMERÍA",55,221,276]
[null,null,null,null,null,"ESCUELA DE TRABAJO SOCIAL DE TIJUANA",11,62,73]
[null,null,null,null,null,"LICENCIATURA EN TRABAJO SOCIAL",11,62,73]
[null,null,null,null,null,"ESCUELA DEL PACIFICO",54,52,106]
[null,null,null,null,null,"LICENCIATURA EN ADMINISTRACIÓN DE ORGANIZACIONES",54,52,106]
[null,null,null,null,null,"ESCUELA LIBRE DE DERECHO DE OCCIDENTE VILLAR BORJA",46,53,99]
[null,null,null,null,null,"LICENCIATURA EN DERECHO",46,53,99]
[null,null,null,null,null,"ESCUELA NORMAL EXPERIMENTAL",21,103,124]
[null,null,null,null,null,"LICENCIATURA EN EDUCACIÓN PRIMARIA",21,103,124]
[null,null,null,null,null,"ESCUELA NORMAL FRONTERIZA TIJUANA",128,545,673]
[null,null,null,null,null,"LICENCIATURA EN EDUCACIÓN ESPECIAL EN EL ÁREA DE ATENCIÓN AUDITIVA Y DE LENGUAJE",9,120,129]
[null,null,null,null,null,"LICENCIATURA EN EDUCACIÓN FÍSICA",46,30,76]
[null,null,null,null,null,"LICENCIATURA EN EDUCACIÓN PREESCOLAR",1,122,123]
[null,null,null,null,null,"LICENCIATURA EN EDUCACIÓN PRIMARIA",18,109,127]
[null,null,null,null,null,"LICENCIATURA EN EDUCACIÓN SECUNDARIA CON ESPECIALIDAD EN ESPAÑOL",17,96,113]
[null,null,null,null,null,"LICENCIATURA EN EDUCACIÓN SECUNDARIA CON ESPECIALIDAD EN MATEMÁTICAS",37,68,105]
[null,null,null,null,null,"ESCUELA NORMAL PARTICULAR AUTORIZADA COLEGIO ENSENADA",7,62,69]
[null,null,null,null,null,"LICENCIATURA EN EDUCACIÓN PREESCOLAR",0,49,49]
[null,null,null,null,null,"LICENCIATURA EN EDUCACIÓN PRIMARIA",7,13,20]
[null,null,null,null,null,"ESCUELA NORMAL PARTICULAR INCORPORADA",13,77,90]
[null,null,null,null,null,"LICENCIATURA EN EDUCACIÓN PREESCOLAR",1,5,6]
[null,null,null,null,null,"LICENCIATURA EN EDUCACIÓN PRIMARIA",1,17,18]
[null,null,null,null,null,"LICENCIATURA EN TRABAJO SOCIAL",11,55,66]
[null,null,null,null,null,"ESCUELA NORMAL PROF. GREGORIO TORRES QUINTERO",21,73,94]
[null,null,null,null,null,"LICENCIATURA EN EDUCACIÓN PRIMARIA",21,73,94]
[null,null,null,null,null,"ESCUELA NORMAL URBANA FEDERAL DE EDUCACIÓN PRESCOLAR ESTEFANÍA CASTAÑEDA Y NUEZ DE CÁCERES",0,87,87]
[null,null,null,null,null,"LICENCIATURA EN EDUCACIÓN PREESCOLAR",0,87,87]
[null,null,null,null,null,"ESCUELA NORMAL URBANA NOCTURNA",20,75,95]
[null,null,null,null,null,"LICENCIATURA EN EDUCACIÓN ESPECIAL EN EL ÁREA DE ATENCIÓN INTELECTUAL",11,34,45]
[null,null,null,null,null,"LICENCIATURA EN EDUCACIÓN ESPECIAL EN EL ÁREA DE ATENCIÓN VISUAL",9,41,50]
[null,null,null,null,null,"ESCUELA SUPERIOR DE ARTES VISUALES",8,16,24]
[null,null,null,null,null,"LICENCIATURA EN ARQUITECTURA DE INTERIORES",1,7,8]
[null,null,null,null,null,"LICENCIATURA EN ARTES VISUALES",7,9,16]
[null,null,null,null,null,"ESCUELA SUPERIOR DE COMERCIO EXTERIOR, A.C.",135,127,262]
[null,null,null,null,null,"LICENCIATURA EN ADMINISTRACIÓN Y DESARROLLO DE EMPRESAS",26,31,57]
[null,null,null,null,null,"LICENCIATURA EN COMERCIO EXTERIOR Y ADUANAS",101,91,192]
[null,null,null,null,null,"LICENCIATURA EN MERCADOTECNIA Y DESARROLLO DE NEGOCIOS",8,5,13]
[null,null,null,null,null,"FACULTAD INTERNACIONAL DE CIENCIAS DE LA EDUCACIÓN",0,0,0]
[null,null,null,null,null,"LICENCIATURA EN CIENCIAS DE LA EDUCACIÓN",0,0,0]
[null,null,null,null,null,"INPADE, INSTITUTO PARA EL DESARROLLO EMPRENDEDOR",0,0,0]
[null,null,null,null,null,"LICENCIATURA EN ADMINISTRACIÓN DE EMPRESAS",0,0,0]
[null,null,null,null,null,"LICENCIATURA EN COMERCIO EXTERIOR Y ADUANAS",0,0,0]
[null,null,null,null,null,"LICENCIATURA EN CONTADURÍA PÚBLICA Y FINANZAS",0,0,0]
[null,null,null,null,null,"INSTITUTO DE BELLAS ARTES DEL ESTADO DE BAJA CALIFORNIA",10,24,34]
[null,null,null,null,null,"LICENCIATURA EN EDUCACIÓN ARTÍSTICA",10,24,34]
[null,null,null,null,null,"INSTITUTO DE GASTRONOMÍA DE BAJA CALIFORNIA",52,61,113]
[null,null,null,null,null,"LICENCIATURA EN GASTRONOMÍA",52,61,113]
[null,null,null,null,null,"INSTITUTO EDUCATIVO JOSÉ VASCONCELOS",142,179,321]
[null,null,null,null,null,"LICENCIATURA ADMINISTRACIÓN Y LOGÍSTICA",61,72,133]
[null,null,null,null,null,"LICENCIATURA EN PSICOLOGÍA EDUCATIVA",15,59,74]
[null,null,null,null,null,"LICENCIATURA EN DERECHO CON ÉNFASIS EN EL NUEVO SISTEMA DE JUSTICIA",66,48,114]
[null,null,null,null,null,"INSTITUTO SUPERIOR DE FILOSOFÍA",52,0,52]
[null,null,null,null,null,"LICENCIATURA EN FILOSOFÍA",52,0,52]
[null,null,null,null,null,"INSTITUTO SUPERIOR DE GASTRONOMÍA Y NUTRICIÓN",70,122,192]
[null,null,null,null,null,"LICENCIATURA EN GASTRONOMÍA",54,60,114]
[null,null,null,null,null,"LICENCIATURA EN NUTRICIÓN",16,62,78]
[null,null,null,null,null,"INSTITUTO TÉCNICO AMERICANO",43,62,105]
[null,null,null,null,null,"TÉCNICO SUPERIOR UNIVERSITARIO DENTAL",43,62,105]
[null,null,null,null,null,"INSTITUTO TECNOLÓGICO DE ENSENADA",1538,602,2140]
[null,null,null,null,null,"INGENIERÍA ELECTROMECÁNICA",410,17,427]
[null,null,null,null,null,"INGENIERÍA ELECTRÓNICA",68,6,74]
[null,null,null,null,null,"INGENIERÍA EN ELECTROMECÁNICA",0,0,0]
[null,null,null,null,null,"INGENIERÍA EN ELECTRÓNICA",0,0,0]
[null,null,null,null,null,"INGENIERÍA EN GESTIÓN EMPRESARIAL",202,292,494]
[null,null,null,null,null,"INGENIERÍA EN SISTEMAS COMPUTACIONALES",121,24,145]
[null,null,null,null,null,"INGENIERÍA INDUSTRIAL",484,164,648]
[null,null,null,null,null,"INGENIERÍA MECATRÓNICA",193,23,216]
[null,null,null,null,null,"LICENCIATURA EN ADMINISTRACIÓN",60,76,136]
[null,null,null,null,null,"INSTITUTO TECNOLÓGICO DE MEXICALI",2887,1171,4058]
[null,null,null,null,null,"CONTADOR PÚBLICO",70,163,233]
[null,null,null,null,null,"INGENIERÍA ELÉCTRICA",222,21,243]
[null,null,null,null,null,"INGENIERÍA ELECTRÓNICA",141,21,162]
[null,null,null,null,null,"INGENIERÍA EN ELÉCTRICA",5,0,5]
[null,null,null,null,null,"INGENIERÍA EN ELECTRÓNICA",2,0,2]
[null,null,null,null,null,"INGENIERÍA EN ENERGÍAS RENOVABLES",189,55,244]
[null,null,null,null,null,"INGENIERÍA EN GESTIÓN EMPRESARIAL",77,184,261]
[null,null,null,null,null,"INGENIERÍA EN INFORMÁTICA",15,11,26]
[null,null,null,null,null,"INGENIERÍA EN LOGÍSTICA",90,103,193]
[null,null,null,null,null,"INGENIERÍA EN MATERIALES",25,9,34]
[null,null,null,null,null,"INGENIERÍA EN SISTEMAS COMPUTACIONALES",283,68,351]
[null,null,null,null,null,"INGENIERÍA INDUSTRIAL",594,311,905]
[null,null,null,null,null,"INGENIERÍA MECÁNICA",444,28,472]
[null,null,null,null,null,"INGENIERÍA MECATRÓNICA",612,66,678]
[null,null,null,null,null,"INGENIERÍA QUÍMICA",118,128,246]
[null,null,null,null,null,"LICENCIATURA EN CONTADURÍA",0,1,1]
[null,null,null,null,null,"LICENCIATURA EN INFORMÁTICA",0,2,2]
[null,null,null,null,null,"INSTITUTO TECNOLÓGICO DE TIJUANA",6193,3208,9401]
[null,null,null,null,null,"ARQUITECTURA",388,433,821]
[null,null,null,null,null,"CONTADOR PÚBLICO",99,151,250]
[null,null,null,null,null,"INGENIERÍA AMBIENTAL",69,129,198]
[null,null,null,null,null,"INGENIERÍA BIOMÉDICA",210,199,409]
[null,null,null,null,null,"INGENIERÍA BIOQUÍMICA",0,1,1]
[null,null,null,null,null,"INGENIERÍA CIVIL",552,137,689]
[null,null,null,null,null,"INGENIERÍA ELECTRÓNICA",2,1,3]
[null,null,null,null,null,"INGENIERÍA EN AERONÁUTICA",124,23,147]
[null,null,null,null,null,"INGENIERÍA EN DISEÑO INDUSTRIAL",38,58,96]
[null,null,null,null,null,"INGENIERÍA EN ELECTROMECÁNICA",0,0,0]
[null,null,null,null,null,"INGENIERÍA EN GESTIÓN EMPRESARIAL",121,216,337]
[null,null,null,null,null,"INGENIERÍA EN INFORMÁTICA",71,28,99]
[null,null,null,null,null,"INGENIERÍA EN LOGÍSTICA",218,216,434]
[null,null,null,null,null,"INGENIERÍA EN NANOTECNOLOGÍA",116,53,169]
[null,null,null,null,null,"INGENIERÍA EN SISTEMAS COMPUTACIONALES",2,0,2]
[null,null,null,null,null,"INGENIERÍA EN TECNOLOGÍA DE LA INFORMACIÓN Y COMUNICACIÓN",128,40,168]
[null,null,null,null,null,"INGENIERÍA INDUSTRIAL",313,132,445]
[null,null,null,null,null,"INGENIERÍA QUÍMICA",4,1,5]
[null,null,null,null,null,"LICENCIATURA EN ADMINISTRACIÓN",187,330,517]
[null,null,null,null,null,"LICENCIATURA EN ARQUITECTURA",2,1,3]
[null,null,null,null,null,"LICENCIATURA EN CONTADURÍA",0,0,0]
[null,null,null,null,null,"LICENCIATURA EN INFORMÁTICA",0,0,0]
[null,null,null,null,null,"LICENCIATURA EN INGENIERÍA BIOQUÍMICA",130,190,320]
[null,null,null,null,null,"LICENCIATURA EN INGENIERÍA ELECTROMECÁNICA",1136,100,1236]
[null,null,null,null,null,"LICENCIATURA EN INGENIERÍA EN ELECTRÓNICA",309,32,341]
[null,null,null,null,null,"LICENCIATURA EN INGENIERÍA EN SISTEMAS COMPUTACIONALES",801,160,961]
[null,null,null,null,null,"LICENCIATURA EN INGENIERÍA INDUSTRIAL",1017,492,1509]
[null,null,null,null,null,"LICENCIATURA EN INGENIERÍA MECÁNICA",72,8,80]
[null,null,null,null,null,"LICENCIATURA EN INGENIERÍA QUÍMICA",84,77,161]
[null,null,null,null,null,"INSTITUTO TIJUANA",55,25,80]
[null,null,null,null,null,"LICENCIATURA EN DERECHO",55,25,80]
[null,null,null,null,null,"INSTITUTO UNIVERSITARIO DE ENSENADA",125,100,225]
[null,null,null,null,null,"LICENCIATURA EN ARQUITECTURA",25,6,31]
[null,null,null,null,null,"LICENCIATURA EN CIENCIAS DE LA EDUCACIÓN",8,23,31]
[null,null,null,null,null,"LICENCIATURA EN CRIMINOLOGÍA",65,50,115]
[null,null,null,null,null,"LICENCIATURA EN DERECHO",21,18,39]
[null,null,null,null,null,"LICENCIATURA EN MERCADOTECNIA Y PUBLICIDAD",6,3,9]
[null,null,null,null,null,"NORMAL EXPERIMENTAL MAESTRO RAFAEL RAMÍREZ",16,75,91]
[null,null,null,null,null,"LICENCIATURA EN EDUCACIÓN PRIMARIA",16,75,91]
[null,null,null,null,null,"SEMINARIO DIOCESANO DE TIJUANA",64,1,65]
[null,null,null,null,null,"LICENCIATURA EN CIENCIAS RELIGIOSAS",16,0,16]
[null,null,null,null,null,"LICENCIATURA EN FILOSOFÍA",48,1,49]
[null,null,null,null,null,"TECNOLÓGICO DE BAJA CALIFORNIA",51,49,100]
[null,null,null,null,null,"INGENIERÍA EN CIENCIAS COMPUTACIONALES Y TELECOMUNICACIONES",0,0,0]
[null,null,null,null,null,"LICENCIATURA EN CIENCIAS DE LA EDUCACIÓN",1,7,8]
[null,null,null,null,null,"LICENCIATURA EN COMERCIO EXTERIOR Y ADUANAS",10,10,20]
[null,null,null,null,null,"LICENCIATURA EN DERECHO",4,8,12]
[null,null,null,null,null,"LICENCIATURA EN INGENIERÍA INDUSTRIAL",18,9,27]
[null,null,null,null,null,"LICENCIATURA EN PSICOLOGÍA",1,2,3]
[null,null,null,null,null,"LICENCIATURA EN TURISMO, HOTELERÍA Y RESTAURANTES",0,0,0]
[null,null,null,null,null,"LICENCIATURA EN ESTRATEGIAS LOGÍSTICAS Y SUMINISTRO GLOBAL",17,13,30]
[null,null,null,null,null,"UNIDAD 022 DE LA UNIVERSIDAD PEDAGÓGICA NACIONAL",45,218,263]
[null,null,null,null,null,"LICENCIATURA EN EDUCACIÓN PRIMARIA Y PREESCOLAR PARA EL MEDIO INDÍGENA",6,14,20]
[null,null,null,null,null,"LICENCIATURA EN INTERVENCIÓN EDUCATIVA",39,204,243]
[null,null,null,null,null,"UNIVERSIDAD AUTÓNOMA DE BAJA CALIFORNIA",30304,33296,63600]
[null,null,null,null,null,"ARQUITECTO",1064,1014,2078]
[null,null,null,null,null,"BIOINGENIERÍA",523,483,1006]
[null,null,null,null,null,"BIÓLOGO",166,176,342]
[null,null,null,null,null,"CIRUJANO DENTISTA",931,1790,2721]
[null,null,null,null,null,"FÍSICO",116,39,155]
[null,null,null,null,null,"INGENIERÍA AGRÓNOMO",604,158,762]
[null,null,null,null,null,"INGENIERÍA AGRÓNOMO ZOOTECNISTA",68,27,95]
[null,null,null,null,null,"INGENIERÍA CIVIL",841,221,1062]
[null,null,null,null,null,"INGENIERÍA ELÉCTRICO",217,30,247]
[null,null,null,null,null,"INGENIERÍA ELECTRÓNICA",199,35,234]
[null,null,null,null,null,"INGENIERÍA EN COMPUTACIÓN",952,191,1143]
[null,null,null,null,null,"INGENIERÍA EN ELECTRÓNICA",388,62,450]
[null,null,null,null,null,"INGENIERÍA EN ENERGÍAS RENOVABLES",330,144,474]
[null,null,null,null,null,"INGENIERÍA EN MECATRÓNICA",950,133,1083]
[null,null,null,null,null,"INGENIERÍA EN NANOTECNOLOGÍA",88,54,142]
[null,null,null,null,null,"INGENIERÍA INDUSTRIAL",1400,759,2159]
[null,null,null,null,null,"INGENIERÍA MECÁNICO",676,79,755]
[null,null,null,null,null,"INGENIERÍA QUÍMICO",133,116,249]
[null,null,null,null,null,"INGENIERÍA TOPÓGRAFO GEODESTA",0,0,0]
[null,null,null,null,null,"LICENCIATURA EN ACTIVIDAD FÍSICA Y DEPORTE",1441,461,1902]
[null,null,null,null,null,"LICENCIATURA EN ADMINISTRACIÓN DE EMPRESAS",1842,2440,4282]
[null,null,null,null,null,"LICENCIATURA EN ADMINISTRACIÓN PÚBLICA Y CIENCIAS POLÍTICAS",420,469,889]
[null,null,null,null,null,"LICENCIATURA EN ARTES PLÁSTICAS",177,361,538]
[null,null,null,null,null,"LICENCIATURA EN ASESORÍA PSICOPEDAGÓGICA",134,1055,1189]
[null,null,null,null,null,"LICENCIATURA EN BIOTECNOLOGÍA EN ACUACULTURA",147,68,215]
[null,null,null,null,null,"LICENCIATURA EN CIENCIAS AMBIENTALES",52,116,168]
[null,null,null,null,null,"LICENCIATURA EN CIENCIAS COMPUTACIONALES",73,15,88]
[null,null,null,null,null,"LICENCIATURA EN CIENCIAS DE LA COMUNICACIÓN",649,980,1629]
[null,null,null,null,null,"LICENCIATURA EN CIENCIAS DE LA EDUCACIÓN",265,778,1043]
[null,null,null,null,null,"LICENCIATURA EN COMUNICACIÓN",172,240,412]
[null,null,null,null,null,"LICENCIATURA EN CONTADURÍA",1289,2090,3379]
[null,null,null,null,null,"LICENCIATURA EN DANZA",17,72,89]
[null,null,null,null,null,"LICENCIATURA EN DERECHO",4026,4705,8731]
[null,null,null,null,null,"LICENCIATURA EN DISEÑO GRÁFICO",317,508,825]
[null,null,null,null,null,"LICENCIATURA EN DISEÑO INDUSTRIAL",166,238,404]
[null,null,null,null,null,"LICENCIATURA EN DOCENCIA DE IDIOMAS",179,343,522]
[null,null,null,null,null,"LICENCIATURA EN DOCENCIA DE LA LENGUA Y LA LITERATURA",78,213,291]
[null,null,null,null,null,"LICENCIATURA EN DOCENCIA DE LA LENGUA Y LITERATURA",49,175,224]
[null,null,null,null,null,"LICENCIATURA EN DOCENCIA DE LA MATEMÁTICA",131,188,319]
[null,null,null,null,null,"LICENCIATURA EN DOCENCIA DE LA MATEMÁTICAS",102,126,228]
[null,null,null,null,null,"LICENCIATURA EN ECONOMÍA",410,272,682]
[null,null,null,null,null,"LICENCIATURA EN ENFERMERÍA",513,1337,1850]
[null,null,null,null,null,"LICENCIATURA EN ENSEÑANZA DE LENGUAS",136,240,376]
[null,null,null,null,null,"LICENCIATURA EN FILOSOFÍA",55,47,102]
[null,null,null,null,null,"LICENCIATURA EN GASTRONOMÍA",212,215,427]
[null,null,null,null,null,"LICENCIATURA EN GESTIÓN TURÍSTICA",124,329,453]
[null,null,null,null,null,"LICENCIATURA EN HISTORIA",121,87,208]
[null,null,null,null,null,"LICENCIATURA EN INFORMÁTICA",450,137,587]
[null,null,null,null,null,"LICENCIATURA EN INGENIERÍA BIOTECNÓLOGO AGROPECUARIO",27,19,46]
[null,null,null,null,null,"LICENCIATURA EN INGENIERÍA ELÉCTRICO",70,13,83]
[null,null,null,null,null,"LICENCIATURA EN LENGUA Y LITERATURA DE HISPANOAMÉRICA",68,154,222]
[null,null,null,null,null,"LICENCIATURA EN MATEMÁTICAS APLICADAS",30,27,57]
[null,null,null,null,null,"LICENCIATURA EN MEDIOS AUDIOVISUALES",191,123,314]
[null,null,null,null,null,"LICENCIATURA EN MERCADOTECNIA",827,1068,1895]
[null,null,null,null,null,"LICENCIATURA EN MÚSICA",59,39,98]
[null,null,null,null,null,"LICENCIATURA EN NEGOCIOS INTERNACIONALES",612,683,1295]
[null,null,null,null,null,"LICENCIATURA EN PSICOLOGÍA",947,2632,3579]
[null,null,null,null,null,"LICENCIATURA EN RELACIONES INTERNACIONALES",290,533,823]
[null,null,null,null,null,"LICENCIATURA EN SISTEMAS COMPUTACIONALES",188,61,249]
[null,null,null,null,null,"LICENCIATURA EN SOCIOLOGÍA",115,233,348]
[null,null,null,null,null,"LICENCIATURA EN TEATRO",37,69,106]
[null,null,null,null,null,"LICENCIATURA EN TRADUCCIÓN",355,687,1042]
[null,null,null,null,null,"MÉDICO",1817,1924,3741]
[null,null,null,null,null,"MÉDICO VETERINARIO ZOOTECNISTA",206,398,604]
[null,null,null,null,null,"NIVELACIÓN ACADÉMICA DE LICENCIATURA EN ENFERMERÍA",4,18,22]
[null,null,null,null,null,"OCEANÓLOGO",111,126,237]
[null,null,null,null,null,"QUÍMICO FARMACOBIÓLOGO",228,425,653]
[null,null,null,null,null,"QUÍMICO INDUSTRIAL",87,75,162]
[null,null,null,null,null,"LICENCIATURA EN INGENIERÍA AEROESPACIAL",642,173,815]
[null,null,null,null,null,"UNIVERSIDAD AUTÓNOMA DE DURANGO A.C.",680,1157,1837]
[null,null,null,null,null,"LICENCIATURA EN ADMINISTRACIÓN DE MERCADOTECNIA",3,5,8]
[null,null,null,null,null,"LICENCIATURA EN ARQUITECTURA",77,25,102]
[null,null,null,null,null,"LICENCIATURA EN CIENCIAS DE LA EDUCACIÓN",1,5,6]
[null,null,null,null,null,"LICENCIATURA EN CRIMINOLOGÍA",165,192,357]
[null,null,null,null,null,"LICENCIATURA EN DERECHO",77,74,151]
[null,null,null,null,null,"LICENCIATURA EN DISEÑO GRÁFICO DIGITAL",40,41,81]
[null,null,null,null,null,"LICENCIATURA EN NUTRICIÓN",261,589,850]
[null,null,null,null,null,"LICENCIATURA EN PSICOLOGÍA",51,176,227]
[null,null,null,null,null,"LICENCIATURA EN PSICOPEDAGOGÍA",5,50,55]
[null,null,null,null,null,"UNIVERSIDAD DE ESTUDIOS AVANZADOS",990,1153,2143]
[null,null,null,null,null,"INGENIERÍA EN SISTEMAS COMPUTACIONALES",1,2,3]
[null,null,null,null,null,"LICENCIATURA EN ADMINISTRACIÓN DE EMPRESAS",204,213,417]
[null,null,null,null,null,"LICENCIATURA EN CIENCIAS DE LA COMUNICACIÓN",13,8,21]
[null,null,null,null,null,"LICENCIATURA EN CIENCIAS DE LA EDUCACIÓN",13,80,93]
[null,null,null,null,null,"LICENCIATURA EN COMERCIO INTERNACIONAL",64,83,147]
[null,null,null,null,null,"LICENCIATURA EN CONTADURÍA PÚBLICA",22,52,74]
[null,null,null,null,null,"LICENCIATURA EN CRIMINALÍSTICA",56,79,135]
[null,null,null,null,null,"LICENCIATURA EN DERECHO",195,144,339]
[null,null,null,null,null,"LICENCIATURA EN DISEÑO DE ANIMACIÓN DIGITAL",9,17,26]
[null,null,null,null,null,"LICENCIATURA EN DISEÑO GRÁFICO DIGITAL",2,3,5]
[null,null,null,null,null,"LICENCIATURA EN GASTRONOMÍA",64,53,117]
[null,null,null,null,null,"LICENCIATURA EN INGENIERÍA INDUSTRIAL",218,71,289]
[null,null,null,null,null,"LICENCIATURA EN MERCADOTECNIA",16,29,45]
[null,null,null,null,null,"LICENCIATURA EN NUTRICIÓN",60,123,183]
[null,null,null,null,null,"LICENCIATURA EN PEDAGOGÍA",4,46,50]
[null,null,null,null,null,"LICENCIATURA EN PSICOLOGÍA",49,150,199]
[null,null,null,null,null,"UNIVERSIDAD DE LAS CALIFORNIAS INTERNACIONAL, S.C.",929,1367,2296]
[null,null,null,null,null,"LICENCIATURA EN ADMINISTRACIÓN DE EMPRESAS",95,90,185]
[null,null,null,null,null,"LICENCIATURA EN ARQUITECTURA",88,38,126]
[null,null,null,null,null,"LICENCIATURA EN CIENCIAS DE LA COMUNICACIÓN",63,81,144]
[null,null,null,null,null,"LICENCIATURA EN CIENCIAS DE LA EDUCACIÓN",36,338,374]
[null,null,null,null,null,"LICENCIATURA EN CINEMATOGRAFÍA",54,31,85]
[null,null,null,null,null,"LICENCIATURA EN COMERCIO INTERNACIONAL",89,114,203]
[null,null,null,null,null,"LICENCIATURA EN CONTADURÍA PÚBLICA",34,33,67]
[null,null,null,null,null,"LICENCIATURA EN DERECHO",200,184,384]
[null,null,null,null,null,"LICENCIATURA EN DISEÑO DE MODAS",3,43,46]
[null,null,null,null,null,"LICENCIATURA EN DISEÑO GRÁFICO ELECTRÓNICO",49,66,115]
[null,null,null,null,null,"LICENCIATURA EN INFORMÁTICA ADMINISTRATIVA",32,11,43]
[null,null,null,null,null,"LICENCIATURA EN INGENIERÍA CIVIL",93,20,113]
[null,null,null,null,null,"LICENCIATURA EN PSICOLOGÍA",93,318,411]
[null,null,null,null,null,"UNIVERSIDAD DEL DESARROLLO PROFESIONAL",572,970,1542]
[null,null,null,null,null,"LICENCIATURA EN ADMINISTRACIÓN DE EMPRESAS",66,72,138]
[null,null,null,null,null,"LICENCIATURA EN COMERCIO INTERNACIONAL",53,53,106]
[null,null,null,null,null,"LICENCIATURA EN COMUNICACIÓN E IMAGEN PÚBLICA",11,11,22]
[null,null,null,null,null,"LICENCIATURA EN CONTADOR PÚBLICO",14,33,47]
[null,null,null,null,null,"LICENCIATURA EN DERECHO",96,77,173]
[null,null,null,null,null,"LICENCIATURA EN DISEÑO GRÁFICO MULTIMEDIA",7,15,22]
[null,null,null,null,null,"LICENCIATURA EN DISEÑO GRÁFICO Y MULTIMEDIA",39,36,75]
[null,null,null,null,null,"LICENCIATURA EN DISEÑO Y DECORACIÓN DE INTERIORES",14,43,57]
[null,null,null,null,null,"LICENCIATURA EN EDUCACIÓN",30,116,146]
[null,null,null,null,null,"LICENCIATURA EN ENFERMERÍA",130,424,554]
[null,null,null,null,null,"LICENCIATURA EN INGENIERÍA EN SISTEMAS COMPUTACIONALES",81,25,106]
[null,null,null,null,null,"LICENCIATURA EN PSICOLOGÍA INDUSTRIAL",29,62,91]
[null,null,null,null,null,"LICENCIATURA EN PUBLICIDAD Y MERCADOTECNIA",2,3,5]
[null,null,null,null,null,"UNIVERSIDAD DEL VALLE DE MÉXICO",556,656,1212]
[null,null,null,null,null,"INGENIERÍA INDUSTRIAL Y DE SISTEMAS",3,0,3]
[null,null,null,null,null,"LICENCIATURA EN ADMINISTRACIÓN",48,48,96]
[null,null,null,null,null,"LICENCIATURA EN ADMINISTRACIÓN DE EMPRESAS",8,8,16]
[null,null,null,null,null,"LICENCIATURA EN ADMINISTRACIÓN DE NEGOCIOS INTERNACIONALES",71,63,134]
[null,null,null,null,null,"LICENCIATURA EN ARQUITECTURA",22,31,53]
[null,null,null,null,null,"LICENCIATURA EN CIENCIAS DE LA COMUNICACIÓN",16,27,43]
[null,null,null,null,null,"LICENCIATURA EN CONTADURÍA PÚBLICA Y FINANZAS",1,6,7]
[null,null,null,null,null,"LICENCIATURA EN DERECHO",84,77,161]
[null,null,null,null,null,"LICENCIATURA EN DISEÑO GRÁFICO",3,10,13]
[null,null,null,null,null,"LICENCIATURA EN FISIOTERAPIA",87,125,212]
[null,null,null,null,null,"LICENCIATURA EN INGENIERÍA INDUSTRIAL Y SISTEMAS",71,13,84]
[null,null,null,null,null,"LICENCIATURA EN INGENIERÍA MECATRÓNICA",31,5,36]
[null,null,null,null,null,"LICENCIATURA EN MERCADOTECNIA",9,2,11]
[null,null,null,null,null,"LICENCIATURA EN NUTRICIÓN",22,68,90]
[null,null,null,null,null,"LICENCIATURA EN PSICOLOGÍA",25,82,107]
[null,null,null,null,null,"LICENCIATURA EN VENTAS",2,2,4]
[null,null,null,null,null,"LICENCIATURA INTERNACIONAL EN ADMINISTRACIÓN DE EMPRESAS DE LA HOSPITALIDAD",53,89,142]
[null,null,null,null,null,"UNIVERSIDAD ESTATAL DE ESTUDIOS PEDAGÓGICOS",24,7,31]
[null,null,null,null,null,"LICENCIATURA EN EDUCACIÓN FÍSICA",24,7,31]
[null,null,null,null,null,"LICENCIATURA EN EDUCACIÓN SECUNDARIA CON ESPECIALIDAD EN ESPAÑOL",0,0,0]
[null,null,null,null,null,"UNIVERSIDAD INTERAMERICANA PARA EL DESARROLLO",539,655,1194]
[null,null,null,null,null,"LICENCIATURA EN ADMINISTRACIÓN DE EMPRESAS",91,139,230]
[null,null,null,null,null,"LICENCIATURA EN ADMINISTRACIÓN DE EMPRESAS TURÍSTICAS",21,44,65]
[null,null,null,null,null,"LICENCIATURA EN CIENCIAS Y TÉCNICAS DE LA COMUNICACIÓN",3,19,22]
[null,null,null,null,null,"LICENCIATURA EN DERECHO",211,201,412]
[null,null,null,null,null,"LICENCIATURA EN DISEÑO E INDUSTRIA DEL VESTIDO",8,96,104]
[null,null,null,null,null,"LICENCIATURA EN EDUCACIÓN FÍSICA, RECREACIÓN Y DEPORTE",71,18,89]
[null,null,null,null,null,"LICENCIATURA EN GASTRONOMÍA",19,14,33]
[null,null,null,null,null,"LICENCIATURA EN INGENIERÍA EN SISTEMAS DE INFORMACIÓN",20,1,21]
[null,null,null,null,null,"LICENCIATURA EN MERCADOTECNIA",80,84,164]
[null,null,null,null,null,"LICENCIATURA EN PSICOLOGÍA ORGANIZACIONAL",12,26,38]
[null,null,null,null,null,"LICENCIATURA EN TECNOLOGÍA EDUCATIVA",3,13,16]
[null,null,null,null,null,"UNIVERSIDAD POLITÉCNICA DE BAJA CALIFORNIA",1320,528,1848]
[null,null,null,null,null,"INGENIERÍA EN ANIMACIÓN Y EFECTOS VISUALES",114,75,189]
[null,null,null,null,null,"INGENIERÍA EN ENERGÍA",157,36,193]
[null,null,null,null,null,"INGENIERÍA EN MECATRÓNICA",360,28,388]
[null,null,null,null,null,"INGENIERÍA EN TECNOLOGÍAS DE LA INFORMACIÓN",162,30,192]
[null,null,null,null,null,"INGENIERÍA EN TECNOLOGÍAS DE MANUFACTURA",457,207,664]
[null,null,null,null,null,"LICENCIATURA EN ADMINISTRACIÓN Y GESTIÓN DE PEQUEÑAS Y MEDIANAS EMPRESAS",70,152,222]
[null,null,null,null,null,"UNIVERSIDAD ROSARITENSE",81,100,181]
[null,null,null,null,null,"LICENCIATURA EN ADMINISTRACIÓN EMPRESARIAL",10,14,24]
[null,null,null,null,null,"LICENCIATURA EN CIRUJANO DENTISTA",55,78,133]
[null,null,null,null,null,"LICENCIATURA EN DERECHO",16,8,24]
[null,null,null,null,null,"UNIVERSIDAD SAMANN DE JALISCO",46,62,108]
[null,null,null,null,null,"LICENCIATURA EN ADMINISTRACIÓN",6,3,9]
[null,null,null,null,null,"LICENCIATURA EN COMERCIO EXTERIOR Y ADUANAS",18,29,47]
[null,null,null,null,null,"LICENCIATURA EN DERECHO",16,9,25]
[null,null,null,null,null,"LICENCIATURA EN PSICOLOGÍA",6,21,27]
[null,null,null,null,null,"UNIVERSIDAD TECNOLÓGICA DE TIJUANA",2317,1283,3600]
[null,null,null,null,null,"INGENIERÍA EN DESARROLLO DE NEGOCIOS E INNOVACIÓN EMPRESARIAL",112,151,263]
[null,null,null,null,null,"INGENIERÍA EN ELECTROMECÁNICA INDUSTRIAL",202,4,206]
[null,null,null,null,null,"INGENIERÍA EN ENERGÍAS RENOVABLES",22,14,36]
[null,null,null,null,null,"INGENIERÍA EN FINANCIERA Y FISCAL",34,70,104]
[null,null,null,null,null,"INGENIERÍA EN LOGÍSTICA COMERCIAL GLOBAL",126,175,301]
[null,null,null,null,null,"INGENIERÍA EN MECATRÓNICA",195,10,205]
[null,null,null,null,null,"INGENIERÍA EN PROCESOS BIOALIMENTARIOS",21,15,36]
[null,null,null,null,null,"INGENIERÍA EN PROCESOS Y OPERACIONES INDUSTRIALES",164,89,253]
[null,null,null,null,null,"INGENIERÍA EN TECNOLOGÍA AMBIENTAL",27,41,68]
[null,null,null,null,null,"INGENIERÍA EN TECNOLOGÍA DE INFORMACIÓN Y COMUNICACIÓN",117,34,151]
[null,null,null,null,null,"TÉCNICO SUPERIOR UNIVERSITARIO EN CONTADURÍA",52,90,142]
[null,null,null,null,null,"TÉCNICO SUPERIOR UNIVERSITARIO EN DESARROLLO DE NEGOCIOS ÁREA LOGÍSTICA Y TRANSPORTE",5,18,23]
[null,null,null,null,null,"TÉCNICO SUPERIOR UNIVERSITARIO EN DESARROLLO DE NEGOCIOS ÁREA MERCADOTECNIA",84,128,212]
[null,null,null,null,null,"TÉCNICO SUPERIOR UNIVERSITARIO EN ENERGÍAS RENOVABLES",36,14,50]
[null,null,null,null,null,"TÉCNICO SUPERIOR UNIVERSITARIO EN GASTRONOMÍA",9,15,24]
[null,null,null,null,null,"TÉCNICO SUPERIOR UNIVERSITARIO EN MANTENIMIENTO ÁREA INDUSTRIAL",220,18,238]
[null,null,null,null,null,"TÉCNICO SUPERIOR UNIVERSITARIO EN MANUFACTURA AERONÁUTICA ÁREA MAQUINADO DE PRECISIÓN",71,9,80]
[null,null,null,null,null,"TÉCNICO SUPERIOR UNIVERSITARIO EN MECATRÓNICA",269,23,292]
[null,null,null,null,null,"TÉCNICO SUPERIOR UNIVERSITARIO EN MECATRÓNICA ÁREA SISTEMAS DE MANUFACTURA FLEXIBLE",21,3,24]
[null,null,null,null,null,"TÉCNICO SUPERIOR UNIVERSITARIO EN PROCESOS ALIMENTARIOS",23,18,41]
[null,null,null,null,null,"TÉCNICO SUPERIOR UNIVERSITARIO EN PROCESOS INDUSTRIALES ÁREA MANUFACTURA",69,34,103]
[null,null,null,null,null,"TÉCNICO SUPERIOR UNIVERSITARIO EN PROCESOS INDUSTRIALES ÁREA PLÁSTICOS",65,18,83]
[null,null,null,null,null,"TÉCNICO SUPERIOR UNIVERSITARIO EN PROCESOS INDUSTRIALES ÁREA SISTEMAS DE GESTIÓN DE LA CALIDAD",27,27,54]
[null,null,null,null,null,"TÉCNICO SUPERIOR UNIVERSITARIO EN QUÍMICA ÁREA BIOTECNOLOGÍA",14,17,31]
[null,null,null,null,null,"TÉCNICO SUPERIOR UNIVERSITARIO EN QUÍMICA ÁREA TECNOLOGÍA AMBIENTAL",37,46,83]
[null,null,null,null,null,"TÉCNICO SUPERIOR UNIVERSITARIO EN TECNOLOGÍAS DE LA INFORMACIÓN Y COMUNICACIÓN ÁREA REDES Y TELECOMUNICACIONES",39,13,52]
[null,null,null,null,null,"TÉCNICO SUPERIOR UNIVERSITARIO EN TECNOLOGÍAS DE LA INFORMACIÓN Y COMUNICACIÓN ÁREA SISTEMAS INFORMÁTICOS",129,28,157]
[null,null,null,null,null,"TÉCNICO SUPERIOR UNIVERSITARIO EN TECNOLOGÍAS DE LA INFORMACIÓN Y COMUNICACIÓN ÁREA MULTIMEDIA Y COMERCIO ELECTRÓNICO",9,1,10]
[null,null,null,null,null,"TÉCNICO SUPERIOR UNIVERSITARIO EN OPERACIONES COMERCIALES INTERNACIONALES ÁREA CLASIFICACIÓN ARANCELARIA",118,160,278]
[null,null,null,null,null,"UNIVERSIDAD VIZCAYA DE LAS AMÉRICAS",1095,1689,2784]
[null,null,null,null,null,"LICENCIATURA EN ADMINISTRACIÓN DE EMPRESAS",87,125,212]
[null,null,null,null,null,"LICENCIATURA EN ARQUITECTURA",51,17,68]
[null,null,null,null,null,"LICENCIATURA EN CIENCIAS DE LA EDUCACIÓN",38,124,162]
[null,null,null,null,null,"LICENCIATURA EN CONTADURÍA PÚBLICA",29,86,115]
[null,null,null,null,null,"LICENCIATURA EN CRIMINOLOGÍA",187,164,351]
[null,null,null,null,null,"LICENCIATURA EN DERECHO",272,284,556]
[null,null,null,null,null,"LICENCIATURA EN DISEÑO DE MODAS",5,46,51]
[null,null,null,null,null,"LICENCIATURA EN GASTRONOMÍA",233,255,488]
[null,null,null,null,null,"LICENCIATURA EN NUTRICIÓN",109,274,383]
[null,null,null,null,null,"LICENCIATURA EN PSICOLOGÍA",84,314,398]
[null,null,null,null,null,"UNUS, CENTRO DE ESTUDIOS UNIVERSITARIOS",43,69,112]
[null,null,null,null,null,"LICENCIATURA EN CRIMINOLOGÍA",4,4,8]
[null,null,null,null,null,"LICENCIATURA EN FISIOTERAPIA",26,44,70]
[null,null,null,null,null,"LICENCIATURA EN ODONTOLOGÍA",13,21,34]
[null,null,null,null,null,"ESCUELA LIBRE DE ARQUITECTURA",30,24,54]
[null,null,null,null,null,"LICENCIATURA EN ARTE DE LA ARQUITECTURA",30,24,54]
[null,null,null,null,null,"INIDE, INSTITUTO INTERNACIONAL PARA EL DESARROLLO EMPRESARIAL, S.C.",612,470,1082]
[null,null,null,null,null,"LICENCIATURA EN ADMINISTRACIÓN DE EMPRESAS",143,139,282]
[null,null,null,null,null,"LICENCIATURA EN COMERCIO EXTERIOR Y ADUANAS",109,89,198]
[null,null,null,null,null,"LICENCIATURA EN CONTADURÍA PÚBLICA Y FINANZAS",41,82,123]
[null,null,null,null,null,"LICENCIATURA EN DERECHO",293,147,440]
[null,null,null,null,null,"LICENCIATURA EN MERCADOTECNIA",26,13,39]
[null,null,null,null,null,"INSTITUTO INTERAMERICANO DE ESTUDIOS SUPERIORES DE BAJA CALIFORNIA S.C.",3,3,6]
[null,null,null,null,null,"LICENCIATURA EN CRIMINOLOGÍA",3,3,6]
[null,null,null,null,null,"UNIVERSIDAD DE TIJUANA CUT",727,1040,1767]
[null,null,null,null,null,"CONTADOR PÚBLICO",12,19,31]
[null,null,null,null,null,"LICENCIATURA EN ADMINISTRACIÓN",57,76,133]
[null,null,null,null,null,"LICENCIATURA EN ARQUITECTURA",73,23,96]
[null,null,null,null,null,"LICENCIATURA EN CIENCIAS DE LA EDUCACIÓN",12,113,125]
[null,null,null,null,null,"LICENCIATURA EN CINE Y PRODUCCIÓN AUDIOVISUAL",34,21,55]
[null,null,null,null,null,"LICENCIATURA EN COMERCIO EXTERIOR Y LEGISLACIÓN ADUANERA",99,95,194]
[null,null,null,null,null,"LICENCIATURA EN COMUNICACIÓN Y PUBLICIDAD",53,73,126]
[null,null,null,null,null,"LICENCIATURA EN CONTADOR PÚBLICO",14,22,36]
[null,null,null,null,null,"LICENCIATURA EN DERECHO",150,124,274]
[null,null,null,null,null,"LICENCIATURA EN DISEÑO GRÁFICO",34,32,66]
[null,null,null,null,null,"LICENCIATURA EN EDUCACIÓN PREESCOLAR",0,26,26]
[null,null,null,null,null,"LICENCIATURA EN EDUCACIÓN PRIMARIA",6,19,25]
[null,null,null,null,null,"LICENCIATURA EN INFORMÁTICA ADMINISTRATIVA",4,1,5]
[null,null,null,null,null,"LICENCIATURA EN INGENIERÍA EN TECNOLOGÍAS DE LA INFORMACIÓN Y COMUNICACIÓN",42,10,52]
[null,null,null,null,null,"LICENCIATURA EN MERCADOTECNIA",10,14,24]
[null,null,null,null,null,"LICENCIATURA EN NUTRICIÓN Y DIETÉTICA",33,97,130]
[null,null,null,null,null,"LICENCIATURA EN PSICOLOGÍA",88,266,354]
[null,null,null,null,null,"LICENCIATURA EN RELACIONES INTERNACIONALES",6,9,15]
[null,null,null,null,null,"UNIVERSIDAD IBEROAMERICANA - TIJUANA",298,463,761]
[null,null,null,null,null,"INGENIERÍA INDUSTRIAL",26,11,37]
[null,null,null,null,null,"INGENIERÍA MECÁNICA Y ELÉCTRICA",28,3,31]
[null,null,null,null,null,"LICENCIATURA EN ADMINISTRACIÓN DE EMPRESAS",32,26,58]
[null,null,null,null,null,"LICENCIATURA EN ARQUITECTURA",39,48,87]
[null,null,null,null,null,"LICENCIATURA EN COMERCIO EXTERIOR Y ADUANAS",4,2,6]
[null,null,null,null,null,"LICENCIATURA EN COMUNICACIÓN",20,79,99]
[null,null,null,null,null,"LICENCIATURA EN DERECHO",35,32,67]
[null,null,null,null,null,"LICENCIATURA EN DISEÑO GRÁFICO",7,14,21]
[null,null,null,null,null,"LICENCIATURA EN ENFERMERÍA",25,88,113]
[null,null,null,null,null,"LICENCIATURA EN INGENIERÍA ELECTRÓNICA Y TELECOMUNICACIONES",12,3,15]
[null,null,null,null,null,"LICENCIATURA EN NUTRICIÓN Y CIENCIAS DE LOS ALIMENTOS",21,86,107]
[null,null,null,null,null,"LICENCIATURA EN PSICOLOGÍA",16,36,52]
[null,null,null,null,null,"LICENCIATURA EN DISEÑO GRAFICO ESTRATÉGICO",8,30,38]
[null,null,null,null,null,"LICENCIATURA EN INGENIERÍA MECATRÓNICA INDUSTRIAL",25,5,30]
[null,null,null,null,null,"UNIVERSIDAD PEDAGÓGICA NACIONAL - UNIDAD 21 MEXICALI",19,168,187]
[null,null,null,null,null,"LICENCIATURA EN INTERVENCIÓN EDUCATIVA",19,168,187]
[null,null,null,null,null,"CENTRO UNIVERSITARIO DEL PACÍFICO",163,426,589]
[null,null,null,null,null,"LICENCIATURA EN ADMINISTRACIÓN DE EMPRESAS",50,82,132]
[null,null,null,null,null,"LICENCIATURA EN CIENCIAS DE LA EDUCACIÓN",21,119,140]
[null,null,null,null,null,"LICENCIATURA EN DERECHO",27,31,58]
[null,null,null,null,null,"LICENCIATURA EN IDIOMAS",15,43,58]
[null,null,null,null,null,"LICENCIATURA EN PSICOLOGÍA",50,151,201]
[null,null,null,null,null,"CAM CENTRO DE ARTES MUSICALES DE BC",31,9,40]
[null,null,null,null,null,"LICENCIATURA EN EJECUCIÓN DE MÚSICA POPULAR CONTEMPORÁNEA",31,9,40]
[null,null,null,null,null,"ESCUELA DE FORMACIÓN ESCÉNICO VOCAL JA SIT",11,15,26]
[null,null,null,null,null,"LICENCIATURA EN CANTO",11,15,26]
[null,null,null,null,null,"INSTITUTO UNIVERSITARIO METROPOLITANO",35,22,57]
[null,null,null,null,null,"TÉCNICO SUPERIOR UNIVERSITARIO EN RADIOLOGÍA",35,22,57]
[null,null,null,null,null,"BAJA CALIFORNIA SUR",11096,11441,22537]
[null,null,null,null,null,"BENEMÉRITA ESCUELA NORMAL URBANA PROF. DOMINGO CARBALLO FÉLIX",76,377,453]
[null,null,null,null,null,"LICENCIATURA EN EDUCACIÓN PREESCOLAR",2,179,181]
[null,null,null,null,null,"LICENCIATURA EN EDUCACIÓN PRIMARIA",74,198,272]
[null,null,null,null,null,"C.R.E.N. MARCELO RUBIO RUIZ",96,208,304]
[null,null,null,null,null,"LICENCIATURA EN EDUCACIÓN ESPECIAL EN EL ÁREA DE ATENCIÓN AUDITIVA Y DE LENGUAJE",13,33,46]
[null,null,null,null,null,"LICENCIATURA EN EDUCACIÓN PREESCOLAR",0,20,20]
[null,null,null,null,null,"LICENCIATURA EN EDUCACIÓN PRIMARIA",83,155,238]
[null,null,null,null,null,"CENTRO DE ESTUDIOS UNIVERSITARIOS DE BAJA CALIFORNIA",1,3,4]
[null,null,null,null,null,"LICENCIATURA EN ESPAÑOL Y LITERATURA",1,3,4]
[null,null,null,null,null,"COLEGIO INTERCONTINENTAL",7,10,17]
[null,null,null,null,null,"LICENCIATURA EN GASTRONOMÍA",7,10,17]
[null,null,null,null,null,"ESCUELA NORMAL SUPERIOR DEL ESTADO DE B.C.S.",206,566,772]
[null,null,null,null,null,"LICENCIATURA EN EDUCACIÓN ESPECIAL EN EL ÁREA DE ATENCIÓN AUDITIVA Y DE LENGUAJE",2,28,30]
[null,null,null,null,null,"LICENCIATURA EN EDUCACIÓN ESPECIAL EN EL ÁREA DE ATENCIÓN INTELECTUAL",15,74,89]
[null,null,null,null,null,"LICENCIATURA EN EDUCACIÓN ESPECIAL EN EL ÁREA DE ATENCIÓN MOTRIZ",11,58,69]
[null,null,null,null,null,"LICENCIATURA EN EDUCACIÓN ESPECIAL EN EL ÁREA DE ATENCIÓN VISUAL",3,29,32]
[null,null,null,null,null,"LICENCIATURA EN EDUCACIÓN PREESCOLAR INTERCULTURAL BILINGÜE",0,32,32]
[null,null,null,null,null,"LICENCIATURA EN EDUCACIÓN PRIMARIA INTERCULTURAL BILINGÜE",19,70,89]
[null,null,null,null,null,"LICENCIATURA EN EDUCACIÓN SECUNDARIA CON ESPECIALIDAD EN BIOLOGÍA",10,48,58]
[null,null,null,null,null,"LICENCIATURA EN EDUCACIÓN SECUNDARIA CON ESPECIALIDAD EN ESPAÑOL",14,39,53]
[null,null,null,null,null,"LICENCIATURA EN EDUCACIÓN SECUNDARIA CON ESPECIALIDAD EN FÍSICA",19,10,29]
[null,null,null,null,null,"LICENCIATURA EN EDUCACIÓN SECUNDARIA CON ESPECIALIDAD EN FORMACIÓN CÍVICA Y ÉTICA",8,45,53]
[null,null,null,null,null,"LICENCIATURA EN EDUCACIÓN SECUNDARIA CON ESPECIALIDAD EN GEOGRAFÍA",15,18,33]
[null,null,null,null,null,"LICENCIATURA EN EDUCACIÓN SECUNDARIA CON ESPECIALIDAD EN HISTORIA",18,21,39]
[null,null,null,null,null,"LICENCIATURA EN EDUCACIÓN SECUNDARIA CON ESPECIALIDAD EN LENGUA EXTRANJERA (INGLÉS)",14,31,45]
[null,null,null,null,null,"LICENCIATURA EN EDUCACIÓN SECUNDARIA CON ESPECIALIDAD EN MATEMÁTICAS",20,20,40]
[null,null,null,null,null,"LICENCIATURA EN EDUCACIÓN SECUNDARIA CON ESPECIALIDAD EN QUÍMICA",13,12,25]
[null,null,null,null,null,"LICENCIATURA EN EDUCACIÓN SECUNDARIA CON ESPECIALIDAD EN TELESECUNDARIA",25,31,56]
[null,null,null,null,null,"ESCUELA SUPERIOR DE CULTURA FÍSICA DEL ESTADO DE BAJA CALIFORNIA SUR",126,40,166]
[null,null,null,null,null,"LICENCIATURA EN CULTURA FÍSICA",56,18,74]
[null,null,null,null,null,"LICENCIATURA EN EDUCACIÓN FÍSICA",70,22,92]
[null,null,null,null,null,"INSTITUTO CULTURAL TECNOLÓGICO CUINCACALLI",26,46,72]
[null,null,null,null,null,"LICENCIATURA EN FISIOTERAPIA",22,33,55]
[null,null,null,null,null,"LICENCIATURA EN PEDAGOGÍA",4,13,17]
[null,null,null,null,null,"INSTITUTO TECNOLÓGICO DE LA PAZ",2089,1355,3444]
[null,null,null,null,null,"INGENIERÍA BIOQUÍMICA",116,130,246]
[null,null,null,null,null,"INGENIERÍA CIVIL",419,130,549]
[null,null,null,null,null,"INGENIERÍA EN ELECTROMECÁNICA",369,21,390]
[null,null,null,null,null,"INGENIERÍA EN GESTIÓN EMPRESARIAL",97,120,217]
[null,null,null,null,null,"INGENIERÍA EN SISTEMAS COMPUTACIONALES",230,32,262]
[null,null,null,null,null,"INGENIERÍA INDUSTRIAL",135,67,202]
[null,null,null,null,null,"LICENCIATURA EN ADMINISTRACIÓN",237,291,528]
[null,null,null,null,null,"LICENCIATURA EN ARQUITECTURA",236,246,482]
[null,null,null,null,null,"LICENCIATURA EN CONTADURÍA",250,318,568]
[null,null,null,null,null,"LICENCIATURA EN INFORMÁTICA",0,0,0]
[null,null,null,null,null,"INSTITUTO TECNOLÓGICO SUPERIOR DE CIUDAD CONSTITUCIÓN",915,778,1693]
[null,null,null,null,null,"ARQUITECTURA",100,75,175]
[null,null,null,null,null,"GASTRONOMÍA",118,144,262]
[null,null,null,null,null,"INGENIERÍA ELECTROMECÁNICA",247,23,270]
[null,null,null,null,null,"INGENIERÍA EN GESTIÓN EMPRESARIAL",70,124,194]
[null,null,null,null,null,"INGENIERÍA EN INDUSTRIAS ALIMENTARIAS",47,63,110]
[null,null,null,null,null,"INGENIERÍA EN SISTEMAS COMPUTACIONALES",84,27,111]
[null,null,null,null,null,"INGENIERÍA INDUSTRIAL",73,26,99]
[null,null,null,null,null,"LICENCIATURA EN ADMINISTRACIÓN",176,296,472]
[null,null,null,null,null,"INSTITUTO TECNOLÓGICO SUPERIOR DE MULEGE",397,348,745]
[null,null,null,null,null,"INGENIERÍA EN ADMINISTRACIÓN",69,111,180]
[null,null,null,null,null,"INGENIERÍA EN ELECTROMECÁNICA",116,17,133]
[null,null,null,null,null,"INGENIERÍA EN ENERGÍAS RENOVABLES",61,34,95]
[null,null,null,null,null,"INGENIERÍA EN GESTIÓN EMPRESARIAL",26,65,91]
[null,null,null,null,null,"INGENIERÍA EN INDUSTRIAS ALIMENTARIAS",7,21,28]
[null,null,null,null,null,"INGENIERÍA EN TECNOLOGÍAS DE LA INFORMACIÓN Y COMUNICACIÓN",27,15,42]
[null,null,null,null,null,"INGENIERÍA INDUSTRIAL",91,85,176]
[null,null,null,null,null,"SISTEMA DE EDUCACIÓN E INVESTIGACIÓN UNIVERSITARIA A.C.",891,1210,2101]
[null,null,null,null,null,"INGENIERÍA EN DESARROLLO ECOLÓGICO",14,11,25]
[null,null,null,null,null,"LICENCIATURA EN ADMINISTRACIÓN",73,74,147]
[null,null,null,null,null,"LICENCIATURA EN ARQUITECTURA",44,15,59]
[null,null,null,null,null,"LICENCIATURA EN ARTES VISUALES",18,14,32]
[null,null,null,null,null,"LICENCIATURA EN COMUNICACIÓN",2,4,6]
[null,null,null,null,null,"LICENCIATURA EN CONTADURÍA PÚBLICA",32,36,68]
[null,null,null,null,null,"LICENCIATURA EN CRIMINOLOGÍA",99,92,191]
[null,null,null,null,null,"LICENCIATURA EN DERECHO",163,131,294]
[null,null,null,null,null,"LICENCIATURA EN DESARROLLO TURÍSTICO",13,13,26]
[null,null,null,null,null,"LICENCIATURA EN DISEÑO DE INTERIORES",4,50,54]
[null,null,null,null,null,"LICENCIATURA EN DISEÑO E INDUSTRIA DEL VESTIDO",4,40,44]
[null,null,null,null,null,"LICENCIATURA EN DISEÑO GRÁFICO",32,44,76]
[null,null,null,null,null,"LICENCIATURA EN GASTRONOMÍA",94,91,185]
[null,null,null,null,null,"LICENCIATURA EN IMAGEN Y RELACIONES PÚBLICAS",5,7,12]
[null,null,null,null,null,"LICENCIATURA EN MERCADOTECNIA",24,23,47]
[null,null,null,null,null,"LICENCIATURA EN NUTRICIÓN",141,231,372]
[null,null,null,null,null,"LICENCIATURA EN PSICOLOGÍA",106,308,414]
[null,null,null,null,null,"LICENCIATURA EN ADMINISTRACIÓN Y GESTIÓN DEL TURISMO",23,26,49]
[null,null,null,null,null,"TECNOLÓGICO DE BAJA CALIFORNIA",14,8,22]
[null,null,null,null,null,"INGENIERÍA EN CIENCIAS COMPUTACIONALES Y TELECOMUNICACIONES",3,0,3]
[null,null,null,null,null,"LICENCIATURA EN COMERCIO EXTERIOR Y ADUANAS",0,1,1]
[null,null,null,null,null,"LICENCIATURA EN DERECHO",11,7,18]
[null,null,null,null,null,"LICENCIATURA EN DIRECCIÓN DE HOTELES Y RESTAURANTES",0,0,0]
[null,null,null,null,null,"LICENCIATURA EN TURISMO INTERNACIONAL",0,0,0]
[null,null,null,null,null,"UNIVERSIDAD AUTÓNOMA DE BAJA CALIFORNIA SUR",3004,2941,5945]
[null,null,null,null,null,"GEÓLOGO",63,33,96]
[null,null,null,null,null,"INGENIERÍA AGRÓNOMO",125,47,172]
[null,null,null,null,null,"INGENIERÍA EN PESQUERÍAS",91,60,151]
[null,null,null,null,null,"INGENIERÍA EN PRODUCCIÓN ANIMAL",109,80,189]
[null,null,null,null,null,"INGENIERÍA EN TECNOLOGÍA COMPUTACIONAL",232,27,259]
[null,null,null,null,null,"LICENCIATURA EN ADMINISTRACIÓN DE AGRONEGOCIOS",175,160,335]
[null,null,null,null,null,"LICENCIATURA EN BIOLOGÍA MARINA",164,178,342]
[null,null,null,null,null,"LICENCIATURA EN CIENCIAS POLÍTICAS Y ADMINISTRACIÓN PÚBLICA",190,209,399]
[null,null,null,null,null,"LICENCIATURA EN COMERCIO EXTERIOR",189,312,501]
[null,null,null,null,null,"LICENCIATURA EN COMPUTACIÓN",188,41,229]
[null,null,null,null,null,"LICENCIATURA EN COMUNICACIÓN",134,162,296]
[null,null,null,null,null,"LICENCIATURA EN DERECHO",459,660,1119]
[null,null,null,null,null,"LICENCIATURA EN ECONOMÍA",80,76,156]
[null,null,null,null,null,"LICENCIATURA EN FILOSOFÍA",31,26,57]
[null,null,null,null,null,"LICENCIATURA EN HISTORIA",35,30,65]
[null,null,null,null,null,"LICENCIATURA EN LENGUA Y LITERATURA",26,86,112]
[null,null,null,null,null,"LICENCIATURA EN LENGUAS MODERNAS",115,211,326]
[null,null,null,null,null,"LICENCIATURA EN TURISMO ALTERNATIVO",368,327,695]
[null,null,null,null,null,"MÉDICO VETERINARIO ZOOTECNISTA",85,143,228]
[null,null,null,null,null,"LICENCIATURA EN AGUA",30,26,56]
[null,null,null,null,null,"INGENIERÍA EN FUENTES DE ENERGÍA RENOVABLE",115,47,162]
[null,null,null,null,null,"UNIVERSIDAD DEL DESARROLLO PROFESIONAL",376,543,919]
[null,null,null,null,null,"CONTADURÍA PÚBLICA",23,20,43]
[null,null,null,null,null,"INGENIERÍA EN SISTEMAS COMPUTACIONALES",38,6,44]
[null,null,null,null,null,"LICENCIATURA EN ADMINISTRACIÓN DE EMPRESAS",116,106,222]
[null,null,null,null,null,"LICENCIATURA EN CONTADOR PÚBLICO",27,30,57]
[null,null,null,null,null,"LICENCIATURA EN DERECHO",80,84,164]
[null,null,null,null,null,"LICENCIATURA EN DISEÑO GRÁFICO Y MULTIMEDIA",13,10,23]
[null,null,null,null,null,"LICENCIATURA EN EDUCACIÓN",28,180,208]
[null,null,null,null,null,"LICENCIATURA EN PSICOLOGÍA INDUSTRIAL",47,103,150]
[null,null,null,null,null,"LICENCIATURA EN PUBLICIDAD Y MERCADOTECNIA",4,4,8]
[null,null,null,null,null,"UNIVERSIDAD DEL GOLFO DE CALIFORNIA (UGC)",424,561,985]
[null,null,null,null,null,"LICENCIATURA EN ADMINISTRACIÓN DE EMPRESAS",45,54,99]
[null,null,null,null,null,"LICENCIATURA EN ADMINISTRACIÓN DE EMPRESAS TURÍSTICAS",74,88,162]
[null,null,null,null,null,"LICENCIATURA EN ADMINISTRACIÓN DE TECNOLOGÍAS DE INFORMACIÓN",10,1,11]
[null,null,null,null,null,"LICENCIATURA EN ARTES CULINARIAS",42,18,60]
[null,null,null,null,null,"LICENCIATURA EN CIENCIAS DE LA COMUNICACIÓN",16,19,35]
[null,null,null,null,null,"LICENCIATURA EN CONTADURÍA",64,59,123]
[null,null,null,null,null,"LICENCIATURA EN CRIMINOLOGÍA Y CRIMINALÍSTICA",25,19,44]
[null,null,null,null,null,"LICENCIATURA EN DERECHO",52,60,112]
[null,null,null,null,null,"LICENCIATURA EN DISEÑO GRÁFICO DIGITAL",25,14,39]
[null,null,null,null,null,"LICENCIATURA EN LENGUAS EXTRANJERAS",18,18,36]
[null,null,null,null,null,"LICENCIATURA EN NUTRICIÓN",30,78,108]
[null,null,null,null,null,"LICENCIATURA EN PEDAGOGÍA",3,66,69]
[null,null,null,null,null,"LICENCIATURA EN PSICOLOGÍA",15,64,79]
[null,null,null,null,null,"LICENCIATURA EN MERCADOTECNIA DIGITAL Y REDES SOCIALES",5,3,8]
[null,null,null,null,null,"UNIVERSIDAD INTERNACIONAL DE LA PAZ",188,531,719]
[null,null,null,null,null,"LICENCIATURA EN ADMINISTRACIÓN DE HOTELES Y RESTAURANTES",0,0,0]
[null,null,null,null,null,"LICENCIATURA EN CONTADURÍA PÚBLICA",1,0,1]
[null,null,null,null,null,"LICENCIATURA EN DERECHO",12,12,24]
[null,null,null,null,null,"LICENCIATURA EN DISEÑO GRÁFICO",0,0,0]
[null,null,null,null,null,"LICENCIATURA EN ENFERMERÍA",159,379,538]
[null,null,null,null,null,"LICENCIATURA EN NEGOCIOS INTERNACIONALES",0,0,0]
[null,null,null,null,null,"LICENCIATURA EN PSICOLOGÍA",8,35,43]
[null,null,null,null,null,"LICENCIATURA EN TRABAJO SOCIAL",8,105,113]
[null,null,null,null,null,"UNIVERSIDAD TECNOLÓGICA DE LA PAZ",392,320,712]
[null,null,null,null,null,"INGENIERÍA EN DESARROLLO E INNOVACIÓN EMPRESARIAL",11,20,31]
[null,null,null,null,null,"INGENIERÍA EN ENERGÍAS RENOVABLES",16,3,19]
[null,null,null,null,null,"INGENIERÍA EN MANTENIMIENTO INDUSTRIAL",30,1,31]
[null,null,null,null,null,"LICENCIATURA EN GASTRONOMÍA",40,57,97]
[null,null,null,null,null,"LICENCIATURA EN GESTIÓN Y DESARROLLO TURÍSTICO",15,29,44]
[null,null,null,null,null,"TÉCNICO SUPERIOR UNIVERSITARIO EN DESARROLLO DE NEGOCIOS ÁREA MERCADOTECNIA",58,59,117]
[null,null,null,null,null,"TÉCNICO SUPERIOR UNIVERSITARIO EN ENERGÍAS RENOVABLES ÁREA ENERGÍA SOLAR",46,30,76]
[null,null,null,null,null,"TÉCNICO SUPERIOR UNIVERSITARIO EN GASTRONOMÍA",81,85,166]
[null,null,null,null,null,"TÉCNICO SUPERIOR UNIVERSITARIO EN MANTENIMIENTO INDUSTRIAL",72,5,77]
[null,null,null,null,null,"TÉCNICO SUPERIOR UNIVERSITARIO EN TURISMO",23,31,54]
[null,null,null,null,null,"UNIVERSIDAD DE TIJUANA CUT",230,223,453]
[null,null,null,null,null,"LICENCIATURA EN ADMINISTRACIÓN DE EMPRESAS",45,29,74]
[null,null,null,null,null,"LICENCIATURA EN ARQUITECTURA",70,21,91]
[null,null,null,null,null,"LICENCIATURA EN CIENCIAS DE LA EDUCACIÓN",2,3,5]
[null,null,null,null,null,"LICENCIATURA EN COMERCIO EXTERIOR Y LEGISLACIÓN ADUANERA",13,12,25]
[null,null,null,null,null,"LICENCIATURA EN COMUNICACIÓN Y PUBLICIDAD",7,6,13]
[null,null,null,null,null,"LICENCIATURA EN CONTADURÍA PÚBLICA",10,15,25]
[null,null,null,null,null,"LICENCIATURA EN DERECHO",40,40,80]
[null,null,null,null,null,"LICENCIATURA EN DISEÑO GRÁFICO",6,9,15]
[null,null,null,null,null,"LICENCIATURA EN MERCADOTECNIA",7,3,10]
[null,null,null,null,null,"LICENCIATURA EN PSICOLOGÍA",26,80,106]
[null,null,null,null,null,"LICENCIATURA EN TURISMO Y HOTELERÍA",4,5,9]
[null,null,null,null,null,"INSTITUTO TECNOLÓGICO DE ESTUDIOS SUPERIORES DE LOS CABOS",1573,1089,2662]
[null,null,null,null,null,"ARQUITECTURA",141,87,228]
[null,null,null,null,null,"CONTADOR PÚBLICO",214,247,461]
[null,null,null,null,null,"GASTRONOMÍA",204,185,389]
[null,null,null,null,null,"INGENIERÍA CIVIL",138,30,168]
[null,null,null,null,null,"INGENIERÍA EN ADMINISTRACIÓN",307,362,669]
[null,null,null,null,null,"INGENIERÍA EN ELECTROMECÁNICA",217,10,227]
[null,null,null,null,null,"INGENIERÍA EN SISTEMAS COMPUTACIONALES",210,34,244]
[null,null,null,null,null,"LICENCIATURA EN ADMINISTRACIÓN",0,0,0]
[null,null,null,null,null,"LICENCIATURA EN CONTADURÍA",0,0,0]
[null,null,null,null,null,"LICENCIATURA EN INFORMÁTICA",0,0,0]
[null,null,null,null,null,"LICENCIATURA EN TURISMO",142,134,276]
[null,null,null,null,null,"INSTITUTO SUDCALIFORNIANO DE ESTUDIOS SUPERIORES",9,2,11]
[null,null,null,null,null,"LICENCIATURA EN ADMINISTRACIÓN DE EMPRESAS TURÍSTICAS",4,2,6]
[null,null,null,null,null,"LICENCIATURA EN DERECHO",5,0,5]
[null,null,null,null,null,"UNIVERSIDAD PEDAGÓGICA NACIONAL - UNIDAD 03A BAJA CALIFORNIA SUR",56,282,338]
[null,null,null,null,null,"LICENCIATURA EN EDUCACIÓN PREESCOLAR",0,48,48]
[null,null,null,null,null,"LICENCIATURA EN EDUCACIÓN PRIMARIA",34,107,141]
[null,null,null,null,null,"LICENCIATURA EN PEDAGOGÍA",4,30,34]
[null,null,null,null,null,"LICENCIATURA EN PSICOLOGÍA EDUCATIVA",18,97,115]
[null,null,null,null,null,"CAMPECHE",14350,13898,28248]
[null,null,null,null,null,"CENTRO AMERICANO DE ESTUDIOS SUPERIORES",96,130,226]
[null,null,null,null,null,"INGENIERÍA EN SISTEMAS COMPUTACIONALES",34,8,42]
[null,null,null,null,null,"LICENCIATURA EN ADMINISTRACIÓN",33,70,103]
[null,null,null,null,null,"LICENCIATURA EN CONTADURÍA",29,52,81]
[null,null,null,null,null,"LICENCIATURA EN INFORMÁTICA",0,0,0]
[null,null,null,null,null,"CENTRO DE ESTUDIOS SUPERIORES DEL SURESTE",13,151,164]
[null,null,null,null,null,"LICENCIATURA EN CIENCIAS DE LA EDUCACIÓN",2,60,62]
[null,null,null,null,null,"LICENCIATURA EN PSICOPEDAGOGÍA",11,91,102]
[null,null,null,null,null,"CENTRO DE ESTUDIOS SUPERIORES ISLA DEL CARMEN",117,59,176]
[null,null,null,null,null,"LICENCIATURA EN DERECHO",2,1,3]
[null,null,null,null,null,"LICENCIATURA EN INGENIERÍA CIVIL",12,3,15]
[null,null,null,null,null,"LICENCIATURA EN INGENIERÍA INDUSTRIAL",30,20,50]
[null,null,null,null,null,"LICENCIATURA EN INGENIERÍA PETROLERA",62,32,94]
[null,null,null,null,null,"LICENCIATURA EN INGENIERÍA ADMINISTRATIVA Y FINANZAS",11,3,14]
[null,null,null,null,null,"COLEGIO ESCÁRCEGA, A.C.",51,161,212]
[null,null,null,null,null,"LICENCIATURA EN EDUCACIÓN PREESCOLAR",0,5,5]
[null,null,null,null,null,"LICENCIATURA EN EDUCACIÓN PRIMARIA",5,3,8]
[null,null,null,null,null,"LICENCIATURA EN ENFERMERÍA",32,120,152]
[null,null,null,null,null,"LICENCIATURA EN PSICOLOGÍA",14,33,47]
[null,null,null,null,null,"ESCUELA NORMAL DE LICENCIATURA EN EDUCACIÓN ESPECIAL EN EL ÁREA DE PROBLEMAS DE APRENDIZAJE",15,41,56]
[null,null,null,null,null,"LICENCIATURA EN EDUCACIÓN ESPECIAL EN EL ÁREA DE ATENCIÓN AUDITIVA Y DE LENGUAJE",15,41,56]
[null,null,null,null,null,"ESCUELA NORMAL DE LICENCIATURA EN EDUCACIÓN FÍSICA DE CALKINI, CAMPECHE",16,4,20]
[null,null,null,null,null,"LICENCIATURA EN EDUCACIÓN FÍSICA",16,4,20]
[null,null,null,null,null,"ESCUELA NORMAL DE LICENCIATURA EN EDUCACIÓN PRESCOLAR PROF. PASTOR RODRÍGUEZ",0,148,148]
[null,null,null,null,null,"LICENCIATURA EN EDUCACIÓN PREESCOLAR",0,148,148]
[null,null,null,null,null,"ESCUELA NORMAL DE LICENCIATURA EN EDUCACIÓN PRIMARIA DE CALKINI",53,80,133]
[null,null,null,null,null,"LICENCIATURA EN EDUCACIÓN PRIMARIA",53,80,133]
[null,null,null,null,null,"ESCUELA NORMAL RURAL JUSTO SIERRA MÉNDEZ",83,128,211]
[null,null,null,null,null,"LICENCIATURA EN EDUCACIÓN PRIMARIA",53,74,127]
[null,null,null,null,null,"LICENCIATURA EN EDUCACIÓN PRIMARIA INTERCULTURAL BILINGÜE",30,54,84]
[null,null,null,null,null,"LICENCIATURA EN INFORMÁTICA",0,0,0]
[null,null,null,null,null,"ESCUELA NORMAL SUPERIOR FEDERAL DE CAMPECHE",47,44,91]
[null,null,null,null,null,"LICENCIATURA EN EDUCACIÓN SECUNDARIA CON ESPECIALIDAD EN BIOLOGÍA",14,11,25]
[null,null,null,null,null,"LICENCIATURA EN EDUCACIÓN SECUNDARIA CON ESPECIALIDAD EN ESPAÑOL",9,16,25]
[null,null,null,null,null,"LICENCIATURA EN EDUCACIÓN SECUNDARIA CON ESPECIALIDAD EN FORMACIÓN CÍVICA Y ÉTICA",4,5,9]
[null,null,null,null,null,"LICENCIATURA EN EDUCACIÓN SECUNDARIA CON ESPECIALIDAD EN LENGUA EXTRANJERA (INGLÉS)",11,9,20]
[null,null,null,null,null,"LICENCIATURA EN EDUCACIÓN SECUNDARIA CON ESPECIALIDAD EN MATEMÁTICAS",4,3,7]
[null,null,null,null,null,"LICENCIATURA EN EDUCACIÓN SECUNDARIA CON ESPECIALIDAD EN QUÍMICA",0,0,0]
[null,null,null,null,null,"LICENCIATURA EN EDUCACIÓN SECUNDARIA CON ESPECIALIDAD EN TELESECUNDARIA",5,0,5]
[null,null,null,null,null,"INSTITUTO CAMPECHANO",447,947,1394]
[null,null,null,null,null,"LICENCIATURA EN CIENCIAS DE LA COMUNICACIÓN",57,49,106]
[null,null,null,null,null,"LICENCIATURA EN EDUCACIÓN ARTÍSTICA",32,84,116]
[null,null,null,null,null,"LICENCIATURA EN EDUCACIÓN PREESCOLAR",0,85,85]
[null,null,null,null,null,"LICENCIATURA EN EDUCACIÓN PRIMARIA",20,56,76]
[null,null,null,null,null,"LICENCIATURA EN EDUCACIÓN SECUNDARIA CON ESPECIALIDAD EN BIOLOGÍA",1,5,6]
[null,null,null,null,null,"LICENCIATURA EN EDUCACIÓN SECUNDARIA CON ESPECIALIDAD EN ESPAÑOL",1,13,14]
[null,null,null,null,null,"LICENCIATURA EN EDUCACIÓN SECUNDARIA CON ESPECIALIDAD EN HISTORIA",0,0,0]
[null,null,null,null,null,"LICENCIATURA EN EDUCACIÓN SECUNDARIA CON ESPECIALIDAD EN LENGUA EXTRANJERA (INGLÉS)",10,21,31]
[null,null,null,null,null,"LICENCIATURA EN EDUCACIÓN SECUNDARIA CON ESPECIALIDAD EN MATEMÁTICAS",7,7,14]
[null,null,null,null,null,"LICENCIATURA EN GASTRONOMÍA",112,100,212]
[null,null,null,null,null,"LICENCIATURA EN MERCADOTECNIA",65,74,139]
[null,null,null,null,null,"LICENCIATURA EN TRABAJO SOCIAL",58,312,370]
[null,null,null,null,null,"LICENCIATURA EN TURISMO",68,130,198]
[null,null,null,null,null,"PROFESIONAL ASOCIADO EN ARTES VISUALES",16,11,27]
[null,null,null,null,null,"PROFESIONAL ASOCIADO EN GASTRONOMÍA",0,0,0]
[null,null,null,null,null,"INSTITUTO DE EDUCACIÓN SUPERIOR GUADALUPE VICTORIA",227,332,559]
[null,null,null,null,null,"LICENCIATURA EN ADMINISTRACIÓN Y CONTABILIDAD",66,83,149]
[null,null,null,null,null,"LICENCIATURA EN DERECHO Y ADMINISTRACIÓN PÚBLICA",16,20,36]
[null,null,null,null,null,"LICENCIATURA EN GASTRONOMÍA",18,18,36]
[null,null,null,null,null,"LICENCIATURA EN INFORMÁTICA Y DISEÑO GRÁFICO",35,20,55]
[null,null,null,null,null,"LICENCIATURA EN INGENIERO ARQUITECTO",9,4,13]
[null,null,null,null,null,"LICENCIATURA EN NUTRICIÓN",29,63,92]
[null,null,null,null,null,"LICENCIATURA EN PSICOLOGÍA EDUCATIVA",33,98,131]
[null,null,null,null,null,"LICENCIATURA EN TURISMO Y COMERCIO INTERNACIONAL",20,24,44]
[null,null,null,null,null,"LICENCIATURA EN DISEÑO GRÁFICO Y WEBMASTER",1,2,3]
[null,null,null,null,null,"INSTITUTO DE ESTUDIOS SUPERIORES DE CAMPECHE",123,114,237]
[null,null,null,null,null,"LICENCIATURA EN ADMINISTRACIÓN",17,14,31]
[null,null,null,null,null,"LICENCIATURA EN CONTADURÍA",18,17,35]
[null,null,null,null,null,"LICENCIATURA EN DERECHO",81,74,155]
[null,null,null,null,null,"LICENCIATURA EN INFORMÁTICA",4,0,4]
[null,null,null,null,null,"LICENCIATURA EN TURISMO",3,9,12]
[null,null,null,null,null,"INSTITUTO DE ESTUDIOS SUPERIORES SOR JUANA INÉS DE LA CRUZ",7,5,12]
[null,null,null,null,null,"LICENCIATURA EN TRABAJO SOCIAL",7,5,12]
[null,null,null,null,null,"INSTITUTO MORELOS",0,0,0]
[null,null,null,null,null,"LICENCIATURA EN EDUCACIÓN PRIMARIA",0,0,0]
[null,null,null,null,null,"INSTITUTO PEDAGÓGICO CAMPECHANO MARÍA DE LA LUZ ORTEGA DE RUIZ",32,104,136]
[null,null,null,null,null,"LICENCIATURA EN ORGANIZACIÓN Y ADMINISTRACIÓN EFICAZ",10,16,26]
[null,null,null,null,null,"LICENCIATURA EN PEDAGOGÍA Y COMPETENCIAS DOCENTES",22,88,110]
[null,null,null,null,null,"INSTITUTO SUPERIOR DE FILOSOFÍA SANTO TOMAS DE AQUINO",33,1,34]
[null,null,null,null,null,"LICENCIATURA EN FILOSOFÍA",33,1,34]
[null,null,null,null,null,"INSTITUTO TECNOLÓGICO DE CAMPECHE",1128,587,1715]
[null,null,null,null,null,"ARQUITECTURA",201,140,341]
[null,null,null,null,null,"INGENIERÍA CIVIL",169,33,202]
[null,null,null,null,null,"INGENIERÍA EN ADMINISTRACIÓN",124,158,282]
[null,null,null,null,null,"INGENIERÍA EN GESTIÓN EMPRESARIAL",57,69,126]
[null,null,null,null,null,"INGENIERÍA EN SISTEMAS COMPUTACIONALES",167,54,221]
[null,null,null,null,null,"INGENIERÍA INDUSTRIAL",107,45,152]
[null,null,null,null,null,"INGENIERÍA INFORMÁTICA",45,10,55]
[null,null,null,null,null,"INGENIERÍA MECÁNICA",185,9,194]
[null,null,null,null,null,"INGENIERÍA QUÍMICA",0,0,0]
[null,null,null,null,null,"LICENCIATURA EN INFORMÁTICA",0,0,0]
[null,null,null,null,null,"LICENCIATURA EN INGENIERÍA AMBIENTAL",38,44,82]
[null,null,null,null,null,"LICENCIATURA EN INGENIERÍA QUÍMICA",35,25,60]
[null,null,null,null,null,"INSTITUTO TECNOLÓGICO DE CHINA",559,290,849]
[null,null,null,null,null,"INGENIERÍA EN ADMINISTRACIÓN",45,52,97]
[null,null,null,null,null,"INGENIERÍA EN AGRONOMÍA",308,98,406]
[null,null,null,null,null,"INGENIERÍA EN GESTIÓN EMPRESARIAL",39,39,78]
[null,null,null,null,null,"INGENIERÍA EN INFORMÁTICA",16,4,20]
[null,null,null,null,null,"INGENIERÍA FORESTAL",59,16,75]
[null,null,null,null,null,"LICENCIATURA EN ADMINISTRACIÓN",0,0,0]
[null,null,null,null,null,"LICENCIATURA EN BIOLOGÍA",92,81,173]
[null,null,null,null,null,"INSTITUTO TECNOLÓGICO DE LERMA",431,122,553]
[null,null,null,null,null,"INGENIERÍA ELECTRÓNICA",93,9,102]
[null,null,null,null,null,"INGENIERÍA EN ACUICULTURA",23,11,34]
[null,null,null,null,null,"INGENIERÍA EN ADMINISTRACIÓN",47,52,99]
[null,null,null,null,null,"INGENIERÍA EN GESTIÓN EMPRESARIAL",27,35,62]
[null,null,null,null,null,"INGENIERÍA EN PESQUERÍAS OPCIÓN ALIMENTOS",0,0,0]
[null,null,null,null,null,"INGENIERÍA MECÁNICA",105,2,107]
[null,null,null,null,null,"INGENIERÍA MECATRÓNICA",136,13,149]
[null,null,null,null,null,"LICENCIATURA EN ADMINISTRACIÓN",0,0,0]
[null,null,null,null,null,"LICENCIATURA EN ADMINISTRACIÓN OPCIÓN ORGANIZACIONES MARINAS",0,0,0]
[null,null,null,null,null,"INSTITUTO TECNOLÓGICO SUPERIOR DE CHAMPOTÓN",464,369,833]
[null,null,null,null,null,"INGENIERÍA AMBIENTAL",61,47,108]
[null,null,null,null,null,"INGENIERÍA ELECTROMECÁNICA",90,8,98]
[null,null,null,null,null,"INGENIERÍA EN ADMINISTRACIÓN",108,138,246]
[null,null,null,null,null,"INGENIERÍA EN GESTIÓN EMPRESARIAL",27,46,73]
[null,null,null,null,null,"INGENIERÍA EN LOGÍSTICA",29,14,43]
[null,null,null,null,null,"INGENIERÍA EN SISTEMAS COMPUTACIONALES",78,26,104]
[null,null,null,null,null,"LICENCIATURA EN TURISMO",71,90,161]
[null,null,null,null,null,"INSTITUTO TECNOLÓGICO SUPERIOR DE ESCÁRCEGA",417,438,855]
[null,null,null,null,null,"GASTRONOMÍA",59,81,140]
[null,null,null,null,null,"INGENIERÍA EN ENERGÍAS RENOVABLES",44,22,66]
[null,null,null,null,null,"INGENIERÍA EN INDUSTRIAS ALIMENTARIAS",37,36,73]
[null,null,null,null,null,"INGENIERÍA EN SISTEMAS COMPUTACIONALES",80,37,117]
[null,null,null,null,null,"LICENCIATURA EN ADMINISTRACIÓN",157,211,368]
[null,null,null,null,null,"LICENCIATURA EN TURISMO",40,51,91]
[null,null,null,null,null,"INSTITUTO TECNOLÓGICO Y DE ESTUDIOS SUPERIORES RENE DESCARTES",329,353,682]
[null,null,null,null,null,"LICENCIATURA EN ADMINISTRACIÓN DE EMPRESAS",58,53,111]
[null,null,null,null,null,"LICENCIATURA EN CIENCIAS DE LA COMUNICACIÓN",16,18,34]
[null,null,null,null,null,"LICENCIATURA EN CONTADURÍA",76,63,139]
[null,null,null,null,null,"LICENCIATURA EN DERECHO",133,140,273]
[null,null,null,null,null,"LICENCIATURA EN PEDAGOGÍA",20,70,90]
[null,null,null,null,null,"LICENCIATURA EN SISTEMAS COMPUTACIONALES ADMINISTRATIVOS",26,9,35]
[null,null,null,null,null,"UNIVERSIDAD AUTÓNOMA DE CAMPECHE",3241,3666,6907]
[null,null,null,null,null,"BIÓLOGO",76,84,160]
[null,null,null,null,null,"CIRUJANO DENTISTA",195,271,466]
[null,null,null,null,null,"INGENIERÍA BIOQUÍMICO AMBIENTAL",54,57,111]
[null,null,null,null,null,"INGENIERÍA BIOQUÍMICO EN ALIMENTOS",3,2,5]
[null,null,null,null,null,"INGENIERÍA CIVIL",4,0,4]
[null,null,null,null,null,"INGENIERÍA CIVIL Y ADMINISTRACIÓN",279,95,374]
[null,null,null,null,null,"INGENIERÍA EN COMUNICACIONES Y ELECTRÓNICA",0,0,0]
[null,null,null,null,null,"INGENIERÍA EN ENERGÍA",95,30,125]
[null,null,null,null,null,"INGENIERÍA EN MECATRÓNICA",167,18,185]
[null,null,null,null,null,"INGENIERÍA EN SISTEMAS COMPUTACIONALES",156,34,190]
[null,null,null,null,null,"INGENIERÍA MECÁNICO ELECTRICISTA",0,0,0]
[null,null,null,null,null,"LICENCIATURA EN ADMINISTRACIÓN DE PYMES",25,15,40]
[null,null,null,null,null,"LICENCIATURA EN ADMINISTRACIÓN Y FINANZAS",224,227,451]
[null,null,null,null,null,"LICENCIATURA EN AGRONEGOCIOS",7,2,9]
[null,null,null,null,null,"LICENCIATURA EN CIENCIA Y TECNOLOGÍA DE ALIMENTOS",9,12,21]
[null,null,null,null,null,"LICENCIATURA EN CIENCIAS POLÍTICAS Y ADMINISTRACIÓN PÚBLICA",153,99,252]
[null,null,null,null,null,"LICENCIATURA EN CONTADURÍA",229,256,485]
[null,null,null,null,null,"LICENCIATURA EN DERECHO",212,314,526]
[null,null,null,null,null,"LICENCIATURA EN DESARROLLO SUSTENTABLE",2,0,2]
[null,null,null,null,null,"LICENCIATURA EN ECONOMÍA",66,80,146]
[null,null,null,null,null,"LICENCIATURA EN ENFERMERÍA",178,412,590]
[null,null,null,null,null,"LICENCIATURA EN FISIOTERAPIA",153,245,398]
[null,null,null,null,null,"LICENCIATURA EN GERONTOLOGÍA",43,111,154]
[null,null,null,null,null,"LICENCIATURA EN HISTORIA",38,16,54]
[null,null,null,null,null,"LICENCIATURA EN LITERATURA",17,41,58]
[null,null,null,null,null,"LICENCIATURA EN NUTRICIÓN",65,219,284]
[null,null,null,null,null,"LICENCIATURA EN PSICOLOGÍA",162,370,532]
[null,null,null,null,null,"MÉDICO CIRUJANO",339,355,694]
[null,null,null,null,null,"MÉDICO VETERINARIO ZOOTECNISTA",121,87,208]
[null,null,null,null,null,"QUÍMICO FARMACÉUTICO BIÓLOGO",169,214,383]
[null,null,null,null,null,"UNIVERSIDAD AUTÓNOMA DEL CARMEN",2637,3093,5730]
[null,null,null,null,null,"INGENIERÍA CIVIL",167,99,266]
[null,null,null,null,null,"INGENIERÍA ELÉCTRICA",10,3,13]
[null,null,null,null,null,"INGENIERÍA ELECTRÓNICA",29,8,37]
[null,null,null,null,null,"INGENIERÍA EN COMPUTACIÓN",51,16,67]
[null,null,null,null,null,"INGENIERÍA EN ENERGÍA",36,18,54]
[null,null,null,null,null,"INGENIERÍA EN GEOFÍSICA",69,65,134]
[null,null,null,null,null,"INGENIERÍA EN SISTEMAS COMPUTACIONALES",164,51,215]
[null,null,null,null,null,"INGENIERÍA MECÁNICA",163,17,180]
[null,null,null,null,null,"INGENIERÍA MECATRÓNICA",177,25,202]
[null,null,null,null,null,"INGENIERÍA PETROLERA",295,190,485]
[null,null,null,null,null,"INGENIERÍA QUÍMICA",129,116,245]
[null,null,null,null,null,"LICENCIATURA EN ADMINISTRACIÓN DE EMPRESAS",129,238,367]
[null,null,null,null,null,"LICENCIATURA EN ADMINISTRACIÓN DE RECURSOS NATURALES",0,0,0]
[null,null,null,null,null,"LICENCIATURA EN ADMINISTRACIÓN TURÍSTICA",45,84,129]
[null,null,null,null,null,"LICENCIATURA EN ARQUITECTURA SUSTENTABLE",92,112,204]
[null,null,null,null,null,"LICENCIATURA EN ARTES PLÁSTICAS",0,0,0]
[null,null,null,null,null,"LICENCIATURA EN BIOLOGÍA MARINA",71,69,140]
[null,null,null,null,null,"LICENCIATURA EN CONTADURÍA",124,173,297]
[null,null,null,null,null,"LICENCIATURA EN CRIMINOLOGÍA Y CRIMINALÍSTICA",20,53,73]
[null,null,null,null,null,"LICENCIATURA EN DERECHO",122,262,384]
[null,null,null,null,null,"LICENCIATURA EN EDUCACIÓN",13,109,122]
[null,null,null,null,null,"LICENCIATURA EN ENFERMERÍA",86,284,370]
[null,null,null,null,null,"LICENCIATURA EN FISIOTERAPIA",31,147,178]
[null,null,null,null,null,"LICENCIATURA EN INFORMÁTICA",1,2,3]
[null,null,null,null,null,"LICENCIATURA EN INGENIERÍA EN DISEÑO MULTIMEDIA",74,40,114]
[null,null,null,null,null,"LICENCIATURA EN INGENIERÍA GEOLÓGICA",110,100,210]
[null,null,null,null,null,"LICENCIATURA EN LENGUA INGLESA",58,125,183]
[null,null,null,null,null,"LICENCIATURA EN MÉDICO CIRUJANO",109,169,278]
[null,null,null,null,null,"LICENCIATURA EN MERCADOTECNIA",29,60,89]
[null,null,null,null,null,"LICENCIATURA EN NEGOCIOS INTERNACIONALES",77,143,220]
[null,null,null,null,null,"LICENCIATURA EN NUTRICIÓN",40,133,173]
[null,null,null,null,null,"LICENCIATURA EN PSICOLOGÍA CLÍNICA",33,146,179]
[null,null,null,null,null,"LICENCIATURA EN TECNOLOGÍAS DE INFORMACIÓN",17,13,30]
[null,null,null,null,null,"PROFESIONAL ASOCIADO EN REHABILITACIÓN FÍSICA",0,0,0]
[null,null,null,null,null,"LICENCIATURA EN EDUCACIÓN FÍSICA Y DEPORTES",57,16,73]
[null,null,null,null,null,"LICENCIATURA EN COMUNICACIÓN Y GESTIÓN CULTURAL",9,7,16]
[null,null,null,null,null,"UNIVERSIDAD DEL DESARROLLO PROFESIONAL",106,222,328]
[null,null,null,null,null,"CONTADOR PÚBLICO",15,25,40]
[null,null,null,null,null,"LICENCIATURA EN ADMINISTRACIÓN DE EMPRESAS",43,43,86]
[null,null,null,null,null,"LICENCIATURA EN COMERCIO INTERNACIONAL",12,32,44]
[null,null,null,null,null,"LICENCIATURA EN DERECHO",13,21,34]
[null,null,null,null,null,"LICENCIATURA EN EDUCACIÓN",2,43,45]
[null,null,null,null,null,"LICENCIATURA EN PSICOLOGÍA INDUSTRIAL",16,50,66]
[null,null,null,null,null,"LICENCIATURA EN PUBLICIDAD Y MERCADOTECNIA",5,8,13]
[null,null,null,null,null,"UNIVERSIDAD HISPANOAMERICANA JUSTO SIERRA",53,77,130]
[null,null,null,null,null,"LICENCIATURA EN CREACIÓN Y DESARROLLO DE EMPRESAS",9,5,14]
[null,null,null,null,null,"LICENCIATURA EN LENGUAS EXTRANJERAS",8,7,15]
[null,null,null,null,null,"LICENCIATURA EN NUTRICIÓN Y BIENESTAR INTEGRAL",16,26,42]
[null,null,null,null,null,"LICENCIATURA EN TECNOLOGÍA EDUCATIVA",20,39,59]
[null,null,null,null,null,"UNIVERSIDAD INTERAMERICANA PARA EL DESARROLLO",383,373,756]
[null,null,null,null,null,"LICENCIATURA EN ADMINISTRACIÓN DE EMPRESAS",92,75,167]
[null,null,null,null,null,"LICENCIATURA EN ADMINISTRACIÓN DE EMPRESAS TURÍSTICAS",20,45,65]
[null,null,null,null,null,"LICENCIATURA EN CIENCIAS Y TÉCNICAS DE LA COMUNICACIÓN",48,42,90]
[null,null,null,null,null,"LICENCIATURA EN CONTABILIDAD FINANCIERA",27,20,47]
[null,null,null,null,null,"LICENCIATURA EN DERECHO",47,57,104]
[null,null,null,null,null,"LICENCIATURA EN DERECHO Y CIENCIAS JURÍDICAS",14,10,24]
[null,null,null,null,null,"LICENCIATURA EN DISEÑO GRÁFICO DIGITAL",23,33,56]
[null,null,null,null,null,"LICENCIATURA EN FINANZAS Y CONTADURÍA",37,47,84]
[null,null,null,null,null,"LICENCIATURA EN INGENIERÍA EN SISTEMAS DE INFORMACIÓN",56,12,68]
[null,null,null,null,null,"LICENCIATURA EN MERCADOTECNIA",17,19,36]
[null,null,null,null,null,"LICENCIATURA EN NEGOCIOS",0,0,0]
[null,null,null,null,null,"LICENCIATURA EN PSICOLOGÍA ORGANIZACIONAL",2,13,15]
[null,null,null,null,null,"LICENCIATURA EN RECURSOS HUMANOS",0,0,0]
[null,null,null,null,null,"PROFESIONAL ASOCIADO EN ADMINISTRACIÓN FINANCIERA",0,0,0]
[null,null,null,null,null,"PROFESIONAL ASOCIADO EN MERCADOTECNIA Y PUBLICIDAD",0,0,0]
[null,null,null,null,null,"PROFESIONAL ASOCIADO EN PRODUCCIÓN MULTIMEDIA",0,0,0]
[null,null,null,null,null,"PROFESIONAL ASOCIADO EN SERVICIOS TURÍSTICOS",0,0,0]
[null,null,null,null,null,"TÉCNICO SUPERIOR UNIVERSITARIO EN PROGRAMACIÓN",0,0,0]
[null,null,null,null,null,"UNIVERSIDAD MUNDO MAYA",186,242,428]
[null,null,null,null,null,"LICENCIATURA EN ADMINISTRACIÓN DE EMPRESAS",5,5,10]
[null,null,null,null,null,"LICENCIATURA EN ARQUITECTURA",55,26,81]
[null,null,null,null,null,"LICENCIATURA EN COMUNICACIÓN",4,2,6]
[null,null,null,null,null,"LICENCIATURA EN CONTADURÍA PÚBLICA",5,3,8]
[null,null,null,null,null,"LICENCIATURA EN DERECHO",16,14,30]
[null,null,null,null,null,"LICENCIATURA EN DISEÑO DE MODAS",6,14,20]
[null,null,null,null,null,"LICENCIATURA EN DISEÑO GRÁFICO",4,5,9]
[null,null,null,null,null,"LICENCIATURA EN ENFERMERÍA",41,114,155]
[null,null,null,null,null,"LICENCIATURA EN ENSEÑANZA DEL IDIOMA INGLÉS",0,5,5]
[null,null,null,null,null,"LICENCIATURA EN GASTRONOMÍA",13,19,32]
[null,null,null,null,null,"LICENCIATURA EN INGENIERÍA CIVIL",16,1,17]
[null,null,null,null,null,"LICENCIATURA EN INGENIERÍA EN SISTEMAS COMPUTACIONALES",12,5,17]
[null,null,null,null,null,"LICENCIATURA EN NUTRICIÓN",5,1,6]
[null,null,null,null,null,"LICENCIATURA EN PSICOLOGÍA",1,1,2]
[null,null,null,null,null,"LICENCIATURA EN PSICOPEDAGOGÍA",2,17,19]
[null,null,null,null,null,"LICENCIATURA EN TRABAJO SOCIAL",1,9,10]
[null,null,null,null,null,"LICENCIATURA EN TURISMO",0,1,1]
[null,null,null,null,null,"UNIVERSIDAD PEDAGÓGICA NACIONAL NÚM. 042 CIUDAD DEL CARMEN",0,0,0]
[null,null,null,null,null,"LICENCIATURA EN EDUCACIÓN",0,0,0]
[null,null,null,null,null,"UNIVERSIDAD TECNOLÓGICA DE CAMPECHE",1637,712,2349]
[null,null,null,null,null,"INGENIERÍA EN ENERGÍAS RENOVABLES",14,12,26]
[null,null,null,null,null,"INGENIERÍA EN FINANCIERA Y FISCAL",33,84,117]
[null,null,null,null,null,"INGENIERÍA EN MANTENIMIENTO INDUSTRIAL",154,82,236]
[null,null,null,null,null,"INGENIERÍA EN MECATRÓNICA",130,15,145]
[null,null,null,null,null,"INGENIERÍA EN METAL MECÁNICA",217,19,236]
[null,null,null,null,null,"INGENIERÍA EN TECNOLOGÍA DE INFORMACIÓN Y COMUNICACIÓN",60,47,107]
[null,null,null,null,null,"LICENCIATURA EN INGENIERÍA EN MANTENIMIENTO PETROLERO",73,36,109]
[null,null,null,null,null,"TÉCNICO SUPERIOR UNIVERSITARIO EN CONTADURÍA",61,129,190]
[null,null,null,null,null,"TÉCNICO SUPERIOR UNIVERSITARIO EN ENERGÍAS RENOVABLES ÁREA CALIDAD Y AHORRO DE ENERGÍA",58,38,96]
[null,null,null,null,null,"TÉCNICO SUPERIOR UNIVERSITARIO EN MANTENIMIENTO ÁREA PETRÓLEO",38,21,59]
[null,null,null,null,null,"TÉCNICO SUPERIOR UNIVERSITARIO EN MANTENIMIENTO INDUSTRIAL",237,98,335]
[null,null,null,null,null,"TÉCNICO SUPERIOR UNIVERSITARIO EN MECÁNICA",274,31,305]
[null,null,null,null,null,"TÉCNICO SUPERIOR UNIVERSITARIO EN MECATRÓNICA",204,48,252]
[null,null,null,null,null,"TÉCNICO SUPERIOR UNIVERSITARIO EN TECNOLOGÍAS DE LA INFORMACIÓN Y COMUNICACIÓN",84,52,136]
[null,null,null,null,null,"UNIVERSIDAD TECNOLÓGICA DE CANDELARIA",133,103,236]
[null,null,null,null,null,"INGENIERÍA EN AGRICULTURA SUSTENTABLE Y PROTEGIDA",17,9,26]
[null,null,null,null,null,"INGENIERÍA EN TECNOLOGÍA DE LA INFORMACIÓN Y COMUNICACIÓN",33,19,52]
[null,null,null,null,null,"LICENCIATURA EN PROTECCIÓN CIVIL Y EMERGENCIA",3,11,14]
[null,null,null,null,null,"TÉCNICO SUPERIOR UNIVERSITARIO EN AGRICULTURA SUSTENTABLE Y PROTEGIDA",35,14,49]
[null,null,null,null,null,"TÉCNICO SUPERIOR UNIVERSITARIO EN PARAMÉDICO",17,24,41]
[null,null,null,null,null,"TÉCNICO SUPERIOR UNIVERSITARIO EN TECNOLOGÍAS DE LA INFORMACIÓN Y COMUNICACIÓN",28,26,54]
[null,null,null,null,null,"UNIVERSIDAD VALLE DEL GRIJALVA",0,0,0]
[null,null,null,null,null,"INGENIERÍA INDUSTRIAL EN CALIDAD",0,0,0]
[null,null,null,null,null,"INGENIERÍA INDUSTRIAL EN MANTENIMIENTO",0,0,0]
[null,null,null,null,null,"INGENIERÍA INDUSTRIAL Y DE SISTEMAS",0,0,0]
[null,null,null,null,null,"LICENCIATURA EN DERECHO Y ASUNTOS INTERNACIONALES",0,0,0]
[null,null,null,null,null,"LICENCIATURA EN DIRECCIÓN DE NEGOCIOS",0,0,0]
[null,null,null,null,null,"LICENCIATURA EN DISEÑO GRÁFICO",0,0,0]
[null,null,null,null,null,"LICENCIATURA EN SISTEMAS DE COMPUTACIÓN ADMINISTRATIVA",0,0,0]
[null,null,null,null,null,"INSTITUTO DE ESTUDIOS SUPERIORES SIMÓN BOLÍVAR",2,6,8]
[null,null,null,null,null,"LICENCIATURA EN IMAGEN EJECUTIVA Y CORPORATIVA",1,2,3]
[null,null,null,null,null,"LICENCIATURA EN PSICOLOGÍA ORGANIZACIONAL",1,4,5]
[null,null,null,null,null,"UNIVERSIDAD TECNOLÓGICA DE CALAKMUL",60,80,140]
[null,null,null,null,null,"TÉCNICO SUPERIOR UNIVERSITARIO EN ADMINISTRACIÓN ÁREA ADMINISTRACIÓN Y EVALUACIÓN DE PROYECTOS",37,36,73]
[null,null,null,null,null,"TÉCNICO SUPERIOR UNIVERSITARIO EN TURISMO ÁREA DESARROLLO DE PRODUCTOS ALTERNATIVOS",23,44,67]
[null,null,null,null,null,"INSTITUTO TECNOLÓGICO SUPERIOR DE HOPELCHÉN",214,184,398]
[null,null,null,null,null,"INGENIERÍA EN INNOVACIÓN AGRÍCOLA SUSTENTABLE",94,35,129]
[null,null,null,null,null,"INGENIERÍA EN SISTEMAS COMPUTACIONALES",46,20,66]
[null,null,null,null,null,"LICENCIATURA EN ADMINISTRACIÓN",74,129,203]
[null,null,null,null,null,"INSTITUTO TECNOLÓGICO SUPERIOR DE CALKINÍ EN EL ESTADO DE CAMPECHE",1002,511,1513]
[null,null,null,null,null,"INGENIERÍA BIOQUÍMICA",60,62,122]
[null,null,null,null,null,"INGENIERÍA EN INDUSTRIAS ALIMENTARIAS",53,75,128]
[null,null,null,null,null,"INGENIERÍA EN INFORMÁTICA",71,39,110]
[null,null,null,null,null,"INGENIERÍA EN INNOVACIÓN AGRÍCOLA SUSTENTABLE",28,21,49]
[null,null,null,null,null,"INGENIERÍA EN MATERIALES",52,19,71]
[null,null,null,null,null,"INGENIERÍA EN MECATRÓNICA",206,15,221]
[null,null,null,null,null,"INGENIERÍA EN SISTEMAS COMPUTACIONALES",89,29,118]
[null,null,null,null,null,"INGENIERÍA INDUSTRIAL",322,85,407]
[null,null,null,null,null,"LICENCIATURA EN ADMINISTRACIÓN",121,166,287]
[null,null,null,null,null,"COLEGIO MORELOS LIZARDI",8,21,29]
[null,null,null,null,null,"LICENCIATURA EN PSICOLOGÍA",8,21,29]
[null,null,null,null,null,"CHIAPAS",57068,54719,111787]
[null,null,null,null,null,"BENEMÉRITA Y CENTENARIA ESCUELA NORMAL DE LICENCIATURA EN EDUCACIÓN PRIMARIA DEL ESTADO",212,282,494]
[null,null,null,null,null,"LICENCIATURA EN EDUCACIÓN PRIMARIA",212,282,494]
[null,null,null,null,null,"CENTRO CULTURAL DE EDUCACIÓN ARTÍSTICA TITI TA",2,1,3]
[null,null,null,null,null,"LICENCIATURA EN ARTES",2,1,3]
[null,null,null,null,null,"CENTRO DE ACTUALIZACIÓN DEL MAGISTERIO DE CHIAPAS",0,0,0]
[null,null,null,null,null,"LICENCIATURA EN DOCENCIA TECNOLÓGICA",0,0,0]
[null,null,null,null,null,"CENTRO DE ESTUDIOS DE POSGRADO IBEROAMERICANO",48,25,73]
[null,null,null,null,null,"LICENCIATURA EN CONTADURÍA Y FINANZAS",5,5,10]
[null,null,null,null,null,"LICENCIATURA EN DERECHO",15,0,15]
[null,null,null,null,null,"LICENCIATURA EN INVESTIGACIÓN CRIMINAL",20,0,20]
[null,null,null,null,null,"LICENCIATURA EN MERCADOTECNIA Y PUBLICIDAD",5,5,10]
[null,null,null,null,null,"LICENCIATURA EN PUERICULTURA",0,7,7]
[null,null,null,null,null,"LICENCIATURA EN SISTEMAS DE GESTIÓN DE LA CALIDAD",3,8,11]
[null,null,null,null,null,"CENTRO DE ESTUDIOS EN ARTES CULINARIAS Y ENOLOGÍA",149,198,347]
[null,null,null,null,null,"LICENCIATURA EN GASTRONOMÍA EJECUTIVA",70,92,162]
[null,null,null,null,null,"LICENCIATURA EN GASTRONOMÍA Y ARTES CULINARIAS",74,89,163]
[null,null,null,null,null,"LICENCIATURA EN NUTRICIÓN Y CIENCIAS DE LOS ALIMENTOS",1,12,13]
[null,null,null,null,null,"LICENCIATURA EN HOTELERÍA Y NEGOCIOS TURÍSTICOS",4,5,9]
[null,null,null,null,null,"CENTRO DE ESTUDIOS PROFESIONALES BONAMPAK",9,16,25]
[null,null,null,null,null,"LICENCIATURA EN CONTADURÍA PÚBLICA",2,8,10]
[null,null,null,null,null,"LICENCIATURA EN DERECHO",4,2,6]
[null,null,null,null,null,"LICENCIATURA EN INFORMÁTICA",3,3,6]
[null,null,null,null,null,"LICENCIATURA EN TURISMO",0,3,3]
[null,null,null,null,null,"CENTRO DE ESTUDIOS PROFESIONALES DE CHIAPAS FRAY BARTOLOMÉ DE LAS CASAS",13,5,18]
[null,null,null,null,null,"LICENCIATURA EN ADMINISTRACIÓN",0,0,0]
[null,null,null,null,null,"LICENCIATURA EN DERECHO",8,1,9]
[null,null,null,null,null,"LICENCIATURA EN DISEÑO GRÁFICO",4,1,5]
[null,null,null,null,null,"LICENCIATURA EN GASTRONOMÍA",0,0,0]
[null,null,null,null,null,"LICENCIATURA EN PERIODISMO Y COMUNICACIÓN COLECTIVA",0,0,0]
[null,null,null,null,null,"LICENCIATURA EN RELACIONES INTERNACIONALES",1,3,4]
[null,null,null,null,null,"CENTRO DE ESTUDIOS PROFESIONALES DEL GRIJALVA",663,917,1580]
[null,null,null,null,null,"ARQUITECTURA",5,0,5]
[null,null,null,null,null,"CONTADURÍA PÚBLICA",55,66,121]
[null,null,null,null,null,"INGENIERÍA CIVIL",50,11,61]
[null,null,null,null,null,"LICENCIATURA EN ADMINISTRACIÓN DE EMPRESAS",170,133,303]
[null,null,null,null,null,"LICENCIATURA EN ADMINISTRACIÓN DE EMPRESAS TURÍSTICAS",19,29,48]
[null,null,null,null,null,"LICENCIATURA EN ARQUITECTURA",16,4,20]
[null,null,null,null,null,"LICENCIATURA EN CONTADURÍA PÚBLICA",56,52,108]
[null,null,null,null,null,"LICENCIATURA EN DERECHO",80,99,179]
[null,null,null,null,null,"LICENCIATURA EN ENFERMERÍA",51,154,205]
[null,null,null,null,null,"LICENCIATURA EN INFORMÁTICA",36,14,50]
[null,null,null,null,null,"LICENCIATURA EN PSICOLOGÍA",15,43,58]
[null,null,null,null,null,"LICENCIATURA EN PSICOLOGÍA GENERAL",110,312,422]
[null,null,null,null,null,"CENTRO DE ESTUDIOS SUPERIORES BENEMÉRITO DE LAS AMÉRICAS",73,63,136]
[null,null,null,null,null,"CONTADOR PÚBLICO",17,21,38]
[null,null,null,null,null,"LICENCIATURA EN ADMINISTRACIÓN",23,17,40]
[null,null,null,null,null,"LICENCIATURA EN DERECHO",33,25,58]
[null,null,null,null,null,"CENTRO DE ESTUDIOS SUPERIORES DE TAPACHULA, S. C.",132,232,364]
[null,null,null,null,null,"LICENCIATURA EN DERECHO",66,80,146]
[null,null,null,null,null,"LICENCIATURA EN PSICOLOGÍA",66,152,218]
[null,null,null,null,null,"CENTRO DE ESTUDIOS SUPERIORES FRAILESCA",52,61,113]
[null,null,null,null,null,"INGENIERÍA EN SISTEMAS COMPUTACIONALES",26,13,39]
[null,null,null,null,null,"LICENCIATURA EN CONTADURÍA PÚBLICA",0,0,0]
[null,null,null,null,null,"LICENCIATURA EN INFORMÁTICA ADMINISTRATIVA",9,6,15]
[null,null,null,null,null,"LICENCIATURA EN TRABAJO SOCIAL",14,38,52]
[null,null,null,null,null,"LICENCIATURA EN TURISMO Y HOTELERÍA",3,4,7]
[null,null,null,null,null,"CENTRO DE ESTUDIOS UNIVERSITARIOS DE CHIAPAS",54,62,116]
[null,null,null,null,null,"CIRUJANO DENTISTA",54,62,116]
[null,null,null,null,null,"CENTRO DE ESTUDIOS UNIVERSITARIOS DEL SUR Y SURESTE",213,236,449]
[null,null,null,null,null,"LICENCIATURA EN ADMINISTRACIÓN DE EMPRESAS",41,46,87]
[null,null,null,null,null,"LICENCIATURA EN ADMINISTRACIÓN DE NEGOCIOS",5,8,13]
[null,null,null,null,null,"LICENCIATURA EN ADMINISTRACIÓN PÚBLICA",13,9,22]
[null,null,null,null,null,"LICENCIATURA EN CONTABILIDAD Y FINANZAS",4,12,16]
[null,null,null,null,null,"LICENCIATURA EN CONTADURÍA PÚBLICA",20,36,56]
[null,null,null,null,null,"LICENCIATURA EN DERECHO",75,70,145]
[null,null,null,null,null,"LICENCIATURA EN INGENIERÍA EN SISTEMAS COMPUTACIONALES",30,10,40]
[null,null,null,null,null,"LICENCIATURA EN INGENIERÍA PETROLERA",4,0,4]
[null,null,null,null,null,"LICENCIATURA EN TRABAJO SOCIAL",5,39,44]
[null,null,null,null,null,"LICENCIATURA EN PUBLICIDAD Y COMERCIALIZACIÓN",16,6,22]
[null,null,null,null,null,"CENTRO DE ESTUDIOS UNIVERSITARIOS SAN CRISTÓBAL",247,240,487]
[null,null,null,null,null,"LICENCIATURA EN ADMINISTRACIÓN DE EMPRESAS",33,42,75]
[null,null,null,null,null,"LICENCIATURA EN ARQUITECTURA",10,2,12]
[null,null,null,null,null,"LICENCIATURA EN CONTADURÍA",45,24,69]
[null,null,null,null,null,"LICENCIATURA EN CONTADURÍA PÚBLICA",24,9,33]
[null,null,null,null,null,"LICENCIATURA EN DERECHO",53,40,93]
[null,null,null,null,null,"LICENCIATURA EN DISEÑO GRÁFICO",12,11,23]
[null,null,null,null,null,"LICENCIATURA EN INFORMÁTICA ADMINISTRATIVA",0,0,0]
[null,null,null,null,null,"LICENCIATURA EN INGENIERÍA EN SISTEMAS COMPUTACIONALES",33,3,36]
[null,null,null,null,null,"LICENCIATURA EN TRABAJO SOCIAL",37,109,146]
[null,null,null,null,null,"CENTRO DE FORMACIÓN PROFESIONAL DE CHIAPAS MAYA",1471,1638,3109]
[null,null,null,null,null,"LICENCIATURA EN ADMINISTRACIÓN DE EMPRESAS",187,173,360]
[null,null,null,null,null,"LICENCIATURA EN CONTADURÍA PÚBLICA",171,198,369]
[null,null,null,null,null,"LICENCIATURA EN DERECHO",199,189,388]
[null,null,null,null,null,"LICENCIATURA EN ENFERMERÍA",133,407,540]
[null,null,null,null,null,"LICENCIATURA EN INGENIERÍA MECÁNICA AUTOMOTRIZ",615,19,634]
[null,null,null,null,null,"LICENCIATURA EN MERCADOTECNIA Y PUBLICIDAD",79,72,151]
[null,null,null,null,null,"LICENCIATURA EN TRABAJO SOCIAL",87,580,667]
[null,null,null,null,null,"CENTRO INTERAMERICANO DE ESTUDIOS SUPERIORES EVANGELII NUNTIANDI",5,50,55]
[null,null,null,null,null,"LICENCIATURA EN CIENCIAS RELIGIOSAS",5,39,44]
[null,null,null,null,null,"LICENCIATURA EN TEOLOGÍA CON ÉNFASIS EN PASTORAL",0,11,11]
[null,null,null,null,null,"CENTRO INTERNACIONAL TECNOLÓGICO DE ADIESTRAMIENTO Y ASESORAMIENTO DE AVIACIÓN CIVIL",9,3,12]
[null,null,null,null,null,"TÉCNICO SUPERIOR UNIVERSITARIO PILOTO AVIADOR",9,3,12]
[null,null,null,null,null,"CENTRO PROFESIONAL UNIVERSITARIO",9,15,24]
[null,null,null,null,null,"INGENIERÍA EN SISTEMAS",3,1,4]
[null,null,null,null,null,"LICENCIATURA EN ADMINISTRACIÓN DE EMPRESAS",4,0,4]
[null,null,null,null,null,"LICENCIATURA EN TRABAJO SOCIAL",2,14,16]
[null,null,null,null,null,"CENTRO ÚNICO DE CAPACITACIÓN POLICIACA DE INVESTIGACIÓN Y PREVENTIVA DEL ESTADO DE CHIAPAS",293,84,377]
[null,null,null,null,null,"LICENCIATURA EN SEGURIDAD PÚBLICA Y PROTECCIÓN CIUDADANA",178,41,219]
[null,null,null,null,null,"LICENCIATURA EN DERECHO CON TERMINAL EN PROCESO PENAL ADVERSARIAL",115,43,158]
[null,null,null,null,null,"CENTRO UNIVERSITARIO DEL VALLE DE CHIAPAS",47,47,94]
[null,null,null,null,null,"LICENCIATURA EN ADMINISTRACIÓN",8,23,31]
[null,null,null,null,null,"LICENCIATURA EN DERECHO",39,24,63]
[null,null,null,null,null,"CENTRO UNIVERSITARIO EN FORMACIÓN ARTÍSTICA",55,19,74]
[null,null,null,null,null,"LICENCIATURA EN EDUCACIÓN ARTÍSTICA CON FORMACIÓN EN DANZA FOLKLÓRICA",35,14,49]
[null,null,null,null,null,"LICENCIATURA EN EDUCACIÓN DANCÍSTICA CON ORIENTACIÓN EN DANZA FOLKLÓRICA",2,3,5]
[null,null,null,null,null,"LICENCIATURA EN ETNOMUSICOLOGÍA",18,2,20]
[null,null,null,null,null,"CENTRO UNIVERSITARIO MANUEL VELASCO SUAREZ",14,19,33]
[null,null,null,null,null,"LICENCIATURA EN CONTADURÍA PÚBLICA",1,2,3]
[null,null,null,null,null,"LICENCIATURA EN DERECHO",9,13,22]
[null,null,null,null,null,"LICENCIATURA EN INGENIERÍA EN SISTEMAS COMPUTACIONALES",3,2,5]
[null,null,null,null,null,"LICENCIATURA EN TRABAJO SOCIAL",1,2,3]
[null,null,null,null,null,"CENTRO UNIVERSITARIO MESOAMERICANO JOAQUÍN MIGUEL GUTIÉRREZ",298,706,1004]
[null,null,null,null,null,"LICENCIATURA EN ENFERMERÍA",181,469,650]
[null,null,null,null,null,"LICENCIATURA EN PROFESIONALIZACIÓN DE LA ENFERMERÍA",10,61,71]
[null,null,null,null,null,"LICENCIATURA EN TRABAJO SOCIAL",47,166,213]
[null,null,null,null,null,"LICENCIATURA EN EDUCACIÓN FÍSICA Y DEPORTES",60,10,70]
[null,null,null,null,null,"CENTRO UNIVERSITARIO SAN MARCOS",109,104,213]
[null,null,null,null,null,"INGENIERÍA EN SISTEMAS COMPUTACIONALES",18,6,24]
[null,null,null,null,null,"LICENCIATURA EN ADMINISTRACIÓN DE EMPRESAS",35,39,74]
[null,null,null,null,null,"LICENCIATURA EN CONTADURÍA PÚBLICA",37,41,78]
[null,null,null,null,null,"LICENCIATURA EN DERECHO",19,18,37]
[null,null,null,null,null,"COLEGIO ESPAÑOL DEL SURESTE",84,49,133]
[null,null,null,null,null,"LICENCIATURA EN DISEÑO DE IMAGEN Y RELACIONES PÚBLICAS",9,19,28]
[null,null,null,null,null,"LICENCIATURA EN FISIOTERAPIA Y REHABILITACIÓN",28,25,53]
[null,null,null,null,null,"LICENCIATURA EN INGENIERÍA AGRONÓMICA EN ZOOTECNIA",47,5,52]
[null,null,null,null,null,"COLEGIO EURO MEXICANO DE CHEFS SOMMELIER",15,8,23]
[null,null,null,null,null,"LICENCIATURA EN ENOGASTRONOMÍA",15,8,23]
[null,null,null,null,null,"COLEGIO LIBRE DE CHIAPAS",15,16,31]
[null,null,null,null,null,"LICENCIATURA EN DERECHO",15,16,31]
[null,null,null,null,null,"COLEGIO UNIVERSITARIO VERSALLES",199,99,298]
[null,null,null,null,null,"INGENIERÍA AGRÓNOMO ZOOTECNISTA",40,17,57]
[null,null,null,null,null,"LICENCIATURA EN ADMINISTRACIÓN DE EMPRESAS",10,5,15]
[null,null,null,null,null,"LICENCIATURA EN COMUNICACIÓN",29,13,42]
[null,null,null,null,null,"LICENCIATURA EN CONTADOR PÚBLICO",30,22,52]
[null,null,null,null,null,"LICENCIATURA EN CONTADURÍA PÚBLICA",20,10,30]
[null,null,null,null,null,"LICENCIATURA EN DERECHO",60,27,87]
[null,null,null,null,null,"LICENCIATURA EN INGENIERÍA CIVIL",10,5,15]
[null,null,null,null,null,"ESCUELA BANCARIA Y COMERCIAL, S.C.",261,325,586]
[null,null,null,null,null,"LICENCIATURA EN ADMINISTRACIÓN",53,55,108]
[null,null,null,null,null,"LICENCIATURA EN ADMINISTRACIÓN DE NEGOCIOS DE COMUNICACIÓN Y ENTRETENIMIENTO",1,1,2]
[null,null,null,null,null,"LICENCIATURA EN ADMINISTRACIÓN DE NEGOCIOS DE LA COMUNICACIÓN Y EL ENTRETENIMIENTO",30,48,78]
[null,null,null,null,null,"LICENCIATURA EN ADMINISTRACIÓN HOTELERA Y TURÍSTICA",11,34,45]
[null,null,null,null,null,"LICENCIATURA EN COMERCIO Y NEGOCIOS INTERNACIONALES",49,68,117]
[null,null,null,null,null,"LICENCIATURA EN CONTADURÍA PÚBLICA",36,37,73]
[null,null,null,null,null,"LICENCIATURA EN ECONOMÍA",7,4,11]
[null,null,null,null,null,"LICENCIATURA EN FINANZAS Y BANCA",47,39,86]
[null,null,null,null,null,"LICENCIATURA EN MERCADOTECNIA",27,39,66]
[null,null,null,null,null,"ESCUELA DE ENFERMERÍA",94,502,596]
[null,null,null,null,null,"LICENCIATURA EN ENFERMERÍA",94,502,596]
[null,null,null,null,null,"ESCUELA DE ENFERMERÍA TAPACHULA",75,306,381]
[null,null,null,null,null,"LICENCIATURA EN ENFERMERÍA",75,306,381]
[null,null,null,null,null,"ESCUELA DE MEDICINA ALTERNATIVA",34,65,99]
[null,null,null,null,null,"LICENCIATURA EN ACUPUNTURA",3,3,6]
[null,null,null,null,null,"LICENCIATURA EN HOMEOPATÍA",31,62,93]
[null,null,null,null,null,"ESCUELA DE PROTECCIÓN CIVIL",47,14,61]
[null,null,null,null,null,"TÉCNICO SUPERIOR UNIVERSITARIO EN PROTECCIÓN CIVIL",47,14,61]
[null,null,null,null,null,"ESCUELA DE TERAPIA FÍSICA DEL SISTEMA PARA EL DESARROLLO INTEGRAL DE LA FAMILIA DEL ESTADO DE CHIAPA",39,53,92]
[null,null,null,null,null,"LICENCIATURA EN TERAPIA FÍSICA",39,53,92]
[null,null,null,null,null,"ESCUELA GESTALT DE ARTE Y DISEÑO DE TUXTLA DE A.E., S.C.",36,36,72]
[null,null,null,null,null,"LICENCIATURA EN ARQUITECTURA",13,6,19]
[null,null,null,null,null,"LICENCIATURA EN DISEÑO DE INTERIORES",3,7,10]
[null,null,null,null,null,"LICENCIATURA EN DISEÑO GRÁFICO",20,23,43]
[null,null,null,null,null,"ESCUELA NORMAL DE LICENCIATURA EN EDUCACIÓN FÍSICA PEDRO REYNOL OZUNA HENNING",317,99,416]
[null,null,null,null,null,"LICENCIATURA EN EDUCACIÓN FÍSICA",317,99,416]
[null,null,null,null,null,"ESCUELA NORMAL INDÍGENA INTERCULTURAL BILINGÜE JACINTO CANEK",145,171,316]
[null,null,null,null,null,"LICENCIATURA EN EDUCACIÓN PREESCOLAR",0,106,106]
[null,null,null,null,null,"LICENCIATURA EN EDUCACIÓN PRIMARIA INTERCULTURAL BILINGÜE",145,65,210]
[null,null,null,null,null,"ESCUELA NORMAL RURAL \"MOCTUMACTZÁ\"",202,152,354]
[null,null,null,null,null,"LICENCIATURA EN EDUCACIÓN PRIMARIA",202,152,354]
[null,null,null,null,null,"ESCUELA SUPERIOR DE EDUCACIÓN FÍSICA SAN CRISTÓBAL",42,37,79]
[null,null,null,null,null,"LICENCIATURA EN ENTRENAMIENTO DEPORTIVO",0,0,0]
[null,null,null,null,null,"LICENCIATURA EN REHABILITACIÓN FÍSICA",21,35,56]
[null,null,null,null,null,"LICENCIATURA EN EDUCACIÓN FÍSICA Y DEPORTES",21,2,23]
[null,null,null,null,null,"ESCUELA SUPERIOR DE EDUCACIÓN MUSICAL",9,5,14]
[null,null,null,null,null,"LICENCIATURA EN EDUCACIÓN MUSICAL",9,5,14]
[null,null,null,null,null,"ESCUELA SUPERIOR DE TAPACHULA",511,415,926]
[null,null,null,null,null,"LICENCIATURA EN ADMINISTRACIÓN Y MERCADOTECNIA",314,263,577]
[null,null,null,null,null,"LICENCIATURA EN CONTADURÍA E INFORMÁTICA",133,113,246]
[null,null,null,null,null,"LICENCIATURA EN COMERCIO INTERNACIONAL AGROPECUARIO",64,39,103]
[null,null,null,null,null,"ESCUELA SUPERIOR DE TRABAJO SOCIAL JESÚS AQUINO JUAN",76,580,656]
[null,null,null,null,null,"LICENCIATURA EN TRABAJO SOCIAL",76,580,656]
[null,null,null,null,null,"FACULTAD LIBRE DE DERECHO DE CHIAPAS",58,66,124]
[null,null,null,null,null,"LICENCIATURA EN DERECHO",58,66,124]
[null,null,null,null,null,"INSTITUCIÓN DE ESTUDIOS SUPERIORES WILLIAMS SHAKESPEARE",5,22,27]
[null,null,null,null,null,"LICENCIATURA EN INGLÉS",5,22,27]
[null,null,null,null,null,"INSTITUTO DE ARTES CULINARIAS PARMENTIER DE SAN CRISTÓBAL",43,31,74]
[null,null,null,null,null,"LICENCIATURA EN ARTE CULINARIO",27,19,46]
[null,null,null,null,null,"PROFESIONAL TÉCNICO ASOCIADO EN ARTES CULINARIAS",16,12,28]
[null,null,null,null,null,"INSTITUTO DE ESTUDIOS SUPERIORES ADUANALES",496,686,1182]
[null,null,null,null,null,"INGENIERÍA EN SISTEMAS COMPUTACIONALES",35,8,43]
[null,null,null,null,null,"LICENCIATURA EN ADMINISTRACIÓN DE ADUANAS",270,171,441]
[null,null,null,null,null,"LICENCIATURA EN ADMINISTRACIÓN DE EMPRESAS",34,48,82]
[null,null,null,null,null,"LICENCIATURA EN CONTADURÍA PÚBLICA",11,15,26]
[null,null,null,null,null,"LICENCIATURA EN DERECHO",29,36,65]
[null,null,null,null,null,"LICENCIATURA EN DESARROLLO Y CUIDADO INFANTIL",0,24,24]
[null,null,null,null,null,"LICENCIATURA EN ENFERMERÍA",22,140,162]
[null,null,null,null,null,"LICENCIATURA EN INFORMÁTICA ADMINISTRATIVA",3,6,9]
[null,null,null,null,null,"LICENCIATURA EN TRABAJO SOCIAL",43,216,259]
[null,null,null,null,null,"TÉCNICO SUPERIOR UNIVERSITARIO EN IMAGENOLOGÍA",49,22,71]
[null,null,null,null,null,"INSTITUTO DE ESTUDIOS SUPERIORES BENITO JUÁREZ GARCÍA",9,12,21]
[null,null,null,null,null,"INGENIERÍA EN SISTEMAS COMPUTACIONALES",9,12,21]
[null,null,null,null,null,"INSTITUTO DE ESTUDIOS SUPERIORES CHARLES BABBAGE",2,4,6]
[null,null,null,null,null,"LICENCIATURA EN ADMINISTRACIÓN DE EMPRESAS",2,1,3]
[null,null,null,null,null,"LICENCIATURA EN TRABAJO SOCIAL",0,3,3]
[null,null,null,null,null,"INSTITUTO DE ESTUDIOS SUPERIORES COMITÁN",26,11,37]
[null,null,null,null,null,"LICENCIATURA EN INGENIERÍA EN SISTEMAS COMPUTACIONALES",15,5,20]
[null,null,null,null,null,"LICENCIATURA EN MERCADOTECNIA Y PUBLICIDAD",11,6,17]
[null,null,null,null,null,"INSTITUTO DE ESTUDIOS SUPERIORES DE CHIAPAS",4427,4194,8621]
[null,null,null,null,null,"ARQUITECTO",0,0,0]
[null,null,null,null,null,"CONTADURÍA PÚBLICA",68,53,121]
[null,null,null,null,null,"INGENIERÍA CIVIL",434,73,507]
[null,null,null,null,null,"INGENIERÍA EN SISTEMAS COMPUTACIONALES",275,66,341]
[null,null,null,null,null,"INGENIERÍA ZOOTECNISTA ADMINISTRADOR",17,5,22]
[null,null,null,null,null,"LICENCIATURA EN ADMINISTRACIÓN",87,67,154]
[null,null,null,null,null,"LICENCIATURA EN ADMINISTRACIÓN DE EMPRESAS",328,349,677]
[null,null,null,null,null,"LICENCIATURA EN ADMINISTRACIÓN DE EMPRESAS TURÍSTICAS",22,44,66]
[null,null,null,null,null,"LICENCIATURA EN ADMINISTRACIÓN EN EMPRESAS TURÍSTICAS",13,19,32]
[null,null,null,null,null,"LICENCIATURA EN ADMINISTRACIÓN TURÍSTICA Y HOTELERA",9,9,18]
[null,null,null,null,null,"LICENCIATURA EN ADMINISTRACIÓN Y GESTIÓN DE EMPRESAS",18,20,38]
[null,null,null,null,null,"LICENCIATURA EN ADMINISTRACIÓN Y GESTIÓN DE NEGOCIOS",17,21,38]
[null,null,null,null,null,"LICENCIATURA EN ARQUITECTURA",96,58,154]
[null,null,null,null,null,"LICENCIATURA EN CIENCIAS DE LA COMUNICACIÓN",47,40,87]
[null,null,null,null,null,"LICENCIATURA EN CIENCIAS DE LA EDUCACIÓN",8,38,46]
[null,null,null,null,null,"LICENCIATURA EN COMUNICACIÓN",8,10,18]
[null,null,null,null,null,"LICENCIATURA EN CONTADURÍA",21,30,51]
[null,null,null,null,null,"LICENCIATURA EN CONTADURÍA PÚBLICA",234,300,534]
[null,null,null,null,null,"LICENCIATURA EN CONTADURÍA PÚBLICA Y FINANZAS",40,44,84]
[null,null,null,null,null,"LICENCIATURA EN DERECHO",806,804,1610]
[null,null,null,null,null,"LICENCIATURA EN DISEÑO GRÁFICO",51,31,82]
[null,null,null,null,null,"LICENCIATURA EN EDUCACIÓN FÍSICA",121,29,150]
[null,null,null,null,null,"LICENCIATURA EN ENFERMERÍA",40,117,157]
[null,null,null,null,null,"LICENCIATURA EN ENSEÑANZA DEL IDIOMA INGLÉS",30,35,65]
[null,null,null,null,null,"LICENCIATURA EN ENSEÑANZA DEL INGLÉS",36,53,89]
[null,null,null,null,null,"LICENCIATURA EN GASTRONOMÍA",64,50,114]
[null,null,null,null,null,"LICENCIATURA EN GASTRONOMÍA Y ENOLOGÍA",38,37,75]
[null,null,null,null,null,"LICENCIATURA EN INFORMÁTICA",0,0,0]
[null,null,null,null,null,"LICENCIATURA EN INFORMÁTICA ADMINISTRATIVA",26,13,39]
[null,null,null,null,null,"LICENCIATURA EN INGENIERÍA CIVIL",56,19,75]
[null,null,null,null,null,"LICENCIATURA EN INGENIERÍA EN TELECOMUNICACIONES",30,4,34]
[null,null,null,null,null,"LICENCIATURA EN MEDICINA",70,95,165]
[null,null,null,null,null,"LICENCIATURA EN MERCADOTECNIA",3,6,9]
[null,null,null,null,null,"LICENCIATURA EN NUTRICIÓN",15,54,69]
[null,null,null,null,null,"LICENCIATURA EN ODONTOLOGÍA",85,107,192]
[null,null,null,null,null,"LICENCIATURA EN PSICOLOGÍA",151,368,519]
[null,null,null,null,null,"LICENCIATURA EN QUÍMICA FARMACÉUTICA BIOLÓGICA",129,197,326]
[null,null,null,null,null,"LICENCIATURA EN TRABAJO SOCIAL",92,274,366]
[null,null,null,null,null,"MÉDICO CIRUJANO",422,526,948]
[null,null,null,null,null,"LICENCIATURA EN EDUCACIÓN FÍSICA Y DEPORTES",307,76,383]
[null,null,null,null,null,"LICENCIATURA EN ADMINISTRACIÓN DE EMPRESAS Y ESTRATEGIAS DE NEGOCIOS",38,38,76]
[null,null,null,null,null,"LICENCIATURA EN INGENIERÍA EN SISTEMAS COMPUTACIONALES ADMINISTRATIVAS",36,7,43]
[null,null,null,null,null,"INGENIERO ZOOTECNISTA ADMINISTRADOR",39,8,47]
[null,null,null,null,null,"INSTITUTO DE ESTUDIOS SUPERIORES DE MEZCALAPA",34,62,96]
[null,null,null,null,null,"LICENCIATURA EN CONTADURÍA PÚBLICA",19,12,31]
[null,null,null,null,null,"LICENCIATURA EN INFORMÁTICA ADMINISTRATIVA",10,5,15]
[null,null,null,null,null,"LICENCIATURA EN TRABAJO SOCIAL",5,45,50]
[null,null,null,null,null,"INSTITUTO DE ESTUDIOS SUPERIORES DEL CENTRO DE CHIAPAS",69,154,223]
[null,null,null,null,null,"INGENIERÍA EN CÓMPUTO",12,1,13]
[null,null,null,null,null,"LICENCIATURA EN CIENCIAS DE LA EDUCACIÓN EN EL ÁREA DE FÍSICA Y MATEMÁTICAS",3,1,4]
[null,null,null,null,null,"LICENCIATURA EN CONTADURÍA PÚBLICA",26,25,51]
[null,null,null,null,null,"LICENCIATURA EN ENFERMERÍA",22,90,112]
[null,null,null,null,null,"LICENCIATURA EN PEDAGOGÍA",6,37,43]
[null,null,null,null,null,"INSTITUTO DE ESTUDIOS SUPERIORES DEL SUR",30,61,91]
[null,null,null,null,null,"LICENCIATURA EN ADMINISTRACIÓN DE EMPRESAS",5,3,8]
[null,null,null,null,null,"LICENCIATURA EN CONTADURÍA PÚBLICA",3,2,5]
[null,null,null,null,null,"LICENCIATURA EN DERECHO",8,16,24]
[null,null,null,null,null,"LICENCIATURA EN INGENIERÍA EN SISTEMAS COMPUTACIONALES",11,3,14]
[null,null,null,null,null,"LICENCIATURA EN TRABAJO SOCIAL",3,37,40]
[null,null,null,null,null,"INSTITUTO DE ESTUDIOS SUPERIORES DEL SURESTE",221,257,478]
[null,null,null,null,null,"INGENIERÍA EN SISTEMAS COMPUTACIONALES",25,3,28]
[null,null,null,null,null,"LICENCIATURA EN ADMINISTRACIÓN DE EMPRESAS",38,31,69]
[null,null,null,null,null,"LICENCIATURA EN CONTADURÍA PÚBLICA",58,55,113]
[null,null,null,null,null,"LICENCIATURA EN DERECHO",37,31,68]
[null,null,null,null,null,"LICENCIATURA EN INFORMÁTICA ADMINISTRATIVA",3,1,4]
[null,null,null,null,null,"LICENCIATURA EN PEDAGOGÍA",24,52,76]
[null,null,null,null,null,"LICENCIATURA EN PSICOLOGÍA LABORAL",2,4,6]
[null,null,null,null,null,"LICENCIATURA EN PSICOLOGÍA SOCIAL",34,80,114]
[null,null,null,null,null,"INSTITUTO DE ESTUDIOS SUPERIORES FRONTERA SUR",70,73,143]
[null,null,null,null,null,"LICENCIATURA EN ADMINISTRACIÓN DE EMPRESAS",0,0,0]
[null,null,null,null,null,"LICENCIATURA EN CONTADURÍA PÚBLICA",31,44,75]
[null,null,null,null,null,"LICENCIATURA EN DERECHO",8,19,27]
[null,null,null,null,null,"LICENCIATURA EN INFORMÁTICA ADMINISTRATIVA",31,10,41]
[null,null,null,null,null,"INSTITUTO DE ESTUDIOS SUPERIORES FRONTERA SUR PLANTEL SILTEPEC",16,13,29]
[null,null,null,null,null,"LICENCIATURA EN ADMINISTRACIÓN DE EMPRESAS",1,0,1]
[null,null,null,null,null,"LICENCIATURA EN DERECHO",9,7,16]
[null,null,null,null,null,"LICENCIATURA EN INFORMÁTICA ADMINISTRATIVA",6,6,12]
[null,null,null,null,null,"INSTITUTO DE ESTUDIOS SUPERIORES MANUEL JOSÉ DE ROJAS",214,159,373]
[null,null,null,null,null,"LICENCIATURA EN DERECHO",214,159,373]
[null,null,null,null,null,"INSTITUTO DE ESTUDIOS SUPERIORES METROPOLITANO",46,36,82]
[null,null,null,null,null,"INGENIERÍA EN TECNOLOGÍAS DE LA INFORMACIÓN",6,1,7]
[null,null,null,null,null,"LICENCIATURA EN ADMINISTRACIÓN DE EMPRESAS",19,19,38]
[null,null,null,null,null,"LICENCIATURA EN CONTADURÍA PÚBLICA",7,5,12]
[null,null,null,null,null,"LICENCIATURA EN DERECHO",10,8,18]
[null,null,null,null,null,"LICENCIATURA EN INFORMÁTICA ADMINISTRATIVA",4,3,7]
[null,null,null,null,null,"INSTITUTO DE ESTUDIOS SUPERIORES RENE DESCARTES",145,49,194]
[null,null,null,null,null,"INGENIERÍA CIVIL",70,12,82]
[null,null,null,null,null,"LICENCIATURA EN CREACIÓN CINEMATOGRÁFICA",23,13,36]
[null,null,null,null,null,"LICENCIATURA EN DERECHO",9,3,12]
[null,null,null,null,null,"LICENCIATURA EN ENTRENAMIENTO DEPORTIVO",31,4,35]
[null,null,null,null,null,"LICENCIATURA EN PSICOLOGÍA",12,17,29]
[null,null,null,null,null,"INSTITUTO DE ESTUDIOS SUPERIORES SOR JUANA INÉS DE LA CRUZ",564,975,1539]
[null,null,null,null,null,"INGENIERÍA EN SISTEMAS COMPUTACIONALES",37,9,46]
[null,null,null,null,null,"LICENCIATURA EN DERECHO",48,39,87]
[null,null,null,null,null,"LICENCIATURA EN DESARROLLO Y CUIDADO INFANTIL",1,47,48]
[null,null,null,null,null,"LICENCIATURA EN ENFERMERÍA",146,426,572]
[null,null,null,null,null,"LICENCIATURA EN INFORMÁTICA ADMINISTRATIVA",12,4,16]
[null,null,null,null,null,"LICENCIATURA EN INGENIERÍA EN SISTEMAS COMPUTACIONALES",54,11,65]
[null,null,null,null,null,"LICENCIATURA EN OPTOMETRÍA",60,39,99]
[null,null,null,null,null,"LICENCIATURA EN TRABAJO SOCIAL",59,292,351]
[null,null,null,null,null,"LICENCIATURA EN TURISMO",1,10,11]
[null,null,null,null,null,"PROFESIONALIZACIÓN DE ENFERMERÍA NIVEL LICENCIATURA",5,29,34]
[null,null,null,null,null,"TÉCNICO SUPERIOR UNIVERSITARIO EN IMAGENOLOGÍA",141,69,210]
[null,null,null,null,null,"INSTITUTO DE ESTUDIOS SUPERIORES TOMAS DE AQUINO",115,3,118]
[null,null,null,null,null,"LICENCIATURA EN FILOSOFÍA",115,3,118]
[null,null,null,null,null,"INSTITUTO DE ESTUDIOS UNIVERSITARIO GANDHI",28,64,92]
[null,null,null,null,null,"LICENCIATURA EN INFORMÁTICA ADMINISTRATIVA",9,14,23]
[null,null,null,null,null,"LICENCIATURA EN TRABAJO SOCIAL",7,43,50]
[null,null,null,null,null,"LICENCIATURA EN EDUCACIÓN FÍSICA Y DEPORTES",12,7,19]
[null,null,null,null,null,"INSTITUTO DE ESTUDIOS UNIVERSITARIOS, A.C.",16,16,32]
[null,null,null,null,null,"LICENCIATURA EN GASTRONOMÍA",16,16,32]
[null,null,null,null,null,"INSTITUTO DE FORMACIÓN ACADÉMICA DEL CENTRO Y SURESTE",125,152,277]
[null,null,null,null,null,"LICENCIATURA EN CRIMINOLOGÍA Y CRIMINALÍSTICA",94,95,189]
[null,null,null,null,null,"LICENCIATURA EN DERECHO",2,8,10]
[null,null,null,null,null,"LICENCIATURA EN PSICOLOGÍA CRIMINOLÓGICA",6,11,17]
[null,null,null,null,null,"LICENCIATURA EN SEGURIDAD CIUDADANA",12,8,20]
[null,null,null,null,null,"LICENCIATURA EN TRABAJO SOCIAL",11,30,41]
[null,null,null,null,null,"INSTITUTO DE FORMACIÓN CAMPESINO EMPRESARIAL",12,9,21]
[null,null,null,null,null,"LICENCIATURA EN AGRONEGOCIOS",6,2,8]
[null,null,null,null,null,"LICENCIATURA EN DESARROLLO EMPRESARIAL",6,7,13]
[null,null,null,null,null,"INSTITUTO DE GASTRONOMÍA Y ARTES CULINARIAS GOURMAND",4,6,10]
[null,null,null,null,null,"LICENCIATURA EN GASTRONOMÍA",4,6,10]
[null,null,null,null,null,"INSTITUTO HISPANO JAIME SABINES",413,532,945]
[null,null,null,null,null,"LICENCIATURA EN DERECHO",5,7,12]
[null,null,null,null,null,"LICENCIATURA EN ENFERMERÍA",165,200,365]
[null,null,null,null,null,"LICENCIATURA EN PSICOLOGÍA GENERAL",3,6,9]
[null,null,null,null,null,"LICENCIATURA EN TRABAJO SOCIAL",23,72,95]
[null,null,null,null,null,"NIVELACIÓN ACADÉMICA DE LICENCIATURA EN ENFERMERÍA",217,247,464]
[null,null,null,null,null,"INSTITUTO LATINOAMERICANO DE ESTUDIOS PROFESIONALES DE CHIAPAS",16,10,26]
[null,null,null,null,null,"LICENCIATURA EN DERECHO",16,10,26]
[null,null,null,null,null,"INSTITUTO LATINOAMERICANO DE ESTUDIOS SUPERIORES",19,18,37]
[null,null,null,null,null,"LICENCIATURA EN ADMINISTRACIÓN Y GESTIÓN DE EMPRESAS",15,15,30]
[null,null,null,null,null,"LICENCIATURA EN SISTEMAS DE INFORMACIÓN ADMINISTRATIVA",4,3,7]
[null,null,null,null,null,"INSTITUTO PROFESIONAL DE EMPRENDEDORES",202,203,405]
[null,null,null,null,null,"LICENCIATURA EN CONTADURÍA Y FINANZAS",80,55,135]
[null,null,null,null,null,"LICENCIATURA EN CRIMINALÍSTICA",5,5,10]
[null,null,null,null,null,"LICENCIATURA EN DISEÑO GRÁFICO",11,9,20]
[null,null,null,null,null,"LICENCIATURA EN ECONOMÍA",11,4,15]
[null,null,null,null,null,"LICENCIATURA EN INGENIERÍA PETROLERA",33,7,40]
[null,null,null,null,null,"LICENCIATURA EN PEDAGOGÍA",4,6,10]
[null,null,null,null,null,"LICENCIATURA EN TRABAJO SOCIAL",58,117,175]
[null,null,null,null,null,"INSTITUTO PROFESIONAL EDUCATIVO DEL SURESTE",8,7,15]
[null,null,null,null,null,"LICENCIATURA EN DERECHO",8,7,15]
[null,null,null,null,null,"INSTITUTO SUPERIOR DE DISEÑO DE MODAS MANIQUIE",8,96,104]
[null,null,null,null,null,"LICENCIATURA EN DISEÑO DE MODA",4,49,53]
[null,null,null,null,null,"LICENCIATURA EN DISEÑO DE MODAS",4,47,51]
[null,null,null,null,null,"INSTITUTO SUPERIOR LEUZAGI",124,355,479]
[null,null,null,null,null,"LICENCIATURA EN CRIMINOLOGÍA Y CRIMINALÍSTICA",9,13,22]
[null,null,null,null,null,"LICENCIATURA EN DERECHO",3,8,11]
[null,null,null,null,null,"LICENCIATURA EN ENFERMERÍA",96,226,322]
[null,null,null,null,null,"LICENCIATURA EN INFORMÁTICA ADMINISTRATIVA",8,2,10]
[null,null,null,null,null,"LICENCIATURA EN PROFESIONALIZACIÓN DE LA ENFERMERÍA",0,8,8]
[null,null,null,null,null,"LICENCIATURA EN PSICOLOGÍA",7,21,28]
[null,null,null,null,null,"LICENCIATURA EN TRABAJO SOCIAL",1,77,78]
[null,null,null,null,null,"INSTITUTO TÉCNICO PROFESIONAL BENEMÉRITO DE LAS AMÉRICAS",10,9,19]
[null,null,null,null,null,"LICENCIATURA EN CONTADURÍA PÚBLICA",8,5,13]
[null,null,null,null,null,"LICENCIATURA EN ENSEÑANZA DEL INGLÉS",2,4,6]
[null,null,null,null,null,"INSTITUTO TECNOLÓGICO DE COMITÁN",1210,527,1737]
[null,null,null,null,null,"INGENIERÍA EN DESARROLLO COMUNITARIO",72,38,110]
[null,null,null,null,null,"INGENIERÍA EN GESTIÓN EMPRESARIAL",144,116,260]
[null,null,null,null,null,"INGENIERÍA EN INNOVACIÓN Y DESARROLLO SUSTENTABLE",179,57,236]
[null,null,null,null,null,"INGENIERÍA EN SISTEMAS COMPUTACIONALES",231,53,284]
[null,null,null,null,null,"INGENIERÍA EN TECNOLOGÍAS DE LA INFORMACIÓN Y COMUNICACIÓN",36,18,54]
[null,null,null,null,null,"INGENIERÍA INDUSTRIAL",399,110,509]
[null,null,null,null,null,"LICENCIATURA EN ADMINISTRACIÓN",149,135,284]
[null,null,null,null,null,"LICENCIATURA EN INFORMÁTICA",0,0,0]
[null,null,null,null,null,"INSTITUTO TECNOLÓGICO DE FRONTERA COMALAPA",205,88,293]
[null,null,null,null,null,"INGENIERÍA EN GESTIÓN EMPRESARIAL",12,25,37]
[null,null,null,null,null,"INGENIERÍA EN INNOVACIÓN AGRÍCOLA SUSTENTABLE",93,26,119]
[null,null,null,null,null,"INGENIERÍA EN SISTEMAS COMPUTACIONALES",100,37,137]
[null,null,null,null,null,"INSTITUTO TECNOLÓGICO DE TAPACHULA",2068,678,2746]
[null,null,null,null,null,"INGENIERÍA CIVIL",644,191,835]
[null,null,null,null,null,"INGENIERÍA EN ELECTROMECÁNICA",538,26,564]
[null,null,null,null,null,"INGENIERÍA EN GESTIÓN EMPRESARIAL",120,123,243]
[null,null,null,null,null,"INGENIERÍA EN INFORMÁTICA",12,10,22]
[null,null,null,null,null,"INGENIERÍA EN SISTEMAS COMPUTACIONALES",392,105,497]
[null,null,null,null,null,"INGENIERÍA INDUSTRIAL",260,131,391]
[null,null,null,null,null,"INGENIERÍA QUÍMICA",102,92,194]
[null,null,null,null,null,"LICENCIATURA EN INFORMÁTICA",0,0,0]
[null,null,null,null,null,"INSTITUTO TECNOLÓGICO DE TUXTLA GUTIÉRREZ",2987,1311,4298]
[null,null,null,null,null,"INGENIERÍA BIOQUÍMICA",174,223,397]
[null,null,null,null,null,"INGENIERÍA EN ELÉCTRICA",501,59,560]
[null,null,null,null,null,"INGENIERÍA EN ELECTRÓNICA",342,44,386]
[null,null,null,null,null,"INGENIERÍA EN GESTIÓN EMPRESARIAL",252,389,641]
[null,null,null,null,null,"INGENIERÍA EN LOGÍSTICA",17,10,27]
[null,null,null,null,null,"INGENIERÍA EN SISTEMAS COMPUTACIONALES",594,137,731]
[null,null,null,null,null,"INGENIERÍA EN SISTEMAS DE COMPUTACIÓN",41,31,72]
[null,null,null,null,null,"INGENIERÍA INDUSTRIAL",453,262,715]
[null,null,null,null,null,"INGENIERÍA MECÁNICA",470,38,508]
[null,null,null,null,null,"INGENIERÍA QUÍMICA",143,118,261]
[null,null,null,null,null,"LICENCIATURA EN INFORMÁTICA",0,0,0]
[null,null,null,null,null,"INSTITUTO TECNOLÓGICO SUPERIOR DE CINTALAPA",1190,518,1708]
[null,null,null,null,null,"INGENIERÍA CIVIL",386,106,492]
[null,null,null,null,null,"INGENIERÍA EN DESARROLLO COMUNITARIO",94,100,194]
[null,null,null,null,null,"INGENIERÍA EN ENERGÍAS RENOVABLES",126,27,153]
[null,null,null,null,null,"INGENIERÍA EN INDUSTRIAS ALIMENTARIAS",57,85,142]
[null,null,null,null,null,"INGENIERÍA INDUSTRIAL",258,105,363]
[null,null,null,null,null,"INGENIERÍA INFORMÁTICA",269,95,364]
[null,null,null,null,null,"LICENCIATURA EN INFORMÁTICA",0,0,0]
[null,null,null,null,null,"INSTITUTO TECNOLÓGICO Y DE ESTUDIOS SUPERIORES DE MONTERREY",68,61,129]
[null,null,null,null,null,"INGENIERÍA INDUSTRIAL Y DE SISTEMAS",32,14,46]
[null,null,null,null,null,"LICENCIATURA EN ADMINISTRACIÓN DE EMPRESAS",23,32,55]
[null,null,null,null,null,"LICENCIATURA EN NEGOCIOS INTERNACIONALES",13,15,28]
[null,null,null,null,null,"INSTITUTO UNIVERSITARIO AZTECA DE CHIAPAS",300,258,558]
[null,null,null,null,null,"LICENCIATURA EN ADMINISTRACIÓN DE EMPRESAS",52,34,86]
[null,null,null,null,null,"LICENCIATURA EN CIENCIAS DE LA COMUNICACIÓN",2,1,3]
[null,null,null,null,null,"LICENCIATURA EN CIENCIAS POLÍTICAS Y ADMINISTRACIÓN PÚBLICA",2,0,2]
[null,null,null,null,null,"LICENCIATURA EN CONTADURÍA PÚBLICA",38,37,75]
[null,null,null,null,null,"LICENCIATURA EN DERECHO",78,45,123]
[null,null,null,null,null,"LICENCIATURA EN ENSEÑANZA DEL INGLÉS",9,7,16]
[null,null,null,null,null,"LICENCIATURA EN GASTRONOMÍA",2,4,6]
[null,null,null,null,null,"LICENCIATURA EN INGENIERÍA CIVIL",55,10,65]
[null,null,null,null,null,"LICENCIATURA EN INGENIERÍA EN SISTEMAS COMPUTACIONALES",14,4,18]
[null,null,null,null,null,"LICENCIATURA EN TEOLOGÍA",25,14,39]
[null,null,null,null,null,"LICENCIATURA EN TRABAJO SOCIAL",23,102,125]
[null,null,null,null,null,"INSTITUTO UNIVERSITARIO DE CIENCIAS EN LA ESTÉTICA HUMANA",9,21,30]
[null,null,null,null,null,"LICENCIATURA EN COSMETOLOGÍA Y BELLEZA",1,7,8]
[null,null,null,null,null,"LICENCIATURA EN DISEÑO DE IMAGEN",2,0,2]
[null,null,null,null,null,"LICENCIATURA EN TRABAJO SOCIAL",6,14,20]
[null,null,null,null,null,"INSTITUTO UNIVERSITARIO DE ESTUDIOS MÉXICO",468,796,1264]
[null,null,null,null,null,"INGENIERÍA EN SISTEMAS COMPUTACIONALES",59,8,67]
[null,null,null,null,null,"LICENCIATURA EN CONTADURÍA E INFORMÁTICA",76,67,143]
[null,null,null,null,null,"LICENCIATURA EN INFORMÁTICA ADMINISTRATIVA",31,28,59]
[null,null,null,null,null,"LICENCIATURA EN INGENIERÍA EN SISTEMAS COMPUTACIONALES",73,7,80]
[null,null,null,null,null,"LICENCIATURA EN TRABAJO SOCIAL",219,666,885]
[null,null,null,null,null,"LICENCIATURA EN TURISMO",10,20,30]
[null,null,null,null,null,"INSTITUTO UNIVERSITARIO DE MÉXICO",360,742,1102]
[null,null,null,null,null,"INGENIERÍA EN SISTEMAS COMPUTACIONALES",37,18,55]
[null,null,null,null,null,"LICENCIATURA EN CONTADURÍA E INFORMÁTICA",22,25,47]
[null,null,null,null,null,"LICENCIATURA EN CRIMINOLOGÍA Y CRIMINALÍSTICA",119,113,232]
[null,null,null,null,null,"LICENCIATURA EN DERECHO",50,45,95]
[null,null,null,null,null,"LICENCIATURA EN ENFERMERÍA",54,176,230]
[null,null,null,null,null,"LICENCIATURA EN INFORMÁTICA ADMINISTRATIVA",11,12,23]
[null,null,null,null,null,"LICENCIATURA EN TRABAJO SOCIAL",29,223,252]
[null,null,null,null,null,"PROFESIONALIZACIÓN DE ENFERMERÍA NIVEL LICENCIATURA",38,130,168]
[null,null,null,null,null,"INSTITUTO UNIVERSITARIO PANAMERICANO",326,147,473]
[null,null,null,null,null,"LICENCIATURA EN DERECHO",270,118,388]
[null,null,null,null,null,"LICENCIATURA EN INFORMÁTICA",56,29,85]
[null,null,null,null,null,"LICENCIATURA EN EDUCACIÓN FÍSICA CURSOS ORDINARIOS",100,36,136]
[null,null,null,null,null,"LICENCIATURA EN EDUCACIÓN FÍSICA",100,36,136]
[null,null,null,null,null,"LICENCIATURA EN EDUCACIÓN NORMAL PRESCOLAR",70,176,246]
[null,null,null,null,null,"LICENCIATURA EN EDUCACIÓN PREESCOLAR",0,121,121]
[null,null,null,null,null,"LICENCIATURA EN EDUCACIÓN PRIMARIA",70,55,125]
[null,null,null,null,null,"LICENCIATURA EN EDUCACIÓN NORMAL PRESCOLAR BERTHA VON GLUMER Y LEYVA",0,469,469]
[null,null,null,null,null,"LICENCIATURA EN EDUCACIÓN PREESCOLAR",0,469,469]
[null,null,null,null,null,"LICENCIATURA EN EDUCACIÓN NORMAL PRESCOLAR FRAY MATÍAS DE CÓRDOVA Y ORDOÑEZ",6,92,98]
[null,null,null,null,null,"LICENCIATURA EN EDUCACIÓN PREESCOLAR",6,92,98]
[null,null,null,null,null,"LICENCIATURA EN EDUCACIÓN NORMAL PRESCOLAR MANUEL LARRAINZAR",0,112,112]
[null,null,null,null,null,"LICENCIATURA EN EDUCACIÓN PREESCOLAR",0,112,112]
[null,null,null,null,null,"LICENCIATURA EN EDUCACIÓN NORMAL PRESCOLAR ROSAURA ZAPATA CANO",1,238,239]
[null,null,null,null,null,"LICENCIATURA EN EDUCACIÓN PREESCOLAR",1,238,239]
[null,null,null,null,null,"LICENCIATURA EN EDUCACIÓN NORMAL PRIMARIA",43,79,122]
[null,null,null,null,null,"LICENCIATURA EN EDUCACIÓN PRIMARIA",43,79,122]
[null,null,null,null,null,"LICENCIATURA EN EDUCACIÓN NORMAL PRIMARIA FRAY MATÍAS DE CÓRDOVA Y ORDOÑEZ",109,191,300]
[null,null,null,null,null,"LICENCIATURA EN EDUCACIÓN ESPECIAL EN EL ÁREA DE ATENCIÓN INTELECTUAL",15,83,98]
[null,null,null,null,null,"LICENCIATURA EN EDUCACIÓN PRIMARIA",94,108,202]
[null,null,null,null,null,"LICENCIATURA EN EDUCACIÓN NORMAL PRIMARIA MANUEL LARRAINZAR",113,111,224]
[null,null,null,null,null,"LICENCIATURA EN EDUCACIÓN PRIMARIA INTERCULTURAL BILINGÜE",113,111,224]
[null,null,null,null,null,"LICENCIATURA EN EDUCACIÓN NORMAL PRIMARIA MANUEL VELASCO SUAREZ",51,69,120]
[null,null,null,null,null,"LICENCIATURA EN EDUCACIÓN PRIMARIA",51,69,120]
[null,null,null,null,null,"LICENCIATURA EN EDUCACIÓN NORMAL SUPERIOR CURSOS INTENSIVOS",182,153,335]
[null,null,null,null,null,"LICENCIATURA EN EDUCACIÓN ARTÍSTICA",20,1,21]
[null,null,null,null,null,"LICENCIATURA EN EDUCACIÓN SECUNDARIA CON ESPECIALIDAD EN BIOLOGÍA",34,25,59]
[null,null,null,null,null,"LICENCIATURA EN EDUCACIÓN SECUNDARIA CON ESPECIALIDAD EN ESPAÑOL",40,57,97]
[null,null,null,null,null,"LICENCIATURA EN EDUCACIÓN SECUNDARIA CON ESPECIALIDAD EN GEOGRAFÍA",11,10,21]
[null,null,null,null,null,"LICENCIATURA EN EDUCACIÓN SECUNDARIA CON ESPECIALIDAD EN LENGUA EXTRANJERA (INGLÉS)",14,18,32]
[null,null,null,null,null,"LICENCIATURA EN EDUCACIÓN SECUNDARIA CON ESPECIALIDAD EN MATEMÁTICAS",53,30,83]
[null,null,null,null,null,"LICENCIATURA EN EDUCACIÓN SECUNDARIA CON ESPECIALIDAD EN QUÍMICA",10,12,22]
[null,null,null,null,null,"LICENCIATURA EN EDUCACIÓN NORMAL SUPERIOR CURSOS ORDINARIOS",335,365,700]
[null,null,null,null,null,"LICENCIATURA EN EDUCACIÓN SECUNDARIA CON ESPECIALIDAD EN ESPAÑOL",29,57,86]
[null,null,null,null,null,"LICENCIATURA EN EDUCACIÓN SECUNDARIA CON ESPECIALIDAD EN FÍSICA",74,42,116]
[null,null,null,null,null,"LICENCIATURA EN EDUCACIÓN SECUNDARIA CON ESPECIALIDAD EN FORMACIÓN CÍVICA Y ÉTICA",39,75,114]
[null,null,null,null,null,"LICENCIATURA EN EDUCACIÓN SECUNDARIA CON ESPECIALIDAD EN HISTORIA",51,37,88]
[null,null,null,null,null,"LICENCIATURA EN EDUCACIÓN SECUNDARIA CON ESPECIALIDAD EN MATEMÁTICAS",48,40,88]
[null,null,null,null,null,"LICENCIATURA EN EDUCACIÓN SECUNDARIA CON ESPECIALIDAD EN QUÍMICA",35,53,88]
[null,null,null,null,null,"LICENCIATURA EN EDUCACIÓN SECUNDARIA CON ESPECIALIDAD EN TELESECUNDARIA",59,61,120]
[null,null,null,null,null,"INGENIERÍA BIOTECNÓLOGO",104,88,192]
[null,null,null,null,null,"LICENCIATURA EN CIENCIAS DE LA COMUNICACIÓN",0,0,0]
[null,null,null,null,null,"LICENCIATURA EN ENSEÑANZA DEL INGLÉS",104,172,276]
[null,null,null,null,null,"LICENCIATURA EN GERONTOLOGÍA",68,161,229]
[null,null,null,null,null,"LICENCIATURA EN MEDICINA VETERINARIA Y ZOOTECNIA",381,172,553]
[null,null,null,null,null,"LICENCIATURA EN INGENIERÍA EN DESARROLLO Y TECNOLOGÍAS DEL SOFTWARE",67,20,87]
[null,null,null,null,null,"LICENCIATURA EN ESTOMATOLOGÍA",31,21,52]
[null,null,null,null,null,"INGENIERÍA EN GEOMÁTICA",85,22,107]
[null,null,null,null,null,"INGENIERÍA TOPÓGRAFO E HIDRÓLOGO",228,56,284]
[null,null,null,null,null,"LICENCIATURA EN GESTIÓN Y DESARROLLO DE NEGOCIOS",74,61,135]
[null,null,null,null,null,"LICENCIATURA EN MÚSICA",75,31,106]
[null,null,null,null,null,"UNIVERSIDAD DE LOS ALTOS DE CHIAPAS",511,250,761]
[null,null,null,null,null,"LICENCIATURA EN TRABAJO SOCIAL",5,26,31]
[null,null,null,null,null,"LICENCIATURA EN IDIOMAS",0,4,4]
[null,null,null,null,null,"INGENIERÍA EN SISTEMAS COMPUTACIONALES",102,28,130]
[null,null,null,null,null,"LICENCIATURA EN DERECHO",331,131,462]
[null,null,null,null,null,"LICENCIATURA EN PSICOLOGÍA CLÍNICA",33,3,36]
[null,null,null,null,null,"LICENCIATURA EN ADMINISTRACIÓN DE EMPRESAS",22,23,45]
[null,null,null,null,null,"LICENCIATURA EN EDUCACIÓN FÍSICA Y DEPORTIVA",17,4,21]
[null,null,null,null,null,"INGENIERÍA CIVIL",127,24,151]
[null,null,null,null,null,"LICENCIATURA EN ADMINISTRACIÓN DE EMPRESAS TURÍSTICAS",19,42,61]
[null,null,null,null,null,"LICENCIATURA EN DISEÑO GRÁFICO",36,52,88]
[null,null,null,null,null,"LICENCIATURA EN TURISMO ALTERNATIVO",163,153,316]
[null,null,null,null,null,"UNIVERSIDAD JOSÉ VASCONCELOS",189,154,343]
[null,null,null,null,null,"LICENCIATURA EN DERECHO Y CRIMINOLOGÍA",104,55,159]
[null,null,null,null,null,"LICENCIATURA EN CIENCIAS DE LA EDUCACIÓN EN EL ÁREA DE PSICOLOGÍA EDUCATIVA",1,29,30]
[null,null,null,null,null,"LICENCIATURA EN TEOLOGÍA",171,0,171]
[null,null,null,null,null,"UNIVERSIDAD PABLO GUARDADO CHÁVEZ",963,1093,2056]
[null,null,null,null,null,"LICENCIATURA EN CIRUJANO ODONTÓLOGO",62,80,142]
[null,null,null,null,null,"UNIVERSIDAD PEDAGÓGICA NACIONAL UNIDAD 071 TUXTLA",913,1286,2199]
[null,null,null,null,null,"INGENIERÍA EN ENERGÍA",175,36,211]
[null,null,null,null,null,"UNIVERSIDAD POLITÉCNICA DE TAPACHULA",601,208,809]
[null,null,null,null,null,"LICENCIATURA EN DERECHO",133,108,241]
[null,null,null,null,null,"LICENCIATURA EN ARQUITECTURA",4,0,4]
[null,null,null,null,null,"INGENIERÍA EN FINANCIERA Y FISCAL",10,9,19]
[null,null,null,null,null,"LICENCIA PROFESIONAL EN SEGURIDAD E INOCUIDAD ALIMENTARIA",3,9,12]
[null,null,null,null,null,"TÉCNICO SUPERIOR UNIVERSITARIO EN TECNOLOGÍAS DE LA INFORMACIÓN Y COMUNICACIÓN",83,32,115]
[null,null,null,null,null,"CONTADURÍA PÚBLICA",0,0,0]
[null,null,null,null,null,"LICENCIATURA EN ADMINISTRACIÓN DE EMPRESAS TURÍSTICAS",57,114,171]
[null,null,null,null,null,"LICENCIATURA EN CIENCIAS DE LA EDUCACIÓN CON TERMINAL EN PSICOLOGÍA EDUCATIVA",450,955,1405]
[null,null,null,null,null,"CENTRO UNIVERSITARIO JOSE VASCONCELOS CALDERÓN",4,3,7]
[null,null,null,null,null,"CENTRO DE ACTUALIZACIÓN DEL MAGISTERIO",53,42,95]
[null,null,null,null,null,"LICENCIATURA EN EDUCACIÓN ESPECIAL EN EL ÁREA DE ATENCIÓN INTELECTUAL",42,153,195]
[null,null,null,null,null,"LICENCIATURA EN ESTUDIOS LATINOAMERICANOS",1,2,3]
[null,null,null,null,null,"LICENCIATURA EN CONTADURÍA PÚBLICA",3,0,3]
[null,null,null,null,null,"INGENIERÍA EN SISTEMAS COMPUTACIONALES",3,0,3]
[null,null,null,null,null,"INGENIERÍA EN TRÁFICO",0,0,0]
[null,null,null,null,null,"LICENCIATURA EN PSICOLOGÍA",49,185,234]
[null,null,null,null,null,"LICENCIATURA EN PSICOLOGÍA",17,70,87]
[null,null,null,null,null,"LICENCIATURA EN ARTES VISUALES",39,47,86]
[null,null,null,null,null,"LICENCIATURA EN PSICOLOGÍA CRIMINOLÓGICA",27,68,95]
[null,null,null,null,null,"LICENCIATURA EN PSICOPEDAGOGÍA",4,74,78]
[null,null,null,null,null,"LICENCIATURA EN PSICOLOGÍA",26,123,149]
[null,null,null,null,null,"LICENCIATURA EN EDUCACIÓN SECUNDARIA CON ESPECIALIDAD EN ESPAÑOL",90,290,380]
[null,null,null,null,null,"LICENCIATURA EN EDUCACIÓN SECUNDARIA CON ESPECIALIDAD EN GEOGRAFÍA",42,64,106]
[null,null,null,null,null,"LICENCIATURA EN PSICOLOGÍA",89,143,232]
[null,null,null,null,null,"LICENCIATURA EN CRIMINOLOGÍA",4,8,12]
[null,null,null,null,null,"LICENCIATURA EN GASTRONOMÍA",22,16,38]
[null,null,null,null,null,"INSTITUTO SUPERIOR DE ARTES GASTRONÓMICAS",31,53,84]
[null,null,null,null,null,"INGENIERÍA QUÍMICA",114,222,336]
[null,null,null,null,null,"INGENIERÍA EN GESTIÓN EMPRESARIAL",104,224,328]
[null,null,null,null,null,"INGENIERÍA EN LOGÍSTICA",58,55,113]
[null,null,null,null,null,"INSTITUTO TECNOLÓGICO DE CIUDAD JUÁREZ",4189,2751,6940]
[null,null,null,null,null,"CONTADOR PÚBLICO",206,347,553]
[null,null,null,null,null,"LICENCIATURA EN ADMINISTRACIÓN",295,648,943]
[null,null,null,null,null,"INGENIERÍA EN SISTEMAS COMPUTACIONALES",197,62,259]
[null,null,null,null,null,"INGENIERÍA EN TECNOLOGÍAS DE LA INFORMACIÓN Y COMUNICACIONES",23,13,36]
[null,null,null,null,null,"INGENIERÍA EN GESTIÓN EMPRESARIAL",123,207,330]
[null,null,null,null,null,"INGENIERÍA CIVIL",85,19,104]
[null,null,null,null,null,"LICENCIATURA EN MERCADOTECNIA Y COMUNICACIÓN",8,37,45]
[null,null,null,null,null,"LICENCIATURA EN EDUCACIÓN PRIMARIA INTERCULTURAL BILINGÜE",20,44,64]
[null,null,null,null,null,"INGENIERÍA DE MINAS Y METALURGISTA",331,62,393]
[null,null,null,null,null,"INGENIERÍA EN TECNOLOGÍA DE PROCESOS",180,73,253]
[null,null,null,null,null,"LICENCIATURA EN ADMINISTRACIÓN DE TECNOLOGÍAS DE LA INFORMACIÓN Y COMUNICACIONES",108,65,173]
[null,null,null,null,null,"LICENCIATURA EN ENFERMERÍA",323,1017,1340]
[null,null,null,null,null,"LICENCIATURA EN PERIODISMO",70,73,143]
[null,null,null,null,null,"QUÍMICO BACTERIÓLOGO Y PARASITÓLOGO",298,621,919]
[null,null,null,null,null,"INGENIERÍA BIOMÉDICA",255,248,503]
[null,null,null,null,null,"INGENIERÍA FÍSICA",126,39,165]
[null,null,null,null,null,"LICENCIATURA EN DISEÑO GRÁFICO",322,430,752]
[null,null,null,null,null,"LICENCIATURA EN ENSEÑANZA DEL INGLÉS",40,104,144]
[null,null,null,null,null,"LICENCIATURA EN PSICOLOGÍA INDUSTRIAL",8,15,23]
[null,null,null,null,null,"LICENCIATURA EN DISEÑO DIGITAL DE MEDIOS INTERACTIVOS",55,25,80]
[null,null,null,null,null,"LICENCIATURA EN CRIMINOLOGÍA",13,20,33]
[null,null,null,null,null,"INGENIERÍA EN SISTEMAS COMPUTACIONALES",11,2,13]
[null,null,null,null,null,"LICENCIATURA EN ADMINISTRACIÓN DE EMPRESAS TURÍSTICAS",24,34,58]
[null,null,null,null,null,"LICENCIATURA EN MERCADOTECNIA",19,22,41]
[null,null,null,null,null,"LICENCIATURA EN DERECHO",15,19,34]
[null,null,null,null,null,"LICENCIATURA EN DISEÑO",13,45,58]
[null,null,null,null,null,"LICENCIATURA EN RECURSOS HUMANOS",5,15,20]
[null,null,null,null,null,"LICENCIATURA EN EDUCACIÓN PREESCOLAR PARA EL MEDIO INDÍGENA",20,46,66]
[null,null,null,null,null,"LICENCIATURA EN ADMINISTRACIÓN DE EMPRESAS OPCIÓN RECURSOS HUMANOS",4,4,8]
[null,null,null,null,null,"LICENCIATURA EN COMERCIO EXTERIOR",2,1,3]
[null,null,null,null,null,"UNIVERSIDAD REGIONAL DEL NORTE CD. JUÁREZ",172,157,329]
[null,null,null,null,null,"INGENIERÍA EN MECATRÓNICA",85,14,99]
[null,null,null,null,null,"INGENIERÍA EN ENERGÍAS RENOVABLES",37,15,52]
[null,null,null,null,null,"TÉCNICO SUPERIOR UNIVERSITARIO EN DESARROLLO DE NEGOCIOS ÁREA MERCADOTECNIA",308,367,675]
[null,null,null,null,null,"INGENIERÍA EN MANTENIMIENTO INDUSTRIAL",248,8,256]
[null,null,null,null,null,"LICENCIATURA EN NEGOCIOS E INNOVACIÓN EMPRESARIAL",77,150,227]
[null,null,null,null,null,"TÉCNICO SUPERIOR UNIVERSITARIO EN MECATRÓNICA ÁREA SISTEMAS DE MANUFACTURA FLEXIBLE",291,29,320]
[null,null,null,null,null,"INGENIERÍA EN TECNOLOGÍA AMBIENTAL",14,15,29]
[null,null,null,null,null,"UNIVERSIDAD TECNOLÓGICA DE PAQUIME",508,365,873]
[null,null,null,null,null,"TÉCNICO SUPERIOR UNIVERSITARIO EN AGRICULTURA SUSTENTABLE Y PROTEGIDA",18,15,33]
[null,null,null,null,null,"TÉCNICO SUPERIOR UNIVERSITARIO EN MANTENIMIENTO A MAQUINARIA PESADA",286,17,303]
[null,null,null,null,null,"INGENIERÍA EN TECNOLOGÍAS DE INFORMACIÓN Y COMUNICACIÓN",53,25,78]
[null,null,null,null,null,"SINCE COLEGIO UNIVERSITARIO",15,28,43]
[null,null,null,null,null,"LICENCIATURA EN PSICOLOGÍA",38,107,145]
[null,null,null,null,null,"LICENCIATURA EN DERECHO",474,523,997]
[null,null,null,null,null,"COAHUILA",53359,46794,100153]
[null,null,null,null,null,"LICENCIATURA EN DISEÑO GRÁFICO Y ANIMACIÓN",3,1,4]
[null,null,null,null,null,"CONTADOR PÚBLICO Y AUDITOR",32,85,117]
[null,null,null,null,null,"LICENCIATURA EN DISEÑO GRÁFICO Y ANIMACIÓN",33,35,68]
[null,null,null,null,null,"LICENCIATURA EN INGENIERÍA EN MECATRÓNICA",60,6,66]
[null,null,null,null,null,"LICENCIATURA EN EDUCACIÓN ESPECIAL EN EL ÁREA DE ATENCIÓN INTELECTUAL",3,54,57]
[null,null,null,null,null,"TRONCO COMÚN EN LA LICENCIATURA EN EDUCACIÓN ESPECIAL",1,36,37]
[null,null,null,null,null,"ESCUELA NORMAL SUPERIOR DEL ESTADO",77,275,352]
[null,null,null,null,null,"INSTITUTO DE CIENCIA Y CULTURA",17,55,72]
[null,null,null,null,null,"LICENCIATURA EN CONTADURÍA PÚBLICA",14,35,49]
[null,null,null,null,null,"INSTITUTO DE ENSEÑANZA Y CAPACITACIÓN",138,171,309]
[null,null,null,null,null,"LICENCIATURA EN ENFERMERÍA Y OBSTETRICIA",98,279,377]
[null,null,null,null,null,"INSTITUTO MEXICANO DE ESTUDIOS SUPERIORES",17,49,66]
[null,null,null,null,null,"INSTITUTO SUPERIOR DE CIENCIAS QUÍMICO BIOLÓGICAS",8,8,16]
[null,null,null,null,null,"LICENCIATURA EN INFORMÁTICA",0,1,1]
[null,null,null,null,null,"INGENIERÍA INDUSTRIAL",8,2,10]
[null,null,null,null,null,"LICENCIATURA EN INGENIERÍA MECATRÓNICA",862,134,996]
[null,null,null,null,null,"INGENIERÍA ELÉCTRICA",236,5,241]
[null,null,null,null,null,"LICENCIATURA EN INFORMÁTICA",0,0,0]
[null,null,null,null,null,"INGENIERÍA EN INDUSTRIAS ALIMENTARIAS",50,98,148]
[null,null,null,null,null,"LICENCIATURA EN ADMINISTRACIÓN",3,3,6]
[null,null,null,null,null,"LICENCIATURA EN INFORMÁTICA",2,0,2]
[null,null,null,null,null,"INGENIERÍA EN GESTIÓN EMPRESARIAL",186,216,402]
[null,null,null,null,null,"INSTITUTO TECNOLÓGICO Y DE ESTUDIOS SUPERIORES DE MONTERREY",890,680,1570]
[null,null,null,null,null,"LICENCIATURA EN CONTADURÍA PÚBLICA",8,5,13]
[null,null,null,null,null,"LICENCIATURA EN CIENCIAS DE LA COMUNICACIÓN",22,29,51]
[null,null,null,null,null,"LICENCIATURA EN PSICOLOGÍA ORGANIZACIONAL",80,95,175]
[null,null,null,null,null,"LICENCIATURA EN PSICOLOGÍA HUMANISTA",12,52,64]
[null,null,null,null,null,"LICENCIATURA EN PSICOLOGÍA",33,168,201]
[null,null,null,null,null,"INGENIERÍA AGRÓNOMO",291,82,373]
[null,null,null,null,null,"INGENIERÍA AGRÓNOMO EN PRODUCCIÓN",331,77,408]
[null,null,null,null,null,"CIRUJANO DENTISTA",258,465,723]
[null,null,null,null,null,"INGENIERÍA MECÁNICA ELÉCTRICA",316,14,330]
[null,null,null,null,null,"LICENCIADO EN ENFERMERÍA",45,158,203]
[null,null,null,null,null,"LICENCIATURA EN ECONOMÍA",98,96,194]
[null,null,null,null,null,"LICENCIATURA EN HISTORIA",47,62,109]
[null,null,null,null,null,"LICENCIATURA EN SISTEMAS COMPUTACIONALES Y ADMINISTRATIVOS",13,16,29]
[null,null,null,null,null,"CONTADOR PÚBLICO",13,16,29]
[null,null,null,null,null,"LICENCIATURA EN COMERCIO INTERNACIONAL",44,36,80]
[null,null,null,null,null,"LICENCIATURA EN DERECHO",19,28,47]
[null,null,null,null,null,"LICENCIATURA EN DISEÑO GRÁFICO",107,184,291]
[null,null,null,null,null,"LICENCIATURA EN PSICOLOGÍA",135,446,581]
[null,null,null,null,null,"LICENCIATURA EN INGENIERO EN TECNOLOGÍAS COMPUTACIONALES",93,19,112]
[null,null,null,null,null,"LICENCIATURA EN ADMINISTRACIÓN DE EMPRESAS",151,158,309]
[null,null,null,null,null,"LICENCIATURA EN INGENIERÍA Y SISTEMAS COMPUTACIONALES",71,26,97]
[null,null,null,null,null,"LICENCIATURA EN ADMINISTRACIÓN PÚBLICA",24,20,44]
[null,null,null,null,null,"LICENCIATURA EN MERCADOTECNIA",11,9,20]
[null,null,null,null,null,"LICENCIATURA INTERNACIONAL EN ADMINISTRACIÓN DE EMPRESAS DE LA HOSPITALIDAD",77,141,218]
[null,null,null,null,null,"UNIVERSIDAD INTERAMERICANA PARA EL DESARROLLO",299,442,741]
[null,null,null,null,null,"LICENCIATURA EN DERECHO",62,92,154]
[null,null,null,null,null,"LICENCIATURA EN DISEÑO GRÁFICO",1,8,9]
[null,null,null,null,null,"LICENCIATURA EN ADMINISTRACIÓN DE EMPRESAS",55,108,163]
[null,null,null,null,null,"LICENCIATURA EN PSICOLOGÍA",6,68,74]
[null,null,null,null,null,"LICENCIATURA EN COMUNICACIONES Y ADMINISTRACIÓN DE EMPRESAS",5,5,10]
[null,null,null,null,null,"LICENCIATURA EN ROBÓTICA",95,9,104]
[null,null,null,null,null,"LICENCIATURA EN GESTIÓN Y ADMINISTRACIÓN DE PYMES",18,42,60]
[null,null,null,null,null,"TÉCNICO SUPERIOR UNIVERSITARIO EN ENERGÍAS RENOVABLES ÁREA CALIDAD Y AHORRO DE ENERGÍA",20,11,31]
[null,null,null,null,null,"TÉCNICO SUPERIOR UNIVERSITARIO EN PROCESOS INDUSTRIALES ÁREA AUTOMOTRIZ",40,13,53]
[null,null,null,null,null,"TÉCNICO SUPERIOR UNIVERSITARIO EN TECNOLOGÍAS DE LA INFORMACIÓN Y COMUNICACIÓN ÁREA SISTEMAS INFORMÁTICOS",49,26,75]
[null,null,null,null,null,"INGENIERÍA EN MANTENIMIENTO INDUSTRIAL",290,35,325]
[null,null,null,null,null,"UNIVERSIDAD TECNOLÓGICA DE SALTILLO",333,283,616]
[null,null,null,null,null,"TÉCNICO SUPERIOR UNIVERSITARIO EN MANTENIMIENTO ÁREA INDUSTRIAL",150,44,194]
[null,null,null,null,null,"TÉCNICO SUPERIOR UNIVERSITARIO EN TECNOLOGÍAS DE LA INFORMACIÓN Y COMUNICACIÓN ÁREA REDES Y TELECOMUNICACIONES",67,33,100]
[null,null,null,null,null,"TÉCNICO SUPERIOR UNIVERSITARIO EN MECATRÓNICA ÁREA INSTALACIONES ELÉCTRICAS EFICIENTES",101,6,107]
[null,null,null,null,null,"CONTADOR PÚBLICO",12,56,68]
[null,null,null,null,null,"LICENCIATURA EN EDUCACIÓN",86,499,585]
[null,null,null,null,null,"UNIVERSIDAD VIRTUAL DEL VALLE DE EXTREMADURA",6,4,10]
[null,null,null,null,null,"LICENCIATURA EN TEOLOGÍA",15,0,15]
[null,null,null,null,null,"INSTITUTO DE ESTUDIOS SUPERIORES IGNACIO ZARAGOZA",6,6,12]
[null,null,null,null,null,"LICENCIATURA EN ADMINISTRACIÓN DE EMPRESAS",72,50,122]
[null,null,null,null,null,"LICENCIATURA EN CONTADURÍA PÚBLICA Y CONSULTORÍA DE NEGOCIOS",38,51,89]
[null,null,null,null,null,"LICENCIATURA EN INGENIERÍA MECÁNICA Y MATERIALES",28,4,32]
[null,null,null,null,null,"LICENCIATURA EN ADMINISTRACIÓN",33,37,70]
[null,null,null,null,null,"LICENCIATURA EN CONTADURÍA PÚBLICA",19,39,58]
[null,null,null,null,null,"LICENCIATURA EN ALTA COSTURA Y DISEÑO DE MODAS",1,14,15]
[null,null,null,null,null,"LICENCIATURA EN PSICOLOGÍA ORGANIZACIONAL",38,57,95]
[null,null,null,null,null,"INSTITUTO JOSÉ VASCONCELOS",2,10,12]
[null,null,null,null,null,"LICENCIATURA EN EDUCACIÓN SECUNDARIA CON ESPECIALIDAD EN ESPAÑOL",6,20,26]
[null,null,null,null,null,"LICENCIATURA EN ADUANAS Y COMERCIO EXTERIOR",36,45,81]
[null,null,null,null,null,"CONTADOR PÚBLICO",91,82,173]
[null,null,null,null,null,"INSTITUTO TECOMENSE DE ESTUDIOS SUPERIORES LIC. BENITO JUÁREZ",114,205,319]
[null,null,null,null,null,"INGENIERÍA AGRÓNOMO",298,67,365]
[null,null,null,null,null,"INGENIERÍA EN TECNOLOGÍAS ELECTRÓNICAS",29,6,35]
[null,null,null,null,null,"LICENCIATURA EN CIENCIA AMBIENTAL Y GESTIÓN DE RIESGOS",32,41,73]
[null,null,null,null,null,"LICENCIATURA EN ENFERMERÍA",125,357,482]
[null,null,null,null,null,"LICENCIATURA EN GESTIÓN DE RECURSOS MARINOS Y PORTUARIOS",26,36,62]
[null,null,null,null,null,"LICENCIATURA EN PEDAGOGÍA",75,315,390]
[null,null,null,null,null,"LICENCIATURA EN COMUNICACIÓN E IMAGEN PÚBLICA",0,2,2]
[null,null,null,null,null,"LICENCIATURA EN ADMINISTRACIÓN DE EMPRESAS",2,9,11]
[null,null,null,null,null,"LICENCIATURA EN MERCADOTECNIA",9,7,16]
[null,null,null,null,null,"TÉCNICO SUPERIOR UNIVERSITARIO EN GASTRONOMÍA",44,65,109]
[null,null,null,null,null,"TÉCNICO SUPERIOR UNIVERSITARIO EN TECNOLOGÍAS DE LA INFORMACIÓN Y COMUNICACIÓN ÁREA SISTEMAS INFORMÁTICOS",66,10,76]
[null,null,null,null,null,"LICENCIATURA EN CIENCIAS DE LA COMUNICACIÓN",14,20,34]
[null,null,null,null,null,"INSTITUTO LIBERAL DE EDUCACIÓN SUPERIOR",12,29,41]
[null,null,null,null,null,"CIUDAD DE MÉXICO",349593,332917,682510]
[null,null,null,null,null,"LICENCIATURA EN DESARROLLO HUMANO",3,18,21]
[null,null,null,null,null,"LICENCIATURA EN DISEÑO DE MOBILIARIO Y PRODUCTO",61,71,132]
[null,null,null,null,null,"LICENCIATURA EN DISEÑO DE MODAS",6,30,36]
[null,null,null,null,null,"CENTRO DE ESTUDIOS SUPERIORES DE LA ESCUELA MEXICANA DE TURISMO",51,62,113]
[null,null,null,null,null,"PROFESIONAL ASOCIADO EN ARTES CULINARIAS",4,5,9]
[null,null,null,null,null,"LICENCIATURA EN DERECHO",6,9,15]
[null,null,null,null,null,"LICENCIATURA EN PUBLICIDAD",25,28,53]
[null,null,null,null,null,"CENTRO DE REHABILITACIÓN ZAPATA GABY BRIMMER",18,46,64]
[null,null,null,null,null,"LICENCIATURA EN ANIMACIÓN, DISEÑO Y ARTE DIGITAL",26,16,42]
[null,null,null,null,null,"LICENCIATURA EN DISEÑO PUBLICITARIO",21,35,56]
[null,null,null,null,null,"LICENCIATURA EN CONTADURÍA",7,5,12]
[null,null,null,null,null,"LICENCIATURA EN ADMINISTRACIÓN",12,24,36]
[null,null,null,null,null,"LICENCIATURA EN DERECHO",0,0,0]
[null,null,null,null,null,"LICENCIATURA EN CONTADURÍA PÚBLICA",13,13,26]
[null,null,null,null,null,"COLEGIO SUPERIOR DE NEUROLINGÜÍSTICA Y PSICOPEDAGOGÍA",0,4,4]
[null,null,null,null,null,"DIRECCIÓN GENERAL DE EDUCACIÓN NORMAL Y ACTUALIZACIÓN DEL MAGISTERIO",0,0,0]
[null,null,null,null,null,"LICENCIATURA EN ADMINISTRACIÓN DE EMPRESAS",6,5,11]
[null,null,null,null,null,"LICENCIATURA EN COMERCIO Y NEGOCIOS INTERNACIONALES",317,391,708]
[null,null,null,null,null,"LICENCIATURA EN FINANZAS Y BANCA",549,281,830]
[null,null,null,null,null,"LICENCIATURA EN ENFERMERÍA Y OBSTETRICIA",40,169,209]
[null,null,null,null,null,"LICENCIATURA EN CONCERTISTA DE GUITARRA",7,2,9]
[null,null,null,null,null,"LICENCIATURA EN CONCERTISTA DE TROMBÓN",4,0,4]
[null,null,null,null,null,"ESCUELA INTERNACIONAL DE TURISMO, A.C.",10,39,49]
[null,null,null,null,null,"LICENCIATURA EN ANTROPOLOGÍA SOCIAL",238,231,469]
[null,null,null,null,null,"ESCUELA NACIONAL PARA MAESTRAS DE JARDINES DE NIÑOS",1,811,812]
[null,null,null,null,null,"ESCUELA NORMAL BERTA VON GLUMER",0,93,93]
[null,null,null,null,null,"LICENCIATURA EN EDUCACIÓN PRIMARIA",3,3,6]
[null,null,null,null,null,"LICENCIATURA EN EDUCACIÓN PRIMARIA",0,0,0]
[null,null,null,null,null,"ESCUELA NORMAL SUPERIOR F.E.P.",1,1,2]
[null,null,null,null,null,"FACULTAD CATÓLICA LUMEN GENTIUM",338,53,391]
[null,null,null,null,null,"LICENCIATURA EN ADMINISTRACIÓN",268,357,625]
[null,null,null,null,null,"LICENCIATURA EN DISEÑO DIGITAL",25,7,32]
[null,null,null,null,null,"LICENCIATURA EN CONTADURÍA PÚBLICA",5,4,9]
[null,null,null,null,null,"INSTITUTO CULTURAL DERECHOS HUMANOS",33,108,141]
[null,null,null,null,null,"LICENCIATURA EN PEDAGOGÍA",511,630,1141]
[null,null,null,null,null,"INSTITUTO DE DESARROLLO Y CULTURA DE ARTE Y CULTURA DEL VALLE",12,47,59]
[null,null,null,null,null,"LICENCIATURA EN GASTRONOMÍA",91,73,164]
[null,null,null,null,null,"INSTITUTO DE ESTUDIOS SUPERIORES EN PERIODISMO",110,18,128]
[null,null,null,null,null,"LICENCIATURA EN CONTADURÍA",0,9,9]
[null,null,null,null,null,"LICENCIATURA EN INVESTIGACIÓN POLICIAL",86,19,105]
[null,null,null,null,null,"INSTITUTO DE TERAPIA OCUPACIONAL",8,27,35]
[null,null,null,null,null,"LICENCIATURA EN ADMINISTRACIÓN INDUSTRIAL",34,34,68]
[null,null,null,null,null,"LICENCIATURA EN TURISMO",44,128,172]
[null,null,null,null,null,"INSTITUTO NACIONAL DE ADMINISTRACIÓN PUBLICA",12,12,24]
[null,null,null,null,null,"LICENCIATURA EN ARPA",1,1,2]
[null,null,null,null,null,"LICENCIATURA EN DANZA CONTEMPORÁNEA",60,109,169]
[null,null,null,null,null,"LICENCIATURA EN DISEÑO",130,201,331]
[null,null,null,null,null,"LICENCIATURA EN JAZZ CON ESPECIALIDAD EN FLAUTA",2,1,3]
[null,null,null,null,null,"LICENCIATURA EN VIOLA",6,6,12]
[null,null,null,null,null,"TÉCNICO SUPERIOR UNIVERSITARIO EN DANZA CLÁSICA CON LÍNEA DE TRABAJO DE DOCENCIA",0,10,10]
[null,null,null,null,null,"LICENCIATURA EN DERECHO BUROCRÁTICO",2765,2489,5254]
[null,null,null,null,null,"INGENIERÍA BIOMÉDICA",350,237,587]
[null,null,null,null,null,"INGENIERÍA EN METALURGIA Y MATERIALES",586,156,742]
[null,null,null,null,null,"INGENIERÍA EN TRANSPORTES",1141,414,1555]
[null,null,null,null,null,"INGENIERÍA TEXTIL EN CONFECCIÓN",0,0,0]
[null,null,null,null,null,"LICENCIATURA EN ODONTOLOGÍA",420,803,1223]
[null,null,null,null,null,"LICENCIATURA EN TURISMO",997,2039,3036]
[null,null,null,null,null,"LICENCIATURA EN PROGRAMACIÓN DE VIDEOJUEGOS",57,0,57]
[null,null,null,null,null,"LICENCIATURA EN TRADUCCIÓN",10,38,48]
[null,null,null,null,null,"LICENCIATURA EN DIRECCIÓN FINANCIERA",370,136,506]
[null,null,null,null,null,"INGENIERÍA EN TECNOLOGÍAS DE LA INFORMACIÓN Y COMUNICACIÓN",174,68,242]
[null,null,null,null,null,"INGENIERÍA EN TECNOLOGÍAS DE LA INFORMACIÓN Y COMUNICACIONES",399,159,558]
[null,null,null,null,null,"INSTITUTO TECNOLÓGICO DE LA CONSTRUCCIÓN",339,93,432]
[null,null,null,null,null,"INGENIERÍA EN SISTEMAS COMPUTACIONALES",250,92,342]
[null,null,null,null,null,"INSTITUTO TECNOLÓGICO DE TLÁHUAC",2120,618,2738]
[null,null,null,null,null,"INGENIERÍA EN GESTIÓN EMPRESARIAL",105,125,230]
[null,null,null,null,null,"BACHELOR IN INTERNATIONAL BUSINESS",38,43,81]
[null,null,null,null,null,"INGENIERÍA EN BIOTECNOLOGÍA",129,163,292]
[null,null,null,null,null,"INGENIERÍA MECÁNICO ELECTRICISTA",170,22,192]
[null,null,null,null,null,"LICENCIATURA EN ECONOMÍA",20,23,43]
[null,null,null,null,null,"LICENCIATURA EN MERCADOTECNIA",58,113,171]
[null,null,null,null,null,"LICENCIATURA EN ACTUACIÓN",15,38,53]
[null,null,null,null,null,"LICENCIATURA EN ADMINISTRACIÓN",8,7,15]
[null,null,null,null,null,"INGENIERÍA EN LOGÍSTICA Y TRANSPORTE",3733,1460,5193]
[null,null,null,null,null,"TÉCNICO SUPERIOR UNIVERSITARIO EN DESARROLLO COMUNITARIO",108,178,286]
[null,null,null,null,null,"TÉCNICO SUPERIOR UNIVERSITARIO EN GESTIÓN DE SERVICIOS DE SALUD",21,31,52]
[null,null,null,null,null,"LICENCIATURA EN GERENCIA DE SERVICIOS DE SALUD",554,859,1413]
[null,null,null,null,null,"LICENCIATURA EN CIENCIAS RELIGIOSAS",2,11,13]
[null,null,null,null,null,"LICENCIATURA EN MERCADOTECNIA",77,83,160]
[null,null,null,null,null,"UNIVERSIDAD ANGLO MEXICANA EUROPEA",18,46,64]
[null,null,null,null,null,"INGENIERÍA EN SISTEMAS ELECTRÓNICOS Y DE TELECOMUNICACIONES",825,353,1178]
[null,null,null,null,null,"LICENCIATURA EN PROTECCIÓN CIVIL Y GESTIÓN DE RIESGOS",5,6,11]
[null,null,null,null,null,"INGENIERÍA CIVIL",678,180,858]
[null,null,null,null,null,"INGENIERÍA MECÁNICA",700,53,753]
[null,null,null,null,null,"LICENCIATURA EN BIOLOGÍA MOLECULAR",122,173,295]
[null,null,null,null,null,"LICENCIATURA EN ENFERMERÍA",118,471,589]
[null,null,null,null,null,"LICENCIATURA EN MATEMÁTICAS",288,162,450]
[null,null,null,null,null,"LICENCIATURA EN SOCIOLOGÍA",1208,1619,2827]
[null,null,null,null,null,"UNIVERSIDAD CNCI",78,73,151]
[null,null,null,null,null,"LICENCIATURA EN INGENIERÍA EN SISTEMAS COMPUTACIONALES",211,53,264]
[null,null,null,null,null,"LICENCIATURA EN COMUNICACIÓN Y GESTIÓN DE LA CULTURA Y LAS ARTES",12,52,64]
[null,null,null,null,null,"LICENCIATURA EN PEDAGOGÍA",10,99,109]
[null,null,null,null,null,"LICENCIATURA EN ACTUACIÓN",40,38,78]
[null,null,null,null,null,"LICENCIATURA EN PEDAGOGÍA",9,75,84]
[null,null,null,null,null,"LICENCIATURA EN ESTUDIOS Y GESTIÓN DE LA CULTURA",7,62,69]
[null,null,null,null,null,"LICENCIATURA EN CONTADURÍA Y FINANZAS",60,68,128]
[null,null,null,null,null,"LICENCIATURA EN DERECHO",53,61,114]
[null,null,null,null,null,"LICENCIATURA EN INGENIERÍA EN SISTEMAS COMPUTACIONALES",79,16,95]
[null,null,null,null,null,"UNIVERSIDAD DEL EJERCITO Y FUERZA AÉREA",2024,413,2437]
[null,null,null,null,null,"TÉCNICO SUPERIOR UNIVERSITARIO EN RADIOLOGÍA",7,6,13]
[null,null,null,null,null,"LICENCIATURA EN DISEÑO DE INTERIORES",3,29,32]
[null,null,null,null,null,"LICENCIATURA EN CIENCIAS Y TÉCNICAS DE LA COMUNICACIÓN",20,21,41]
[null,null,null,null,null,"LICENCIATURA EN MERCADOTECNIA",11,10,21]
[null,null,null,null,null,"LICENCIATURA EN ADMINISTRACIÓN",809,798,1607]
[null,null,null,null,null,"LICENCIATURA EN ARQUITECTURA",144,116,260]
[null,null,null,null,null,"LICENCIATURA EN CONTADURÍA PÚBLICA",76,45,121]
[null,null,null,null,null,"LICENCIATURA EN FISIOTERAPIA",106,184,290]
[null,null,null,null,null,"LICENCIATURA EN INGENIERÍA MECATRÓNICA",194,30,224]
[null,null,null,null,null,"LICENCIATURA EN NUTRICIÓN",110,325,435]
[null,null,null,null,null,"LICENCIATURA INTERNACIONAL EN GASTRONOMÍA",162,141,303]
[null,null,null,null,null,"LICENCIATURA EN MERCADOTECNIA",1,0,1]
[null,null,null,null,null,"LICENCIATURA EN ARQUITECTURA",344,143,487]
[null,null,null,null,null,"UNIVERSIDAD INACE",7,31,38]
[null,null,null,null,null,"LICENCIATURA EN CRIMINALÍSTICA",235,320,555]
[null,null,null,null,null,"LICENCIATURA EN INFORMÁTICA",253,72,325]
[null,null,null,null,null,"LICENCIATURA EN DISEÑO GRÁFICO DIGITAL",24,43,67]
[null,null,null,null,null,"LICENCIATURA EN CONTADURÍA Y FINANZAS",9,5,14]
[null,null,null,null,null,"LICENCIATURA EN PEDAGOGÍA",6,38,44]
[null,null,null,null,null,"LICENCIATURA EN CONTADURÍA",8,10,18]
[null,null,null,null,null,"LICENCIATURA EN TURISMO",70,88,158]
[null,null,null,null,null,"LICENCIATURA EN INFORMÁTICA ADMINISTRATIVA",0,0,0]
[null,null,null,null,null,"LICENCIATURA EN QUÍMICO FARMACÉUTICO BIÓLOGO",40,54,94]
[null,null,null,null,null,"LICENCIATURA EN CIENCIAS DE LA EDUCACIÓN",4,37,41]
[null,null,null,null,null,"LICENCIATURA EN INGENIERÍA INDUSTRIAL",156,78,234]
[null,null,null,null,null,"LICENCIATURA EN QUÍMICO FARMACÉUTICO BIÓLOGO",68,135,203]
[null,null,null,null,null,"LICENCIATURA EN PEDAGOGÍA",8,126,134]
[null,null,null,null,null,"LICENCIATURA EN DERECHO",230,361,591]
[null,null,null,null,null,"LICENCIADO EN DERECHO",64,127,191]
[null,null,null,null,null,"LICENCIATURA EN ADMINISTRACIÓN Y DIRECCIÓN DEL DEPORTE",49,16,65]
[null,null,null,null,null,"LICENCIATURA EN ADMINISTRACIÓN",368,435,803]
[null,null,null,null,null,"LICENCIATURA EN SISTEMAS COMPUTACIONALES",177,186,363]
[null,null,null,null,null,"LICENCIATURA EN PSICOLOGÍA",1,8,9]
[null,null,null,null,null,"LICENCIATURA EN ADMINISTRACIÓN AGROPECUARIA",49,48,97]
[null,null,null,null,null,"LICENCIATURA EN CIENCIAS DE LA COMUNICACIÓN",1836,2636,4472]
[null,null,null,null,null,"LICENCIATURA EN CIENCIAS DE LA TIERRA",188,374,562]
[null,null,null,null,null,"LICENCIATURA EN EDUCACIÓN MUSICAL",29,26,55]
[null,null,null,null,null,"LICENCIATURA EN ETNOMUSICOLOGÍA",20,11,31]
[null,null,null,null,null,"LICENCIATURA EN INFORMÁTICA",1012,243,1255]
[null,null,null,null,null,"LICENCIATURA EN INSTRUMENTISTA",187,77,264]
[null,null,null,null,null,"LICENCIATURA EN LENGUA Y LITERATURA MODERNA (INGLESAS)",131,238,369]
[null,null,null,null,null,"LICENCIATURA EN PIANO",58,26,84]
[null,null,null,null,null,"LICENCIATURA EN DESARROLLO COMUNITARIO PARA EL ENVEJECIMIENTO",11,31,42]
[null,null,null,null,null,"LICENCIATURA EN ADMINISTRACIÓN Y DIRECCIÓN",62,28,90]
[null,null,null,null,null,"LICENCIATURA EN ENFERMERÍA",0,34,34]
[null,null,null,null,null,"LICENCIATURA EN EDUCACIÓN PREESCOLAR CON TECNOLOGÍAS DE LA INFORMACIÓN Y COMUNICACIÓN",49,1338,1387]
[null,null,null,null,null,"UNIVERSIDAD PONTIFICIA DE MÉXICO",108,87,195]
[null,null,null,null,null,"LICENCIATURA EN PEDAGOGÍA",13,41,54]
[null,null,null,null,null,"LICENCIATURA EN MERCADOTECNIA",16,33,49]
[null,null,null,null,null,"LICENCIATURA EN INFORMÁTICA ADMINISTRATIVA",0,5,5]
[null,null,null,null,null,"DISEÑO GRÁFICO",409,389,798]
[null,null,null,null,null,"LICENCIATURA EN ADMINISTRACIÓN DE NEGOCIOS",30,29,59]
[null,null,null,null,null,"LICENCIATURA EN ADMINISTRACIÓN DE TECNOLOGÍAS DE LA INFORMACIÓN",29,8,37]
[null,null,null,null,null,"LICENCIATURA EN DERECHO Y FINANZAS",10,11,21]
[null,null,null,null,null,"LICENCIATURA EN NUTRICIÓN",473,1031,1504]
[null,null,null,null,null,"LICENCIATURA EN PUBLICIDAD Y MEDIOS",126,168,294]
[null,null,null,null,null,"LICENCIATURA EN COMUNICACIÓN ORGANIZACIONAL",20,54,74]
[null,null,null,null,null,"LICENCIATURA EN INGENIERÍA EN SISTEMAS COMPUTACIONALES",1474,240,1714]
[null,null,null,null,null,"LICENCIATURA EN INFORMÁTICA ADMINISTRATIVA",9,4,13]
[null,null,null,null,null,"LICENCIATURA EN PEDAGOGÍA",54,558,612]
[null,null,null,null,null,"LICENCIATURA EN CIENCIAS DE LA COMUNICACIÓN",15,36,51]
[null,null,null,null,null,"LICENCIATURA EN PSICOLOGÍA",4,26,30]
[null,null,null,null,null,"LICENCIATURA EN ADMINISTRACIÓN",29,30,59]
[null,null,null,null,null,"LICENCIATURA EN CIENCIAS DEL DEPORTE",330,106,436]
[null,null,null,null,null,"LICENCIATURA EN ADMINISTRACIÓN DE EMPRESAS",14,24,38]
[null,null,null,null,null,"INGENIERÍA MECÁNICA Y ELÉCTRICA",158,13,171]
[null,null,null,null,null,"LICENCIATURA EN ADMINISTRACIÓN DE NEGOCIOS INTERNACIONALES",408,229,637]
[null,null,null,null,null,"LICENCIATURA EN MERCADOTECNIA",185,354,539]
[null,null,null,null,null,"LICENCIATURA EN POLÍTICA Y ADMINISTRACIÓN PÚBLICA",28,12,40]
[null,null,null,null,null,"LICENCIATURA EN DERECHO",70,65,135]
[null,null,null,null,null,"LICENCIATURA EN AUDIO PROFESIONAL",80,4,84]
[null,null,null,null,null,"LICENCIATURA EN CONTADURÍA PÚBLICA",60,96,156]
[null,null,null,null,null,"LICENCIATURA EN COMERCIO INTERNACIONAL",9,9,18]
[null,null,null,null,null,"LICENCIATURA EN ADMINISTRACIÓN INDUSTRIAL",231,281,512]
[null,null,null,null,null,"LICENCIATURA EN EDUCACIÓN SECUNDARIA CON ESPECIALIDAD EN HISTORIA",0,0,0]
[null,null,null,null,null,"LICENCIATURA EN EDUCACIÓN SECUNDARIA CON ESPECIALIDAD EN LENGUA EXTRANJERA (INGLÉS)",16,12,28]
[null,null,null,null,null,"LICENCIATURA EN PSICOLOGÍA",8,23,31]
[null,null,null,null,null,"LICENCIATURA EN EDUCACIÓN SECUNDARIA CON ESPECIALIDAD EN MATEMÁTICAS",30,38,68]
[null,null,null,null,null,"INGENIERÍA EN MECATRÓNICA",1,0,1]
[null,null,null,null,null,"INGENIERÍA EN INFORMÁTICA",19,15,34]
[null,null,null,null,null,"INGENIERÍA EN AGRONOMÍA",245,83,328]
[null,null,null,null,null,"INSTITUTO TECNOLÓGICO SUPERIOR DE LOS LLANOS",550,458,1008]
[null,null,null,null,null,"INGENIERÍA EN SISTEMAS COMPUTACIONALES",24,11,35]
[null,null,null,null,null,"LICENCIATURA EN ADMINISTRACIÓN",0,0,0]
[null,null,null,null,null,"INGENIERÍA AGRÓNOMO EN SISTEMAS AGRÍCOLAS",33,10,43]
[null,null,null,null,null,"LICENCIATURA EN DERECHO",273,240,513]
[null,null,null,null,null,"LICENCIATURA EN FISIOTERAPIA",34,54,88]
[null,null,null,null,null,"LICENCIATURA EN ACTIVIDAD FÍSICA Y DEPORTE",2,0,2]
[null,null,null,null,null,"LICENCIATURA EN EDUCACIÓN BILINGÜE",6,12,18]
[null,null,null,null,null,"LICENCIATURA EN GASTRONOMÍA Y GESTIÓN TURÍSTICA",13,18,31]
[null,null,null,null,null,"LICENCIATURA EN DISEÑO GRÁFICO",22,23,45]
[null,null,null,null,null,"LICENCIATURA EN DISEÑO E INDUSTRIA DEL VESTIDO",1,15,16]
[null,null,null,null,null,"BIÓLOGO",35,44,79]
[null,null,null,null,null,"LICENCIATURA EN DERECHO",424,434,858]
[null,null,null,null,null,"LICENCIATURA EN SISTEMAS COMPUTACIONALES Y ADMINISTRATIVOS",46,21,67]
[null,null,null,null,null,"QUÍMICO FARMACÉUTICO BIÓLOGO",320,520,840]
[null,null,null,null,null,"LICENCIATURA EN CIENCIAS DE LA COMUNICACIÓN",27,46,73]
[null,null,null,null,null,"LICENCIATURA EN PSICOLOGÍA",18,57,75]
[null,null,null,null,null,"INGENIERÍA EN TECNOLOGÍAS DE LA INFORMACIÓN",75,47,122]
[null,null,null,null,null,"INGENIERÍA EN ANIMACIÓN Y EFECTOS VISUALES",141,109,250]
[null,null,null,null,null,"TÉCNICO SUPERIOR UNIVERSITARIO EN DESARROLLO DE NEGOCIOS ÁREA MERCADOTECNIA",105,121,226]
[null,null,null,null,null,"INGENIERÍA EN LOGÍSTICA INTERNACIONAL",35,66,101]
[null,null,null,null,null,"TÉCNICO SUPERIOR UNIVERSITARIO EN ENERGÍAS RENOVABLES ÁREA CALIDAD Y AHORRO DE ENERGÍA",49,9,58]
[null,null,null,null,null,"INGENIERÍA EN TECNOLOGÍAS DE LA INFORMACIÓN",28,20,48]
[null,null,null,null,null,"TÉCNICO SUPERIOR UNIVERSITARIO EN QUÍMICA ÁREA TECNOLOGÍA AMBIENTAL",25,33,58]
[null,null,null,null,null,"INSTITUTO BILINGÜE DE DURANGO",10,3,13]
[null,null,null,null,null,"LICENCIATURA EN EDUCACIÓN SECUNDARIA CON ESPECIALIDAD EN BIOLOGÍA",9,9,18]
[null,null,null,null,null,"LICENCIATURA EN SISTEMAS COMPUTACIONALES",3,0,3]
[null,null,null,null,null,"LICENCIATURA EN EDUCACIÓN PREESCOLAR",0,117,117]
[null,null,null,null,null,"CENTRO DE ESTUDIOS PEDAGÓGICOS ANDRÉS DELGADO",0,53,53]
[null,null,null,null,null,"CENTRO DE ESTUDIOS SUPERIORES DE CELAYA",36,41,77]
[null,null,null,null,null,"CENTRO DE ESTUDIOS SUPERIORES DE EDUCACIÓN ESPECIALIZADA",134,38,172]
[null,null,null,null,null,"LICENCIATURA EN CONTADURÍA PÚBLICA",11,11,22]
[null,null,null,null,null,"LICENCIATURA EN DERECHO",56,57,113]
[null,null,null,null,null,"CENTRO UNIVERSITARIO DE NEGOCIOS DEL BAJÍO",126,128,254]
[null,null,null,null,null,"LICENCIATURA EN CONTADURÍA PÚBLICA Y FINANZAS",16,14,30]
[null,null,null,null,null,"LICENCIATURA EN EDUCACIÓN SECUNDARIA CON ESPECIALIDAD EN ESPAÑOL",3,5,8]
[null,null,null,null,null,"CENTRO UNIVERSITARIO SAN PABLO",56,41,97]
[null,null,null,null,null,"LICENCIATURA EN DERECHO",211,111,322]
[null,null,null,null,null,"LICENCIATURA EN EDUCACIÓN PREESCOLAR",0,5,5]
[null,null,null,null,null,"COLEGIO UNIVERSITARIO BICENTENARIO",4,7,11]
[null,null,null,null,null,"LICENCIATURA EN EDUCACIÓN SECUNDARIA CON ESPECIALIDAD EN ESPAÑOL",2,3,5]
[null,null,null,null,null,"LICENCIATURA EN ADMINISTRACIÓN",29,31,60]
[null,null,null,null,null,"LICENCIATURA EN DERECHO",71,76,147]
[null,null,null,null,null,"LICENCIATURA EN CONTADURÍA PÚBLICA",45,42,87]
[null,null,null,null,null,"LICENCIATURA EN CONTADURÍA PÚBLICA",18,63,81]
[null,null,null,null,null,"LICENCIATURA EN EDUCACIÓN PREESCOLAR",1,142,143]
[null,null,null,null,null,"LICENCIATURA EN EDUCACIÓN SECUNDARIA CON ESPECIALIDAD EN TELESECUNDARIA",53,117,170]
[null,null,null,null,null,"INSTITUTO AMÉRICA",16,100,116]
[null,null,null,null,null,"LICENCIATURA EN FILOSOFÍA",57,0,57]
[null,null,null,null,null,"INSTITUTO DE EDUCACIÓN SUPERIOR ARMANDO OLIVARES CARRILLO",15,4,19]
[null,null,null,null,null,"LICENCIATURA EN GASTRONOMÍA",22,33,55]
[null,null,null,null,null,"LICENCIATURA EN NEGOCIOS INTERNACIONALES",23,34,57]
[null,null,null,null,null,"LICENCIATURA EN PSICOLOGÍA ORGANIZACIONAL",4,5,9]
[null,null,null,null,null,"CONTADOR PÚBLICO",21,28,49]
[null,null,null,null,null,"LICENCIATURA EN DERECHO",148,177,325]
[null,null,null,null,null,"LICENCIATURA EN SOCIOLOGÍA",2,0,2]
[null,null,null,null,null,"INSTITUTO SOR JUANA INÉS DE LA CRUZ",24,10,34]
[null,null,null,null,null,"INGENIERÍA ELECTRÓNICA",255,49,304]
[null,null,null,null,null,"INGENIERÍA INDUSTRIAL",501,287,788]
[null,null,null,null,null,"INGENIERÍA EN MECATRÓNICA",478,53,531]
[null,null,null,null,null,"INGENIERÍA EN TECNOLOGÍAS DE LA INFORMACIÓN",137,83,220]
[null,null,null,null,null,"LICENCIATURA EN INDUSTRIAS ALIMENTARIAS",168,262,430]
[null,null,null,null,null,"INSTITUTO TECNOLÓGICO SUPERIOR DE IRAPUATO",3987,2227,6214]
[null,null,null,null,null,"INGENIERÍA EN ELECTROMECÁNICA",93,4,97]
[null,null,null,null,null,"LICENCIATURA EN BIOLOGÍA",57,94,151]
[null,null,null,null,null,"INGENIERÍA INFORMÁTICA",57,28,85]
[null,null,null,null,null,"LICENCIATURA EN ADMINISTRACIÓN DE EMPRESAS",12,11,23]
[null,null,null,null,null,"LICENCIATURA EN PSICOLOGÍA",7,42,49]
[null,null,null,null,null,"LICENCIATURA EN NEGOCIOS INTERNACIONALES",64,77,141]
[null,null,null,null,null,"LICENCIATURA EN PSICOLOGÍA EDUCATIVA",162,213,375]
[null,null,null,null,null,"LICENCIATURA EN EDUCACIÓN PREESCOLAR",0,56,56]
[null,null,null,null,null,"UNIVERSIDAD CONTINENTE AMERICANO",914,1466,2380]
[null,null,null,null,null,"LICENCIATURA EN EDUCACIÓN PRIMARIA",46,113,159]
[null,null,null,null,null,"LICENCIATURA EN NUTRICIÓN",9,37,46]
[null,null,null,null,null,"LICENCIATURA EN ARQUITECTURA",75,58,133]
[null,null,null,null,null,"LICENCIATURA EN NEGOCIOS INTERNACIONALES",0,0,0]
[null,null,null,null,null,"LICENCIATURA EN DIRECCIÓN ESTRATÉGICA TURÍSTICA Y HOSPITALIDAD",4,11,15]
[null,null,null,null,null,"LICENCIATURA EN ARQUITECTURA",123,56,179]
[null,null,null,null,null,"LICENCIATURA EN PSICOLOGÍA",97,326,423]
[null,null,null,null,null,"INGENIERÍA EN SISTEMAS COMPUTACIONALES",246,65,311]
[null,null,null,null,null,"INGENIERÍA QUÍMICA",257,155,412]
[null,null,null,null,null,"LICENCIATURA EN CANTO",3,12,15]
[null,null,null,null,null,"LICENCIATURA EN ENSEÑANZA DEL ESPAÑOL COMO SEGUNDA LENGUA",17,54,71]
[null,null,null,null,null,"LICENCIATURA EN GESTIÓN EMPRESARIAL",221,347,568]
[null,null,null,null,null,"LICENCIATURA EN NUTRICIÓN",126,499,625]
[null,null,null,null,null,"LICENCIATURA EN ARTES ESCÉNICAS Y PRODUCCIÓN DE ESPECTÁCULOS",15,37,52]
[null,null,null,null,null,"LICENCIATURA EN DISEÑO GRÁFICO",120,135,255]
[null,null,null,null,null,"LICENCIATURA EN NUTRICIÓN",55,176,231]
[null,null,null,null,null,"UNIVERSIDAD DEL VALLE DE ATEMAJAC",189,231,420]
[null,null,null,null,null,"LICENCIATURA EN DERECHO",37,23,60]
[null,null,null,null,null,"LICENCIATURA EN ADMINISTRACIÓN",2,2,4]
[null,null,null,null,null,"LICENCIATURA EN ADMINISTRACIÓN Y DESARROLLO DE NEGOCIOS EN FINANZAS",71,205,276]
[null,null,null,null,null,"LICENCIATURA EN MERCADOTECNIA ESTRATÉGICA EN PUBLICIDAD",31,45,76]
[null,null,null,null,null,"LICENCIATURA EN EDUCACIÓN",6,68,74]
[null,null,null,null,null,"LICENCIATURA EN INGENIERÍA CIVIL",189,39,228]
[null,null,null,null,null,"LICENCIATURA EN ADMINISTRACIÓN DE NEGOCIOS",34,22,56]
[null,null,null,null,null,"LICENCIATURA EN NEGOCIOS INTERNACIONALES",41,45,86]
[null,null,null,null,null,"LICENCIATURA EN GESTIÓN DE INVERSIONES Y BANCA",3,3,6]
[null,null,null,null,null,"UNIVERSIDAD LATINOAMERICANA, S.C.",146,324,470]
[null,null,null,null,null,"LICENCIATURA EN INFORMÁTICA",2,0,2]
[null,null,null,null,null,"LICENCIATURA EN PSICOLOGÍA",34,157,191]
[null,null,null,null,null,"INGENIERÍA METALÚRGICA",233,68,301]
[null,null,null,null,null,"INGENIERÍA EN DISEÑO INDUSTRIAL",236,134,370]
[null,null,null,null,null,"LICENCIATURA EN DERECHO",41,52,93]
[null,null,null,null,null,"LICENCIATURA EN ADMINISTRACIÓN TURÍSTICA",1,0,1]
[null,null,null,null,null,"LICENCIATURA EN CONTADURÍA PÚBLICA Y FINANZAS",1,5,6]
[null,null,null,null,null,"INGENIERÍA EN DESARROLLO E INNOVACIÓN EMPRESARIAL",339,655,994]
[null,null,null,null,null,"TÉCNICO SUPERIOR UNIVERSITARIO EN TECNOLOGÍAS DE LA INFORMACIÓN Y COMUNICACIÓN ÁREA REDES Y TELECOMUNICACIONES",44,10,54]
[null,null,null,null,null,"LICENCIATURA EN CONTADURÍA PÚBLICA",13,19,32]
[null,null,null,null,null,"LICENCIATURA EN INGENIERÍA INDUSTRIAL Y DE SISTEMAS",72,18,90]
[null,null,null,null,null,"LICENCIATURA EN GASTRONOMÍA",89,131,220]
[null,null,null,null,null,"LICENCIATURA EN DERECHO",3,3,6]
[null,null,null,null,null,"INGENIERÍA EN NEGOCIOS Y GESTIÓN EMPRESARIAL",138,288,426]
[null,null,null,null,null,"TÉCNICO SUPERIOR UNIVERSITARIO EN SISTEMAS INFORMÁTICOS",88,47,135]
[null,null,null,null,null,"INGENIERÍA EN MANTENIMIENTO INDUSTRIAL",103,12,115]
[null,null,null,null,null,"TÉCNICO SUPERIOR UNIVERSITARIO EN TECNOLOGÍAS DE LA INFORMACIÓN Y COMUNICACIÓN ÁREA SISTEMAS INFORMÁTICOS",93,49,142]
[null,null,null,null,null,"INGENIERÍA EN GESTIÓN DE PROYECTOS",761,203,964]
[null,null,null,null,null,"LICENCIATURA EN ADMINISTRACIÓN DE NEGOCIOS ELECTRÓNICOS",28,18,46]
[null,null,null,null,null,"INGENIERÍA EN ENERGÍAS RENOVABLES",67,30,97]
[null,null,null,null,null,"LICENCIATURA EN DISEÑO DE MODAS",6,21,27]
[null,null,null,null,null,"INGENIERÍA BIONANOTECNOLOGÍA",32,47,79]
[null,null,null,null,null,"LICENCIATURA EN COMUNICACIÓN",39,90,129]
[null,null,null,null,null,"LICENCIATURA EN INGENIERÍA MECÁNICA Y ELÉCTRICA",65,6,71]
[null,null,null,null,null,"LICENCIATURA EN INTERVENCIÓN EDUCATIVA",5,71,76]
[null,null,null,null,null,"LICENCIATURA EN EDUCACIÓN PRIMARIA",12,32,44]
[null,null,null,null,null,"LICENCIATURA EN INGENIERÍA EN SISTEMAS COMPUTACIONALES",19,3,22]
[null,null,null,null,null,"GRUPO CEDVA",253,6,259]
[null,null,null,null,null,"CENTENARIA ESCUELA NORMAL DEL ESTADO IGNACIO MANUEL ALTAMIRANO",25,253,278]
[null,null,null,null,null,"LICENCIATURA EN EDUCACIÓN SECUNDARIA CON ESPECIALIDAD EN FORMACIÓN CÍVICA Y ÉTICA",10,17,27]
[null,null,null,null,null,"LICENCIATURA EN INNOVACIONES EDUCATIVAS",1,5,6]
[null,null,null,null,null,"LICENCIATURA EN CONTADURÍA PÚBLICA",8,10,18]
[null,null,null,null,null,"CENTRO DE ESTUDIOS UNIVERSITARIOS SOR JUANA INÉS DE LA CRUZ, S.C.",135,324,459]
[null,null,null,null,null,"CENTRO DE IDIOMAS EXTRANJEROS IGNACIO MANUEL ALTAMIRANO",16,20,36]
[null,null,null,null,null,"LICENCIATURA EN EDUCACIÓN SECUNDARIA CON ESPECIALIDAD EN FORMACIÓN CÍVICA Y ÉTICA",39,35,74]
[null,null,null,null,null,"LICENCIATURA EN CONTADURÍA",2,5,7]
[null,null,null,null,null,"CENTRO UNIVERSITARIO SIMÓN BOLÍVAR, A.C.",50,47,97]
[null,null,null,null,null,"COLEGIO SIMÓN BOLÍVAR DE CHILPANCINGO A.C.",5,25,30]
[null,null,null,null,null,"LICENCIATURA EN EDUCACIÓN PREESCOLAR",0,9,9]
[null,null,null,null,null,"LICENCIATURA EN EDUCACIÓN SECUNDARIA CON ESPECIALIDAD EN TELESECUNDARIA",0,0,0]
[null,null,null,null,null,"LICENCIATURA EN LENGUA INGLESA",8,16,24]
[null,null,null,null,null,"LICENCIATURA EN MATEMÁTICAS",9,9,18]
[null,null,null,null,null,"LICENCIATURA EN EDUCACIÓN SECUNDARIA CON ESPECIALIDAD EN TELESECUNDARIA",39,56,95]
[null,null,null,null,null,"LICENCIATURA EN PSICOLOGÍA",10,55,65]
[null,null,null,null,null,"LICENCIATURA EN GASTRONOMÍA Y DIRECCIÓN DE ALIMENTOS Y BEBIDAS",21,16,37]
[null,null,null,null,null,"LICENCIATURA EN ADMINISTRACIÓN",5,18,23]
[null,null,null,null,null,"LICENCIATURA EN ADMINISTRACIÓN",2,8,10]
[null,null,null,null,null,"LICENCIATURA EN DERECHO",42,49,91]
[null,null,null,null,null,"LICENCIATURA EN PUERICULTURA Y DESARROLLO INFANTIL",0,5,5]
[null,null,null,null,null,"INGENIERÍA EN ELECTROMECÁNICA",0,0,0]
[null,null,null,null,null,"INGENIERÍA BIOQUÍMICA",182,234,416]
[null,null,null,null,null,"INGENIERÍA EN GESTIÓN EMPRESARIAL",163,228,391]
[null,null,null,null,null,"LICENCIATURA EN ADMINISTRACIÓN",110,126,236]
[null,null,null,null,null,"LICENCIATURA EN BIOLOGÍA",49,75,124]
[null,null,null,null,null,"INGENIERÍA INFORMÁTICA",80,52,132]
[null,null,null,null,null,"INGENIERÍA EN INFORMÁTICA",81,80,161]
[null,null,null,null,null,"RAÚL ISIDRO BURGOS",428,0,428]
[null,null,null,null,null,"LICENCIATURA EN ADMINISTRACIÓN DE EMPRESAS TURÍSTICAS",2,8,10]
[null,null,null,null,null,"LICENCIATURA EN DISEÑO GRÁFICO",17,7,24]
[null,null,null,null,null,"INGENIERÍA CIVIL",551,123,674]
[null,null,null,null,null,"LICENCIATURA EN ADMINISTRACIÓN DE EMPRESAS",665,711,1376]
[null,null,null,null,null,"LICENCIATURA EN DISEÑO INDUSTRIAL",12,14,26]
[null,null,null,null,null,"LICENCIATURA EN HISTORIA",125,93,218]
[null,null,null,null,null,"LICENCIATURA EN SOCIOLOGÍA",52,76,128]
[null,null,null,null,null,"TÉCNICO SUPERIOR UNIVERSITARIO EN INFORMÁTICA",9,10,19]
[null,null,null,null,null,"LICENCIATURA EN DERECHO",37,57,94]
[null,null,null,null,null,"LICENCIATURA EN NUTRICIÓN",83,158,241]
[null,null,null,null,null,"LICENCIATURA EN MERCADOTECNIA Y ADMINISTRACIÓN",6,14,20]
[null,null,null,null,null,"LICENCIATURA EN GASTRONOMÍA",22,16,38]
[null,null,null,null,null,"LICENCIADO EN DERECHO",80,60,140]
[null,null,null,null,null,"LICENCIATURA EN LENGUA Y CULTURA",8,31,39]
[null,null,null,null,null,"LICENCIATURA EN DISEÑO GRÁFICO",8,27,35]
[null,null,null,null,null,"LICENCIATURA EN EDUCACIÓN",75,163,238]
[null,null,null,null,null,"INGENIERÍA EN TELEMÁTICA",133,58,191]
[null,null,null,null,null,"TÉCNICO SUPERIOR UNIVERSITARIO EN PROCESOS INDUSTRIALES ÁREA AUTOMOTRIZ",64,0,64]
[null,null,null,null,null,"TÉCNICO SUPERIOR UNIVERSITARIO EN ADMINISTRACIÓN ÁREA RECURSOS HUMANOS",189,238,427]
[null,null,null,null,null,"INGENIERÍA EN METAL MECÁNICA",118,2,120]
[null,null,null,null,null,"TÉCNICO SUPERIOR UNIVERSITARIO EN ADMINISTRACIÓN ÁREA ADMINISTRACIÓN Y EVALUACIÓN DE PROYECTOS",51,70,121]
[null,null,null,null,null,"LICENCIATURA EN GESTIÓN Y DESARROLLO TURÍSTICO",6,28,34]
[null,null,null,null,null,"TÉCNICO SUPERIOR UNIVERSITARIO EN TECNOLOGÍAS DE LA INFORMACIÓN Y COMUNICACIÓN ÁREA MULTIMEDIA Y COMERCIO ELECTRÓNICO",28,22,50]
[null,null,null,null,null,"INSTITUTO DE ESTUDIOS SUPERIORES JUSTO SIERRA A.C.",2,12,14]
[null,null,null,null,null,"INGENIERÍA EN ENERGÍAS RENOVABLES",16,3,19]
[null,null,null,null,null,"INGENIERÍA EN TECNOLOGÍAS DE LA INFORMACIÓN Y COMUNICACIÓN",15,9,24]
[null,null,null,null,null,"LICENCIATURA EN CRIMINOLOGÍA Y CIENCIAS JURÍDICAS",2,1,3]
[null,null,null,null,null,"CENTRO DE ESTUDIOS MILENIO",219,320,539]
[null,null,null,null,null,"LICENCIATURA EN DERECHO",89,96,185]
[null,null,null,null,null,"LICENCIATURA EN ADMINISTRACIÓN",3,1,4]
[null,null,null,null,null,"CENTRO REGIONAL DE EDUCACIÓN NORMAL BENITO JUÁREZ",189,587,776]
[null,null,null,null,null,"CENTRO UNIVERSITARIO ALLENDE",105,154,259]
[null,null,null,null,null,"CENTRO UNIVERSITARIO DE DESARROLLO INTELECTUAL",265,494,759]
[null,null,null,null,null,"LICENCIATURA EN INGENIERÍA EN SISTEMAS COMPUTACIONALES",32,11,43]
[null,null,null,null,null,"LICENCIATURA EN ADMINISTRACIÓN DE EMPRESAS",58,43,101]
[null,null,null,null,null,"LICENCIATURA EN EDUCACIÓN FÍSICA",119,25,144]
[null,null,null,null,null,"LICENCIATURA EN NEGOCIOS INTERNACIONALES",22,30,52]
[null,null,null,null,null,"LICENCIATURA EN PEDAGOGÍA",1,6,7]
[null,null,null,null,null,"LICENCIATURA EN DERECHO",57,64,121]
[null,null,null,null,null,"COLEGIO REAL HIDALGO",31,40,71]
[null,null,null,null,null,"ESCUELA DE MÚSICA DEL ESTADO DE HIDALGO",103,23,126]
[null,null,null,null,null,"ESCUELA NORMAL SUPERIOR DEL ESTADO DE HIDALGO, S.C.",32,65,97]
[null,null,null,null,null,"LICENCIATURA EN EDUCACIÓN SECUNDARIA CON ESPECIALIDAD EN BIOLOGÍA",23,24,47]
[null,null,null,null,null,"LICENCIATURA EN EDUCACIÓN SECUNDARIA CON ESPECIALIDAD EN HISTORIA",17,17,34]
[null,null,null,null,null,"LICENCIATURA EN ADMINISTRACIÓN DE RECURSOS HUMANOS",7,9,16]
[null,null,null,null,null,"LICENCIATURA EN PEDAGOGÍA",41,206,247]
[null,null,null,null,null,"LICENCIATURA EN GASTRONOMÍA",2,2,4]
[null,null,null,null,null,"INSTITUTO TECNOLÓGICO DE ATITALAQUIA",452,255,707]
[null,null,null,null,null,"INGENIERÍA QUÍMICA",126,138,264]
[null,null,null,null,null,"INGENIERÍA CIVIL",523,140,663]
[null,null,null,null,null,"LICENCIATURA EN ADMINISTRACIÓN",78,179,257]
[null,null,null,null,null,"LICENCIATURA EN DERECHO",162,178,340]
[null,null,null,null,null,"INGENIERÍA EN ENERGÍAS RENOVABLES",41,39,80]
[null,null,null,null,null,"INGENIERÍA EN LOGÍSTICA",19,30,49]
[null,null,null,null,null,"INSTITUTO TECNOLÓGICO SUPERIOR DEL ORIENTE DEL ESTADO DE HIDALGO",1433,1067,2500]
[null,null,null,null,null,"TRONCO COMÚN EN CIENCIAS SOCIALES Y ADMINISTRATIVAS",36,40,76]
[null,null,null,null,null,"LICENCIATURA EN ARQUITECTURA",30,35,65]
[null,null,null,null,null,"NORMAL DE LAS HUASTECAS",158,277,435]
[null,null,null,null,null,"LICENCIATURA EN EDUCACIÓN PREESCOLAR",0,141,141]
[null,null,null,null,null,"INGENIERÍA EN TECNOLOGÍA DE AUTOMATIZACIÓN",75,9,84]
[null,null,null,null,null,"LICENCIATURA EN ARQUITECTURA",453,358,811]
[null,null,null,null,null,"LICENCIATURA EN COMERCIO EXTERIOR",315,502,817]
[null,null,null,null,null,"LICENCIATURA EN FÍSICA Y TECNOLOGÍA AVANZADA",92,34,126]
[null,null,null,null,null,"LICENCIATURA EN MATEMÁTICAS APLICADAS",68,76,144]
[null,null,null,null,null,"LICENCIATURA EN QUÍMICA EN ALIMENTOS",73,163,236]
[null,null,null,null,null,"INGENIERÍA DE MATERIALES",80,36,116]
[null,null,null,null,null,"LICENCIATURA EN GASTRONOMÍA",16,14,30]
[null,null,null,null,null,"UNIVERSIDAD DEL NUEVO MÉXICO",189,374,563]
[null,null,null,null,null,"LICENCIATURA EN CONTADURÍA Y FINANZAS",15,13,28]
[null,null,null,null,null,"LICENCIATURA EN CIENCIAS DE LA EDUCACIÓN",41,204,245]
[null,null,null,null,null,"LICENCIATURA EN DERECHO",168,144,312]
[null,null,null,null,null,"LICENCIATURA EN ADMINISTRACIÓN DE EMPRESAS",17,20,37]
[null,null,null,null,null,"LICENCIATURA EN DESARROLLO SUSTENTABLE",41,42,83]
[null,null,null,null,null,"LICENCIATURA EN CIENCIAS DE LA COMUNICACIÓN",15,33,48]
[null,null,null,null,null,"LICENCIATURA EN CONTADURÍA",25,38,63]
[null,null,null,null,null,"UNIVERSIDAD POLITÉCNICA DE FRANCISCO I. MADERO",1552,1009,2561]
[null,null,null,null,null,"INGENIERÍA EN ENERGÍA",153,39,192]
[null,null,null,null,null,"BIOINGENIERÍA",2,2,4]
[null,null,null,null,null,"INGENIERÍA EN ROBÓTICA",0,0,0]
[null,null,null,null,null,"INGENIERÍA EN AERONÁUTICA",305,59,364]
[null,null,null,null,null,"INGENIERÍA EN TECNOLOGÍAS DE LA INFORMACIÓN",149,66,215]
[null,null,null,null,null,"INGENIERÍA CIVIL",173,36,209]
[null,null,null,null,null,"LICENCIATURA EN GASTRONOMÍA",50,89,139]
[null,null,null,null,null,"TÉCNICO SUPERIOR UNIVERSITARIO EN MECÁNICA ÁREA INDUSTRIAL",129,9,138]
[null,null,null,null,null,"TÉCNICO SUPERIOR UNIVERSITARIO EN ADMINISTRACIÓN ÁREA RECURSOS HUMANOS",151,220,371]
[null,null,null,null,null,"TÉCNICO SUPERIOR UNIVERSITARIO EN RECURSOS NATURALES ÁREA PROTECCIÓN Y CONSERVACIÓN DEL MEDIO AMBIENTE",42,48,90]
[null,null,null,null,null,"TÉCNICO SUPERIOR UNIVERSITARIO EN QUÍMICA ÁREA TECNOLOGÍA AMBIENTAL",27,29,56]
[null,null,null,null,null,"INGENIERÍA INDUSTRIAL",20,12,32]
[null,null,null,null,null,"TÉCNICO SUPERIOR UNIVERSITARIO EN TERAPIA FÍSICA ÁREA REHABILITACIÓN",40,163,203]
[null,null,null,null,null,"INGENIERÍA PROFESIONAL EN SEGURIDAD E INOCUIDAD ALIMENTARIA",5,8,13]
[null,null,null,null,null,"TÉCNICO SUPERIOR UNIVERSITARIO EN TECNOLOGÍAS DE LA INFORMACIÓN Y COMUNICACIÓN ÁREA SISTEMAS INFORMÁTICOS",149,91,240]
[null,null,null,null,null,"TÉCNICO SUPERIOR UNIVERSITARIO EN MANTENIMIENTO ÁREA INDUSTRIAL",29,11,40]
[null,null,null,null,null,"INGENIERÍA EN MECATRÓNICA",316,38,354]
[null,null,null,null,null,"TÉCNICO SUPERIOR UNIVERSITARIO EN AGRICULTURA SUSTENTABLE Y PROTEGIDA",17,15,32]
[null,null,null,null,null,"TÉCNICO SUPERIOR UNIVERSITARIO EN TECNOLOGÍAS DE LA INFORMACIÓN Y COMUNICACIÓN ÁREA SISTEMAS INFORMÁTICOS",173,72,245]
[null,null,null,null,null,"TÉCNICO SUPERIOR UNIVERSITARIO EN TURISMO ÁREA HOTELERÍA",5,16,21]
[null,null,null,null,null,"CENTRO DE ESTUDIOS SUPERIORES EN GASTRONOMÍA Y TURISMO",5,8,13]
[null,null,null,null,null,"COLEGIO CERVANTES",3,9,12]
[null,null,null,null,null,"BENEMÉRITA Y CENTENARIA ESCUELA NORMAL DE JALISCO",150,626,776]
[null,null,null,null,null,"LICENCIATURA EN MEDIOS AUDIOVISUALES CON ORIENTACIÓN EN PUBLICIDAD",36,41,77]
[null,null,null,null,null,"LICENCIATURA EN INGENIERÍA EN DESARROLLO DE SOFTWARE",254,43,297]
[null,null,null,null,null,"LICENCIATURA EN CRIMINOLOGÍA",12,25,37]
[null,null,null,null,null,"CENTRO DE ESTUDIOS UNIVERSITARIOS VERACRUZ",1024,1300,2324]
[null,null,null,null,null,"LICENCIATURA EN NEGOCIOS INTERNACIONALES",7,12,19]
[null,null,null,null,null,"LICENCIATURA EN ADMINISTRACIÓN DE EMPRESAS",20,33,53]
[null,null,null,null,null,"CENTRO MEXICANO DE PROGRAMACIÓN NEUROLINGÜÍSTICA",0,0,0]
[null,null,null,null,null,"LICENCIATURA EN EDUCACIÓN PRIMARIA",76,175,251]
[null,null,null,null,null,"LICENCIATURA EN DISEÑO DIGITAL ANIMACIÓN Y WEB",34,19,53]
[null,null,null,null,null,"LICENCIATURA EN INGENIERÍA EN COMPUTACIÓN",5,4,9]
[null,null,null,null,null,"LICENCIATURA EN ARQUITECTURA",250,80,330]
[null,null,null,null,null,"LICENCIATURA EN TURISMO",74,138,212]
[null,null,null,null,null,"LICENCIATURA EN DISEÑO PARA LA COMUNICACIÓN GRÁFICA",9,15,24]
[null,null,null,null,null,"LICENCIATURA EN DERECHO Y CIENCIAS JURÍDICAS",12,6,18]
[null,null,null,null,null,"CENTRO UNIVERSITARIO UNE",1482,2159,3641]
[null,null,null,null,null,"LICENCIATURA EN CONTADURÍA PÚBLICA",90,106,196]
[null,null,null,null,null,"LICENCIATURA EN DISEÑO DE MODA",13,101,114]
[null,null,null,null,null,"LICENCIATURA EN NEGOCIOS INTERNACIONALES",412,298,710]
[null,null,null,null,null,"LICENCIATURA EN EDUCACIÓN PREESCOLAR",0,46,46]
[null,null,null,null,null,"COLEGIO MÉXICO",0,0,0]
[null,null,null,null,null,"PROFESIONAL ASOCIADO EN GASTRONOMÍA",0,1,1]
[null,null,null,null,null,"ESCUELA DE ENFERMERÍA Y NUTRICIÓN JALISCO",112,387,499]
[null,null,null,null,null,"ESCUELA NORMAL EXPERIMENTAL",77,232,309]
[null,null,null,null,null,"ESCUELA NORMAL SUPERIOR DE ESPECIALIDADES",3,178,181]
[null,null,null,null,null,"LICENCIATURA EN EDUCACIÓN SECUNDARIA CON ESPECIALIDAD EN BIOLOGÍA",8,20,28]
[null,null,null,null,null,"ESCUELA SUPERIOR DE DEPORTES",31,21,52]
[null,null,null,null,null,"LICENCIATURA EN HOMEOPATÍA",10,37,47]
[null,null,null,null,null,"LICENCIATURA EN HOMEOPATÍA",34,92,126]
[null,null,null,null,null,"LICENCIATURA EN HOMEOPATÍA",35,134,169]
[null,null,null,null,null,"INSTITUTO SILOE JALISCIENSE DE CIENCIAS DE LA SALUD",11,19,30]
[null,null,null,null,null,"LICENCIATURA EN TEOLOGÍA",16,11,27]
[null,null,null,null,null,"INGENIERÍA EN GESTIÓN EMPRESARIAL",116,180,296]
[null,null,null,null,null,"INGENIERÍA EN GESTIÓN EMPRESARIAL",65,139,204]
[null,null,null,null,null,"INSTITUTO TECNOLÓGICO SUPERIOR DE CHAPALA",656,321,977]
[null,null,null,null,null,"INGENIERÍA EN SISTEMAS COMPUTACIONALES",48,15,63]
[null,null,null,null,null,"INSTITUTO TECNOLÓGICO SUPERIOR DE LAGOS DE MORENO",1154,643,1797]
[null,null,null,null,null,"INGENIERÍA EN SISTEMAS COMPUTACIONALES",139,57,196]
[null,null,null,null,null,"ARQUITECTURA",156,85,241]
[null,null,null,null,null,"INGENIERÍA EN INNOVACIÓN AGRÍCOLA SUSTENTABLE",330,136,466]
[null,null,null,null,null,"INGENIERÍA EN INFORMÁTICA",48,15,63]
[null,null,null,null,null,"INGENIERÍA EN GESTIÓN EMPRESARIAL",293,260,553]
[null,null,null,null,null,"INGENIERÍA EN INNOVACIÓN AGRÍCOLA SUSTENTABLE",76,29,105]
[null,null,null,null,null,"LICENCIATURA EN COMUNICACIÓN Y MEDIOS",71,122,193]
[null,null,null,null,null,"LICENCIATURA EN NEGOCIOS INTERNACIONALES MODALIDAD INTERNACIONAL",19,28,47]
[null,null,null,null,null,"TRONCO COMÚN EN INGENIERÍA",25,13,38]
[null,null,null,null,null,"LICENCIATURA EN CIENCIAS DE LA COMUNICACIÓN",39,73,112]
[null,null,null,null,null,"LICENCIATURA EN INGENIERÍA EN BIOTECNOLOGÍA",75,69,144]
[null,null,null,null,null,"LICENCIATURA EN PUBLICIDAD Y COMUNICACIÓN ESTRATÉGICA",54,229,283]
[null,null,null,null,null,"LICENCIATURA EN DISEÑO DE MODA",7,42,49]
[null,null,null,null,null,"LICENCIATURA EN ARQUITECTURA",34,12,46]
[null,null,null,null,null,"LICENCIATURA EN ADMINISTRACIÓN",47,61,108]
[null,null,null,null,null,"LICENCIATURA EN CRIMINOLOGÍA",5,10,15]
[null,null,null,null,null,"LICENCIATURA EN PSICOLOGÍA",14,48,62]
[null,null,null,null,null,"UNIDAD TECNOLÓGICA DE ESTETO COSMÉTICA Y BELLEZA",0,33,33]
[null,null,null,null,null,"LICENCIATURA EN FILOSOFÍA",3,0,3]
[null,null,null,null,null,"LICENCIATURA EN NUTRICIÓN",23,41,64]
[null,null,null,null,null,"ACTUARIO",57,43,100]
[null,null,null,null,null,"INGENIERÍA EN ELECTRÓNICA",2,0,2]
[null,null,null,null,null,"LICENCIATURA EN ADMINISTRACIÓN",132,92,224]
[null,null,null,null,null,"LICENCIATURA EN GESTIÓN DE SERVICIOS GASTRONÓMICOS",18,14,32]
[null,null,null,null,null,"TÉCNICO SUPERIOR UNIVERSITARIO EN ADMINISTRACIÓN DE MICRO Y PEQUEÑA EMPRESA",15,9,24]
[null,null,null,null,null,"TÉCNICO SUPERIOR UNIVERSITARIO EN PUERICULTURA",0,32,32]
[null,null,null,null,null,"LICENCIATURA EN INGENIERO EN CONSERVACIÓN Y RESTAURACIÓN AMBIENTAL",6,9,15]
[null,null,null,null,null,"UNIVERSIDAD DE GUADALAJARA",54240,59752,113992]
[null,null,null,null,null,"INGENIERÍA AGROINDUSTRIAL",88,64,152]
[null,null,null,null,null,"INGENIERÍA EN RECURSOS NATURALES Y AGROPECUARIOS",116,91,207]
[null,null,null,null,null,"LICENCIATURA EN ARQUITECTURA",1428,899,2327]
[null,null,null,null,null,"LICENCIATURA EN ARTES AUDIOVISUALES",56,32,88]
[null,null,null,null,null,"LICENCIATURA EN DISEÑO DE INTERIORES Y AMBIENTACIÓN",50,460,510]
[null,null,null,null,null,"LICENCIATURA EN FILOSOFÍA",269,139,408]
[null,null,null,null,null,"LICENCIATURA EN HISTORIA DEL ARTE",54,90,144]
[null,null,null,null,null,"LICENCIATURA EN PSICOLOGÍA",1336,4089,5425]
[null,null,null,null,null,"LICENCIATURA EN TECNOLOGÍAS E INFORMACIÓN",492,145,637]
[null,null,null,null,null,"TÉCNICO SUPERIOR UNIVERSITARIO EN EMERGENCIAS, SEGURIDAD LABORAL Y RESCATES",161,112,273]
[null,null,null,null,null,"LICENCIATURA EN ADMINISTRACIÓN DE EMPRESAS",63,63,126]
[null,null,null,null,null,"LICENCIATURA EN PEDAGOGÍA",15,118,133]
[null,null,null,null,null,"INGENIERÍA EN MECATRÓNICA",66,4,70]
[null,null,null,null,null,"LICENCIATURA EN ENSEÑANZA Y GESTIÓN DEL INGLÉS",11,25,36]
[null,null,null,null,null,"LICENCIATURA EN PSICOLOGÍA",79,242,321]
[null,null,null,null,null,"LICENCIATURA EN COMERCIO Y LOGÍSTICA INTERNACIONAL",4,4,8]
[null,null,null,null,null,"LICENCIATURA EN DISEÑO INDUSTRIAL",92,111,203]
[null,null,null,null,null,"LICENCIATURA EN FISIOTERAPIA",161,321,482]
[null,null,null,null,null,"LICENCIATURA EN RELACIONES INTERNACIONALES",0,0,0]
[null,null,null,null,null,"LICENCIATURA EN DISEÑO E INDUSTRIA DEL VESTIDO",1,27,28]
[null,null,null,null,null,"LICENCIATURA EN INGENIERÍA EN SISTEMAS DE INFORMACIÓN",4,2,6]
[null,null,null,null,null,"LICENCIATURA EN DISEÑO GRÁFICO",0,0,0]
[null,null,null,null,null,"LICENCIATURA EN ADMINISTRACIÓN DE EMPRESAS",13,20,33]
[null,null,null,null,null,"LICENCIATURA EN NUTRICIÓN",32,60,92]
[null,null,null,null,null,"LICENCIATURA EN ADMINISTRACIÓN DE INSTITUCIONES",0,29,29]
[null,null,null,null,null,"LICENCIATURA EN INGENIERÍA EN ANIMACIÓN DIGITAL",39,19,58]
[null,null,null,null,null,"UNIVERSIDAD PEDAGÓGICA NACIONAL 142",17,168,185]
[null,null,null,null,null,"LICENCIATURA EN EDUCACIÓN PREESCOLAR EN EL MEDIO INDÍGENA",0,0,0]
[null,null,null,null,null,"LICENCIATURA EN TERAPIA FÍSICA",190,472,662]
[null,null,null,null,null,"LICENCIATURA EN ADMINISTRACIÓN DE EMPRESAS",21,21,42]
[null,null,null,null,null,"LICENCIATURA EN PERIODISMO Y COMUNICACIÓN",18,10,28]
[null,null,null,null,null,"INGENIERÍA EN MANTENIMIENTO INDUSTRIAL",268,8,276]
[null,null,null,null,null,"INGENIERÍA EN ENERGÍAS RENOVABLES",33,8,41]
[null,null,null,null,null,"TÉCNICO SUPERIOR UNIVERSITARIO EN PARAMÉDICO",146,136,282]
[null,null,null,null,null,"UNIVERSIDAD VIRTUAL EDUCANET DE MÉXICO",39,63,102]
[null,null,null,null,null,"LICENCIATURA EN CONTADURÍA",71,129,200]
[null,null,null,null,null,"LICENCIATURA EN MERCADOTECNIA",0,0,0]
[null,null,null,null,null,"LICENCIATURA EN DERECHO CIVIL",11,13,24]
[null,null,null,null,null,"LICENCIATURA EN ADMINISTRACIÓN DE EMPRESAS",48,43,91]
[null,null,null,null,null,"UNIVERSIDAD CUAUHTÉMOC",412,385,797]
[null,null,null,null,null,"LICENCIATURA EN GASTRONOMÍA",35,31,66]
[null,null,null,null,null,"ESCUELA NORMAL RURAL MIGUEL HIDALGO DE ATEQUIZA",123,305,428]
[null,null,null,null,null,"LICENCIATURA EN SEGURIDAD PÚBLICA",102,23,125]
[null,null,null,null,null,"LICENCIATURA EN COMUNICACIÓN",47,63,110]
[null,null,null,null,null,"CENTRO AMERICANO CULTURAL DE ESTUDIOS SUPERIORES",312,149,461]
[null,null,null,null,null,"LICENCIATURA EN PSICOLOGÍA",3,10,13]
[null,null,null,null,null,"CENTRO DE ESTUDIOS PROFESIONALES DEL ESTADO DE MÉXICO",58,104,162]
[null,null,null,null,null,"LICENCIATURA EN ADMINISTRACIÓN",16,12,28]
[null,null,null,null,null,"CENTRO DE ESTUDIOS SUPERIORES DE SAN ÁNGEL",38,74,112]
[null,null,null,null,null,"LICENCIATURA EN CIENCIAS DE LA EDUCACIÓN",14,46,60]
[null,null,null,null,null,"LICENCIATURA EN SISTEMAS INFORMÁTICOS",8,2,10]
[null,null,null,null,null,"CENTRO DE ESTUDIOS TÉCNICOS DE BACHILLERATO PROFESIONAL S. C.",61,178,239]
[null,null,null,null,null,"LICENCIATURA EN EDUCACIÓN ARTÍSTICA",7,12,19]
[null,null,null,null,null,"LICENCIATURA EN CRIMINALÍSTICA",101,136,237]
[null,null,null,null,null,"LICENCIATURA EN CRIMINOLOGÍA",251,297,548]
[null,null,null,null,null,"LICENCIATURA EN DOCENCIA DE IDIOMAS",33,62,95]
[null,null,null,null,null,"LICENCIATURA EN PUBLICIDAD",39,37,76]
[null,null,null,null,null,"LICENCIATURA EN DISEÑO GRÁFICO",38,17,55]
[null,null,null,null,null,"GASTRONOMÍA",61,79,140]
[null,null,null,null,null,"LICENCIATURA EN CONTADURÍA PÚBLICA",201,239,440]
[null,null,null,null,null,"LICENCIATURA EN PSICOLOGÍA ORGANIZACIONAL Y SOCIAL",4,5,9]
[null,null,null,null,null,"LICENCIATURA EN DERECHO",140,100,240]
[null,null,null,null,null,"LICENCIATURA EN CIENCIAS DE LA EDUCACIÓN",27,109,136]
[null,null,null,null,null,"CENTRO UNIVERSITARIO ISIDRO FABELA",190,141,331]
[null,null,null,null,null,"LICENCIATURA EN INFORMÁTICA ADMINISTRATIVA",24,12,36]
[null,null,null,null,null,"LICENCIATURA EN ADMINISTRACIÓN PÚBLICA",8,1,9]
[null,null,null,null,null,"INGENIERÍA EN SISTEMAS COMPUTACIONALES EN PROGRAMACIÓN",26,14,40]
[null,null,null,null,null,"LICENCIATURA EN PSICOLOGÍA",53,77,130]
[null,null,null,null,null,"LICENCIATURA EN CONTADURÍA",1,0,1]
[null,null,null,null,null,"LICENCIATURA EN DERECHO",352,332,684]
[null,null,null,null,null,"LICENCIATURA EN DERECHO",79,65,144]
[null,null,null,null,null,"LICENCIATURA EN CIENCIAS DE LA EDUCACIÓN",68,201,269]
[null,null,null,null,null,"LICENCIATURA EN ENFERMERÍA",49,86,135]
[null,null,null,null,null,"LICENCIATURA EN ADMINISTRACIÓN DE EMPRESAS TURÍSTICAS",22,33,55]
[null,null,null,null,null,"CORPORATIVO ACADÉMICO CADE",76,69,145]
[null,null,null,null,null,"CORPORATIVO INTERNACIONAL UNIVERSITARIO",133,114,247]
[null,null,null,null,null,"LICENCIATURA EN INGENIERÍA EN MECATRÓNICA",137,17,154]
[null,null,null,null,null,"ESCUELA CULINARIA INTERNACIONAL, S.C.",27,31,58]
[null,null,null,null,null,"LICENCIATURA EN GASTRONOMÍA CON ADMINISTRACIÓN EN ALIMENTOS Y BEBIDAS",18,12,30]
[null,null,null,null,null,"ESCUELA NORMAL DE ATIZAPÁN DE ZARAGOZA",21,133,154]
[null,null,null,null,null,"LICENCIATURA EN EDUCACIÓN PRIMARIA",6,49,55]
[null,null,null,null,null,"ESCUELA NORMAL DE COATEPEC HARINAS",27,83,110]
[null,null,null,null,null,"ESCUELA NORMAL DE IXTAPAN DE LA SAL",16,98,114]
[null,null,null,null,null,"LICENCIATURA EN EDUCACIÓN PREESCOLAR",0,14,14]
[null,null,null,null,null,"ESCUELA NORMAL DE SAN FELIPE DEL PROGRESO",55,137,192]
[null,null,null,null,null,"LICENCIATURA EN EDUCACIÓN PREESCOLAR",25,58,83]
[null,null,null,null,null,"LICENCIATURA EN EDUCACIÓN SECUNDARIA CON ESPECIALIDAD EN FORMACIÓN CÍVICA Y ÉTICA",7,46,53]
[null,null,null,null,null,"ESCUELA NORMAL DE VALLE DE BRAVO",31,89,120]
[null,null,null,null,null,"ESCUELA NORMAL IGNACIO MANUEL ALTAMIRANO",174,274,448]
[null,null,null,null,null,"LICENCIATURA EN EDUCACIÓN ARTÍSTICA",0,0,0]
[null,null,null,null,null,"LICENCIATURA EN EDUCACIÓN SECUNDARIA CON ESPECIALIDAD EN ESPAÑOL",0,0,0]
[null,null,null,null,null,"LICENCIATURA EN EDUCACIÓN SECUNDARIA CON ESPECIALIDAD EN HISTORIA",17,20,37]
[null,null,null,null,null,"LICENCIATURA EN DERECHO",90,79,169]
[null,null,null,null,null,"LICENCIATURA EN COMUNICACIÓN",9,10,19]
[null,null,null,null,null,"INSTITUTO DE ESTUDIOS SUPERIORES ISIMA",152,208,360]
[null,null,null,null,null,"LICENCIATURA EN PEDAGOGÍA",9,34,43]
[null,null,null,null,null,"LICENCIATURA EN GASTRONOMÍA",5,5,10]
[null,null,null,null,null,"LICENCIATURA EN ARQUITECTURA",2,4,6]
[null,null,null,null,null,"INSTITUTO SUPERIOR DE INGENIERÍA",678,34,712]
[null,null,null,null,null,"LICENCIATURA EN NEGOCIOS INTERNACIONALES",77,109,186]
[null,null,null,null,null,"INGENIERÍA MECÁNICA",360,22,382]
[null,null,null,null,null,"INGENIERÍA ELECTROMECÁNICA",533,37,570]
[null,null,null,null,null,"INGENIERÍA EN MECATRÓNICA",509,89,598]
[null,null,null,null,null,"INGENIERÍA QUÍMICO ADMINISTRADOR",91,82,173]
[null,null,null,null,null,"LICENCIATURA EN ECONOMÍA",0,0,0]
[null,null,null,null,null,"LICENCIATURA EN RELACIONES INTERNACIONALES",29,76,105]
[null,null,null,null,null,"INSTITUTO UNIVERSITARIO DEL ESTADO DE MÉXICO, S.C.",1645,1749,3394]
[null,null,null,null,null,"LICENCIATURA EN ADMINISTRACIÓN",94,106,200]
[null,null,null,null,null,"LICENCIATURA EN INFORMÁTICA ADMINISTRATIVA",0,0,0]
[null,null,null,null,null,"LICENCIATURA EN ODONTOLOGÍA",85,108,193]
[null,null,null,null,null,"LICENCIATURA EN IMAGEN EJECUTIVA Y CORPORATIVA",8,41,49]
[null,null,null,null,null,"INSTITUTO UNIVERSITARIO NEZAHUALCÓYOTL",30,26,56]
[null,null,null,null,null,"LICENCIATURA EN CIENCIAS DE LA COMUNICACIÓN",5,3,8]
[null,null,null,null,null,"LICENCIATURA EN MERCADOTECNIA INTERNACIONAL",5,11,16]
[null,null,null,null,null,"INGENIERÍA EN ENERGÍAS RENOVABLES",44,22,66]
[null,null,null,null,null,"INGENIERÍA CIVIL",311,102,413]
[null,null,null,null,null,"INGENIERÍA EN TECNOLOGÍAS DE LA INFORMACIÓN Y COMUNICACIÓN",168,87,255]
[null,null,null,null,null,"INGENIERÍA EN TECNOLOGÍAS DE LA INFORMACIÓN Y COMUNICACIÓN",157,64,221]
[null,null,null,null,null,"INGENIERÍA INFORMÁTICA",426,235,661]
[null,null,null,null,null,"INGENIERÍA CIVIL",225,56,281]
[null,null,null,null,null,"TECNOLÓGICO DE ESTUDIOS SUPERIORES DE JILOTEPEC",903,497,1400]
[null,null,null,null,null,"LICENCIATURA EN INFORMÁTICA",0,0,0]
[null,null,null,null,null,"INGENIERÍA EN MATERIALES",132,97,229]
[null,null,null,null,null,"TECNOLÓGICO DE ESTUDIOS SUPERIORES DE SAN FELIPE DEL PROGRESO",1148,645,1793]
[null,null,null,null,null,"CONTADOR PÚBLICO",182,191,373]
[null,null,null,null,null,"INGENIERÍA MECATRÓNICA",68,7,75]
[null,null,null,null,null,"INGENIERÍA ELECTRÓNICA",84,7,91]
[null,null,null,null,null,"INGENIERÍA EN SISTEMAS COMPUTACIONALES",351,131,482]
[null,null,null,null,null,"TECNOLÓGICO UNIVERSITARIO DEL VALLE DE CHALCO",194,175,369]
[null,null,null,null,null,"LICENCIATURA EN ADMINISTRACIÓN DE EMPRESAS",42,25,67]
[null,null,null,null,null,"LICENCIATURA EN DERECHO",0,0,0]
[null,null,null,null,null,"LICENCIATURA EN ACTUARIA",130,103,233]
[null,null,null,null,null,"LICENCIATURA EN DIRECCIÓN INTERNACIONAL DE HOTELES",25,117,142]
[null,null,null,null,null,"LICENCIATURA EN DISEÑO INDUSTRIAL",61,187,248]
[null,null,null,null,null,"LICENCIATURA EN INGENIERÍA INDUSTRIAL PARA LA DIRECCIÓN",259,144,403]
[null,null,null,null,null,"LICENCIATURA EN MÚSICA CONTEMPORÁNEA",25,17,42]
[null,null,null,null,null,"UNIVERSIDAD AUTÓNOMA CHAPINGO",2996,2023,5019]
[null,null,null,null,null,"LICENCIATURA EN ADMINISTRACIÓN DE EMPRESAS AGROPECUARIAS",23,40,63]
[null,null,null,null,null,"UNIVERSIDAD AUTÓNOMA DEL ESTADO DE MÉXICO",24926,32115,57041]
[null,null,null,null,null,"INGENIERÍA DE SOFTWARE",200,60,260]
[null,null,null,null,null,"LICENCIATURA EN ARQUEOLOGÍA",40,32,72]
[null,null,null,null,null,"LICENCIATURA EN BIOINGENIERÍA MÉDICA",104,107,211]
[null,null,null,null,null,"LICENCIATURA EN COMUNICACIÓN",253,372,625]
[null,null,null,null,null,"LICENCIATURA EN GEOINFORMÁTICA",70,49,119]
[null,null,null,null,null,"LICENCIATURA EN LOGÍSTICA",155,148,303]
[null,null,null,null,null,"LICENCIATURA EN MERCADOTECNIA",252,343,595]
[null,null,null,null,null,"TÉCNICO SUPERIOR UNIVERSITARIO EN ARBORICULTURA",3,7,10]
[null,null,null,null,null,"LICENCIATURA EN ARTE Y COMUNICACIÓN DIGITALES",33,36,69]
[null,null,null,null,null,"LICENCIATURA EN CONTADURÍA",0,0,0]
[null,null,null,null,null,"LICENCIATURA EN PERIODISMO Y CIENCIAS DE LA COMUNICACIÓN",61,52,113]
[null,null,null,null,null,"UNIVERSIDAD CONTINENTAL",194,241,435]
[null,null,null,null,null,"LICENCIATURA EN CIENCIAS DE LA EDUCACIÓN",16,45,61]
[null,null,null,null,null,"INGENIERÍA EN SISTEMAS COMPUTACIONALES",26,8,34]
[null,null,null,null,null,"LICENCIATURA EN EDUCACIÓN",29,95,124]
[null,null,null,null,null,"TÉCNICO SUPERIOR UNIVERSITARIO EN ADMINISTRACIÓN",5,5,10]
[null,null,null,null,null,"TÉCNICO SUPERIOR UNIVERSITARIO EN MERCADOTECNIA",5,5,10]
[null,null,null,null,null,"INGENIERÍA INDUSTRIAL Y DE SISTEMAS",128,36,164]
[null,null,null,null,null,"LICENCIATURA EN COMERCIO Y LOGÍSTICA INTERNACIONALES",38,11,49]
[null,null,null,null,null,"LICENCIATURA EN DIRECCIÓN DE VENTAS",37,24,61]
[null,null,null,null,null,"LICENCIATURA EN NEGOCIOS GASTRONÓMICOS",175,190,365]
[null,null,null,null,null,"UNIVERSIDAD DEL VALLE DE TOLUCA, S.C.",490,513,1003]
[null,null,null,null,null,"LICENCIATURA EN CONTADURÍA Y FINANZAS",4,3,7]
[null,null,null,null,null,"LICENCIATURA EN CIENCIAS POLÍTICAS Y ADMINISTRACIÓN PÚBLICA",119,74,193]
[null,null,null,null,null,"LICENCIATURA EN SOCIOLOGÍA",46,49,95]
[null,null,null,null,null,"LICENCIATURA EN HUMANIDADES",122,288,410]
[null,null,null,null,null,"LICENCIATURA EN MERCADOTECNIA",11,17,28]
[null,null,null,null,null,"LICENCIATURA EN ADMINISTRACIÓN DE EMPRESAS",73,42,115]
[null,null,null,null,null,"LICENCIATURA EN MERCADOTECNIA INTERNACIONAL",16,19,35]
[null,null,null,null,null,"INGENIERÍA EN INFORMÁTICA",35,5,40]
[null,null,null,null,null,"LICENCIATURA EN INGENIERÍA INDUSTRIAL",97,18,115]
[null,null,null,null,null,"LICENCIATURA EN EDUCACIÓN PREESCOLAR",0,11,11]
[null,null,null,null,null,"LICENCIATURA EN ENFERMERÍA INTERCULTURAL",42,191,233]
[null,null,null,null,null,"UNIVERSIDAD JUSTO SIERRA",103,140,243]
[null,null,null,null,null,"ARQUITECTURA",4,6,10]
[null,null,null,null,null,"LICENCIATURA EN ADMINISTRACIÓN",198,319,517]
[null,null,null,null,null,"LICENCIATURA EN ADMINISTRACIÓN DE NEGOCIOS DE COMUNICACIÓN Y ENTRETENIMIENTO",19,39,58]
[null,null,null,null,null,"LICENCIATURA EN MERCADOTECNIA INTERNACIONAL",6,2,8]
[null,null,null,null,null,"LICENCIATURA EN ADMINISTRACIÓN",903,765,1668]
[null,null,null,null,null,"LICENCIATURA EN INFORMÁTICA ADMINISTRATIVA",66,21,87]
[null,null,null,null,null,"LICENCIATURA EN RELACIONES INTERNACIONALES Y COMERCIO EXTERIOR",147,169,316]
[null,null,null,null,null,"LICENCIATURA EN DERECHO",34,34,68]
[null,null,null,null,null,"INGENIERÍA EN LOGÍSTICA Y DISTRIBUCIÓN",107,96,203]
[null,null,null,null,null,"LICENCIATURA EN ADMINISTRACIÓN",317,463,780]
[null,null,null,null,null,"LICENCIATURA EN NUTRICIÓN",603,1836,2439]
[null,null,null,null,null,"INGENIERÍA MECÁNICO",580,67,647]
[null,null,null,null,null,"LICENCIATURA EN BIOQUÍMICA DIAGNOSTICA",336,603,939]
[null,null,null,null,null,"LICENCIATURA EN FARMACIA",167,255,422]
[null,null,null,null,null,"LICENCIATURA EN LENGUA Y LITERATURA HISPÁNICAS",125,198,323]
[null,null,null,null,null,"MÉDICO VETERINARIO ZOOTECNISTA",1102,1522,2624]
[null,null,null,null,null,"LICENCIATURA EN ADMINISTRACIÓN DE EMPRESAS",14,12,26]
[null,null,null,null,null,"INGENIERÍA EN TECNOLOGÍAS DE MANUFACTURA",70,30,100]
[null,null,null,null,null,"INGENIERÍA EN TECNOLOGÍAS DE MANUFACTURA",85,40,125]
[null,null,null,null,null,"UNIVERSIDAD POLITÉCNICA DE TECÁMAC",1302,575,1877]
[null,null,null,null,null,"INGENIERÍA EN BIOTECNOLOGÍA",89,133,222]
[null,null,null,null,null,"LICENCIATURA EN ADMINISTRACIÓN",555,853,1408]
[null,null,null,null,null,"LICENCIATURA EN CRIMINOLOGÍA",190,266,456]
[null,null,null,null,null,"LICENCIATURA EN GASTRONOMÍA",244,236,480]
[null,null,null,null,null,"LICENCIATURA EN TURISMO",16,39,55]
[null,null,null,null,null,"INGENIERÍA EN SISTEMAS COMPUTACIONALES",982,194,1176]
[null,null,null,null,null,"LICENCIATURA EN ADMINISTRACIÓN DE NEGOCIOS",48,36,84]
[null,null,null,null,null,"LICENCIATURA EN DERECHO CORPORATIVO",99,73,172]
[null,null,null,null,null,"LICENCIATURA EN FINANZAS",119,55,174]
[null,null,null,null,null,"LICENCIATURA EN PSICOLOGÍA",473,1078,1551]
[null,null,null,null,null,"TÉCNICO SUPERIOR UNIVERSITARIO EN MECATRÓNICA ÁREA SISTEMAS DE MANUFACTURA FLEXIBLE",349,54,403]
[null,null,null,null,null,"INGENIERÍA EN NANOTECNOLOGÍA",15,8,23]
[null,null,null,null,null,"TÉCNICO SUPERIOR UNIVERSITARIO EN ADMINISTRACIÓN ÁREA RECURSOS HUMANOS",225,515,740]
[null,null,null,null,null,"UNIVERSIDAD TECNOLÓGICA DEL SUR DEL ESTADO DE MÉXICO",981,758,1739]
[null,null,null,null,null,"TÉCNICO SUPERIOR UNIVERSITARIO EN PROCESOS ALIMENTARIOS",47,56,103]
[null,null,null,null,null,"INGENIERÍA EN MECATRÓNICA",340,27,367]
[null,null,null,null,null,"TÉCNICO SUPERIOR UNIVERSITARIO EN TECNOLOGÍAS DE LA INFORMACIÓN Y COMUNICACIÓN ÁREA REDES Y TELECOMUNICACIONES",125,54,179]
[null,null,null,null,null,"LICENCIATURA EN ADMINISTRACIÓN",40,76,116]
[null,null,null,null,null,"LICENCIATURA EN MERCADOTECNIA",10,8,18]
[null,null,null,null,null,"LICENCIATURA EN ADMINISTRACIÓN DE EMPRESAS",162,122,284]
[null,null,null,null,null,"LICENCIATURA EN COMERCIO INTERNACIONAL Y ADUANAS",376,402,778]
[null,null,null,null,null,"LICENCIATURA EN PEDAGOGÍA",143,1140,1283]
[null,null,null,null,null,"LICENCIATURA EN ACTUARIA",14,17,31]
[null,null,null,null,null,"INGENIERÍA EN MECATRÓNICA",128,15,143]
[null,null,null,null,null,"TÉCNICO SUPERIOR UNIVERSITARIO EN PROCESOS INDUSTRIALES ÁREA ARTES GRÁFICAS",124,149,273]
[null,null,null,null,null,"LICENCIATURA EN PEDAGOGÍA",253,675,928]
[null,null,null,null,null,"UNIVERSIDAD MULTICULTURAL CUDEC",629,754,1383]
[null,null,null,null,null,"CENTRO DE ACTUALIZACIÓN DEL MAGISTERIO NEZAHUALCÓYOTL",89,305,394]
[null,null,null,null,null,"INSTITUTO AL SERVICIO DE ESTUDIOS SUPERIORES",1,3,4]
[null,null,null,null,null,"LICENCIATURA EN GESTIÓN TURÍSTICA",73,91,164]
[null,null,null,null,null,"LICENCIATURA EN DERECHO",56,143,199]
[null,null,null,null,null,"LICENCIATURA EN EDUCACIÓN PREESCOLAR",4,73,77]
[null,null,null,null,null,"LICENCIATURA EN EDUCACIÓN PRIMARIA",45,53,98]
[null,null,null,null,null,"CENTRO DE ESTUDIOS SUPERIORES FRAY ANTONIO DE GANTE",2,3,5]
[null,null,null,null,null,"INGENIERÍA EN SISTEMAS COMPUTACIONALES",19,22,41]
[null,null,null,null,null,"LICENCIATURA EN ENSEÑANZA DEL IDIOMA INGLÉS",11,15,26]
[null,null,null,null,null,"LICENCIATURA EN EDUCACIÓN SECUNDARIA CON ESPECIALIDAD EN TELESECUNDARIA",66,57,123]
[null,null,null,null,null,"LICENCIATURA EN DESARROLLO REGIONAL SUSTENTABLE",9,7,16]
[null,null,null,null,null,"CONSERVATORIO DE LAS ROSAS, A.C.",47,27,74]
[null,null,null,null,null,"ESCUELA NORMAL JUANA DE ASBAJE",196,459,655]
[null,null,null,null,null,"ESCUELA NORMAL SUPERIOR DE MICHOACÁN",403,443,846]
[null,null,null,null,null,"LICENCIATURA EN EDUCACIÓN ESPECIAL EN EL ÁREA DE ATENCIÓN INTELECTUAL",14,97,111]
[null,null,null,null,null,"LICENCIATURA EN DERECHO",39,24,63]
[null,null,null,null,null,"LICENCIATURA EN CRIMINOLOGÍA",35,46,81]
[null,null,null,null,null,"LICENCIATURA EN MERCADOTECNIA INTERNACIONAL",2,2,4]
[null,null,null,null,null,"LICENCIATURA EN PSICOLOGÍA",25,76,101]
[null,null,null,null,null,"INSTITUTO DICORMO",29,103,132]
[null,null,null,null,null,"LICENCIATURA EN ACTUACIÓN EN TEATRO, CINE Y TELEVISIÓN",4,8,12]
[null,null,null,null,null,"LICENCIATURA EN ADMINISTRACIÓN DE EMPRESAS",8,6,14]
[null,null,null,null,null,"LICENCIATURA EN CONTADURÍA",2,2,4]
[null,null,null,null,null,"INSTITUTO TECNOLÓGICO DE ESTUDIOS SUPERIORES DE ZAMORA",1604,1006,2610]
[null,null,null,null,null,"INGENIERÍA EN INFORMÁTICA",59,25,84]
[null,null,null,null,null,"LICENCIATURA EN ADMINISTRACIÓN",119,166,285]
[null,null,null,null,null,"LICENCIATURA EN ADMINISTRACIÓN",0,0,0]
[null,null,null,null,null,"LICENCIATURA EN INFORMÁTICA",0,0,0]
[null,null,null,null,null,"INGENIERÍA EN FORESTAL",80,40,120]
[null,null,null,null,null,"INGENIERÍA QUÍMICA",99,174,273]
[null,null,null,null,null,"INSTITUTO TECNOLÓGICO SUPERIOR DE LOS REYES",957,588,1545]
[null,null,null,null,null,"ARQUITECTURA",108,42,150]
[null,null,null,null,null,"INSTITUTO TECNOLÓGICO SUPERIOR DE PURUANDIRO",348,261,609]
[null,null,null,null,null,"INSTITUTO TECNOLÓGICO SUPERIOR DE TACÁMBARO",552,424,976]
[null,null,null,null,null,"LICENCIATURA EN ADMINISTRACIÓN FINANCIERA",15,16,31]
[null,null,null,null,null,"INGENIERÍA ELECTROMECÁNICA",0,0,0]
[null,null,null,null,null,"LICENCIATURA EN INFORMÁTICA",0,0,0]
[null,null,null,null,null,"LICENCIATURA EN ADMINISTRACIÓN EN MERCADOTECNIA",0,0,0]
[null,null,null,null,null,"LICENCIATURA EN NUTRICIÓN",49,162,211]
[null,null,null,null,null,"LICENCIATURA EN CRIMINOLOGÍA",10,23,33]
[null,null,null,null,null,"LICENCIATURA EN INGENIERÍA EN NANOTECNOLOGÍA",50,29,79]
[null,null,null,null,null,"LICENCIATURA EN MEDIOS INTERACTIVOS",104,55,159]
[null,null,null,null,null,"LICENCIATURA EN ADMINISTRACIÓN E INNOVACIÓN DE NEGOCIOS",5,2,7]
[null,null,null,null,null,"LICENCIATURA EN INFORMÁTICA ADMINISTRATIVA",0,0,0]
[null,null,null,null,null,"LICENCIATURA EN FÍSICO CONSTRUCTIVISMO Y FITNESS",33,21,54]
[null,null,null,null,null,"LICENCIATURA EN ADMINISTRACIÓN DE EMPRESAS",65,93,158]
[null,null,null,null,null,"LICENCIATURA EN CIENCIAS Y TÉCNICAS DE LA COMUNICACIÓN",37,43,80]
[null,null,null,null,null,"UNIVERSIDAD INTERCULTURAL INDÍGENA DE MICHOACÁN",279,291,570]
[null,null,null,null,null,"LICENCIATURA EN ABOGACÍA INTERNACIONAL",13,17,30]
[null,null,null,null,null,"LICENCIATURA EN CIENCIAS DE LA EDUCACIÓN",12,26,38]
[null,null,null,null,null,"LICENCIATURA EN CONTADURÍA PÚBLICA",3,3,6]
[null,null,null,null,null,"LICENCIATURA EN RELACIONES COMERCIALES INTERNACIONALES",51,69,120]
[null,null,null,null,null,"INGENIERÍA CIVIL",1517,290,1807]
[null,null,null,null,null,"LICENCIATURA EN CONTADURÍA",1484,2221,3705]
[null,null,null,null,null,"LICENCIATURA EN HISTORIA",240,172,412]
[null,null,null,null,null,"MÉDICO CIRUJANO Y PARTERO",1187,1289,2476]
[null,null,null,null,null,"LICENCIATURA EN DESARROLLO INFANTIL",6,176,182]
[null,null,null,null,null,"LICENCIATURA EN MULTIMEDIA DIGITAL",48,11,59]
[null,null,null,null,null,"UNIVERSIDAD PEDAGÓGICA NACIONAL URUAPAN",140,456,596]
[null,null,null,null,null,"UNIVERSIDAD SOR JUANA INÉS DE LA CRUZ",61,87,148]
[null,null,null,null,null,"LICENCIATURA EN INFORMÁTICA ADMINISTRATIVA",1,3,4]
[null,null,null,null,null,"INGENIERÍA EN TECNOLOGÍAS DE LA INFORMACIÓN",152,33,185]
[null,null,null,null,null,"TÉCNICO SUPERIOR UNIVERSITARIO EN QUÍMICA ÁREA BIOTECNOLOGÍA",123,155,278]
[null,null,null,null,null,"LICENCIATURA EN DISEÑO GRÁFICO",20,18,38]
[null,null,null,null,null,"CONTADOR PÚBLICO",14,20,34]
[null,null,null,null,null,"LICENCIATURA EN MERCADOTECNIA Y VENTAS",23,37,60]
[null,null,null,null,null,"INGENIERÍA EN DESARROLLO AGROINDUSTRIAL",260,137,397]
[null,null,null,null,null,"LICENCIATURA EN INTERVENCIÓN EDUCATIVA",76,195,271]
[null,null,null,null,null,"UNIVERSIDAD MARISTA VALLADOLID",137,290,427]
[null,null,null,null,null,"CENTRO DE ESTUDIOS SUPERIORES MICHOACÁN",8,2,10]
[null,null,null,null,null,"INGENIERÍA EN SISTEMAS COMPUTACIONALES",363,84,447]
[null,null,null,null,null,"INGENIERÍA INDUSTRIAL",243,110,353]
[null,null,null,null,null,"INGENIERÍA EN SISTEMAS COMPUTACIONALES",173,38,211]
[null,null,null,null,null,"LICENCIATURA EN PEDAGOGÍA",5,18,23]
[null,null,null,null,null,"CENTRO DE ESTUDIOS ACADÉMICOS DE ZACAPU",1,4,5]
[null,null,null,null,null,"CENTRO DE ESTUDIOS UNIVERSITARIOS XOCHICALCO",2,6,8]
[null,null,null,null,null,"LICENCIATURA EN PSICOLOGÍA",8,41,49]
[null,null,null,null,null,"LICENCIATURA EN MÚSICA",84,29,113]
[null,null,null,null,null,"LICENCIATURA EN MERCADOTECNIA",0,0,0]
[null,null,null,null,null,"CENTRO UNIVERSITARIO LATINOAMERICANO DE MORELOS",34,150,184]
[null,null,null,null,null,"LICENCIATURA EN DOCENCIA",1,91,92]
[null,null,null,null,null,"LICENCIATURA EN DERECHO",7,11,18]
[null,null,null,null,null,"LICENCIATURA EN COMERCIO INTERNACIONAL",26,24,50]
[null,null,null,null,null,"LICENCIATURA EN INGENIERÍA EN NEGOCIOS INTERNACIONALES",0,2,2]
[null,null,null,null,null,"LICENCIATURA EN DOCENCIA DE LAS ARTES",41,46,87]
[null,null,null,null,null,"INSTITUTO FRANCÉS DE GASTRONOMÍA IFRA",20,21,41]
[null,null,null,null,null,"INGENIERÍA EN GESTIÓN EMPRESARIAL",182,277,459]
[null,null,null,null,null,"INGENIERÍA INDUSTRIAL",619,291,910]
[null,null,null,null,null,"LICENCIATURA EN ADMINISTRACIÓN DE EMPRESAS",31,36,67]
[null,null,null,null,null,"TRONCO COMÚN EN INGENIERÍA",34,44,78]
[null,null,null,null,null,"LICENCIATURA EN EDUCACIÓN ESPECIAL EN EL ÁREA DE ATENCIÓN MOTRIZ",0,29,29]
[null,null,null,null,null,"LICENCIATURA EN EDUCACIÓN SECUNDARIA CON ESPECIALIDAD EN QUÍMICA",2,2,4]
[null,null,null,null,null,"LICENCIATURA EN DERECHO",6,3,9]
[null,null,null,null,null,"INGENIERÍA HORTÍCOLA",122,59,181]
[null,null,null,null,null,"LICENCIATURA EN CIENCIAS (COMPUTACIÓN)",30,3,33]
[null,null,null,null,null,"LICENCIATURA EN CIENCIAS APLICADAS AL DEPORTE",276,68,344]
[null,null,null,null,null,"LICENCIATURA EN DERECHO",1116,1293,2409]
[null,null,null,null,null,"LICENCIATURA EN INFORMÁTICA",501,198,699]
[null,null,null,null,null,"LICENCIATURA EN MÚSICA CON ÁREA TERMINAL EN INSTRUMENTO",5,3,8]
[null,null,null,null,null,"LICENCIATURA EN ANIMACIÓN Y ARTE DIGITAL",4,4,8]
[null,null,null,null,null,"LICENCIATURA EN MERCADOTECNIA Y PUBLICIDAD",15,24,39]
[null,null,null,null,null,"LICENCIATURA EN PERIODISMO",0,0,0]
[null,null,null,null,null,"LICENCIATURA EN ADMINISTRACIÓN DE NEGOCIOS INTERNACIONALES",75,55,130]
[null,null,null,null,null,"LICENCIATURA EN PSICOLOGÍA",2,9,11]
[null,null,null,null,null,"LICENCIATURA EN CONTADURÍA Y FINANZAS",3,3,6]
[null,null,null,null,null,"LICENCIATURA EN PSICOLOGÍA",5,25,30]
[null,null,null,null,null,"LICENCIATURA EN DERECHO",67,58,125]
[null,null,null,null,null,"UNIVERSIDAD INTERNACIONAL",357,384,741]
[null,null,null,null,null,"LICENCIATURA EN ECONOMÍA Y FINANZAS",10,6,16]
[null,null,null,null,null,"LICENCIATURA EN ADMINISTRACIÓN DE EMPRESAS",0,0,0]
[null,null,null,null,null,"LICENCIATURA EN INGENIERÍA CIVIL",33,8,41]
[null,null,null,null,null,"LICENCIATURA EN INGENIERÍA INDUSTRIAL",39,22,61]
[null,null,null,null,null,"LICENCIATURA EN NUTRICIÓN",41,118,159]
[null,null,null,null,null,"LICENCIATURA EN DERECHO",39,46,85]
[null,null,null,null,null,"LICENCIATURA EN MEDICINA VETERINARIA Y ZOOTECNIA",140,127,267]
[null,null,null,null,null,"LICENCIATURA EN CIENCIAS GENÓMICAS",36,37,73]
[null,null,null,null,null,"LICENCIATURA EN DERECHO",16,29,45]
[null,null,null,null,null,"UNIVERSIDAD STRATFORD",195,274,469]
[null,null,null,null,null,"LICENCIATURA EN ENFERMERÍA",28,71,99]
[null,null,null,null,null,"TÉCNICO SUPERIOR UNIVERSITARIO EN TURISMO ÁREA DESARROLLO DE PRODUCTOS ALTERNATIVOS",68,96,164]
[null,null,null,null,null,"LICENCIATURA EN TERAPIA FÍSICA",52,91,143]
[null,null,null,null,null,"TÉCNICO SUPERIOR UNIVERSITARIO EN NANOTECNOLOGÍA",31,13,44]
[null,null,null,null,null,"ESCUELA DE ENFERMERÍA FLORENCIA NIGHTINGALE CRUZ ROJA DELEGACIÓN CUERNAVACA",74,331,405]
[null,null,null,null,null,"ABOGADO",41,9,50]
[null,null,null,null,null,"LICENCIATURA EN EDUCACIÓN PREESCOLAR Y PRIMARIA EN EL MEDIO INDÍGENA",14,79,93]
[null,null,null,null,null,"LICENCIATURA EN DERECHO",3,2,5]
[null,null,null,null,null,"CENTRO DE ESTUDIOS UNIVERSITARIOS DE BAJA CALIFORNIA",142,244,386]
[null,null,null,null,null,"INGENIERÍA EN ADMINISTRACIÓN DE SISTEMAS COMPUTACIONALES",30,9,39]
[null,null,null,null,null,"LICENCIATURA EN CONTABILIDAD",8,9,17]
[null,null,null,null,null,"ESCUELA NORMAL EXPERIMENTAL DE ACAPONETA",98,225,323]
[null,null,null,null,null,"LICENCIATURA EN CONTADURÍA",4,12,16]
[null,null,null,null,null,"LICENCIATURA EN SEGURIDAD",85,14,99]
[null,null,null,null,null,"LICENCIATURA EN ADMINISTRACIÓN DE EMPRESAS",10,10,20]
[null,null,null,null,null,"LICENCIATURA EN DERECHO",42,46,88]
[null,null,null,null,null,"INGENIERÍA AMBIENTAL",27,24,51]
[null,null,null,null,null,"INGENIERÍA EN QUÍMICA",53,68,121]
[null,null,null,null,null,"INGENIERÍA EN GESTIÓN EMPRESARIAL",51,52,103]
[null,null,null,null,null,"CURSO COMPLEMENTARIO DE LA LICENCIATURA EN ENFERMERÍA",17,78,95]
[null,null,null,null,null,"INGENIERÍA EN ELECTRÓNICA",130,3,133]
[null,null,null,null,null,"LICENCIATURA EN ECONOMÍA",50,49,99]
[null,null,null,null,null,"LICENCIATURA EN FILOSOFÍA",33,21,54]
[null,null,null,null,null,"LICENCIATURA EN SISTEMAS COMPUTACIONALES",144,19,163]
[null,null,null,null,null,"UNIVERSIDAD DE ESPECIALIDADES",145,313,458]
[null,null,null,null,null,"LICENCIATURA EN ADMINISTRACIÓN",0,0,0]
[null,null,null,null,null,"LICENCIATURA EN EDUCACIÓN FÍSICA",10,4,14]
[null,null,null,null,null,"UNIVERSIDAD DEL VALLE DE MATATIPAC",13,15,28]
[null,null,null,null,null,"LICENCIATURA EN ARQUITECTURA",9,4,13]
[null,null,null,null,null,"LICENCIATURA EN CONTADURÍA",40,36,76]
[null,null,null,null,null,"TÉCNICO SUPERIOR UNIVERSITARIO EN GASTRONOMÍA",123,83,206]
[null,null,null,null,null,"TÉCNICO SUPERIOR UNIVERSITARIO EN MANTENIMIENTO ÁREA INSTALACIONES",91,0,91]
[null,null,null,null,null,"TÉCNICO SUPERIOR UNIVERSITARIO EN ADMINISTRACIÓN ÁREA RECURSOS HUMANOS",104,236,340]
[null,null,null,null,null,"TÉCNICO SUPERIOR UNIVERSITARIO EN PROCESOS ALIMENTARIOS",14,30,44]
[null,null,null,null,null,"LICENCIATURA EN GASTRONOMÍA",147,181,328]
[null,null,null,null,null,"TÉCNICO SUPERIOR UNIVERSITARIO EN OPERACIONES COMERCIALES INTERNACIONALES ÁREA NEGOCIOS INTERNACIONALES",88,153,241]
[null,null,null,null,null,"LICENCIATURA EN DERECHO",354,324,678]
[null,null,null,null,null,"LICENCIATURA EN FISIOTERAPIA",85,178,263]
[null,null,null,null,null,"INSTITUTO DE INICIACIÓN ARTÍSTICA DE NAYARIT \"MTRO. CONRADO ELÍAS CARRILLO\"",61,66,127]
[null,null,null,null,null,"INSTITUTO VALLES DEL TINTOQUE",16,22,38]
[null,null,null,null,null,"LICENCIATURA EN DISEÑO GRÁFICO",5,20,25]
[null,null,null,null,null,"LICENCIATURA EN ENFERMERÍA",100,237,337]
[null,null,null,null,null,"LICENCIATURA EN PSICOLOGÍA",7,23,30]
[null,null,null,null,null,"LICENCIATURA EN ARQUITECTURA DE INTERIOR",0,0,0]
[null,null,null,null,null,"INGENIERÍA INDUSTRIAL ADMINISTRADOR",19,3,22]
[null,null,null,null,null,"LICENCIATURA EN INFORMÁTICA ADMINISTRATIVA",4,1,5]
[null,null,null,null,null,"LICENCIATURA EN ADMINISTRACIÓN DE EMPRESAS",110,71,181]
[null,null,null,null,null,"LICENCIATURA EN PSICOLOGÍA",61,142,203]
[null,null,null,null,null,"TÉCNICO SUPERIOR UNIVERSITARIO EN REHABILITACIÓN FÍSICA Y PROMOTOR DE LA SALUD",5,10,15]
[null,null,null,null,null,"LICENCIATURA EN EDUCACIÓN CON ACENTUACIÓN EN LA ENSEÑANZA DEL INGLÉS",1,48,49]
[null,null,null,null,null,"LICENCIATURA EN ADMINISTRACIÓN DE EMPRESAS",16,32,48]
[null,null,null,null,null,"LICENCIATURA EN DERECHO",10,9,19]
[null,null,null,null,null,"LICENCIATURA EN PSICOPEDAGOGÍA Y GESTIÓN EDUCATIVA",17,46,63]
[null,null,null,null,null,"CREA CENTRO REGIONAL DE ESTUDIOS ADMINISTRATIVOS",65,92,157]
[null,null,null,null,null,"LICENCIATURA EN EDUCACIÓN FÍSICA, RECREACIÓN Y DEPORTE",110,39,149]
[null,null,null,null,null,"INGENIERÍA INDUSTRIAL",116,62,178]
[null,null,null,null,null,"LICENCIATURA EN DISEÑO GRÁFICO Y ANIMACIÓN",107,150,257]
[null,null,null,null,null,"LICENCIATURA EN INGENIERÍA EN DESARROLLO DE SOFTWARE",140,15,155]
[null,null,null,null,null,"ESCUELA DE ENFERMERÍA DEL HOSPITAL SAN VICENTE",14,59,73]
[null,null,null,null,null,"LICENCIATURA EN ENFERMERÍA",7,13,20]
[null,null,null,null,null,"LICENCIATURA EN EDUCACIÓN ESPECIAL EN EL ÁREA DE ATENCIÓN VISUAL",3,71,74]
[null,null,null,null,null,"LICENCIATURA EN EDUCACIÓN SECUNDARIA CON ESPECIALIDAD EN ESPAÑOL",45,111,156]
[null,null,null,null,null,"LICENCIATURA EN EDUCACIÓN SECUNDARIA CON ESPECIALIDAD EN FORMACIÓN CÍVICA Y ÉTICA",37,76,113]
[null,null,null,null,null,"LICENCIATURA EN DANZA CLÁSICA",4,74,78]
[null,null,null,null,null,"ESCUELA SUPERIOR DE NEGOCIOS DE MONTERREY",23,20,43]
[null,null,null,null,null,"LICENCIATURA EN EDUCACIÓN BÁSICA CON ACENTUACIÓN EN DIRECCIÓN Y GESTIÓN EDUCATIVA",1,18,19]
[null,null,null,null,null,"LICENCIATURA EN GASTRONOMÍA, CHEF",76,91,167]
[null,null,null,null,null,"LICENCIATURA EN CIENCIAS JURÍDICAS",0,4,4]
[null,null,null,null,null,"LICENCIATURA EN ADMINISTRACIÓN DE EMPRESAS CON ACENTUACIÓN EN MERCADOTECNIA",6,9,15]
[null,null,null,null,null,"INSTITUTO DE LA ARQUIDIÓCESIS DE MONTERREY",183,26,209]
[null,null,null,null,null,"LICENCIATURA EN PSICOLOGÍA",5,20,25]
[null,null,null,null,null,"LICENCIATURA EN SISTEMAS ADMINISTRATIVOS COMPUTACIONALES",12,8,20]
[null,null,null,null,null,"INSTITUTO LCI-LIDERAZGO CANADIENSE INTERNACIONAL",27,63,90]
[null,null,null,null,null,"INSTITUTO OXXO",316,181,497]
[null,null,null,null,null,"INSTITUTO PROFESIONAL DE ARTE Y DISEÑO, A.C.",10,29,39]
[null,null,null,null,null,"LICENCIATURA EN EDUCACIÓN PREESCOLAR",0,30,30]
[null,null,null,null,null,"LICENCIATURA EN PEDAGOGÍA",0,4,4]
[null,null,null,null,null,"INGENIERÍA AMBIENTAL",91,79,170]
[null,null,null,null,null,"INGENIERÍA EN GESTIÓN EMPRESARIAL",381,489,870]
[null,null,null,null,null,"INGENIERÍA EN INDUSTRIAS ALIMENTARIAS",58,153,211]
[null,null,null,null,null,"INGENIERÍA EN TECNOLOGÍAS ELECTRÓNICAS",14,4,18]
[null,null,null,null,null,"INGENIERÍA QUÍMICO ADMINISTRADOR",405,224,629]
[null,null,null,null,null,"LICENCIATURA EN CONTADURÍA PÚBLICA Y FINANZAS",188,199,387]
[null,null,null,null,null,"LICENCIATURA EN PERIODISMO Y MEDIOS DE INFORMACIÓN",16,43,59]
[null,null,null,null,null,"MÉDICO CIRUJANO ODONTÓLOGO",6,49,55]
[null,null,null,null,null,"LICENCIATURA EN EDUCACIÓN PRIMARIA",0,10,10]
[null,null,null,null,null,"LICENCIATURA EN EDUCACIÓN CON ACENTUACIÓN EN LA ENSEÑANZA DEL INGLÉS",0,3,3]
[null,null,null,null,null,"LICENCIATURA EN DESARROLLO Y ADMINISTRACIÓN DE EMPRESAS",11,14,25]
[null,null,null,null,null,"LICENCIATURA EN EDUCACIÓN PRIMARIA",10,43,53]
[null,null,null,null,null,"INGENIERÍA EN MECATRÓNICA",15,1,16]
[null,null,null,null,null,"LICENCIATURA EN EDUCACIÓN Y DESARROLLO",2,11,13]
[null,null,null,null,null,"BIÓLOGO",287,287,574]
[null,null,null,null,null,"INGENIERÍA EN AGRONEGOCIOS",117,58,175]
[null,null,null,null,null,"INGENIERÍA GEÓLOGO MINERALOGISTA",104,57,161]
[null,null,null,null,null,"LICENCIATURA EN ADMINISTRACIÓN DE ENERGÍA Y DESARROLLO SUSTENTABLE",143,138,281]
[null,null,null,null,null,"LICENCIATURA EN CIENCIAS DEL EJERCICIO",1122,498,1620]
[null,null,null,null,null,"LICENCIATURA EN FILOSOFÍA Y HUMANIDADES",59,44,103]
[null,null,null,null,null,"LICENCIATURA EN HISTORIA Y ESTUDIOS DE HUMANIDADES",65,59,124]
[null,null,null,null,null,"LICENCIATURA EN RELACIONES INTERNACIONALES",1303,2614,3917]
[null,null,null,null,null,"MÉDICO CIRUJANO Y PARTERO",4076,3945,8021]
[null,null,null,null,null,"TÉCNICO SUPERIOR UNIVERSITARIO EN TROQUELES",0,0,0]
[null,null,null,null,null,"LICENCIATURA EN PRODUCCIÓN TELEVISIVA",5,6,11]
[null,null,null,null,null,"LICENCIATURA EN MARKETING Y PUBLICIDAD",12,17,29]
[null,null,null,null,null,"LICENCIATURA EN CIENCIAS DE LA EDUCACIÓN ÁREA LENGUA Y LITERATURA ESPAÑOLA",2,10,12]
[null,null,null,null,null,"LICENCIATURA EN ENSEÑANZA DE LAS CIENCIAS SOCIALES",3,2,5]
[null,null,null,null,null,"LICENCIATURA EN ARQUITECTO",181,307,488]
[null,null,null,null,null,"LICENCIATURA EN CONTADURÍA Y FINANZAS",80,93,173]
[null,null,null,null,null,"LICENCIATURA EN INGENIERÍA EN DISEÑO AUTOMOTRIZ",58,2,60]
[null,null,null,null,null,"LICENCIATURA EN TURISMO INTERNACIONAL",10,62,72]
[null,null,null,null,null,"LICENCIATURA EN PSICOLOGÍA DEL TRABAJO Y DE LAS ORGANIZACIONES",11,24,35]
[null,null,null,null,null,"LICENCIATURA EN ADMINISTRACIÓN DE LA NUTRICIÓN",10,36,46]
[null,null,null,null,null,"LICENCIATURA EN DISEÑO GRÁFICO",21,13,34]
[null,null,null,null,null,"INGENIERÍA EN TECNOLOGÍAS ELECTRÓNICAS",62,1,63]
[null,null,null,null,null,"LICENCIATURA EN ADMINISTRACIÓN DE NEGOCIOS INTERNACIONALES",63,56,119]
[null,null,null,null,null,"LICENCIATURA EN DERECHO",113,110,223]
[null,null,null,null,null,"LICENCIATURA EN MERCADOTECNIA",60,58,118]
[null,null,null,null,null,"LICENCIATURA EN PSICOLOGÍA",73,238,311]
[null,null,null,null,null,"INGENIERÍA COMERCIAL",2,1,3]
[null,null,null,null,null,"INGENIERÍA INDUSTRIAL Y DE SISTEMAS",23,2,25]
[null,null,null,null,null,"LICENCIATURA EN PALEONTOLOGÍA",4,5,9]
[null,null,null,null,null,"LICENCIATURA EN COMERCIO INTERNACIONAL",8,0,8]
[null,null,null,null,null,"LICENCIATURA EN ADMINISTRACIÓN AUTOMATIZADA DE NEGOCIOS",0,0,0]
[null,null,null,null,null,"LICENCIATURA DE CONTADOR PÚBLICO Y AUDITOR",81,82,163]
[null,null,null,null,null,"INGENIERÍA MECÁNICO ADMINISTRADOR",556,96,652]
[null,null,null,null,null,"LICENCIATURA EN MERCADOTECNIA",121,111,232]
[null,null,null,null,null,"LICENCIATURA EN EDUCACIÓN",44,308,352]
[null,null,null,null,null,"LICENCIATURA EN CIENCIAS JURÍDICAS",33,38,71]
[null,null,null,null,null,"INGENIERÍA EN DISEÑO INDUSTRIAL",78,43,121]
[null,null,null,null,null,"INGENIERÍA QUÍMICO",56,32,88]
[null,null,null,null,null,"LICENCIATURA EN ADMINISTRACIÓN DEPORTIVA",3,0,3]
[null,null,null,null,null,"LICENCIATURA EN NEGOCIOS INTERNACIONALES",132,67,199]
[null,null,null,null,null,"TÉCNICO SUPERIOR UNIVERSITARIO EN COMERCIALIZACIÓN",0,0,0]
[null,null,null,null,null,"TÉCNICO SUPERIOR UNIVERSITARIO EN MECATRÓNICA",0,0,0]
[null,null,null,null,null,"INGENIERÍA EN NANOTECNOLOGÍA",9,7,16]
[null,null,null,null,null,"UNIVERSIDAD TECNOLÓGICA LINARES",703,514,1217]
[null,null,null,null,null,"LICENCIATURA EN EDUCACIÓN",47,102,149]
[null,null,null,null,null,"INGENIERÍA EN SISTEMAS PRODUCTIVOS",91,37,128]
[null,null,null,null,null,"TÉCNICO SUPERIOR UNIVERSITARIO EN MECATRÓNICA, ÁREA AUTOMATIZACIÓN",716,30,746]
[null,null,null,null,null,"LICENCIATURA EN PSICOLOGÍA",6,20,26]
[null,null,null,null,null,"LICENCIATURA EN EDUCACIÓN Y ADMINISTRACIÓN EDUCATIVA",9,79,88]
[null,null,null,null,null,"INSTITUTO DE ADMINISTRACIÓN DE RIESGOS",13,8,21]
[null,null,null,null,null,"LICENCIATURA EN ENFERMERÍA",0,4,4]
[null,null,null,null,null,"LICENCIATURA EN GESTIÓN TURÍSTICA",4,38,42]
[null,null,null,null,null,"CENTRO DE EDUCACIÓN CONTINUA UNIDAD OAXACA",16,30,46]
[null,null,null,null,null,"LICENCIATURA EN EDUCACIÓN FÍSICA",148,57,205]
[null,null,null,null,null,"CENTRO UNIVERSITARIO LUIS DONALDO COLOSIO MURRIETA",64,88,152]
[null,null,null,null,null,"LICENCIATURA EN COMERCIO EXTERIOR Y ADUANAS",30,39,69]
[null,null,null,null,null,"LICENCIATURA EN PEDAGOGÍA",43,135,178]
[null,null,null,null,null,"LICENCIATURA EN CRIMINOLOGÍA, CRIMINALÍSTICA Y TÉCNICAS PERICIALES",138,136,274]
[null,null,null,null,null,"COLEGIO SUPERIOR DE MÉXICO",0,0,0]
[null,null,null,null,null,"ESCUELA NORMAL EXPERIMENTAL DE TEPOSCOLULA",58,183,241]
[null,null,null,null,null,"LICENCIATURA EN EDUCACIÓN PRIMARIA",46,76,122]
[null,null,null,null,null,"LICENCIATURA EN ARQUITECTURA",23,5,28]
[null,null,null,null,null,"LICENCIATURA EN INFORMÁTICA",10,2,12]
[null,null,null,null,null,"LICENCIATURA EN PEDAGOGÍA",69,232,301]
[null,null,null,null,null,"LICENCIATURA EN CONTADURÍA PÚBLICA Y GESTIÓN EMPRESARIAL",25,36,61]
[null,null,null,null,null,"LICENCIATURA EN CIRUJANO DENTISTA",58,90,148]
[null,null,null,null,null,"INSTITUTO DE INVESTIGACIONES SOCIALES Y HUMANAS",2,1,3]
[null,null,null,null,null,"INSTITUTO PEDAGÓGICO COMPUTARIZADO",20,14,34]
[null,null,null,null,null,"INSTITUTO TECNOLÓGICO DE LA CUENCA DEL PAPALOAPAN",305,183,488]
[null,null,null,null,null,"INGENIERÍA EN GESTIÓN EMPRESARIAL",372,546,918]
[null,null,null,null,null,"INGENIERÍA QUÍMICA",205,277,482]
[null,null,null,null,null,"INSTITUTO TECNOLÓGICO DE POCHUTLA",473,227,700]
[null,null,null,null,null,"INGENIERÍA CIVIL",297,72,369]
[null,null,null,null,null,"INGENIERÍA BIOQUÍMICA",84,111,195]
[null,null,null,null,null,"CONTADOR PÚBLICO",101,194,295]
[null,null,null,null,null,"INSTITUTO TECNOLÓGICO DEL VALLE DE OAXACA",939,698,1637]
[null,null,null,null,null,"LICENCIATURA EN BIOLOGÍA",164,250,414]
[null,null,null,null,null,"LICENCIATURA EN PEDAGOGÍA",1,24,25]
[null,null,null,null,null,"LICENCIATURA EN ADMINISTRACIÓN",50,85,135]
[null,null,null,null,null,"LICENCIATURA EN EDUCACIÓN PREESCOLAR EN EL MEDIO INDÍGENA",35,81,116]
[null,null,null,null,null,"LICENCIATURA EN EDUCACIÓN",136,226,362]
[null,null,null,null,null,"LICENCIATURA EN ECONOMÍA",4,0,4]
[null,null,null,null,null,"LICENCIATURA EN MERCADOTECNIA ESTRATÉGICA",8,11,19]
[null,null,null,null,null,"LICENCIATURA EN ARQUITECTURA",1029,405,1434]
[null,null,null,null,null,"LICENCIATURA EN ECONOMÍA",33,30,63]
[null,null,null,null,null,"QUÍMICO FARMACÉUTICO BIÓLOGO",340,433,773]
[null,null,null,null,null,"INGENIERÍA EN AGROINDUSTRIAS",8,14,22]
[null,null,null,null,null,"UNIVERSIDAD DE LA SIERRA JUÁREZ",115,129,244]
[null,null,null,null,null,"LICENCIATURA EN DERECHO",33,46,79]
[null,null,null,null,null,"LICENCIATURA EN INGENIERÍA EN DISEÑO",21,21,42]
[null,null,null,null,null,"LICENCIATURA EN BIOLOGÍA",17,38,55]
[null,null,null,null,null,"LICENCIATURA EN INGENIERÍA EN ACUICULTURA",3,6,9]
[null,null,null,null,null,"LICENCIATURA EN INGENIERÍA EN SISTEMAS DE INFORMACIÓN",8,0,8]
[null,null,null,null,null,"LICENCIATURA EN COMUNICACIÓN Y MEDIOS DE INFORMACIÓN",1,3,4]
[null,null,null,null,null,"LICENCIATURA EN GOBIERNO Y ADMINISTRACIÓN PÚBLICA",15,14,29]
[null,null,null,null,null,"LICENCIATURA EN INGENIERÍA AMBIENTAL",17,23,40]
[null,null,null,null,null,"LICENCIATURA EN INGENIERÍA DE SOFTWARE Y SISTEMAS COMPUTACIONALES",62,10,72]
[null,null,null,null,null,"LICENCIATURA EN DISEÑO GRÁFICO",0,0,0]
[null,null,null,null,null,"LICENCIATURA EN ADMINISTRACIÓN TURÍSTICA",9,30,39]
[null,null,null,null,null,"LICENCIATURA EN CONTADURÍA PÚBLICA",1,6,7]
[null,null,null,null,null,"UNIVERSIDAD TECNOLÓGICA DE LA MIXTECA",1035,433,1468]
[null,null,null,null,null,"INGENIERÍA EN FÍSICA APLICADA",62,11,73]
[null,null,null,null,null,"INGENIERÍA EN PROCESOS ALIMENTARIOS",1,14,15]
[null,null,null,null,null,"TÉCNICO SUPERIOR UNIVERSITARIO EN PROCESOS ALIMENTARIOS",20,51,71]
[null,null,null,null,null,"LICENCIATURA EN EDUCACIÓN FÍSICA Y CIENCIAS DEL DEPORTE",34,11,45]
[null,null,null,null,null,"LICENCIATURA EN CONTADURÍA PÚBLICA",11,27,38]
[null,null,null,null,null,"INGENIERÍA AGROFORESTAL",37,45,82]
[null,null,null,null,null,"INGENIERÍA EN GEOFÍSICA",116,69,185]
[null,null,null,null,null,"INGENIERÍA QUÍMICA",328,330,658]
[null,null,null,null,null,"LICENCIATURA EN BIOTECNOLOGÍA",128,173,301]
[null,null,null,null,null,"LICENCIATURA EN CRIMINOLOGÍA",324,655,979]
[null,null,null,null,null,"LICENCIATURA EN DISEÑO GRÁFICO",582,757,1339]
[null,null,null,null,null,"LICENCIATURA EN ENFERMERÍA (CURSO COMPLEMENTARIO)",20,184,204]
[null,null,null,null,null,"LICENCIATURA EN INGENIERÍA AGROINDUSTRIAL",57,59,116]
[null,null,null,null,null,"LICENCIATURA EN NEGOCIOS INTERNACIONALES",124,150,274]
[null,null,null,null,null,"LICENCIATURA EN QUÍMICA",96,84,180]
[null,null,null,null,null,"LICENCIATURA EN PROCESOS Y GESTIÓN INDUSTRIAL",35,18,53]
[null,null,null,null,null,"LICENCIATURA EN ADMINISTRACIÓN",25,31,56]
[null,null,null,null,null,"CENTRO DE ESTUDIOS DE ESTÉTICA Y COSMETOLOGÍA ALBADA",0,0,0]
[null,null,null,null,null,"CENTRO DE ESTUDIOS LAS AMÉRICAS",79,105,184]
[null,null,null,null,null,"LICENCIATURA EN DERECHO",13,8,21]
[null,null,null,null,null,"LICENCIATURA EN ADMINISTRACIÓN TURÍSTICA",67,152,219]
[null,null,null,null,null,"LICENCIATURA EN ADMINISTRACIÓN TURÍSTICA",40,106,146]
[null,null,null,null,null,"LICENCIATURA EN DISEÑO DE MODAS",3,7,10]
[null,null,null,null,null,"CENTRO ESCOLAR DIESEL Y GASOLINA A.C.",658,13,671]
[null,null,null,null,null,"PROFESIONAL ASOCIADO EN ESTILISMO Y PELUQUERÍA",2,25,27]
[null,null,null,null,null,"LICENCIATURA EN PSICOLOGÍA",17,48,65]
[null,null,null,null,null,"LICENCIATURA EN ARQUITECTURA",6,2,8]
[null,null,null,null,null,"LICENCIATURA EN INGENIERÍA MECATRÓNICA",7,1,8]
[null,null,null,null,null,"LICENCIATURA EN COMUNICACIÓN Y PERIODISMO",16,16,32]
[null,null,null,null,null,"LICENCIATURA EN PEDAGOGÍA",70,181,251]
[null,null,null,null,null,"LICENCIATURA EN INFORMÁTICA",14,7,21]
[null,null,null,null,null,"LICENCIATURA EN CRIMINO-VICTIMALES",37,72,109]
[null,null,null,null,null,"COMPUMMUNICATE, INSTITUTO DE COMPUTO E INGLES",6,8,14]
[null,null,null,null,null,"LICENCIATURA EN MERCADOTECNIA Y SISTEMAS",5,11,16]
[null,null,null,null,null,"LICENCIATURA EN INGENIERÍA INDUSTRIAL Y DE SISTEMAS",41,16,57]
[null,null,null,null,null,"ESCUELA DE ESTUDIOS PROFESIONALES DE ATLIXCO",43,30,73]
[null,null,null,null,null,"LICENCIATURA EN MEDICINAS ALTERNATIVAS Y COMPLEMENTARIAS",34,55,89]
[null,null,null,null,null,"LICENCIATURA EN TRABAJO SOCIAL",4,14,18]
[null,null,null,null,null,"LICENCIATURA EN EDUCACIÓN SECUNDARIA CON ESPECIALIDAD EN TELESECUNDARIA",12,22,34]
[null,null,null,null,null,"LICENCIATURA EN EDUCACIÓN PRIMARIA",7,22,29]
[null,null,null,null,null,"ESCUELA NORMAL SUPERIOR BENAVENTE",21,122,143]
[null,null,null,null,null,"LICENCIATURA EN EDUCACIÓN SECUNDARIA CON ESPECIALIDAD EN HISTORIA",0,0,0]
[null,null,null,null,null,"LICENCIATURA EN EDUCACIÓN SECUNDARIA CON ESPECIALIDAD EN MATEMÁTICAS",26,62,88]
[null,null,null,null,null,"ESCUELA NORMAL VICENTE DE PAUL",5,107,112]
[null,null,null,null,null,"LICENCIATURA EN INGENIERÍA DE MANUFACTURA AUTOMOTRIZ",8,2,10]
[null,null,null,null,null,"ESCUELA SUPERIOR DE MEDICINA VETERINARIA Y ZOOTECNIA, A.C.",224,176,400]
[null,null,null,null,null,"LICENCIATURA EN MÚSICA",7,3,10]
[null,null,null,null,null,"LICENCIATURA EN ADMINISTRACIÓN DE EMPRESAS",73,87,160]
[null,null,null,null,null,"LICENCIATURA EN CREACIÓN DE EMPRESAS Y DIRECCIÓN DE OPERACIONES",15,11,26]
[null,null,null,null,null,"INSTITUTO ANGLOAMERICANO DE PUEBLA",3,8,11]
[null,null,null,null,null,"LICENCIATURA EN CRIMINALÍSTICA Y CIENCIAS PERICIALES",56,96,152]
[null,null,null,null,null,"INSTITUTO DE ESTUDIOS AVANZADOS SIGLO XXI",179,328,507]
[null,null,null,null,null,"INSTITUTO DE ESTUDIOS SUPERIORES DE INGENIERÍA EDUCATIVA",508,187,695]
[null,null,null,null,null,"LICENCIATURA EN DERECHO",130,154,284]
[null,null,null,null,null,"LICENCIATURA EN ENFERMERÍA Y OBSTETRICIA",85,319,404]
[null,null,null,null,null,"LICENCIATURA EN DISEÑO GRÁFICO",80,59,139]
[null,null,null,null,null,"LICENCIATURA EN INGENIERÍA MECÁNICA AUTOMOTRIZ",113,5,118]
[null,null,null,null,null,"LICENCIATURA EN ADMINISTRACIÓN PÚBLICA Y CIENCIAS POLÍTICAS",54,42,96]
[null,null,null,null,null,"LICENCIATURA EN ECOTURISMO Y SUSTENTABILIDAD",6,12,18]
[null,null,null,null,null,"LICENCIATURA EN VENTAS Y COMERCIALIZACIÓN",16,11,27]
[null,null,null,null,null,"LICENCIATURA EN EDUCACIÓN INICIAL",0,43,43]
[null,null,null,null,null,"LICENCIATURA EN COMERCIO INTERNACIONAL Y ADUANAS",29,41,70]
[null,null,null,null,null,"LICENCIATURA EN TURISMO",104,232,336]
[null,null,null,null,null,"LICENCIATURA EN DESARROLLO INTEGRAL INFANTIL",3,362,365]
[null,null,null,null,null,"LICENCIATURA EN SISTEMAS COMPUTACIONALES E INFORMÁTICA",1,2,3]
[null,null,null,null,null,"LICENCIATURA EN GESTIÓN CORPORATIVA",9,17,26]
[null,null,null,null,null,"LICENCIATURA EN PSICOLOGÍA",12,35,47]
[null,null,null,null,null,"LICENCIATURA EN INFORMÁTICA",4,5,9]
[null,null,null,null,null,"INGENIERÍA EN TECNOLOGÍAS DE LA INFORMACIÓN Y COMUNICACIÓN",416,171,587]
[null,null,null,null,null,"CONTADOR PÚBLICO",155,365,520]
[null,null,null,null,null,"INGENIERÍA EN INDUSTRIAS ALIMENTARIAS",38,44,82]
[null,null,null,null,null,"INGENIERÍA EN INDUSTRIAS ALIMENTARIAS",38,76,114]
[null,null,null,null,null,"INGENIERÍA INDUSTRIAL",499,310,809]
[null,null,null,null,null,"INGENIERÍA INDUSTRIAL",125,88,213]
[null,null,null,null,null,"INGENIERÍA EN ELECTROMECÁNICA",0,0,0]
[null,null,null,null,null,"INGENIERÍA EN GESTIÓN EMPRESARIAL",79,142,221]
[null,null,null,null,null,"GASTRONOMÍA",32,46,78]
[null,null,null,null,null,"INGENIERÍA INDUSTRIAL",381,140,521]
[null,null,null,null,null,"INGENIERÍA EN INFORMÁTICA",198,89,287]
[null,null,null,null,null,"INSTITUTO TECNOLÓGICO SUPERIOR DE ZACAPOAXTLA",1207,894,2101]
[null,null,null,null,null,"INGENIERÍA EN BIONEGOCIOS",6,8,14]
[null,null,null,null,null,"INGENIERÍA EN DISEÑO AUTOMOTRIZ",103,12,115]
[null,null,null,null,null,"LICENCIATURA EN DERECHO",34,43,77]
[null,null,null,null,null,"INSTITUTO UNIVERSITARIO ÁNGELUS",2,1,3]
[null,null,null,null,null,"LICENCIATURA EN IDIOMAS",0,1,1]
[null,null,null,null,null,"LICENCIATURA EN ADMINISTRACIÓN DE EMPRESAS",13,13,26]
[null,null,null,null,null,"LICENCIATURA EN CIENCIAS POLICIALES Y SEGURIDAD PÚBLICA",99,11,110]
[null,null,null,null,null,"LICENCIATURA EN CONTADURÍA PÚBLICA",35,44,79]
[null,null,null,null,null,"LICENCIATURA EN FISIOTERAPIA",1148,2073,3221]
[null,null,null,null,null,"NORMAL PRIMARIA PROF. ENRIQUE ZAMORA PALAFOX",1,2,3]
[null,null,null,null,null,"U N A R T E",63,246,309]
[null,null,null,null,null,"LICENCIATURA EN INGENIERÍA MECÁNICA AUTOMOTRIZ",58,1,59]
[null,null,null,null,null,"UNIMETROPOLITANA DE MONTERREY",38,49,87]
[null,null,null,null,null,"LICENCIATURA EN TECNOLOGÍAS DE LA INFORMACIÓN",1,1,2]
[null,null,null,null,null,"LICENCIATURA EN INGENIERÍA EN DISEÑO INDUSTRIAL AUTOMOTRIZ",46,14,60]
[null,null,null,null,null,"LICENCIATURA EN DIRECCIÓN DE EMPRESAS DE ENTRETENIMIENTO",44,89,133]
[null,null,null,null,null,"LICENCIATURA EN MERCADOTECNIA",22,30,52]
[null,null,null,null,null,"LICENCIATURA EN RELACIONES PÚBLICAS Y COMUNICACIÓN",42,45,87]
[null,null,null,null,null,"UNIVERSIDAD ANGLOHISPANOMEXICANA",43,71,114]
[null,null,null,null,null,"LICENCIATURA EN INFORMÁTICA",3,4,7]
[null,null,null,null,null,"UNIVERSIDAD CENTRAL DE MÉXICO",47,38,85]
[null,null,null,null,null,"LICENCIATURA EN CONTADURÍA PÚBLICA",7,8,15]
[null,null,null,null,null,"LICENCIATURA EN DISEÑO GRÁFICO",2,10,12]
[null,null,null,null,null,"LICENCIATURA EN ADMINISTRACIÓN DE EMPRESAS TURÍSTICAS",51,106,157]
[null,null,null,null,null,"LICENCIATURA EN CIENCIAS DE LA COMUNICACIÓN",70,78,148]
[null,null,null,null,null,"LICENCIATURA EN PSICOLOGÍA",18,40,58]
[null,null,null,null,null,"UNIVERSIDAD DE LA SIERRA, A.C.",297,424,721]
[null,null,null,null,null,"LICENCIATURA EN DERECHO",78,87,165]
[null,null,null,null,null,"LICENCIATURA EN DERECHO",179,165,344]
[null,null,null,null,null,"LICENCIATURA EN ADMINISTRACIÓN DE NEGOCIOS DE LA HOSPITALIDAD",3,8,11]
[null,null,null,null,null,"LICENCIATURA EN DERECHO",31,24,55]
[null,null,null,null,null,"LICENCIATURA EN RELACIONES INTERNACIONALES",30,41,71]
[null,null,null,null,null,"LICENCIATURA EN PSICOLOGÍA",11,22,33]
[null,null,null,null,null,"LICENCIATURA EN CIENCIAS DE LA COMUNICACIÓN",10,9,19]
[null,null,null,null,null,"LICENCIATURA EN ADMINISTRACIÓN DE EMPRESAS",52,40,92]
[null,null,null,null,null,"LICENCIATURA EN CONTADURÍA PÚBLICA Y FINANZAS",7,4,11]
[null,null,null,null,null,"LICENCIATURA EN ADMINISTRACIÓN DE EMPRESAS",134,93,227]
[null,null,null,null,null,"LICENCIATURA EN CONTADURÍA PÚBLICA",65,79,144]
[null,null,null,null,null,"LICENCIATURA EN DISEÑO Y COMUNICACIÓN GRÁFICA",12,26,38]
[null,null,null,null,null,"LICENCIATURA EN LENGUAS EXTRANJERAS",33,61,94]
[null,null,null,null,null,"LICENCIATURA EN DERECHO",0,0,0]
[null,null,null,null,null,"UNIVERSIDAD HISPANA",221,229,450]
[null,null,null,null,null,"UNIVERSIDAD HOTELERA SUIZA",55,66,121]
[null,null,null,null,null,"UNIVERSIDAD IGNACIO ZARAGOZA",33,33,66]
[null,null,null,null,null,"LICENCIATURA EN GASTRONOMÍA",3,4,7]
[null,null,null,null,null,"LICENCIATURA EN MERCADOTECNIA",35,37,72]
[null,null,null,null,null,"LICENCIATURA EN INGENIERÍA INDUSTRIAL Y SISTEMAS",19,3,22]
[null,null,null,null,null,"LICENCIATURA EN TURISMO ALTERNATIVO",37,62,99]
[null,null,null,null,null,"LICENCIATURA EN DERECHO",35,35,70]
[null,null,null,null,null,"INGENIERÍA EN SISTEMAS COMPUTACIONALES",63,54,117]
[null,null,null,null,null,"LICENCIATURA EN INGENIERÍA EN DESARROLLO SUSTENTABLE CON ORIENTACIÓN EN VETERINARIA Y ZOOTECNIA",183,95,278]
[null,null,null,null,null,"LICENCIATURA EN CRIMINOLOGÍA Y CRIMINALÍSTICA",27,30,57]
[null,null,null,null,null,"LICENCIATURA EN INGENIERÍA EN GESTIÓN EMPRESARIAL",2,0,2]
[null,null,null,null,null,"LICENCIATURA EN COMERCIO EXTERIOR Y DERECHO ADUANERO",88,56,144]
[null,null,null,null,null,"LICENCIATURA EN MERCADOTECNIA",61,58,119]
[null,null,null,null,null,"INGENIERÍA AGRÓNOMO ZOOTECNISTA",32,7,39]
[null,null,null,null,null,"LICENCIATURA EN LENGUAS EXTRANJERAS",16,28,44]
[null,null,null,null,null,"LICENCIATURA EN DISEÑO DE LA COMUNICACIÓN GRÁFICA",4,3,7]
[null,null,null,null,null,"LICENCIATURA EN CIENCIAS DE LA COMPUTACIÓN",0,0,0]
[null,null,null,null,null,"LICENCIATURA EN LENGUAS EXTRANJERAS",10,15,25]
[null,null,null,null,null,"INGENIERÍA EN MECATRÓNICA",421,60,481]
[null,null,null,null,null,"LICENCIATURA EN ADMINISTRACIÓN DE EMPRESAS",27,23,50]
[null,null,null,null,null,"INGENIERÍA EN SISTEMAS COMPUTACIONALES",170,56,226]
[null,null,null,null,null,"LICENCIATURA EN CIENCIAS DE LA EDUCACIÓN",1,4,5]
[null,null,null,null,null,"LICENCIATURA EN CONTADURÍA PÚBLICA",19,30,49]
[null,null,null,null,null,"LICENCIATURA EN INGENIERÍA BIÓNICA",64,37,101]
[null,null,null,null,null,"LICENCIATURA EN INGENIERÍA EN OPTIMIZACIÓN DE PROCESOS",35,4,39]
[null,null,null,null,null,"LICENCIATURA EN INTELIGENCIA Y DESARROLLO DE NEGOCIOS",60,32,92]
[null,null,null,null,null,"LICENCIATURA EN PEDAGOGÍA",0,4,4]
[null,null,null,null,null,"LICENCIATURA EN AGRONOMÍA",15,8,23]
[null,null,null,null,null,"LICENCIATURA EN ADMINISTRACIÓN DE EMPRESAS",2,1,3]
[null,null,null,null,null,"UNIVERSIDAD SIGLO XXI",23,45,68]
[null,null,null,null,null,"INGENIERÍA EN TECNOLOGÍA DE INFORMACIÓN Y COMUNICACIÓN",108,66,174]
[null,null,null,null,null,"TÉCNICO SUPERIOR UNIVERSITARIO EN ADMINISTRACIÓN ÁREA ADMINISTRACIÓN Y EVALUACIÓN DE PROYECTOS",84,156,240]
[null,null,null,null,null,"TÉCNICO SUPERIOR UNIVERSITARIO EN PROCESOS ALIMENTARIOS",50,94,144]
[null,null,null,null,null,"INGENIERÍA EN PROCESOS ALIMENTARIOS",13,18,31]
[null,null,null,null,null,"INGENIERÍA EN AGRICULTURA SUSTENTABLE Y PROTEGIDA",13,20,33]
[null,null,null,null,null,"INGENIERÍA EN MANTENIMIENTO INDUSTRIAL",106,22,128]
[null,null,null,null,null,"INGENIERÍA EN TECNOLOGÍAS PARA LA AUTOMATIZACIÓN",178,13,191]
[null,null,null,null,null,"TÉCNICO SUPERIOR UNIVERSITARIO EN SISTEMAS AUTOMOTRICES",569,33,602]
[null,null,null,null,null,"INGENIERÍA EN TECNOLOGÍAS DE LA INFORMACIÓN",69,52,121]
[null,null,null,null,null,"TÉCNICO SUPERIOR UNIVERSITARIO EN PROCESOS INDUSTRIALES ÁREA MANUFACTURA",101,48,149]
[null,null,null,null,null,"INGENIERÍA EN OPERACIONES Y PROCESOS INDUSTRIALES",156,13,169]
[null,null,null,null,null,"INGENIERÍA EN MANTENIMIENTO INDUSTRIAL",342,124,466]
[null,null,null,null,null,"TÉCNICO SUPERIOR UNIVERSITARIO EN QUÍMICA ÁREA BIOTECNOLOGÍA",27,68,95]
[null,null,null,null,null,"LICENCIATURA EN ADMINISTRACIÓN",8,7,15]
[null,null,null,null,null,"LICENCIATURA EN CONTADURÍA",13,17,30]
[null,null,null,null,null,"LICENCIATURA EN INGENIERÍA MECÁNICA Y ELÉCTRICA",18,3,21]
[null,null,null,null,null,"LICENCIATURA EN DISEÑO Y COMUNICACIÓN GRÁFICA",24,34,58]
[null,null,null,null,null,"LICENCIATURA EN EDUCACIÓN E INNOVACIÓN PEDAGÓGICA",11,25,36]
[null,null,null,null,null,"LICENCIATURA EN EXPRESIÓN Y ASESORÍA DE IMAGEN INTEGRAL",2,8,10]
[null,null,null,null,null,"INSTITUTO UNIVERSITARIO AM",237,317,554]
[null,null,null,null,null,"LICENCIATURA EN INGENIERÍA CIVIL",19,3,22]
[null,null,null,null,null,"LICENCIATURA EN GASTRONOMÍA",7,10,17]
[null,null,null,null,null,"INGENIERÍA EN ELECTRÓNICA Y COMUNICACIONES",0,0,0]
[null,null,null,null,null,"LICENCIATURA EN ARQUITECTURA",179,174,353]
[null,null,null,null,null,"LICENCIATURA EN CIENCIAS FARMACÉUTICAS",7,31,38]
[null,null,null,null,null,"LICENCIATURA EN ESTRATEGIAS FINANCIERAS Y CONTADURÍA PÚBLICA",115,99,214]
[null,null,null,null,null,"LICENCIATURA EN INGENIERÍA CIVIL",171,37,208]
[null,null,null,null,null,"LICENCIATURA EN INGENIERÍA INDUSTRIAL",226,115,341]
[null,null,null,null,null,"LICENCIATURA EN RELACIONES INTERNACIONALES",94,215,309]
[null,null,null,null,null,"LICENCIATURA EN TEATRO",18,48,66]
[null,null,null,null,null,"LICENCIATURA EN ADMINISTRACIÓN TURÍSTICA Y DE LA HOSPITALIDAD",20,122,142]
[null,null,null,null,null,"LICENCIATURA EN INGENIERÍA EN TECNOLOGÍAS ESTRATÉGICAS DE INFORMACIÓN",0,0,0]
[null,null,null,null,null,"LICENCIATURA EN INGENIERÍA MECÁNICA Y ELÉCTRICA",4,0,4]
[null,null,null,null,null,"LICENCIATURA EN ARTE CONTEMPORÁNEO",4,14,18]
[null,null,null,null,null,"LICENCIATURA EN ADMINISTRACIÓN DE EMPRESAS",164,257,421]
[null,null,null,null,null,"LICENCIATURA EN PSICOLOGÍA",263,920,1183]
[null,null,null,null,null,"LICENCIATURA EN TRADUCCIÓN DE LENGUAS MODERNAS",6,10,16]
[null,null,null,null,null,"INSTITUTO UNIVERSITARIO PARA LA REGIÓN SUR DE PUEBLA",178,244,422]
[null,null,null,null,null,"ACADEMIA DE ESTUDIOS SUPERIORES CONSTANTINO",3,2,5]
[null,null,null,null,null,"LICENCIATURA EN EDUCACIÓN ESPECIAL EN EL ÁREA DE ATENCIÓN INTELECTUAL",3,65,68]
[null,null,null,null,null,"LICENCIATURA EN PEDAGOGÍA",2,60,62]
[null,null,null,null,null,"CENTRO DE ESTUDIOS INTERNACIONAL DE QUERÉTARO",274,434,708]
[null,null,null,null,null,"LICENCIATURA EN INGENIERÍA INDUSTRIAL",461,149,610]
[null,null,null,null,null,"CONSERVATORIO DE MÚSICA JOSE GUADALUPE VELAZQUEZ",16,9,25]
[null,null,null,null,null,"LICENCIATURA EN MERCADOTECNIA",33,43,76]
[null,null,null,null,null,"LICENCIATURA EN FINANZAS Y BANCA",131,83,214]
[null,null,null,null,null,"INSTITUTO DE ESTUDIOS SUPERIORES ISIMA",215,310,525]
[null,null,null,null,null,"LICENCIATURA EN GASTRONOMÍA",51,55,106]
[null,null,null,null,null,"LICENCIATURA EN EDUCACIÓN PREESCOLAR",0,31,31]
[null,null,null,null,null,"ARQUITECTURA",402,329,731]
[null,null,null,null,null,"INGENIERÍA INDUSTRIAL",931,558,1489]
[null,null,null,null,null,"INGENIERÍA EN SISTEMAS COMPUTACIONALES",321,154,475]
[null,null,null,null,null,"INGENIERÍA EN BIOTECNOLOGÍA",121,178,299]
[null,null,null,null,null,"LICENCIATURA EN CONTADURÍA PÚBLICA Y FINANZAS",47,56,103]
[null,null,null,null,null,"LICENCIATURA EN DERECHO",80,123,203]
[null,null,null,null,null,"LICEO ESTUDIOS SUPERIORES",45,59,104]
[null,null,null,null,null,"LICENCIATURA EN EDUCACIÓN SECUNDARIA CON ESPECIALIDAD EN BIOLOGÍA",0,0,0]
[null,null,null,null,null,"LICENCIATURA EN ADMINISTRACIÓN",3,2,5]
[null,null,null,null,null,"UNIVERSIDAD ANÁHUAC",1216,1565,2781]
[null,null,null,null,null,"LICENCIATURA EN DISEÑO INDUSTRIAL",18,107,125]
[null,null,null,null,null,"LICENCIATURA EN MODA, INNOVACIÓN Y TENDENCIA",1,13,14]
[null,null,null,null,null,"INGENIERÍA DE SOFTWARE",312,47,359]
[null,null,null,null,null,"INGENIERÍA QUÍMICO EN ALIMENTOS",37,74,111]
[null,null,null,null,null,"LICENCIATURA EN CIENCIAS DE LA SEGURIDAD",52,35,87]
[null,null,null,null,null,"LICENCIATURA EN ENFERMERÍA",108,500,608]
[null,null,null,null,null,"LICENCIATURA EN GASTRONOMÍA",108,106,214]
[null,null,null,null,null,"LICENCIATURA EN NEGOCIOS TURÍSTICOS",69,219,288]
[null,null,null,null,null,"LICENCIATURA EN OPTOMETRÍA",10,26,36]
[null,null,null,null,null,"LICENCIATURA EN MÚSICA POPULAR CONTEMPORÁNEA",25,4,29]
[null,null,null,null,null,"LICENCIATURA EN PSICOLOGÍA",19,94,113]
[null,null,null,null,null,"LICENCIATURA EN DERECHO",29,19,48]
[null,null,null,null,null,"LICENCIATURA EN CONTADURÍA PÚBLICA",1,0,1]
[null,null,null,null,null,"LICENCIATURA EN COMERCIO INTERNACIONAL",25,43,68]
[null,null,null,null,null,"LICENCIATURA EN PEDAGOGÍA",0,3,3]
[null,null,null,null,null,"UNIVERSIDAD DE LONDRES",501,744,1245]
[null,null,null,null,null,"LICENCIATURA EN PSICOLOGÍA INDUSTRIAL",5,8,13]
[null,null,null,null,null,"LICENCIATURA EN CONTADURÍA",5,5,10]
[null,null,null,null,null,"LICENCIATURA EN NUTRICIÓN",19,72,91]
[null,null,null,null,null,"LICENCIATURA EN CIENCIAS DE LA COMUNICACIÓN",67,115,182]
[null,null,null,null,null,"LICENCIATURA EN INGENIERÍA INDUSTRIAL Y DE SISTEMAS",336,94,430]
[null,null,null,null,null,"LICENCIATURA EN TERAPIA DE AUDICIÓN Y LENGUAJE",0,0,0]
[null,null,null,null,null,"MÉDICO CIRUJANO",64,109,173]
[null,null,null,null,null,"LICENCIATURA EN CONTADURÍA",6,12,18]
[null,null,null,null,null,"LICENCIATURA EN CONTADURÍA PÚBLICA",4,8,12]
[null,null,null,null,null,"UNIVERSIDAD POLITÉCNICA DE QUERÉTARO",1872,1119,2991]
[null,null,null,null,null,"TÉCNICO SUPERIOR UNIVERSITARIO EN QUÍMICA ÁREA BIOTECNOLOGÍA",55,99,154]
[null,null,null,null,null,"INGENIERÍA EN NANOTECNOLOGÍA",51,36,87]
[null,null,null,null,null,"INGENIERÍA EN TECNOLOGÍAS DE LA INFORMACIÓN Y COMUNICACIONES",128,59,187]
[null,null,null,null,null,"TÉCNICO SUPERIOR UNIVERSITARIO EN TECNOLOGÍAS DE LA INFORMACIÓN Y COMUNICACIÓN ÁREA SISTEMAS INFORMÁTICOS",156,61,217]
[null,null,null,null,null,"TÉCNICO SUPERIOR UNIVERSITARIO EN MANTENIMIENTO ÁREA INDUSTRIAL",132,13,145]
[null,null,null,null,null,"TÉCNICO SUPERIOR UNIVERSITARIO EN TECNOLOGÍAS DE LA INFORMACIÓN Y COMUNICACIÓN ÁREA SISTEMAS INFORMÁTICOS",134,72,206]
[null,null,null,null,null,"LICENCIATURA EN COMUNICACIÓN",68,118,186]
[null,null,null,null,null,"LICENCIATURA EN INGENIERÍA GEOMÁTICA",14,2,16]
[null,null,null,null,null,"LICENCIATURA EN EDUCACIÓN",37,237,274]
[null,null,null,null,null,"INSTITUTO UNI DE QUERÉTARO",2,10,12]
[null,null,null,null,null,"CAMPO ESCUELA SAN JOSE",76,31,107]
[null,null,null,null,null,"CENTRO REGIONAL DE EDUCACIÓN NORMAL",8,171,179]
[null,null,null,null,null,"LICENCIATURA EN INGENIERÍA INDUSTRIAL",44,13,57]
[null,null,null,null,null,"INSTITUTO INTERAMERICANO DE CIENCIAS DE LA SALUD",26,74,100]
[null,null,null,null,null,"INSTITUTO POLITÉCNICO NACIONAL",10,10,20]
[null,null,null,null,null,"INGENIERÍA EN SISTEMAS COMPUTACIONALES",432,84,516]
[null,null,null,null,null,"INGENIERÍA EN GESTIÓN EMPRESARIAL",147,150,297]
[null,null,null,null,null,"LICENCIATURA EN CONTADURÍA",1,4,5]
[null,null,null,null,null,"INSTITUTO UNIVERSITARIO CARL ROGERS",33,166,199]
[null,null,null,null,null,"LICENCIATURA EN EDUCACIÓN PRIMARIA INTERCULTURAL BILINGÜE",25,43,68]
[null,null,null,null,null,"LICENCIATURA EN ADMINISTRACIÓN DE RESTAURANTES",0,0,0]
[null,null,null,null,null,"LICENCIATURA EN MERCADOTECNIA",36,37,73]
[null,null,null,null,null,"LICENCIATURA EN COMERCIO INTERNACIONAL",24,26,50]
[null,null,null,null,null,"LICENCIATURA EN DERECHO",311,411,722]
[null,null,null,null,null,"LICENCIATURA EN LENGUA INGLESA",188,272,460]
[null,null,null,null,null,"UNIVERSIDAD DEL CARIBE",1664,1414,3078]
[null,null,null,null,null,"LICENCIATURA EN ADMINISTRACIÓN DE LA HOSPITALIDAD",19,22,41]
[null,null,null,null,null,"LICENCIATURA EN PSICOLOGÍA ORGANIZACIONAL",17,39,56]
[null,null,null,null,null,"LICENCIATURA EN ADMINISTRACIÓN DE EMPRESAS TURÍSTICAS",93,128,221]
[null,null,null,null,null,"LICENCIATURA EN PSICOLOGÍA ORGANIZACIONAL",50,103,153]
[null,null,null,null,null,"LICENCIATURA EN SALUD COMUNITARIA",14,34,48]
[null,null,null,null,null,"LICENCIATURA EN ARQUITECTURA",84,73,157]
[null,null,null,null,null,"LICENCIATURA EN ADMINISTRACIÓN DE EMPRESAS TURÍSTICAS",0,2,2]
[null,null,null,null,null,"LICENCIATURA EN CONTADURÍA PÚBLICA",15,3,18]
[null,null,null,null,null,"LICENCIATURA EN DERECHO",16,20,36]
[null,null,null,null,null,"UNIVERSIDAD POLITÉCNICA DE BACALAR",270,326,596]
[null,null,null,null,null,"LICENCIATURA EN ADMINISTRACIÓN DE EMPRESAS TURÍSTICAS",74,73,147]
[null,null,null,null,null,"LICENCIATURA EN ADMINISTRACIÓN",22,19,41]
[null,null,null,null,null,"LICENCIATURA EN GASTRONOMÍA",159,118,277]
[null,null,null,null,null,"TÉCNICO SUPERIOR UNIVERSITARIO EN TURISMO ÁREA HOTELERÍA",120,154,274]
[null,null,null,null,null,"LICENCIATURA EN GASTRONOMÍA",43,47,90]
[null,null,null,null,null,"TÉCNICO SUPERIOR UNIVERSITARIO EN TURISMO",62,101,163]
[null,null,null,null,null,"LICENCIATURA EN CIENCIAS DE LA EDUCACIÓN",6,6,12]
[null,null,null,null,null,"LICENCIATURA EN GASTRONOMÍA",18,16,34]
[null,null,null,null,null,"LICENCIATURA EN MERCADOTECNIA",11,13,24]
[null,null,null,null,null,"SAN LUIS POTOSÍ",41118,41973,83091]
[null,null,null,null,null,"LICENCIATURA EN EDUCACIÓN SECUNDARIA CON ESPECIALIDAD EN MATEMÁTICAS",32,50,82]
[null,null,null,null,null,"LICENCIATURA EN EDUCACIÓN PRIMARIA",184,289,473]
[null,null,null,null,null,"ENSEÑANZA E INVESTIGACIÓN SUPERIOR, A.C.",140,187,327]
[null,null,null,null,null,"LICENCIATURA EN ADMINISTRACIÓN HOTELERA Y TURÍSTICA",4,13,17]
[null,null,null,null,null,"LICENCIATURA EN EDUCACIÓN SECUNDARIA CON ESPECIALIDAD EN BIOLOGÍA",23,29,52]
[null,null,null,null,null,"LICENCIATURA EN EDUCACIÓN PRIMARIA INTERCULTURAL BILINGÜE",55,148,203]
[null,null,null,null,null,"LICENCIATURA EN EDUCACIÓN PRIMARIA",1,94,95]
[null,null,null,null,null,"LICENCIATURA EN DERECHO",36,38,74]
[null,null,null,null,null,"LICENCIATURA EN TRABAJO SOCIAL",3,63,66]
[null,null,null,null,null,"LICENCIATURA EN MERCADOTECNIA INTERNACIONAL",28,20,48]
[null,null,null,null,null,"LICENCIATURA EN DISEÑO GRÁFICO DIGITAL",14,8,22]
[null,null,null,null,null,"INSTITUTO PANAMERICANO DE ESTUDIOS SUPERIORES ABIERTOS Y A DISTANCIA",180,40,220]
[null,null,null,null,null,"INGENIERÍA AMBIENTAL",100,71,171]
[null,null,null,null,null,"LICENCIATURA EN INFORMÁTICA",0,0,0]
[null,null,null,null,null,"LICENCIATURA EN INFORMÁTICA",0,0,0]
[null,null,null,null,null,"INGENIERÍA EN GESTIÓN EMPRESARIAL",220,281,501]
[null,null,null,null,null,"INSTITUTO TECNOLÓGICO SUPERIOR DE SAN LUIS POTOSÍ, CAPITAL",1089,576,1665]
[null,null,null,null,null,"LICENCIATURA EN ADMINISTRACIÓN",0,0,0]
[null,null,null,null,null,"LICENCIATURA EN CONTADURÍA",17,16,33]
[null,null,null,null,null,"LICENCIATURA EN PSICOLOGÍA SOCIAL",35,39,74]
[null,null,null,null,null,"LICENCIATURA EN INSTRUMENTO",27,12,39]
[null,null,null,null,null,"INGENIERÍA AGROECÓLOGO",58,75,133]
[null,null,null,null,null,"INGENIERÍA EN GEOMÁTICA",49,34,83]
[null,null,null,null,null,"INGENIERÍA EN MECÁNICA ADMINISTRATIVA",105,39,144]
[null,null,null,null,null,"LICENCIATURA EN AGRONEGOCIOS",40,52,92]
[null,null,null,null,null,"LICENCIATURA EN CONSERVACIÓN Y RESTAURACIÓN DE BIENES CULTURALES MUEBLES",48,96,144]
[null,null,null,null,null,"LICENCIATURA EN CONTADURÍA PÚBLICA",116,210,326]
[null,null,null,null,null,"LICENCIATURA EN LENGUA Y LITERATURAS HISPANOAMERICANAS",39,77,116]
[null,null,null,null,null,"LICENCIATURA EN MATEMÁTICA EDUCATIVA",42,61,103]
[null,null,null,null,null,"LICENCIATURA EN QUÍMICA",71,82,153]
[null,null,null,null,null,"LICENCIATURA EN PEDAGOGÍA",12,37,49]
[null,null,null,null,null,"LICENCIATURA EN CRIMINOLOGÍA",51,49,100]
[null,null,null,null,null,"LICENCIATURA EN ADMINISTRACIÓN DE RECURSOS HUMANOS",0,1,1]
[null,null,null,null,null,"LICENCIATURA EN NUTRICIÓN",42,154,196]
[null,null,null,null,null,"LICENCIATURA EN DISEÑO INDUSTRIAL",12,22,34]
[null,null,null,null,null,"LICENCIATURA EN ADMINISTRACIÓN DE EMPRESAS",25,27,52]
[null,null,null,null,null,"LICENCIATURA EN DERECHO CON ORIENTACIÓN EN: ASUNTOS INDÍGENAS",0,0,0]
[null,null,null,null,null,"INGENIERÍA MECÁNICA AUTOMOTRIZ",95,3,98]
[null,null,null,null,null,"LICENCIATURA EN ADMINISTRACIÓN DE EMPRESAS",41,19,60]
[null,null,null,null,null,"LICENCIATURA EN EDUCACIÓN",9,8,17]
[null,null,null,null,null,"LICENCIATURA EN EDUCACIÓN PREESCOLAR PARA EL MEDIO INDÍGENA",20,45,65]
[null,null,null,null,null,"INGENIERÍA MECÁNICO ADMINISTRADOR",33,18,51]
[null,null,null,null,null,"LICENCIATURA EN DERECHO",91,135,226]
[null,null,null,null,null,"TRONCO COMÚN EN PSICOLOGÍA",9,41,50]
[null,null,null,null,null,"LICENCIATURA EN CONTADOR PÚBLICO",204,278,482]
[null,null,null,null,null,"INGENIERÍA EN METAL MECÁNICA",34,3,37]
[null,null,null,null,null,"TÉCNICO SUPERIOR UNIVERSITARIO EN DESARROLLO DE NEGOCIOS ÁREA LOGÍSTICA Y TRANSPORTE",34,68,102]
[null,null,null,null,null,"UNIVERSIDAD VASCO DE QUIROGA",27,33,60]
[null,null,null,null,null,"CENTRO CREATIVO JACQUARD",8,31,39]
[null,null,null,null,null,"LICENCIATURA EN TURISMO",8,35,43]
[null,null,null,null,null,"INGENIERÍA EN COMUNICACIONES Y ELECTRÓNICA",0,0,0]
[null,null,null,null,null,"LICENCIATURA EN EDUCACIÓN FÍSICA Y DEPORTES",26,10,36]
[null,null,null,null,null,"LICENCIATURA EN NUTRICIÓN",20,62,82]
[null,null,null,null,null,"INGENIERÍA EN DESARROLLO DE SOFTWARE",1,0,1]
[null,null,null,null,null,"LICENCIATURA EN GASTRONOMÍA",1,0,1]
[null,null,null,null,null,"LICENCIATURA EN EDUCACIÓN ESPECIAL EN EL ÁREA DE ATENCIÓN AUDITIVA Y DE LENGUAJE",15,241,256]
[null,null,null,null,null,"ESCUELA NORMAL DEL PACIFICO",22,98,120]
[null,null,null,null,null,"LICENCIATURA EN EDUCACIÓN PRIMARIA",94,371,465]
[null,null,null,null,null,"LICENCIATURA EN OBOE",0,1,1]
[null,null,null,null,null,"INSTITUTO DE COMUNICACIÓN Y ÁREAS TECNOLÓGICAS, A.C.",11,3,14]
[null,null,null,null,null,"INSTITUTO DE ENFERMERÍA DE SINALOA",16,72,88]
[null,null,null,null,null,"LICENCIATURA EN FILOSOFÍA",32,0,32]
[null,null,null,null,null,"INGENIERÍA ELÉCTRICA",268,5,273]
[null,null,null,null,null,"INGENIERÍA EN SISTEMAS COMPUTACIONALES",753,117,870]
[null,null,null,null,null,"CONTADOR PÚBLICO",194,435,629]
[null,null,null,null,null,"INGENIERÍA EN GESTIÓN EMPRESARIAL",91,144,235]
[null,null,null,null,null,"INGENIERÍA NAVAL",212,30,242]
[null,null,null,null,null,"INGENIERÍA EN INNOVACIÓN AGRÍCOLA SUSTENTABLE",125,16,141]
[null,null,null,null,null,"INGENIERÍA EN DISEÑO GRÁFICO DIGITAL",0,0,0]
[null,null,null,null,null,"LICENCIATURA EN INFORMÁTICA ADMINISTRATIVA",24,14,38]
[null,null,null,null,null,"INGENIERÍA INDUSTRIAL Y DE SISTEMAS",118,60,178]
[null,null,null,null,null,"LICENCIATURA EN NEGOCIOS INTERNACIONALES",47,61,108]
[null,null,null,null,null,"LICENCIATURA EN CREACIÓN Y DIRECCIÓN DE NEGOCIOS",129,111,240]
[null,null,null,null,null,"LICENCIATURA EN MEDICINA GENERAL",531,529,1060]
[null,null,null,null,null,"BIÓLOGO ACUACULTOR",216,54,270]
[null,null,null,null,null,"INGENIERÍA DE SOFTWARE",359,68,427]
[null,null,null,null,null,"LICENCIATURA EN BIOTECNOLOGÍA GENÓMICA",121,172,293]
[null,null,null,null,null,"LICENCIATURA EN CIENCIAS DE LA EDUCACIÓN CON ACENTUACIÓN EN ESPAÑOL",32,130,162]
[null,null,null,null,null,"LICENCIATURA EN DOCENCIA DEL IDIOMA INGLÉS",100,162,262]
[null,null,null,null,null,"LICENCIATURA EN FÍSICA",79,25,104]
[null,null,null,null,null,"LICENCIATURA EN GASTRONOMÍA",474,565,1039]
[null,null,null,null,null,"LICENCIATURA EN NEGOCIOS INTERNACIONALES",109,149,258]
[null,null,null,null,null,"LICENCIATURA EN RELACIONES COMERCIALES INTERNACIONALES",456,840,1296]
[null,null,null,null,null,"TÉCNICO SUPERIOR UNIVERSITARIO EN CITOLOGÍA CERVICAL",20,38,58]
[null,null,null,null,null,"INGENIERÍA FORESTAL",203,80,283]
[null,null,null,null,null,"LICENCIATURA EN ARQUITECTURA",32,28,60]
[null,null,null,null,null,"LICENCIATURA EN DISEÑO Y MERCADOTECNIA EN MODAS",4,115,119]
[null,null,null,null,null,"LICENCIATURA EN CONTADURÍA PÚBLICA",17,22,39]
[null,null,null,null,null,"LICENCIATURA EN CRIMINALÍSTICA",57,61,118]
[null,null,null,null,null,"TÉCNICO SUPERIOR UNIVERSITARIO EN MECÁNICA DENTAL",9,5,14]
[null,null,null,null,null,"INGENIERÍA INDUSTRIAL Y DE PROCESOS",45,26,71]
[null,null,null,null,null,"LICENCIATURA EN SISTEMAS COMPUTACIONALES",295,56,351]
[null,null,null,null,null,"LICENCIATURA EN ADMINISTRACIÓN DE AGRONEGOCIOS",46,21,67]
[null,null,null,null,null,"LICENCIATURA EN ECONOMÍA EMPRESARIAL",0,0,0]
[null,null,null,null,null,"LICENCIATURA EN EDUCACIÓN",32,107,139]
[null,null,null,null,null,"LICENCIATURA EN CIENCIAS DE LA COMUNICACIÓN",7,8,15]
[null,null,null,null,null,"LICENCIATURA EN MERCADOTECNIA",0,0,0]
[null,null,null,null,null,"LICENCIATURA EN ODONTOLOGÍA CON ENFOQUE EN ODONTOPEDIATRÍA",12,23,35]
[null,null,null,null,null,"LICENCIATURA EN TURISMO",0,0,0]
[null,null,null,null,null,"INGENIERÍA EN ANIMACIÓN Y EFECTOS VISUALES",122,74,196]
[null,null,null,null,null,"INGENIERÍA EN NANOTECNOLOGÍA",65,27,92]
[null,null,null,null,null,"LICENCIATURA EN ADMINISTRACIÓN Y GESTIÓN DE PYMES",88,106,194]
[null,null,null,null,null,"LICENCIATURA EN DISEÑO PUBLICITARIO Y COMUNICACIÓN MASIVA",14,22,36]
[null,null,null,null,null,"UNIVERSIDAD TECNOLÓGICA DE ESCUINAPA",484,428,912]
[null,null,null,null,null,"LICENCIATURA EN GESTIÓN Y DESARROLLO TURÍSTICO",6,21,27]
[null,null,null,null,null,"INSTITUTO DE TERAPIA SISTÉMICA SHALOM, A.C.",0,1,1]
[null,null,null,null,null,"LICENCIATURA EN EDUCACIÓN PRIMARIA",98,333,431]
[null,null,null,null,null,"LICENCIATURA EN COMERCIO EXTERIOR Y LEGISLACIÓN ADUANERA",13,4,17]
[null,null,null,null,null,"LICENCIATURA EN PSICOLOGÍA",67,240,307]
[null,null,null,null,null,"LICENCIATURA EN EDUCACIÓN SECUNDARIA CON ESPECIALIDAD EN ESPAÑOL",31,103,134]
[null,null,null,null,null,"INSTITUTO DE FORMACIÓN Y CAPACITACIÓN DE PROFESIONALES DE LA ENFERMERÍA IFCPE,S.C.",130,265,395]
[null,null,null,null,null,"INSTITUTO EDUCATIVO HERMOSILLO, S.C.",252,153,405]
[null,null,null,null,null,"INGENIERÍA EN MECATRÓNICA",120,22,142]
[null,null,null,null,null,"INGENIERÍA EN ACUICULTURA",28,30,58]
[null,null,null,null,null,"INGENIERÍA EN INFORMÁTICA",92,38,130]
[null,null,null,null,null,"INGENIERÍA EN TECNOLOGÍAS DE LA INFORMACIÓN Y COMUNICACIÓN",17,6,23]
[null,null,null,null,null,"INGENIERÍA EN GESTIÓN EMPRESARIAL",255,503,758]
[null,null,null,null,null,"LICENCIATURA EN CONTADURÍA",1,0,1]
[null,null,null,null,null,"INGENIERÍA EN BIOSISTEMAS",288,67,355]
[null,null,null,null,null,"LICENCIATURA EN CIENCIAS DEL EJERCICIO FÍSICO",599,153,752]
[null,null,null,null,null,"LICENCIATURA EN TECNOLOGÍA DE ALIMENTOS",74,169,243]
[null,null,null,null,null,"INSTITUTO TECNOLÓGICO SUPERIOR DE CAJEME",2045,1467,3512]
[null,null,null,null,null,"INSTITUTO TECNOLÓGICO SUPERIOR DE CANANEA",637,440,1077]
[null,null,null,null,null,"INSTITUTO TECNOLÓGICO SUPERIOR DE PUERTO PEÑASCO",307,218,525]
[null,null,null,null,null,"LICENCIATURA EN ADMINISTRACIÓN Y ESTRATEGIA DE NEGOCIOS",55,35,90]
[null,null,null,null,null,"LICENCIATURA EN INTERVENCIÓN EDUCATIVA",13,110,123]
[null,null,null,null,null,"INGENIERÍA INDUSTRIAL EN PRODUCTIVIDAD Y CALIDAD",166,82,248]
[null,null,null,null,null,"LICENCIATURA EN GASTRONOMÍA",1,2,3]
[null,null,null,null,null,"LICENCIATURA EN ARTES OPCIÓN ARTES PLÁSTICAS",0,0,0]
[null,null,null,null,null,"LICENCIATURA EN CIENCIAS DE LA COMPUTACIÓN",109,13,122]
[null,null,null,null,null,"LICENCIATURA EN FÍSICA",114,61,175]
[null,null,null,null,null,"LICENCIATURA EN ODONTOLOGÍA",84,190,274]
[null,null,null,null,null,"LICENCIATURA EN PSICOLOGÍA DE LA SALUD",13,57,70]
[null,null,null,null,null,"LICENCIATURA EN DERECHO",278,251,529]
[null,null,null,null,null,"LICENCIATURA EN PSICOLOGÍA INDUSTRIAL",100,290,390]
[null,null,null,null,null,"LICENCIATURA EN ADMINISTRACIÓN DE EMPRESAS TURÍSTICAS",4,31,35]
[null,null,null,null,null,"LICENCIATURA EN NEGOCIOS INTERNACIONALES",0,0,0]
[null,null,null,null,null,"LICENCIATURA EN FISIOTERAPIA",114,293,407]
[null,null,null,null,null,"LICENCIATURA EN ODONTOLOGÍA",153,255,408]
[null,null,null,null,null,"LICENCIATURA EN ACUACULTURA",12,7,19]
[null,null,null,null,null,"LICENCIATURA EN SISTEMAS COMPUTACIONALES ADMINISTRATIVOS",8,1,9]
[null,null,null,null,null,"LICENCIATURA EN FINANZAS",14,21,35]
[null,null,null,null,null,"LICENCIATURA EN PSICOLOGÍA ORGANIZACIONAL",6,19,25]
[null,null,null,null,null,"LICENCIATURA EN MERCADOTECNIA",8,5,13]
[null,null,null,null,null,"INGENIERÍA EN PRODUCCIÓN MULTIMEDIA",36,21,57]
[null,null,null,null,null,"LICENCIATURA EN FISIOTERAPIA",42,111,153]
[null,null,null,null,null,"PROFESIONAL ASOCIADO EN PRODUCCIÓN MUSICAL",18,0,18]
[null,null,null,null,null,"TÉCNICO SUPERIOR UNIVERSITARIO EN ADMINISTRACIÓN ÁREA ADMINISTRACIÓN Y EVALUACIÓN DE PROYECTOS",26,41,67]
[null,null,null,null,null,"INGENIERÍA EN MECATRÓNICA",205,18,223]
[null,null,null,null,null,"LICENCIATURA EN PROTECCIÓN CIVIL Y EMERGENCIAS",22,63,85]
[null,null,null,null,null,"TÉCNICO SUPERIOR UNIVERSITARIO EN TECNOLOGÍAS DE LA INFORMACIÓN Y COMUNICACIONES ÁREA MULTIMEDIA Y COMERCIO ELECTRÓNICO",2,7,9]
[null,null,null,null,null,"TÉCNICO SUPERIOR UNIVERSITARIO EN MECATRÓNICA, ÁREA AUTOMATIZACIÓN",183,26,209]
[null,null,null,null,null,"INGENIERÍA EN DESARROLLO E INNOVACIÓN EMPRESARIAL",11,25,36]
[null,null,null,null,null,"INGENIERÍA EN LOGÍSTICA INTERNACIONAL",9,16,25]
[null,null,null,null,null,"LICENCIATURA EN NEGOCIOS Y GESTIÓN EMPRESARIAL",85,89,174]
[null,null,null,null,null,"TÉCNICO SUPERIOR UNIVERSITARIO EN MECATRÓNICA",195,10,205]
[null,null,null,null,null,"LICENCIATURA EN PSICOLOGÍA",10,35,45]
[null,null,null,null,null,"LICENCIADO EN ENFERMERÍA",9,51,60]
[null,null,null,null,null,"LICENCIATURA EN EDUCACIÓN SECUNDARIA CON ESPECIALIDAD EN ESPAÑOL",0,3,3]
[null,null,null,null,null,"LICENCIATURA EN COMERCIO INTERNACIONAL",9,13,22]
[null,null,null,null,null,"LICENCIATURA EN EDUCACIÓN ESPECIAL EN EL ÁREA DE ATENCIÓN INTELECTUAL",1,71,72]
[null,null,null,null,null,"LICENCIATURA EN ADMINISTRACIÓN Y DIRECCIÓN ESTRATÉGICA",12,14,26]
[null,null,null,null,null,"LICENCIATURA EN MÚSICA",1,2,3]
[null,null,null,null,null,"INGENIERÍA EN GEOCIENCIAS",225,136,361]
[null,null,null,null,null,"LICENCIATURA EN INGENIERÍA DE CONSTRUCCIÓN",5,1,6]
[null,null,null,null,null,"INGENIERÍA CIVIL",487,130,617]
[null,null,null,null,null,"INGENIERÍA QUÍMICA",90,91,181]
[null,null,null,null,null,"INGENIERÍA ELECTRÓNICA",144,12,156]
[null,null,null,null,null,"INGENIERÍA MECATRÓNICA",433,44,477]
[null,null,null,null,null,"INSTITUTO TECNOLÓGICO SUPERIOR DE MACUSPANA",768,388,1156]
[null,null,null,null,null,"INGENIERÍA EN MECATRÓNICA",98,8,106]
[null,null,null,null,null,"INGENIERÍA EN INDUSTRIAS ALIMENTARIAS",25,33,58]
[null,null,null,null,null,"LICENCIATURA EN INGENIERÍA EN GEOCIENCIAS",26,20,46]
[null,null,null,null,null,"LICENCIATURA EN ADMINISTRACIÓN",26,10,36]
[null,null,null,null,null,"UNIVERSIDAD AUTÓNOMA DE GUADALAJARA",884,1052,1936]
[null,null,null,null,null,"INGENIERÍA EN REDES Y TECNOLOGÍA DIGITAL",6,2,8]
[null,null,null,null,null,"LICENCIATURA EN PSICOLOGÍA",17,39,56]
[null,null,null,null,null,"LICENCIATURA EN INGENIERÍA CIVIL",26,1,27]
[null,null,null,null,null,"LICENCIATURA EN PSICOLOGÍA",16,63,79]
[null,null,null,null,null,"LICENCIATURA EN DERECHO",38,65,103]
[null,null,null,null,null,"LICENCIATURA EN ADMINISTRACIÓN DE EMPRESAS TURÍSTICAS",52,53,105]
[null,null,null,null,null,"LICENCIATURA EN CONTADURÍA PÚBLICA Y FINANZAS",10,15,25]
[null,null,null,null,null,"LICENCIATURA EN SEGURIDAD PÚBLICA",16,0,16]
[null,null,null,null,null,"LICENCIATURA EN INFORMÁTICA Y COMPUTACIÓN",6,2,8]
[null,null,null,null,null,"LICENCIATURA EN MERCADOTECNIA OPERATIVA",3,4,7]
[null,null,null,null,null,"LICENCIATURA EN LENGUA Y CULTURA",32,42,74]
[null,null,null,null,null,"INGENIERÍA CIVIL",615,187,802]
[null,null,null,null,null,"LICENCIATURA EN CIENCIAS COMPUTACIONALES",43,14,57]
[null,null,null,null,null,"LICENCIATURA EN IDIOMAS",484,938,1422]
[null,null,null,null,null,"LICENCIATURA EN PSICOLOGÍA",190,720,910]
[null,null,null,null,null,"TÉCNICO SUPERIOR UNIVERSITARIO EN MÚSICA",56,13,69]
[null,null,null,null,null,"LICENCIATURA EN CIENCIAS DE LA COMUNICACIÓN",1,3,4]
[null,null,null,null,null,"LICENCIATURA EN INGENIERÍA ELECTRÓNICA EN COMPUTACIÓN",4,0,4]
[null,null,null,null,null,"LICENCIATURA EN NUTRICIÓN",12,51,63]
[null,null,null,null,null,"LICENCIATURA EN COMERCIO EXTERIOR Y ADUANAS",10,30,40]
[null,null,null,null,null,"LICENCIATURA EN INGENIERÍA EN PETRÓLEO Y GAS NATURAL",5,0,5]
[null,null,null,null,null,"INGENIERÍA EN ELECTRÓNICA Y TELECOMUNICACIONES",64,10,74]
[null,null,null,null,null,"INGENIERÍA PETROLERA",15,7,22]
[null,null,null,null,null,"INGENIERÍA EN ZOOTECNIA",72,22,94]
[null,null,null,null,null,"LICENCIATURA EN PSICOLOGÍA",150,625,775]
[null,null,null,null,null,"INGENIERÍA EN TECNOLOGÍA AMBIENTAL",55,66,121]
[null,null,null,null,null,"TÉCNICO SUPERIOR UNIVERSITARIO EN MANTENIMIENTO ÁREA INDUSTRIAL",220,40,260]
[null,null,null,null,null,"INGENIERÍA EN PROCESOS BIOTECNOLÓGICOS",19,13,32]
[null,null,null,null,null,"TÉCNICO SUPERIOR UNIVERSITARIO EN PROCESOS ALIMENTARIOS",7,15,22]
[null,null,null,null,null,"LICENCIATURA EN CIENCIAS DE LA EDUCACIÓN CON TERMINAL EN PSICOLOGÍA EDUCATIVA",16,42,58]
[null,null,null,null,null,"LICENCIATURA EN DERECHO",12,14,26]
[null,null,null,null,null,"LICENCIATURA EN PUERICULTURA",0,50,50]
[null,null,null,null,null,"LICENCIATURA EN INGENIERÍA INDUSTRIAL",18,6,24]
[null,null,null,null,null,"LICENCIATURA EN TRABAJO SOCIAL Y GESTIÓN COMUNITARIA",0,4,4]
[null,null,null,null,null,"LICENCIATURA EN EDUCACIÓN ESPECIAL EN EL ÁREA DE ATENCIÓN INTELECTUAL",6,62,68]
[null,null,null,null,null,"LICENCIATURA EN GASTRONOMÍA",31,22,53]
[null,null,null,null,null,"LICENCIATURA EN DERECHO",0,4,4]
[null,null,null,null,null,"LICENCIATURA EN GASTRONOMÍA",74,37,111]
[null,null,null,null,null,"INGENIERÍA EN SISTEMAS ELECTRÓNICOS",12,9,21]
[null,null,null,null,null,"LICENCIATURA EN MÚSICA CON ACENTUACIÓN EN COMPOSICIÓN",2,2,4]
[null,null,null,null,null,"LICENCIATURA EN MÚSICA CON ACENTUACIÓN EN PIANO",5,0,5]
[null,null,null,null,null,"LICENCIATURA EN TRABAJO SOCIAL",9,55,64]
[null,null,null,null,null,"LICENCIADO EN PEDAGOGÍA CON OPCIÓN EN LA ENSEÑANZA DEL INGLÉS",4,13,17]
[null,null,null,null,null,"LICENCIATURA EN EDUCACIÓN PRIMARIA",29,76,105]
[null,null,null,null,null,"LICENCIATURA EN EDUCACIÓN SECUNDARIA CON ESPECIALIDAD EN MATEMÁTICAS",0,0,0]
[null,null,null,null,null,"LICENCIATURA EN EDUCACIÓN MUSICAL",17,6,23]
[null,null,null,null,null,"LICENCIATURA EN INGENIERÍA PETROLERO",27,8,35]
[null,null,null,null,null,"LICENCIATURA EN NEGOCIOS INTERNACIONALES",147,162,309]
[null,null,null,null,null,"INGENIERÍA INDUSTRIAL Y DE SISTEMAS",40,22,62]
[null,null,null,null,null,"LICENCIATURA EN INGENIERÍA INDUSTRIAL CON ÁREA TERMINAL EN LOGÍSTICA Y MATERIALES",0,0,0]
[null,null,null,null,null,"LICENCIATURA EN PEDAGOGÍA",21,49,70]
[null,null,null,null,null,"CIRUJANO DENTISTA",5,4,9]
[null,null,null,null,null,"LICENCIATURA EN INGENIERÍA INDUSTRIAL EN MANTENIMIENTO",54,15,69]
[null,null,null,null,null,"LICENCIATURA EN BIOLOGÍA",51,87,138]
[null,null,null,null,null,"INGENIERÍA MECÁNICA",838,39,877]
[null,null,null,null,null,"INGENIERÍA INFORMÁTICA",127,69,196]
[null,null,null,null,null,"INGENIERÍA EN ELECTRÓNICA",155,8,163]
[null,null,null,null,null,"INGENIERÍA EN TECNOLOGÍAS DE LA INFORMACIÓN Y COMUNICACIONES",3,3,6]
[null,null,null,null,null,"INGENIERÍA EN GESTIÓN EMPRESARIAL",173,262,435]
[null,null,null,null,null,"INGENIERÍA ELECTRÓNICA",176,34,210]
[null,null,null,null,null,"LICENCIATURA EN ADMINISTRACIÓN",148,502,650]
[null,null,null,null,null,"ARQUITECTO",2,3,5]
[null,null,null,null,null,"LICENCIATURA EN CRIMINOLOGÍA",67,59,126]
[null,null,null,null,null,"LICENCIATURA EN PSICOPEDAGOGÍA",3,36,39]
[null,null,null,null,null,"QUÍMICO AMBIENTAL EN SISTEMAS COMPLEJOS",2,0,2]
[null,null,null,null,null,"LICENCIATURA EN EDUCACIÓN SECUNDARIA CON ESPECIALIDAD EN LENGUA EXTRANJERA (INGLÉS)",2,5,7]
[null,null,null,null,null,"LICENCIATURA EN EDUCACIÓN PRIMARIA",14,81,95]
[null,null,null,null,null,"INGENIERÍA QUÍMICO",58,80,138]
[null,null,null,null,null,"LICENCIATURA EN INGENIERÍA DEL PETRÓLEO Y ENERGÍAS RENOVABLES",42,21,63]
[null,null,null,null,null,"LICENCIATURA EN MERCADOTECNIA ESTRATÉGICA E INNOVACIÓN",16,58,74]
[null,null,null,null,null,"INGENIERÍA EN CIENCIAS AMBIENTALES",94,70,164]
[null,null,null,null,null,"LICENCIATURA EN CIENCIAS DE LA EDUCACIÓN CON OPCIÓN EN ADMINISTRACIÓN Y PLANEACIÓN EDUCATIVA",80,116,196]
[null,null,null,null,null,"LICENCIATURA EN GESTIÓN Y DESARROLLO TURÍSTICO",29,109,138]
[null,null,null,null,null,"LICENCIATURA EN MERCADOTECNIA DIGITAL",21,20,41]
[null,null,null,null,null,"LICENCIATURA EN TRABAJO SOCIAL",233,734,967]
[null,null,null,null,null,"PROFESIONAL ASOCIADO EN ADMINISTRACIÓN BIOMÉDICA",10,14,24]
[null,null,null,null,null,"TÉCNICO SUPERIOR UNIVERSITARIO EN ADMINISTRACIÓN DE EMPRESAS ENERGÉTICAS",32,32,64]
[null,null,null,null,null,"INGENIERO EN ENERGÍAS RENOVABLES",47,12,59]
[null,null,null,null,null,"LICENCIATURA EN CIENCIAS DE LA EDUCACIÓN",14,102,116]
[null,null,null,null,null,"LICENCIATURA EN ADMINISTRACIÓN DE EMPRESAS",28,39,67]
[null,null,null,null,null,"LICENCIATURA EN DISEÑO GRÁFICO",73,156,229]
[null,null,null,null,null,"LICENCIATURA EN ADMINISTRACIÓN DE EMPRESAS",33,50,83]
[null,null,null,null,null,"INGENIERÍA INDUSTRIAL Y DE SISTEMAS",167,56,223]
[null,null,null,null,null,"LICENCIATURA EN COMERCIO INTERNACIONAL Y ADUANAS",20,41,61]
[null,null,null,null,null,"LICENCIATURA EN GESTIÓN INTERNACIONAL DEL TURISMO",8,64,72]
[null,null,null,null,null,"LICENCIATURA EN CIENCIAS DE LA EDUCACIÓN",11,38,49]
[null,null,null,null,null,"INGENIERÍA EN SISTEMAS COMPUTACIONALES",101,33,134]
[null,null,null,null,null,"INGENIERÍA AMBIENTAL",56,28,84]
[null,null,null,null,null,"LICENCIATURA EN DERECHO CON OPCIÓN EN DERECHO INTERNACIONAL",0,0,0]
[null,null,null,null,null,"LICENCIATURA EN RELACIONES INTERNACIONALES",0,0,0]
[null,null,null,null,null,"UNIVERSIDAD INTERAMERICANA PARA EL DESARROLLO",60,118,178]
[null,null,null,null,null,"LICENCIATURA EN ARQUITECTURA",68,59,127]
[null,null,null,null,null,"UNIVERSIDAD MÉXICO AMERICANA DEL NORTE",716,1059,1775]
[null,null,null,null,null,"CONTADOR PÚBLICO Y AUDITOR",34,77,111]
[null,null,null,null,null,"INGENIERÍA INDUSTRIAL EN ELECTRÓNICA",26,7,33]
[null,null,null,null,null,"LICENCIATURA EN ADMINISTRACIÓN Y DIRECCIÓN DE EMPRESAS",98,97,195]
[null,null,null,null,null,"LICENCIATURA EN DERECHO",64,63,127]
[null,null,null,null,null,"UNIVERSIDAD PEDAGÓGICA NACIONAL UNIDAD NÚM. 283 MATAMOROS",0,0,0]
[null,null,null,null,null,"INGENIERÍA INDUSTRIAL",79,36,115]
[null,null,null,null,null,"INGENIERÍA EN TECNOLOGÍAS DE MANUFACTURA",121,78,199]
[null,null,null,null,null,"INGENIERÍA EN SISTEMAS COMPUTACIONALES",83,39,122]
[null,null,null,null,null,"LICENCIATURA EN PEDAGOGÍA",16,111,127]
[null,null,null,null,null,"TÉCNICO SUPERIOR UNIVERSITARIO EN MECATRÓNICA",377,43,420]
[null,null,null,null,null,"LICENCIATURA EN LOGÍSTICA INTERNACIONAL",104,199,303]
[null,null,null,null,null,"TÉCNICO SUPERIOR UNIVERSITARIO EN OPERACIONES COMERCIALES INTERNACIONALES ÁREA CLASIFICACIÓN ARANCELARIA",174,256,430]
[null,null,null,null,null,"INGENIERÍA EN PROCESOS Y OPERACIONES INDUSTRIALES",84,67,151]
[null,null,null,null,null,"TÉCNICO SUPERIOR UNIVERSITARIO EN MECATRÓNICA ÁREA AUTOMATIZACIÓN",25,5,30]
[null,null,null,null,null,"TÉCNICO SUPERIOR UNIVERSITARIO EN PROCESOS INDUSTRIALES ÁREA PLÁSTICOS",23,17,40]
[null,null,null,null,null,"UNIVERSIDAD TEC TAMPICO",24,45,69]
[null,null,null,null,null,"UNIVERSIDAD DE LA FE",8,14,22]
[null,null,null,null,null,"CENTRO DE ACTUALIZACIÓN DEL MAGISTERIO TLAXCALA",59,56,115]
[null,null,null,null,null,"LICENCIATURA EN PEDAGOGÍA",23,57,80]
[null,null,null,null,null,"LICENCIATURA EN DERECHO",78,42,120]
[null,null,null,null,null,"ESCUELA MEXICANA DE PUEBLA",55,64,119]
[null,null,null,null,null,"LICENCIATURA EN EDUCACIÓN PRIMARIA",0,245,245]
[null,null,null,null,null,"LICENCIATURA EN ADMINISTRACIÓN DE EMPRESAS TURÍSTICAS",26,40,66]
[null,null,null,null,null,"INSTITUTO DE ESTUDIOS SUPERIORES SALVADOR ALLENDE",15,29,44]
[null,null,null,null,null,"INGENIERÍA EN ADMINISTRACIÓN",153,236,389]
[null,null,null,null,null,"INGENIERÍA EN TECNOLOGÍAS DE LA INFORMACIÓN Y COMUNICACIÓN",273,142,415]
[null,null,null,null,null,"INGENIERÍA EN GESTIÓN EMPRESARIAL",12,21,33]
[null,null,null,null,null,"CONTADURÍA PÚBLICA",8,3,11]
[null,null,null,null,null,"LICENCIATURA EN CIENCIAS DE LA EDUCACIÓN",3,12,15]
[null,null,null,null,null,"LICENCIATURA EN CIENCIAS DE LA EDUCACIÓN",215,537,752]
[null,null,null,null,null,"LICENCIATURA EN ENFERMERÍA Y OBSTETRICIA",2,47,49]
[null,null,null,null,null,"LICENCIATURA EN INGENIERÍA MECÁNICA",77,10,87]
[null,null,null,null,null,"LICENCIATURA EN QUÍMICA INDUSTRIAL",26,51,77]
[null,null,null,null,null,"LICENCIATURA EN PUBLICIDAD Y RELACIONES PÚBLICAS",2,3,5]
[null,null,null,null,null,"INGENIERÍA EN SISTEMAS COMPUTACIONALES",14,4,18]
[null,null,null,null,null,"LICENCIATURA EN PSICOPEDAGOGÍA",1,26,27]
[null,null,null,null,null,"UNIVERSIDAD POLITÉCNICA DE TLAXCALA",2565,1507,4072]
[null,null,null,null,null,"UNIVERSIDAD TECNOLÓGICA DE TLAXCALA (UTT)",1678,932,2610]
[null,null,null,null,null,"LICENCIATURA EN ADMINISTRACIÓN Y DIRECCIÓN DE EMPRESAS",4,2,6]
[null,null,null,null,null,"LICENCIATURA EN HISTORIA",22,16,38]
[null,null,null,null,null,"LICENCIATURA EN PSICOLOGÍA",1,3,4]
[null,null,null,null,null,"CENTRO DE ESTUDIOS GESTALT PARA EL DISEÑO, A.C.",18,145,163]
[null,null,null,null,null,"CENTRO DE ESTUDIOS PROFESIONALES PITMAN",18,19,37]
[null,null,null,null,null,"LICENCIATURA EN ADMINISTRACIÓN DE EMPRESAS",28,35,63]
[null,null,null,null,null,"LICENCIATURA EN ADMINISTRACIÓN DE EMPRESAS",6,10,16]
[null,null,null,null,null,"LICENCIATURA EN SISTEMAS COMPUTACIONALES EN ADMINISTRACIÓN",9,5,14]
[null,null,null,null,null,"LICENCIATURA EN CONTADURÍA",4,0,4]
[null,null,null,null,null,"LICENCIATURA EN PEDAGOGÍA",0,2,2]
[null,null,null,null,null,"LICENCIATURA EN ADMINISTRACIÓN DE EMPRESAS",39,60,99]
[null,null,null,null,null,"CENTRO DE ESTUDIOS SUPERIORES HISPANO ANGLO FRANCÉS",17,20,37]
[null,null,null,null,null,"LICENCIATURA EN DISEÑO Y PRODUCCIÓN DEL VESTIDO",1,2,3]
[null,null,null,null,null,"LICENCIATURA EN CONTADURÍA PÚBLICA",26,35,61]
[null,null,null,null,null,"LICENCIATURA EN CONTADURÍA PÚBLICA",0,4,4]
[null,null,null,null,null,"LICENCIATURA EN CIENCIAS POLÍTICAS Y ADMINISTRACIÓN PÚBLICA",21,20,41]
[null,null,null,null,null,"LICENCIATURA EN DEPORTES Y ACTIVIDADES EN LA NATURALEZA",4,0,4]
[null,null,null,null,null,"LICENCIATURA EN INGENIERÍA INDUSTRIAL EN OPERACIONES INTERNACIONALES",75,32,107]
[null,null,null,null,null,"LICENCIATURA EN COMUNICACIÓN Y DISEÑO GRÁFICO",36,42,78]
[null,null,null,null,null,"LICENCIATURA EN ADMINISTRACIÓN",18,14,32]
[null,null,null,null,null,"LICENCIATURA EN CRIMINOLOGÍA Y CRIMINALÍSTICA",113,220,333]
[null,null,null,null,null,"LICENCIATURA EN NUTRICIÓN",10,41,51]
[null,null,null,null,null,"LICENCIATURA EN DERECHO",110,155,265]
[null,null,null,null,null,"LICENCIATURA EN PEDAGOGÍA",52,77,129]
[null,null,null,null,null,"ESCUELA LIBRE DE CIENCIAS POLÍTICAS Y ADMINISTRACIÓN PÚBLICA DE ORIENTE, A.C.",40,13,53]
[null,null,null,null,null,"LICENCIATURA EN EDUCACIÓN SECUNDARIA CON ESPECIALIDAD EN TELESECUNDARIA",6,11,17]
[null,null,null,null,null,"LICENCIATURA EN EDUCACIÓN SECUNDARIA CON ESPECIALIDAD EN TELESECUNDARIA",74,135,209]
[null,null,null,null,null,"ESCUELA VERACRUZANA DE CINE LUIS BUÑUEL",42,10,52]
[null,null,null,null,null,"INSTITUTO CONSORCIO CLAVIJERO",627,488,1115]
[null,null,null,null,null,"TÉCNICO SUPERIOR UNIVERSITARIO EN ADMINISTRACIÓN TRIBUTARIA",2,7,9]
[null,null,null,null,null,"INSTITUTO DE EDUCACIÓN PROFESIONAL DE LAS HUASTECAS",23,28,51]
[null,null,null,null,null,"LICENCIATURA EN DERECHO",20,23,43]
[null,null,null,null,null,"LICENCIATURA EN TURISMO",7,19,26]
[null,null,null,null,null,"LICENCIATURA EN ADMINISTRACIÓN DE EMPRESAS",11,24,35]
[null,null,null,null,null,"LICENCIATURA EN FILOSOFÍA",89,2,91]
[null,null,null,null,null,"LICENCIATURA EN TURISMO",9,37,46]
[null,null,null,null,null,"LICENCIATURA EN DERECHO ADUANAL",23,27,50]
[null,null,null,null,null,"LICENCIATURA EN ADMINISTRACIÓN DE EMPRESAS",6,6,12]
[null,null,null,null,null,"LICENCIATURA EN EJECUCIÓN DE INSTRUMENTOS ORQUESTALES",32,18,50]
[null,null,null,null,null,"INGENIERÍA EN PESQUERÍAS",0,0,0]
[null,null,null,null,null,"INGENIERÍA EN GESTIÓN EMPRESARIAL",55,152,207]
[null,null,null,null,null,"INGENIERÍA ELECTRÓNICA",372,53,425]
[null,null,null,null,null,"INGENIERÍA EN ELÉCTRICA",504,41,545]
[null,null,null,null,null,"LICENCIATURA EN ADMINISTRACIÓN",110,156,266]
[null,null,null,null,null,"INGENIERÍA MECATRÓNICA",623,113,736]
[null,null,null,null,null,"INGENIERÍA BIOQUÍMICA",76,129,205]
[null,null,null,null,null,"CONTADOR PÚBLICO",114,221,335]
[null,null,null,null,null,"INGENIERÍA ELECTRÓNICA",161,24,185]
[null,null,null,null,null,"INGENIERÍA INFORMÁTICA",195,112,307]
[null,null,null,null,null,"INGENIERÍA EN ENERGÍAS RENOVABLES",35,10,45]
[null,null,null,null,null,"INGENIERÍA EN INDUSTRIAS ALIMENTARIAS",69,124,193]
[null,null,null,null,null,"INSTITUTO TECNOLÓGICO SUPERIOR DE JESÚS CARRANZA",715,574,1289]
[null,null,null,null,null,"INSTITUTO TECNOLÓGICO SUPERIOR DE LAS CHOAPAS",1200,824,2024]
[null,null,null,null,null,"INGENIERÍA INDUSTRIAL",473,289,762]
[null,null,null,null,null,"INGENIERÍA AMBIENTAL",34,56,90]
[null,null,null,null,null,"INGENIERÍA AMBIENTAL",8,7,15]
[null,null,null,null,null,"INGENIERÍA EN INFORMÁTICA",55,54,109]
[null,null,null,null,null,"INGENIERÍA INDUSTRIAL",246,111,357]
[null,null,null,null,null,"INGENIERÍA EN MECATRÓNICA",471,110,581]
[null,null,null,null,null,"CONTADOR PÚBLICO",59,95,154]
[null,null,null,null,null,"INGENIERÍA EN MECATRÓNICA",66,16,82]
[null,null,null,null,null,"INGENIERÍA EN INDUSTRIAS ALIMENTARIAS",27,115,142]
[null,null,null,null,null,"INGENIERÍA BIOQUÍMICA",166,281,447]
[null,null,null,null,null,"INGENIERÍA EN MECATRÓNICA",4,1,5]
[null,null,null,null,null,"LICENCIATURA EN ANIMACIÓN Y ARTE DIGITAL",1,2,3]
[null,null,null,null,null,"LICENCIATURA EN ECONOMÍA",1,0,1]
[null,null,null,null,null,"INSTITUTO UNIVERSITARIO VERACRUZANO",97,208,305]
[null,null,null,null,null,"LICENCIATURA EN CONTADURÍA PÚBLICA",0,4,4]
[null,null,null,null,null,"UNIVERSIDAD ANÁHUAC",211,237,448]
[null,null,null,null,null,"LICENCIATURA EN CIENCIAS DE LA EDUCACIÓN",0,34,34]
[null,null,null,null,null,"LICENCIATURA EN INGENIERÍA EN SISTEMAS COMPUTACIONALES",8,1,9]
[null,null,null,null,null,"LICENCIATURA EN TEOLOGÍA",12,7,19]
[null,null,null,null,null,"LICENCIATURA EN MERCADOTECNIA",9,17,26]
[null,null,null,null,null,"UNIVERSIDAD CRISTÓBAL COLÓN",793,890,1683]
[null,null,null,null,null,"LICENCIATURA EN ADMINISTRACIÓN",14,17,31]
[null,null,null,null,null,"LICENCIATURA EN IDIOMA INGLÉS",21,65,86]
[null,null,null,null,null,"LICENCIATURA EN MÉDICO CIRUJANO",167,172,339]
[null,null,null,null,null,"LICENCIATURA EN PEDAGOGÍA",13,26,39]
[null,null,null,null,null,"LICENCIATURA EN CONTADURÍA PÚBLICA",15,7,22]
[null,null,null,null,null,"LICENCIATURA EN SISTEMAS DE COMPUTACIÓN",16,11,27]
[null,null,null,null,null,"LICENCIATURA EN DERECHO",97,123,220]
[null,null,null,null,null,"LICENCIATURA EN CONTADURÍA PÚBLICA",3,0,3]
[null,null,null,null,null,"ARQUITECTO",111,63,174]
[null,null,null,null,null,"LICENCIATURA EN EDUCACIÓN FÍSICA",136,35,171]
[null,null,null,null,null,"LICENCIATURA EN MERCADOTECNIA",32,34,66]
[null,null,null,null,null,"LICENCIATURA EN PSICOLOGÍA",19,66,85]
[null,null,null,null,null,"LICENCIATURA EN EDUCACIÓN FÍSICA",82,30,112]
[null,null,null,null,null,"UNIVERSIDAD DEL GOLFO DE MÉXICO NORTE",1671,2378,4049]
[null,null,null,null,null,"LICENCIATURA EN DERECHO",451,534,985]
[null,null,null,null,null,"LICENCIATURA EN CONTADURÍA",21,30,51]
[null,null,null,null,null,"LICENCIATURA EN INGENIERÍA EN SISTEMAS COMPUTACIONALES",13,2,15]
[null,null,null,null,null,"LICENCIATURA EN COMERCIO Y NEGOCIOS INTERNACIONALES",16,28,44]
[null,null,null,null,null,"LICENCIATURA EN CIENCIAS DE LA EDUCACIÓN",0,0,0]
[null,null,null,null,null,"LICENCIATURA EN NUTRICIÓN",10,89,99]
[null,null,null,null,null,"LICENCIATURA EN CIENCIAS DE LA COMUNICACIÓN",42,42,84]
[null,null,null,null,null,"LICENCIATURA EN INGENIERÍA EN SISTEMAS COMPUTACIONALES",48,7,55]
[null,null,null,null,null,"LICENCIATURA EN INGENIERÍA EN SISTEMAS COMPUTACIONALES",44,8,52]
[null,null,null,null,null,"LICENCIATURA EN RELACIONES INDUSTRIALES",2,2,4]
[null,null,null,null,null,"LICENCIATURA EN MERCADOTECNIA",1,2,3]
[null,null,null,null,null,"UNIVERSIDAD INTERAMERICANA PARA EL DESARROLLO",189,220,409]
[null,null,null,null,null,"LICENCIATURA EN DISEÑO GRÁFICO DIGITAL",7,10,17]
[null,null,null,null,null,"LICENCIATURA EN EDUCACIÓN",0,0,0]
[null,null,null,null,null,"LICENCIATURA EN INGENIERÍA INDUSTRIAL Y SISTEMAS",35,27,62]
[null,null,null,null,null,"LICENCIATURA EN INGENIERÍA INDUSTRIAL Y DE SISTEMAS",6,0,6]
[null,null,null,null,null,"LICENCIATURA EN ADMINISTRACIÓN DE EMPRESAS",139,203,342]
[null,null,null,null,null,"LICENCIATURA EN DERECHO",160,204,364]
[null,null,null,null,null,"LICENCIATURA EN DERECHO",147,183,330]
[null,null,null,null,null,"LICENCIATURA EN PSICOLOGÍA INDUSTRIAL",5,7,12]
[null,null,null,null,null,"LICENCIATURA EN INFORMÁTICA ADMINISTRATIVA",26,22,48]
[null,null,null,null,null,"INGENIERÍA AGROINDUSTRIAL",66,37,103]
[null,null,null,null,null,"LICENCIATURA EN COMERCIO EXTERIOR",35,33,68]
[null,null,null,null,null,"LICENCIATURA EN FILOSOFÍA",4,0,4]
[null,null,null,null,null,"LICENCIATURA EN MEDICINA VETERINARIA Y ZOOTECNIA",453,191,644]
[null,null,null,null,null,"LICENCIATURA EN CIENCIAS DE LA EDUCACIÓN",6,15,21]
[null,null,null,null,null,"LICENCIATURA EN INGENIERÍA CIVIL",18,4,22]
[null,null,null,null,null,"INGENIERÍA FINANCIERA Y FISCAL",29,61,90]
[null,null,null,null,null,"TÉCNICO SUPERIOR UNIVERSITARIO EN ENERGÍAS RENOVABLES ÁREA CALIDAD Y AHORRO DE ENERGÍA",29,7,36]
[null,null,null,null,null,"TÉCNICO SUPERIOR UNIVERSITARIO EN DESARROLLO DE NEGOCIOS ÁREA LOGÍSTICA Y TRANSPORTE",21,44,65]
[null,null,null,null,null,"TÉCNICO SUPERIOR UNIVERSITARIO EN NANOTECNOLOGÍA",16,17,33]
[null,null,null,null,null,"TÉCNICO SUPERIOR UNIVERSITARIO EN ENERGÍAS RENOVABLES ÁREA CALIDAD Y AHORRO DE ENERGÍA",7,5,12]
[null,null,null,null,null,"LICENCIATURA EN CONTADURÍA PÚBLICA",2,2,4]
[null,null,null,null,null,"LICENCIATURA EN CIENCIAS DE LA EDUCACIÓN CON TERMINAL EN PSICOLOGÍA EDUCATIVA",2,4,6]
[null,null,null,null,null,"LICENCIATURA EN INGENIERÍA INDUSTRIAL",100,37,137]
[null,null,null,null,null,"INGENIERÍA ELÉCTRICA",944,130,1074]
[null,null,null,null,null,"INGENIERÍA QUÍMICO AGRÍCOLA",0,0,0]
[null,null,null,null,null,"LICENCIATURA EN AGRONEGOCIOS INTERNACIONALES",77,99,176]
[null,null,null,null,null,"LICENCIATURA EN CIENCIAS Y TÉCNICAS ESTADÍSTICAS",96,149,245]
[null,null,null,null,null,"LICENCIATURA EN ESTADÍSTICA",0,0,0]
[null,null,null,null,null,"LICENCIATURA EN HISTORIA",145,118,263]
[null,null,null,null,null,"LICENCIATURA EN PEDAGOGÍA",604,2225,2829]
[null,null,null,null,null,"MÉDICO VETERINARIO ZOOTECNISTA",605,486,1091]
[null,null,null,null,null,"TÉCNICO SUPERIOR UNIVERSITARIO EN ENFERMERÍA",30,83,113]
[null,null,null,null,null,"LICENCIATURA EN INGENIERÍA PETROLERA EN COMERCIALIZACIÓN ESTRATÉGICA",2,2,4]
[null,null,null,null,null,"INSTITUTO DE ARTES DEL VALLE DE ORIZABA",6,6,12]
[null,null,null,null,null,"ESCUELA DE DERECHO DE VERACRUZ",54,47,101]
[null,null,null,null,null,"LICENCIATURA EN NEGOCIOS INTERNACIONALES",3,0,3]
[null,null,null,null,null,"LICENCIATURA EN DERECHO PENAL",7,10,17]
[null,null,null,null,null,"LICENCIATURA EN ADMINISTRACIÓN EMPRESARIAL",152,139,291]
[null,null,null,null,null,"LICENCIATURA EN ADMINISTRACIÓN",88,74,162]
[null,null,null,null,null,"LICENCIATURA EN DISEÑO PUBLICITARIO",28,33,61]
[null,null,null,null,null,"LICENCIATURA EN EDUCACIÓN PREESCOLAR",0,112,112]
[null,null,null,null,null,"LICENCIATURA EN ADMINISTRACIÓN Y MERCADOTECNIA",43,32,75]
[null,null,null,null,null,"LICENCIATURA EN ADMINISTRACIÓN Y GESTIÓN EMPRESARIAL",42,55,97]
[null,null,null,null,null,"COLEGIO DE GASTRONOMÍA DEL SURESTE",24,23,47]
[null,null,null,null,null,"INGENIERÍA EN MECATRÓNICA",67,13,80]
[null,null,null,null,null,"ESCUELA DE ESPECIALIZACIÓN PSICOPEDAGÓGICA",1,36,37]
[null,null,null,null,null,"LICENCIATURA EN EDUCACIÓN PRIMARIA",108,188,296]
[null,null,null,null,null,"LICENCIATURA EN EDUCACIÓN SECUNDARIA CON ESPECIALIDAD EN FORMACIÓN CÍVICA Y ÉTICA",23,39,62]
[null,null,null,null,null,"LICENCIATURA EN ARTES MUSICALES OPCIÓN COMPOSITOR",9,1,10]
[null,null,null,null,null,"LICENCIATURA EN ENFERMERÍA",49,106,155]
[null,null,null,null,null,"INGENIERÍA EN SISTEMAS COMPUTACIONALES",21,4,25]
[null,null,null,null,null,"INSTITUTO DE ESTUDIOS SUPERIORES LAS AMÉRICAS, A.C.",178,131,309]
[null,null,null,null,null,"LICENCIATURA EN MERCADOTECNIA",11,8,19]
[null,null,null,null,null,"INSTITUTO ESCOLAR DEL SURESTE A. C.",53,309,362]
[null,null,null,null,null,"INSTITUTO SUPERIOR DE EDUCACIÓN NORMAL",126,332,458]
[null,null,null,null,null,"INSTITUTO TECNOLÓGICO DE MÉRIDA",3868,1624,5492]
[null,null,null,null,null,"LICENCIATURA EN ADMINISTRACIÓN",351,420,771]
[null,null,null,null,null,"INGENIERÍA EN INFORMÁTICA",108,38,146]
[null,null,null,null,null,"INGENIERÍA EN SISTEMAS COMPUTACIONALES",193,21,214]
[null,null,null,null,null,"LICENCIATURA EN ADMINISTRACIÓN GANADERA",28,12,40]
[null,null,null,null,null,"LICENCIATURA EN EDUCACIÓN ESPECIAL EN EL ÁREA DE ATENCIÓN VISUAL",2,8,10]
[null,null,null,null,null,"LICENCIATURA EN LENGUAS MODERNAS",58,143,201]
[null,null,null,null,null,"LICENCIATURA EN MERCADOTECNIA",0,0,0]
[null,null,null,null,null,"INGENIERÍA INDUSTRIAL PARA LA DIRECCIÓN",79,44,123]
[null,null,null,null,null,"LICENCIATURA EN DISEÑO MULTIMEDIA",38,35,73]
[null,null,null,null,null,"MÉDICO CIRUJANO",377,352,729]
[null,null,null,null,null,"INGENIERÍA EN COMPUTACIÓN",134,21,155]
[null,null,null,null,null,"LICENCIATURA EN BIOLOGÍA",177,142,319]
[null,null,null,null,null,"LICENCIATURA EN ENSEÑANZA DE LAS MATEMÁTICAS",72,91,163]
[null,null,null,null,null,"LICENCIATURA EN LITERATURA LATINOAMERICANA",44,74,118]
[null,null,null,null,null,"LICENCIATURA EN TURISMO",65,138,203]
[null,null,null,null,null,"UNIVERSIDAD DE VALLADOLID YUCATÁN A. C.",470,533,1003]
[null,null,null,null,null,"LICENCIATURA EN GASTRONOMÍA",24,19,43]
[null,null,null,null,null,"INGENIERÍA EN CIENCIAS COMPUTACIONALES",67,11,78]
[null,null,null,null,null,"LICENCIATURA EN DERECHO (EJECUTIVA)",45,23,68]
[null,null,null,null,null,"LICENCIATURA EN INGENIERÍA MECATRÓNICA",66,10,76]
[null,null,null,null,null,"LICENCIATURA INTERNACIONAL EN ADMINISTRACIÓN DE EMPRESAS GASTRONÓMICAS",28,26,54]
[null,null,null,null,null,"LICENCIATURA EN EDUCACIÓN FÍSICA Y DEPORTES",11,1,12]
[null,null,null,null,null,"LICENCIADO EN EDUCACIÓN",0,0,0]
[null,null,null,null,null,"LICENCIATURA EN EDUCACIÓN",3,22,25]
[null,null,null,null,null,"LICENCIATURA EN ENFERMERÍA",18,39,57]
[null,null,null,null,null,"LICENCIATURA EN GASTRONOMÍA",25,13,38]
[null,null,null,null,null,"LICENCIATURA EN NEGOCIOS INTERNACIONALES",17,28,45]
[null,null,null,null,null,"LICENCIATURA EN NUTRICIÓN",62,64,126]
[null,null,null,null,null,"LICENCIATURA EN PSICOLOGÍA",17,41,58]
[null,null,null,null,null,"LICENCIATURA EN VENTAS Y MERCADOTECNIA",22,13,35]
[null,null,null,null,null,"UNIVERSIDAD MARISTA DE MÉRIDA",1137,1325,2462]
[null,null,null,null,null,"INGENIERÍA CIVIL",122,23,145]
[null,null,null,null,null,"INGENIERÍA INDUSTRIAL Y DE SISTEMAS",77,42,119]
[null,null,null,null,null,"LICENCIATURA EN ADMINISTRACIÓN",69,52,121]
[null,null,null,null,null,"LICENCIATURA EN ADMINISTRACIÓN DE RECURSOS NATURALES",41,64,105]
[null,null,null,null,null,"LICENCIATURA EN ADMINISTRACIÓN TURÍSTICA",20,46,66]
[null,null,null,null,null,"LICENCIATURA EN ARQUITECTURA",182,156,338]
[null,null,null,null,null,"LICENCIATURA EN CONTADURÍA",96,78,174]
[null,null,null,null,null,"LICENCIATURA EN DERECHO",150,161,311]
[null,null,null,null,null,"LICENCIATURA EN DISEÑO DE INTERIORES",3,66,69]
[null,null,null,null,null,"LICENCIATURA EN DISEÑO GRÁFICO",17,55,72]
[null,null,null,null,null,"LICENCIATURA EN FISIOTERAPIA Y REHABILITACIÓN",46,140,186]
[null,null,null,null,null,"LICENCIATURA EN MEDICINA",247,219,466]
[null,null,null,null,null,"LICENCIATURA EN MERCADOTECNIA",37,51,88]
[null,null,null,null,null,"LICENCIATURA EN NUTRICIÓN",15,62,77]
[null,null,null,null,null,"LICENCIATURA EN PSICOLOGÍA",15,110,125]
[null,null,null,null,null,"UNIVERSIDAD MESOAMERICANA DE SAN AGUSTÍN",613,742,1355]
[null,null,null,null,null,"INGENIERÍA EN GESTIÓN DE TECNOLOGÍAS DE LA INFORMACIÓN",30,16,46]
[null,null,null,null,null,"INGENIERÍA INDUSTRIAL",86,17,103]
[null,null,null,null,null,"LICENCIATURA EN ADMINISTRACIÓN DE EMPRESAS",52,41,93]
[null,null,null,null,null,"LICENCIATURA EN CIENCIAS POLÍTICAS Y ADMINISTRACIÓN PÚBLICA",6,4,10]
[null,null,null,null,null,"LICENCIATURA EN COMUNICACIÓN",54,51,105]
[null,null,null,null,null,"LICENCIATURA EN CONTADURÍA PÚBLICA",38,40,78]
[null,null,null,null,null,"LICENCIATURA EN CRIMINALÍSTICA",18,22,40]
[null,null,null,null,null,"LICENCIATURA EN DERECHO",58,72,130]
[null,null,null,null,null,"LICENCIATURA EN FISIOTERAPIA Y REHABILITACIÓN",30,39,69]
[null,null,null,null,null,"LICENCIATURA EN GASTRONOMÍA",37,34,71]
[null,null,null,null,null,"LICENCIATURA EN GERONTOLOGÍA",13,32,45]
[null,null,null,null,null,"LICENCIATURA EN HUMANIDADES Y FILOSOFÍA",0,0,0]
[null,null,null,null,null,"LICENCIATURA EN MERCADOTECNIA Y PUBLICIDAD",37,49,86]
[null,null,null,null,null,"LICENCIATURA EN NUTRICIÓN",75,115,190]
[null,null,null,null,null,"LICENCIATURA EN PSICOLOGÍA",44,88,132]
[null,null,null,null,null,"LICENCIATURA EN PSICOPEDAGOGÍA",6,54,60]
[null,null,null,null,null,"LICENCIATURA EN TURISMO",29,68,97]
[null,null,null,null,null,"UNIVERSIDAD MODELO",1152,1074,2226]
[null,null,null,null,null,"ARQUITECTURA",90,67,157]
[null,null,null,null,null,"INGENIERÍA AUTOMOTRIZ",151,6,157]
[null,null,null,null,null,"INGENIERÍA EN GESTIÓN DE TECNOLOGÍAS",4,2,6]
[null,null,null,null,null,"INGENIERÍA INDUSTRIAL LOGÍSTICA",33,15,48]
[null,null,null,null,null,"INGENIERÍA MECATRÓNICA",86,5,91]
[null,null,null,null,null,"LICENCIATURA EN ADMINISTRACIÓN Y DESARROLLO EMPRESARIAL",31,15,46]
[null,null,null,null,null,"LICENCIATURA EN ADMINISTRACIÓN Y MERCADOTECNIA",14,17,31]
[null,null,null,null,null,"LICENCIATURA EN ARQUITECTURA",26,20,46]
[null,null,null,null,null,"LICENCIATURA EN CIENCIAS POLÍTICAS Y ADMINISTRACIÓN PÚBLICA",13,8,21]
[null,null,null,null,null,"LICENCIATURA EN CIENCIAS POLÍTICAS Y RELACIONES INTERNACIONALES",18,18,36]
[null,null,null,null,null,"LICENCIATURA EN CIRUJANO DENTISTA",129,200,329]
[null,null,null,null,null,"LICENCIATURA EN COMUNICACIÓN",42,52,94]
[null,null,null,null,null,"LICENCIATURA EN CONTADURÍA",6,2,8]
[null,null,null,null,null,"LICENCIATURA EN CULTURA FÍSICA Y ENTRENAMIENTO DEPORTIVO",47,16,63]
[null,null,null,null,null,"LICENCIATURA EN DERECHO",81,68,149]
[null,null,null,null,null,"LICENCIATURA EN DISEÑO DE MODA",6,62,68]
[null,null,null,null,null,"LICENCIATURA EN DISEÑO DE PRODUCTOS",13,16,29]
[null,null,null,null,null,"LICENCIATURA EN DISEÑO GRÁFICO",4,5,9]
[null,null,null,null,null,"LICENCIATURA EN DISEÑO INDUSTRIAL",3,3,6]
[null,null,null,null,null,"LICENCIATURA EN DISEÑO INTERACTIVO",22,19,41]
[null,null,null,null,null,"LICENCIATURA EN FISIOTERAPIA Y REHABILITACIÓN",74,116,190]
[null,null,null,null,null,"LICENCIATURA EN GESTIÓN DE NEGOCIOS",44,51,95]
[null,null,null,null,null,"LICENCIATURA EN INGENIERÍA BIOMÉDICA",79,39,118]
[null,null,null,null,null,"LICENCIATURA EN INGENIERÍA EN ENERGÍA Y PETRÓLEO",35,11,46]
[null,null,null,null,null,"LICENCIATURA EN LENGUA Y LITERATURA MODERNAS",10,20,30]
[null,null,null,null,null,"LICENCIATURA EN NUTRICIÓN",37,84,121]
[null,null,null,null,null,"LICENCIATURA EN PSICOLOGÍA",36,122,158]
[null,null,null,null,null,"LICENCIATURA EN TURISMO",8,15,23]
[null,null,null,null,null,"LICENCIATURA EN INGENIERÍA EN DESARROLLO DE TECNOLOGÍA Y SOFTWARE",10,0,10]
[null,null,null,null,null,"UNIVERSIDAD MODELO VALLADOLID",93,135,228]
[null,null,null,null,null,"LICENCIATURA EN ADMINISTRACIÓN Y DESARROLLO EMPRESARIAL",4,2,6]
[null,null,null,null,null,"LICENCIATURA EN ARQUITECTURA",32,26,58]
[null,null,null,null,null,"LICENCIATURA EN COMUNICACIÓN",11,25,36]
[null,null,null,null,null,"LICENCIATURA EN DERECHO",22,29,51]
[null,null,null,null,null,"LICENCIATURA EN NUTRICIÓN",14,19,33]
[null,null,null,null,null,"LICENCIATURA EN PSICOLOGÍA",10,34,44]
[null,null,null,null,null,"UNIVERSIDAD PEDAGÓGICA DE YUCATÁN",150,389,539]
[null,null,null,null,null,"LICENCIATURA EN EDUCACIÓN PREESCOLAR INDÍGENA",6,77,83]
[null,null,null,null,null,"LICENCIATURA EN EDUCACIÓN PRIMARIA INDÍGENA",73,81,154]
[null,null,null,null,null,"LICENCIATURA EN INTERVENCIÓN EDUCATIVA",71,231,302]
[null,null,null,null,null,"LICENCIADO EN EDUCACIÓN",0,0,0]
[null,null,null,null,null,"UNIVERSIDAD PRIVADA DE LA PENÍNSULA",508,685,1193]
[null,null,null,null,null,"LICENCIATURA EN ARQUITECTURA",47,25,72]
[null,null,null,null,null,"LICENCIATURA EN CONTADURÍA PÚBLICA",25,20,45]
[null,null,null,null,null,"LICENCIATURA EN CRIMINOLOGÍA",9,12,21]
[null,null,null,null,null,"LICENCIATURA EN DERECHO",18,45,63]
[null,null,null,null,null,"LICENCIATURA EN GASTRONOMÍA",22,18,40]
[null,null,null,null,null,"LICENCIATURA EN INGENIERÍA EN SISTEMAS COMPUTACIONALES",33,4,37]
[null,null,null,null,null,"LICENCIATURA EN INGENIERÍA INDUSTRIAL",36,9,45]
[null,null,null,null,null,"LICENCIATURA EN NUTRICIÓN",80,111,191]
[null,null,null,null,null,"LICENCIATURA EN ODONTOLOGÍA",96,135,231]
[null,null,null,null,null,"LICENCIATURA EN PEDAGOGÍA",4,24,28]
[null,null,null,null,null,"LICENCIATURA EN PSICOLOGÍA",25,61,86]
[null,null,null,null,null,"LICENCIATURA EN PSICOPEDAGOGÍA",4,26,30]
[null,null,null,null,null,"LICENCIATURA EN TERAPIA FÍSICA Y REHABILITACIÓN",104,184,288]
[null,null,null,null,null,"LICENCIATURA EN TURISMO",5,11,16]
[null,null,null,null,null,"UNIVERSIDAD TECNOLÓGICA DEL CENTRO",144,136,280]
[null,null,null,null,null,"TÉCNICO SUPERIOR UNIVERSITARIO EN GASTRONOMÍA",60,75,135]
[null,null,null,null,null,"TÉCNICO SUPERIOR UNIVERSITARIO EN MANTENIMIENTO ÁREA INDUSTRIAL",26,3,29]
[null,null,null,null,null,"TÉCNICO SUPERIOR UNIVERSITARIO EN TECNOLOGÍAS DE LA INFORMACIÓN Y COMUNICACIÓN ÁREA SISTEMAS INFORMÁTICOS",31,12,43]
[null,null,null,null,null,"TÉCNICO SUPERIOR UNIVERSITARIO EN TURISMO ÁREA HOTELERÍA",27,46,73]
[null,null,null,null,null,"UNIVERSIDAD TECNOLÓGICA DEL MAYAB",472,163,635]
[null,null,null,null,null,"TÉCNICO SUPERIOR UNIVERSITARIO EN AGRICULTURA SUSTENTABLE Y PROTEGIDA",63,28,91]
[null,null,null,null,null,"TÉCNICO SUPERIOR UNIVERSITARIO EN GASTRONOMÍA",124,107,231]
[null,null,null,null,null,"TÉCNICO SUPERIOR UNIVERSITARIO EN MECÁNICA ÁREA AUTOMOTRIZ",226,7,233]
[null,null,null,null,null,"INGENIERÍA TÉCNICA EN COCINA REGIONAL MEXICANA",0,0,0]
[null,null,null,null,null,"INGENIERÍA TÉCNICA EN ELECTRÓNICA AUTOMOTRIZ",0,0,0]
[null,null,null,null,null,"INGENIERÍA TÉCNICA EN MANEJO INTEGRADO DE PLAGAS Y ENFERMEDADES EN CULTIVOS TROPICALES",0,0,0]
[null,null,null,null,null,"TÉCNICO SUPERIOR UNIVERSITARIO EN TECNOLOGÍAS DE LA INFORMACIÓN Y COMUNICACIÓN ÁREA MULTIMEDIA Y COMERCIO ELECTRÓNICO",59,21,80]
[null,null,null,null,null,"UNIVERSIDAD TECNOLÓGICA DEL PONIENTE",249,209,458]
[null,null,null,null,null,"TÉCNICO SUPERIOR UNIVERSITARIO EN ADMINISTRACIÓN ÁREA ADMINISTRACIÓN Y EVALUACIÓN DE PROYECTOS",30,35,65]
[null,null,null,null,null,"TÉCNICO SUPERIOR UNIVERSITARIO EN GASTRONOMÍA",64,71,135]
[null,null,null,null,null,"TÉCNICO SUPERIOR UNIVERSITARIO EN PROCESOS ALIMENTARIOS",25,21,46]
[null,null,null,null,null,"TÉCNICO SUPERIOR UNIVERSITARIO EN TECNOLOGÍAS DE LA INFORMACIÓN Y COMUNICACIÓN ÁREA SISTEMAS INFORMÁTICOS",51,14,65]
[null,null,null,null,null,"TÉCNICO SUPERIOR UNIVERSITARIO EN TURISMO ÁREA DESARROLLO DE PRODUCTOS ALTERNATIVOS",17,24,41]
[null,null,null,null,null,"INGENIERÍA TÉCNICA EN DESARROLLO Y PROMOCIÓN DEL TURISMO SUSTENTABLE",6,10,16]
[null,null,null,null,null,"INGENIERÍA TÉCNICA EN COMERCIALIZACIÓN DE PRODUCTOS GASTRONÓMICOS",23,19,42]
[null,null,null,null,null,"INGENIERÍA TÉCNICA EN DESARROLLO DE SOFTWARE PARA APLICACIONES WEB",29,11,40]
[null,null,null,null,null,"INGENIERÍA TÉCNICA EN SEGURIDAD E INOCUIDAD ALIMENTARIA",4,4,8]
[null,null,null,null,null,"UNIVERSIDAD TECNOLÓGICA METROPOLITANA",2277,1546,3823]
[null,null,null,null,null,"INGENIERÍA EN GESTIÓN DE PROYECTOS",60,73,133]
[null,null,null,null,null,"INGENIERÍA EN MANTENIMIENTO INDUSTRIAL",125,7,132]
[null,null,null,null,null,"INGENIERÍA EN MECATRÓNICA",197,14,211]
[null,null,null,null,null,"INGENIERÍA EN NEGOCIOS Y GESTIÓN EMPRESARIAL",101,155,256]
[null,null,null,null,null,"INGENIERÍA EN SISTEMAS PRODUCTIVOS",30,66,96]
[null,null,null,null,null,"INGENIERÍA EN TECNOLOGÍAS DE LA INFORMACIÓN",130,23,153]
[null,null,null,null,null,"LICENCIATURA EN GASTRONOMÍA",88,92,180]
[null,null,null,null,null,"LICENCIATURA EN GESTIÓN Y DESARROLLO TURÍSTICO",42,95,137]
[null,null,null,null,null,"TÉCNICO SUPERIOR UNIVERSITARIO EN ADMINISTRACIÓN ÁREA ADMINISTRACIÓN Y EVALUACIÓN DE PROYECTOS",88,111,199]
[null,null,null,null,null,"TÉCNICO SUPERIOR UNIVERSITARIO EN ADMINISTRACIÓN ÁREA RECURSOS HUMANOS",61,139,200]
[null,null,null,null,null,"TÉCNICO SUPERIOR UNIVERSITARIO EN DESARROLLO DE NEGOCIOS ÁREA LOGÍSTICA Y TRANSPORTE",31,17,48]
[null,null,null,null,null,"TÉCNICO SUPERIOR UNIVERSITARIO EN DESARROLLO DE NEGOCIOS ÁREA MERCADOTECNIA",101,95,196]
[null,null,null,null,null,"TÉCNICO SUPERIOR UNIVERSITARIO EN DISEÑO DIGITAL ÁREA ANIMACIÓN",109,96,205]
[null,null,null,null,null,"TÉCNICO SUPERIOR UNIVERSITARIO EN ENERGÍAS RENOVABLES ÁREA ENERGÍA SOLAR",40,10,50]
[null,null,null,null,null,"TÉCNICO SUPERIOR UNIVERSITARIO EN GASTRONOMÍA",191,213,404]
[null,null,null,null,null,"TÉCNICO SUPERIOR UNIVERSITARIO EN MANTENIMIENTO ÁREA INDUSTRIAL",135,7,142]
[null,null,null,null,null,"TÉCNICO SUPERIOR UNIVERSITARIO EN MECATRÓNICA ÁREA INSTALACIONES ELÉCTRICAS EFICIENTES",105,4,109]
[null,null,null,null,null,"TÉCNICO SUPERIOR UNIVERSITARIO EN MECATRÓNICA, ÁREA AUTOMATIZACIÓN",235,18,253]
[null,null,null,null,null,"TÉCNICO SUPERIOR UNIVERSITARIO EN PROCESOS INDUSTRIALES ÁREA ARTES GRÁFICAS",31,26,57]
[null,null,null,null,null,"TÉCNICO SUPERIOR UNIVERSITARIO EN PROCESOS INDUSTRIALES ÁREA PLÁSTICOS",2,4,6]
[null,null,null,null,null,"TÉCNICO SUPERIOR UNIVERSITARIO EN PROCESOS INDUSTRIALES ÁREAS PRODUCCIÓN DE MODA",10,58,68]
[null,null,null,null,null,"TÉCNICO SUPERIOR UNIVERSITARIO EN TECNOLOGÍAS DE LA INFORMACIÓN Y COMUNICACIÓN ÁREA REDES Y TELECOMUNICACIONES",62,12,74]
[null,null,null,null,null,"TÉCNICO SUPERIOR UNIVERSITARIO EN TECNOLOGÍAS DE LA INFORMACIÓN Y COMUNICACIÓN ÁREA SISTEMAS INFORMÁTICOS",170,32,202]
[null,null,null,null,null,"TÉCNICO SUPERIOR UNIVERSITARIO EN TURISMO ÁREA DESARROLLO DE PRODUCTOS ALTERNATIVOS",26,54,80]
[null,null,null,null,null,"TÉCNICO SUPERIOR UNIVERSITARIO EN TURISMO ÁREA HOTELERÍA",62,104,166]
[null,null,null,null,null,"TÉCNICO SUPERIOR UNIVERSITARIO EN TECNOLOGÍAS DE LA INFORMACIÓN Y COMUNICACIONES ÁREA MULTIMEDIA Y COMERCIO ELECTRÓNICO",45,21,66]
[null,null,null,null,null,"UNIVERSIDAD TECNOLÓGICA REGIONAL DEL SUR",421,273,694]
[null,null,null,null,null,"INGENIERÍA PROFESIONAL EN COMERCIALIZACIÓN DE PRODUCTOS GASTRONÓMICOS",10,6,16]
[null,null,null,null,null,"INGENIERÍA PROFESIONAL EN SEGURIDAD EN REDES Y SOFTWARE LIBRE",0,0,0]
[null,null,null,null,null,"INGENIERÍA PROFESIONAL EN TRÁFICO Y ALMACENAJE",0,0,0]
[null,null,null,null,null,"LICENCIA PROFESIONAL EN DESARROLLO Y PROMOCIÓN DEL TURISMO SUSTENTABLE",14,17,31]
[null,null,null,null,null,"TÉCNICO SUPERIOR UNIVERSITARIO EN CONTADURÍA",59,53,112]
[null,null,null,null,null,"TÉCNICO SUPERIOR UNIVERSITARIO EN DESARROLLO DE NEGOCIOS ÁREA MERCADOTECNIA",38,37,75]
[null,null,null,null,null,"TÉCNICO SUPERIOR UNIVERSITARIO EN MECATRÓNICA, ÁREA AUTOMATIZACIÓN",72,1,73]
[null,null,null,null,null,"TÉCNICO SUPERIOR UNIVERSITARIO EN PROCESOS INDUSTRIALES ÁREA MANUFACTURA",0,0,0]
[null,null,null,null,null,"TÉCNICO SUPERIOR UNIVERSITARIO EN TURISMO ÁREA DESARROLLO DE PRODUCTOS ALTERNATIVOS",164,142,306]
[null,null,null,null,null,"TÉCNICO SUPERIOR UNIVERSITARIO EN TECNOLOGÍAS DE LA INFORMACIÓN Y LA COMUNICACIÓN ÁREA INFORMÁTICA ADMINISTRATIVA",64,17,81]
[null,null,null,null,null,"UNIVERSIDAD VALLE DEL GRIJALVA",154,166,320]
[null,null,null,null,null,"INGENIERÍA INDUSTRIAL",7,0,7]
[null,null,null,null,null,"LICENCIATURA EN ADMINISTRACIÓN DE EMPRESAS",37,28,65]
[null,null,null,null,null,"LICENCIATURA EN ADMINISTRACIÓN DE EMPRESAS TURÍSTICAS",0,0,0]
[null,null,null,null,null,"LICENCIATURA EN CIENCIAS DE LA EDUCACIÓN CON TERMINAL EN PSICOLOGÍA EDUCATIVA",0,2,2]
[null,null,null,null,null,"LICENCIATURA EN CONTADURÍA PÚBLICA",6,5,11]
[null,null,null,null,null,"LICENCIATURA EN DERECHO",17,11,28]
[null,null,null,null,null,"LICENCIATURA EN DISEÑO DE ANIMACIÓN DIGITAL",20,9,29]
[null,null,null,null,null,"LICENCIATURA EN DISEÑO GRÁFICO DIGITAL",4,5,9]
[null,null,null,null,null,"LICENCIATURA EN FISIOTERAPIA",28,44,72]
[null,null,null,null,null,"LICENCIATURA EN GASTRONOMÍA",10,11,21]
[null,null,null,null,null,"LICENCIATURA EN NUTRICIÓN",12,13,25]
[null,null,null,null,null,"LICENCIATURA EN PSICOLOGÍA",13,38,51]
[null,null,null,null,null,"INSTITUTO TECNOLÓGICO SUPERIOR PROGRESO",677,304,981]
[null,null,null,null,null,"INGENIERÍA EN ADMINISTRACIÓN",49,75,124]
[null,null,null,null,null,"INGENIERÍA EN ELECTROMECÁNICA",204,21,225]
[null,null,null,null,null,"INGENIERÍA EN ENERGÍAS RENOVABLES",72,25,97]
[null,null,null,null,null,"INGENIERÍA EN GESTIÓN EMPRESARIAL",49,42,91]
[null,null,null,null,null,"INGENIERÍA EN LOGÍSTICA",133,90,223]
[null,null,null,null,null,"INGENIERÍA EN SISTEMAS COMPUTACIONALES",96,36,132]
[null,null,null,null,null,"INGENIERÍA EN ANIMACIÓN DIGITAL Y EFECTOS VISUALES",74,15,89]
[null,null,null,null,null,"CENTRO EDUCATIVO SIGLO XXI, GRUPO SIGLO XXI",46,138,184]
[null,null,null,null,null,"LICENCIATURA EN EDUCACIÓN",0,20,20]
[null,null,null,null,null,"LICENCIATURA EN ENFERMERÍA",46,118,164]
[null,null,null,null,null,"INSTITUTO TECNOLÓGICO DEL PETRÓLEO Y ENERGÍA",30,10,40]
[null,null,null,null,null,"INGENIERÍA EN GEOFÍSICA",4,3,7]
[null,null,null,null,null,"INGENIERÍA PETROLERA",13,7,20]
[null,null,null,null,null,"INGENIERÍA ELÉCTRICA Y ENERGÍA",13,0,13]
[null,null,null,null,null,"UNIVERSIDAD POLITÉCNICA DE YUCATÁN",112,21,133]
[null,null,null,null,null,"LICENCIATURA EN INGENIERÍA EN SISTEMAS COMPUTACIONALES EMBEBIDOS",11,2,13]
[null,null,null,null,null,"INGENIERÍA EN ROBÓTICA COMPUTACIONAL",88,16,104]
[null,null,null,null,null,"LICENCIATURA EN INGENIERÍA DE DATOS",13,3,16]
[null,null,null,null,null,"INSTITUTO UNIVERSITARIO DE YUCATÁN",2,3,5]
[null,null,null,null,null,"LICENCIATURA EN LIDERAZGO EMPRESARIAL Y ALTA DIRECCIÓN",2,3,5]
[null,null,null,null,null,"ZACATECAS",23740,24744,48484]
[null,null,null,null,null,"CENTRO DE ACTUALIZACIÓN DEL MAGISTERIO ZACATECAS",71,137,208]
[null,null,null,null,null,"LICENCIATURA EN EDUCACIÓN SECUNDARIA CON ESPECIALIDAD EN BIOLOGÍA",6,10,16]
[null,null,null,null,null,"LICENCIATURA EN EDUCACIÓN SECUNDARIA CON ESPECIALIDAD EN ESPAÑOL",17,39,56]
[null,null,null,null,null,"LICENCIATURA EN EDUCACIÓN SECUNDARIA CON ESPECIALIDAD EN GEOGRAFÍA",8,10,18]
[null,null,null,null,null,"LICENCIATURA EN EDUCACIÓN SECUNDARIA CON ESPECIALIDAD EN HISTORIA",11,21,32]
[null,null,null,null,null,"LICENCIATURA EN EDUCACIÓN SECUNDARIA CON ESPECIALIDAD EN LENGUA EXTRANJERA (INGLÉS)",20,45,65]
[null,null,null,null,null,"LICENCIATURA EN EDUCACIÓN SECUNDARIA CON ESPECIALIDAD EN MATEMÁTICAS",9,12,21]
[null,null,null,null,null,"ESCUELA DE ENFERMERÍA BEATRIZ GONZALEZ ORTEGA",25,96,121]
[null,null,null,null,null,"LICENCIATURA EN ENFERMERÍA",25,96,121]
[null,null,null,null,null,"ESCUELA DE TRABAJO SOCIAL",6,104,110]
[null,null,null,null,null,"LICENCIATURA EN TRABAJO SOCIAL",6,104,110]
[null,null,null,null,null,"ESCUELA ESTATAL DE CONSERVACIÓN Y RESTAURACIÓN DE ZACATECAS \"REFUGIO REYES\"",20,28,48]
[null,null,null,null,null,"LICENCIATURA EN CONSERVACIÓN Y RESTAURACIÓN",20,28,48]
[null,null,null,null,null,"ESCUELA NORMAL SUPERIOR DE ZACATECAS",8,6,14]
[null,null,null,null,null,"LICENCIATURA EN EDUCACIÓN SECUNDARIA CON ESPECIALIDAD EN LENGUA EXTRANJERA (INGLÉS)",8,6,14]
[null,null,null,null,null,"INSTITUTO DE CIENCIAS, HUMANIDADES Y TECNOLOGÍAS DE ZACATECAS",12,60,72]
[null,null,null,null,null,"LICENCIATURA EN ADMINISTRACIÓN DE EMPRESAS",0,1,1]
[null,null,null,null,null,"LICENCIATURA EN PSICOLOGÍA SOCIAL",8,46,54]
[null,null,null,null,null,"LICENCIATURA EN SOCIOLOGÍA DE LA EDUCACIÓN",4,13,17]
[null,null,null,null,null,"INSTITUTO DE ESTUDIOS SUPERIORES Y ESTRATÉGICOS SIGLO XXI",37,24,61]
[null,null,null,null,null,"LICENCIATURA EN DERECHO",37,24,61]
[null,null,null,null,null,"INSTITUTO DE INVESTIGACIÓN PARA LAS CIENCIAS AMBIENTALES AC",8,6,14]
[null,null,null,null,null,"LICENCIATURA EN DERECHO GENERAL Y AMBIENTAL",2,0,2]
[null,null,null,null,null,"LICENCIATURA EN INGENIERÍA AMBIENTAL",1,2,3]
[null,null,null,null,null,"LICENCIATURA EN INGENIERÍA ARQUITECTURA AMBIENTAL",2,1,3]
[null,null,null,null,null,"LICENCIATURA EN INGENIERÍA BIOECOLOGÍA",1,3,4]
[null,null,null,null,null,"LICENCIATURA EN INGENIERÍA FORESTAL Y DE SUELOS",2,0,2]
[null,null,null,null,null,"INSTITUTO DR. CARLOS COQUI",25,39,64]
[null,null,null,null,null,"LICENCIATURA EN TERAPIA FÍSICA Y REHABILITACIÓN",7,18,25]
[null,null,null,null,null,"TÉCNICO SUPERIOR UNIVERSITARIO EN RADIOLOGÍA E IMAGEN",18,21,39]
[null,null,null,null,null,"INSTITUTO POLITÉCNICO NACIONAL",556,246,802]
[null,null,null,null,null,"INGENIERÍA AMBIENTAL",81,110,191]
[null,null,null,null,null,"INGENIERÍA EN ALIMENTOS",19,37,56]
[null,null,null,null,null,"INGENIERÍA EN SISTEMAS COMPUTACIONALES",136,38,174]
[null,null,null,null,null,"INGENIERÍA MECATRÓNICA",272,38,310]
[null,null,null,null,null,"INGENIERÍA METALÚRGICA",48,23,71]
[null,null,null,null,null,"INSTITUTO SAN JUAN DE ESTUDIOS SUPERIORES",61,4,65]
[null,null,null,null,null,"LICENCIATURA EN SEGURIDAD PÚBLICA Y DESARROLLO HUMANO",61,4,65]
[null,null,null,null,null,"INSTITUTO SUPERIOR DE EDUCACIÓN ARTÍSTICA CALMECAC",53,63,116]
[null,null,null,null,null,"LICENCIATURA EN ARTES",40,42,82]
[null,null,null,null,null,"LICENCIATURA EN DANZA FOLKLÓRICA MEXICANA",9,15,24]
[null,null,null,null,null,"LICENCIATURA EN GESTIÓN ESTRATÉGICA PARA EL DESARROLLO CULTURAL",4,6,10]
[null,null,null,null,null,"INSTITUTO TECNOLÓGICO DE ZACATECAS",2071,1219,3290]
[null,null,null,null,null,"ARQUITECTO",0,0,0]
[null,null,null,null,null,"ARQUITECTURA",684,431,1115]
[null,null,null,null,null,"INGENIERÍA EN ELECTROMECÁNICA",0,0,0]
[null,null,null,null,null,"INGENIERÍA EN GESTIÓN EMPRESARIAL",146,207,353]
[null,null,null,null,null,"INGENIERÍA EN INFORMÁTICA",42,22,64]
[null,null,null,null,null,"INGENIERÍA EN MATERIALES",100,28,128]
[null,null,null,null,null,"INGENIERÍA EN SISTEMAS COMPUTACIONALES",217,48,265]
[null,null,null,null,null,"INGENIERÍA INDUSTRIAL",427,161,588]
[null,null,null,null,null,"LICENCIATURA EN ADMINISTRACIÓN",211,311,522]
[null,null,null,null,null,"LICENCIATURA EN INFORMÁTICA",0,0,0]
[null,null,null,null,null,"LICENCIATURA EN INGENIERÍA EN ELECTROMECÁNICA",244,11,255]
[null,null,null,null,null,"INSTITUTO TECNOLÓGICO SUPERIOR DE FRESNILLO",1193,756,1949]
[null,null,null,null,null,"ARQUITECTURA",145,104,249]
[null,null,null,null,null,"INGENIERÍA AMBIENTAL",47,60,107]
[null,null,null,null,null,"INGENIERÍA ELECTRÓNICA",89,7,96]
[null,null,null,null,null,"INGENIERÍA EN GESTIÓN EMPRESARIAL",112,231,343]
[null,null,null,null,null,"INGENIERÍA EN INFORMÁTICA",45,25,70]
[null,null,null,null,null,"INGENIERÍA EN LOGÍSTICA",1,4,5]
[null,null,null,null,null,"INGENIERÍA EN SISTEMAS COMPUTACIONALES",99,29,128]
[null,null,null,null,null,"INGENIERÍA INDUSTRIAL",427,190,617]
[null,null,null,null,null,"LICENCIATURA EN ADMINISTRACIÓN",0,0,0]
[null,null,null,null,null,"LICENCIATURA EN INFORMÁTICA",0,0,0]
[null,null,null,null,null,"LICENCIATURA EN INGENIERÍA EN MINERÍA",228,106,334]
[null,null,null,null,null,"INSTITUTO TECNOLÓGICO SUPERIOR DE JEREZ",304,321,625]
[null,null,null,null,null,"CONTADOR PÚBLICO",20,44,64]
[null,null,null,null,null,"INGENIERÍA EN INDUSTRIAS ALIMENTARIAS",38,58,96]
[null,null,null,null,null,"INGENIERÍA EN MECATRÓNICA",83,11,94]
[null,null,null,null,null,"INGENIERÍA EN SISTEMAS COMPUTACIONALES",68,45,113]
[null,null,null,null,null,"LICENCIATURA EN ADMINISTRACIÓN",95,163,258]
[null,null,null,null,null,"INSTITUTO TECNOLÓGICO SUPERIOR DE LORETO, ZAC.",552,482,1034]
[null,null,null,null,null,"INGENIERÍA EN GESTIÓN EMPRESARIAL",88,169,257]
[null,null,null,null,null,"INGENIERÍA EN MECATRÓNICA",141,26,167]
[null,null,null,null,null,"INGENIERÍA EN SISTEMAS COMPUTACIONALES",111,70,181]
[null,null,null,null,null,"INGENIERÍA INDUSTRIAL",212,217,429]
[null,null,null,null,null,"INSTITUTO TECNOLÓGICO SUPERIOR DE NOCHISTLAN",486,401,887]
[null,null,null,null,null,"ARQUITECTO",0,0,0]
[null,null,null,null,null,"ARQUITECTURA",117,44,161]
[null,null,null,null,null,"INGENIERÍA EN ADMINISTRACIÓN",84,190,274]
[null,null,null,null,null,"INGENIERÍA EN INNOVACIÓN AGRÍCOLA SUSTENTABLE",16,16,32]
[null,null,null,null,null,"INGENIERÍA EN SISTEMAS COMPUTACIONALES",88,47,135]
[null,null,null,null,null,"INGENIERÍA INDUSTRIAL",101,61,162]
[null,null,null,null,null,"LICENCIATURA EN INGENIERÍA INDUSTRIAL",80,43,123]
[null,null,null,null,null,"INSTITUTO TECNOLÓGICO SUPERIOR DE ZACATECAS NORTE",785,798,1583]
[null,null,null,null,null,"CONTADOR PÚBLICO",97,214,311]
[null,null,null,null,null,"INGENIERÍA ELECTROMECÁNICA",181,18,199]
[null,null,null,null,null,"INGENIERÍA EN ADMINISTRACIÓN",256,379,635]
[null,null,null,null,null,"INGENIERÍA EN GESTIÓN EMPRESARIAL",11,16,27]
[null,null,null,null,null,"INGENIERÍA EN INDUSTRIAS ALIMENTARIAS",76,100,176]
[null,null,null,null,null,"INGENIERÍA EN SISTEMAS COMPUTACIONALES",139,54,193]
[null,null,null,null,null,"INGENIERÍA EN TECNOLOGÍAS DE LA INFORMACIÓN Y LA COMUNICACIÓN",6,6,12]
[null,null,null,null,null,"INGENIERÍA INFORMÁTICA",19,11,30]
[null,null,null,null,null,"INSTITUTO TECNOLÓGICO SUPERIOR DE ZACATECAS OCCIDENTE",490,517,1007]
[null,null,null,null,null,"INGENIERÍA EN GESTIÓN EMPRESARIAL",137,246,383]
[null,null,null,null,null,"INGENIERÍA EN INFORMÁTICA",28,34,62]
[null,null,null,null,null,"INGENIERÍA EN SISTEMAS COMPUTACIONALES",45,26,71]
[null,null,null,null,null,"INGENIERÍA EN SISTEMAS COMPUTACIONALES EN SOFTWARE",0,0,0]
[null,null,null,null,null,"INGENIERÍA INDUSTRIAL",174,126,300]
[null,null,null,null,null,"INGENIERÍA INDUSTRIAL EN PROCESOS Y SERVICIOS",0,0,0]
[null,null,null,null,null,"INGENIERÍA TÉCNICO MINERO",5,1,6]
[null,null,null,null,null,"LICENCIATURA EN ADMINISTRACIÓN",8,24,32]
[null,null,null,null,null,"TÉCNICO SUPERIOR EN MINERÍA",93,60,153]
[null,null,null,null,null,"INSTITUTO TECNOLÓGICO SUPERIOR DE ZACATECAS SUR",499,449,948]
[null,null,null,null,null,"INGENIERÍA ELECTROMECÁNICA",164,15,179]
[null,null,null,null,null,"INGENIERÍA EN ADMINISTRACIÓN",73,141,214]
[null,null,null,null,null,"INGENIERÍA EN GESTIÓN EMPRESARIAL",74,115,189]
[null,null,null,null,null,"INGENIERÍA EN SISTEMAS COMPUTACIONALES",86,40,126]
[null,null,null,null,null,"INGENIERÍA INDUSTRIAL",46,31,77]
[null,null,null,null,null,"LICENCIATURA EN ADMINISTRACIÓN",0,0,0]
[null,null,null,null,null,"LICENCIATURA EN CONTADOR PÚBLICO",56,107,163]
[null,null,null,null,null,"LICENCIATURA EN CONTADURÍA",0,0,0]
[null,null,null,null,null,"INSTITUTO TECNOLÓGICO Y DE ESTUDIOS SUPERIORES DE MONTERREY",124,110,234]
[null,null,null,null,null,"ARQUITECTO",16,14,30]
[null,null,null,null,null,"INGENIERÍA EN TECNOLOGÍAS DE INFORMACIÓN Y COMUNICACIONES",1,0,1]
[null,null,null,null,null,"INGENIERÍA INDUSTRIAL Y DE SISTEMAS",32,19,51]
[null,null,null,null,null,"LICENCIATURA EN ADMINISTRACIÓN DE EMPRESAS",4,0,4]
[null,null,null,null,null,"LICENCIATURA EN INNOVACIÓN Y DIRECCIÓN DE NEGOCIOS",49,51,100]
[null,null,null,null,null,"LICENCIATURA EN MERCADOTECNIA",0,0,0]
[null,null,null,null,null,"LICENCIATURA EN MERCADOTECNIA Y COMUNICACIÓN",5,13,18]
[null,null,null,null,null,"LICENCIATURA EN NEGOCIOS INTERNACIONALES",6,7,13]
[null,null,null,null,null,"TRONCO COMÚN",11,6,17]
[null,null,null,null,null,"INSTITUTO ZACATECANO DE ESTUDIOS UNIVERSITARIOS",67,101,168]
[null,null,null,null,null,"LICENCIATURA EN CRIMINOLOGÍA Y CRIMINALÍSTICA",67,101,168]
[null,null,null,null,null,"MANUEL ÁVILA CAMACHO",150,371,521]
[null,null,null,null,null,"LICENCIATURA EN EDUCACIÓN ESPECIAL EN EL ÁREA DE ATENCIÓN AUDITIVA Y DE LENGUAJE",6,101,107]
[null,null,null,null,null,"LICENCIATURA EN EDUCACIÓN FÍSICA",70,30,100]
[null,null,null,null,null,"LICENCIATURA EN EDUCACIÓN PREESCOLAR",4,98,102]
[null,null,null,null,null,"LICENCIATURA EN EDUCACIÓN PRIMARIA",32,75,107]
[null,null,null,null,null,"LICENCIATURA EN EDUCACIÓN SECUNDARIA CON ESPECIALIDAD EN TELESECUNDARIA",38,67,105]
[null,null,null,null,null,"RAFAEL RAMIREZ CASTAÑEDA",66,126,192]
[null,null,null,null,null,"LICENCIATURA EN EDUCACIÓN PREESCOLAR",15,77,92]
[null,null,null,null,null,"LICENCIATURA EN EDUCACIÓN PRIMARIA",51,49,100]
[null,null,null,null,null,"SALVADOR VARELA RESÉNDIZ",52,137,189]
[null,null,null,null,null,"LICENCIATURA EN EDUCACIÓN ESPECIAL EN EL ÁREA DE ATENCIÓN INTELECTUAL",9,33,42]
[null,null,null,null,null,"LICENCIATURA EN EDUCACIÓN PREESCOLAR",9,44,53]
[null,null,null,null,null,"LICENCIATURA EN EDUCACIÓN PRIMARIA",34,60,94]
[null,null,null,null,null,"UNIVERSIDAD AUTÓNOMA CHAPINGO",26,12,38]
[null,null,null,null,null,"TRONCO COMÚN",26,12,38]
[null,null,null,null,null,"UNIVERSIDAD AUTÓNOMA DE DURANGO A.C.",652,836,1488]
[null,null,null,null,null,"LICENCIATURA EN ADMINISTRACIÓN DE EMPRESAS TURÍSTICAS",0,0,0]
[null,null,null,null,null,"LICENCIATURA EN ARQUITECTURA",114,64,178]
[null,null,null,null,null,"LICENCIATURA EN CIENCIAS POLÍTICAS Y ADMINISTRACIÓN PÚBLICA",18,21,39]
[null,null,null,null,null,"LICENCIATURA EN CIENCIAS Y TÉCNICAS DE LA COMUNICACIÓN",44,66,110]
[null,null,null,null,null,"LICENCIATURA EN COMERCIO INTERNACIONAL",26,33,59]
[null,null,null,null,null,"LICENCIATURA EN CRIMINOLOGÍA",67,88,155]
[null,null,null,null,null,"LICENCIATURA EN DERECHO",51,56,107]
[null,null,null,null,null,"LICENCIATURA EN DISEÑO DE INTERIORES",3,8,11]
[null,null,null,null,null,"LICENCIATURA EN DISEÑO GRÁFICO",5,8,13]
[null,null,null,null,null,"LICENCIATURA EN GASTRONOMÍA",16,23,39]
[null,null,null,null,null,"LICENCIATURA EN GASTRONOMÍA ADMINISTRATIVA",13,19,32]
[null,null,null,null,null,"LICENCIATURA EN INGENIERÍA CIVIL",35,8,43]
[null,null,null,null,null,"LICENCIATURA EN MEDICINA GENERAL",188,241,429]
[null,null,null,null,null,"LICENCIATURA EN MERCADOTECNIA",20,13,33]
[null,null,null,null,null,"LICENCIATURA EN NUTRICIÓN",30,82,112]
[null,null,null,null,null,"LICENCIATURA EN PSICOLOGÍA",15,43,58]
[null,null,null,null,null,"LICENCIATURA EN PSICOPEDAGOGÍA",7,63,70]
[null,null,null,null,null,"UNIVERSIDAD AUTÓNOMA DE FRESNILLO, A. C.",318,312,630]
[null,null,null,null,null,"LICENCIATURA EN ADMINISTRACIÓN DE EMPRESAS",30,73,103]
[null,null,null,null,null,"LICENCIATURA EN ADMINISTRACIÓN DE RECURSOS HUMANOS",20,50,70]
[null,null,null,null,null,"LICENCIATURA EN ADMINISTRACIÓN Y GESTIÓN EDUCATIVA",18,56,74]
[null,null,null,null,null,"LICENCIATURA EN CONTADURÍA PÚBLICA",0,0,0]
[null,null,null,null,null,"LICENCIATURA EN CONTADURÍA PÚBLICA Y FINANZAS",37,83,120]
[null,null,null,null,null,"LICENCIATURA EN INGENIERÍA EN SISTEMAS Y PRODUCTIVIDAD INDUSTRIAL",213,50,263]
[null,null,null,null,null,"LICENCIATURA EN INGENIERÍA INDUSTRIAL EN SISTEMAS DE PRODUCCIÓN",0,0,0]
[null,null,null,null,null,"LICENCIATURA EN MERCADOTECNIA INTERNACIONAL",0,0,0]
[null,null,null,null,null,"UNIVERSIDAD AUTÓNOMA DE ZACATECAS",10703,12891,23594]
[null,null,null,null,null,"INGENIERÍA AGRÓNOMO",593,213,806]
[null,null,null,null,null,"INGENIERÍA CIVIL",725,200,925]
[null,null,null,null,null,"INGENIERÍA ELÉCTRICA",216,11,227]
[null,null,null,null,null,"INGENIERÍA EN COMPUTACIÓN",253,84,337]
[null,null,null,null,null,"INGENIERÍA EN COMUNICACIONES Y ELECTRÓNICA",207,38,245]
[null,null,null,null,null,"INGENIERÍA EN SOFTWARE",182,33,215]
[null,null,null,null,null,"INGENIERÍA GEÓLOGO",133,69,202]
[null,null,null,null,null,"INGENIERÍA MECÁNICA",403,22,425]
[null,null,null,null,null,"INGENIERÍA MINERO METALURGISTA",336,75,411]
[null,null,null,null,null,"INGENIERÍA QUÍMICO",150,136,286]
[null,null,null,null,null,"INGENIERÍA TOPÓGRAFO HIDRÓGRAFO",236,60,296]
[null,null,null,null,null,"LICENCIATURA EN ANTROPOLOGÍA ESPECIALIDAD ARQUEOLOGÍA",51,63,114]
[null,null,null,null,null,"LICENCIATURA EN ARTES",40,50,90]
[null,null,null,null,null,"LICENCIATURA EN CANTO",14,33,47]
[null,null,null,null,null,"LICENCIATURA EN CIENCIAS AMBIENTALES",59,98,157]
[null,null,null,null,null,"LICENCIATURA EN CIENCIAS BIOLÓGICAS",152,160,312]
[null,null,null,null,null,"LICENCIATURA EN CONTADURÍA",837,1649,2486]
[null,null,null,null,null,"LICENCIATURA EN DERECHO",1592,2317,3909]
[null,null,null,null,null,"LICENCIATURA EN DESARROLLO REGIONAL SUSTENTABLE",47,27,74]
[null,null,null,null,null,"LICENCIATURA EN ECONOMÍA",219,187,406]
[null,null,null,null,null,"LICENCIATURA EN ENFERMERÍA",336,1274,1610]
[null,null,null,null,null,"LICENCIATURA EN FILOSOFÍA",96,48,144]
[null,null,null,null,null,"LICENCIATURA EN FÍSICA",127,73,200]
[null,null,null,null,null,"LICENCIATURA EN HISTORIA",138,77,215]
[null,null,null,null,null,"LICENCIATURA EN INGENIERÍA EN DISEÑO INDUSTRIAL",62,53,115]
[null,null,null,null,null,"LICENCIATURA EN INGENIERÍA EN ROBÓTICA Y MECATRÓNICA",135,17,152]
[null,null,null,null,null,"LICENCIATURA EN INSTRUMENTO",15,27,42]
[null,null,null,null,null,"LICENCIATURA EN LENGUAS EXTRANJERAS",93,153,246]
[null,null,null,null,null,"LICENCIATURA EN LETRAS",97,183,280]
[null,null,null,null,null,"LICENCIATURA EN MATEMÁTICAS",46,36,82]
[null,null,null,null,null,"LICENCIATURA EN MÚSICA CON ESPECIALIDAD EN INSTRUMENTOS",81,23,104]
[null,null,null,null,null,"LICENCIATURA EN NUTRICIÓN",163,565,728]
[null,null,null,null,null,"LICENCIATURA EN PSICOLOGÍA",612,1914,2526]
[null,null,null,null,null,"LICENCIATURA EN TURISMO",149,348,497]
[null,null,null,null,null,"MÉDICO CIRUJANO",834,976,1810]
[null,null,null,null,null,"MÉDICO CIRUJANO DENTISTA",310,532,842]
[null,null,null,null,null,"MÉDICO VETERINARIO ZOOTECNISTA",550,305,855]
[null,null,null,null,null,"QUÍMICO EN ALIMENTOS",37,85,122]
[null,null,null,null,null,"QUÍMICO FARMACÉUTICO BIÓLOGO",377,677,1054]
[null,null,null,null,null,"TÉCNICO SUPERIOR UNIVERSITARIO EN ENFERMERÍA GENERAL",0,0,0]
[null,null,null,null,null,"UNIVERSIDAD DE LA VERA-CRUZ",427,594,1021]
[null,null,null,null,null,"INGENIERÍA ARQUITECTO",34,19,53]
[null,null,null,null,null,"LICENCIATURA EN ADMINISTRACIÓN DE EMPRESAS",40,37,77]
[null,null,null,null,null,"LICENCIATURA EN ADMINISTRACIÓN DE EMPRESAS TURÍSTICAS",13,32,45]
[null,null,null,null,null,"LICENCIATURA EN COMERCIO INTERNACIONAL Y ADUANAS",45,65,110]
[null,null,null,null,null,"LICENCIATURA EN COMUNICACIÓN",42,65,107]
[null,null,null,null,null,"LICENCIATURA EN CONTADURÍA",8,11,19]
[null,null,null,null,null,"LICENCIATURA EN CRIMINOLOGÍA Y CRIMINALÍSTICA",29,31,60]
[null,null,null,null,null,"LICENCIATURA EN DERECHO",33,45,78]
[null,null,null,null,null,"LICENCIATURA EN DISEÑO GRÁFICO",27,28,55]
[null,null,null,null,null,"LICENCIATURA EN GASTRONOMÍA",103,113,216]
[null,null,null,null,null,"LICENCIATURA EN MERCADOTECNIA",15,11,26]
[null,null,null,null,null,"LICENCIATURA EN NEGOCIOS GASTRONÓMICOS Y EMPRESAS TURÍSTICAS",8,9,17]
[null,null,null,null,null,"LICENCIATURA EN NUTRICIÓN",17,39,56]
[null,null,null,null,null,"LICENCIATURA EN PEDAGOGÍA",1,38,39]
[null,null,null,null,null,"LICENCIATURA EN PRODUCCIÓN Y DISEÑO DE MODAS",6,26,32]
[null,null,null,null,null,"LICENCIATURA EN PSICOLOGÍA",6,25,31]
[null,null,null,null,null,"UNIVERSIDAD DEL DESARROLLO PROFESIONAL",171,231,402]
[null,null,null,null,null,"LICENCIATURA EN ADMINISTRACIÓN DE EMPRESAS",44,41,85]
[null,null,null,null,null,"LICENCIATURA EN DERECHO",7,13,20]
[null,null,null,null,null,"LICENCIATURA EN DISEÑO GRÁFICO Y MULTIMEDIA",37,21,58]
[null,null,null,null,null,"LICENCIATURA EN EDUCACIÓN",56,139,195]
[null,null,null,null,null,"LICENCIATURA EN PSICOLOGÍA INDUSTRIAL",10,10,20]
[null,null,null,null,null,"LICENCIATURA EN PUBLICIDAD Y MERCADOTECNIA",17,7,24]
[null,null,null,null,null,"UNIVERSIDAD HUMANISTA VIKTOR FRANKL",8,5,13]
[null,null,null,null,null,"LICENCIATURA EN ARQUITECTURA",5,1,6]
[null,null,null,null,null,"LICENCIATURA EN DISEÑO DE IMAGEN",1,2,3]
[null,null,null,null,null,"LICENCIATURA EN DISEÑO GRÁFICO",2,0,2]
[null,null,null,null,null,"LICENCIATURA EN PSICOLOGÍA",0,2,2]
[null,null,null,null,null,"UNIVERSIDAD INTERAMERICANA PARA EL DESARROLLO",458,620,1078]
[null,null,null,null,null,"LICENCIATURA EN ADMINISTRACIÓN DE EMPRESAS",85,87,172]
[null,null,null,null,null,"LICENCIATURA EN ADMINISTRACIÓN DE EMPRESAS TURÍSTICAS",0,0,0]
[null,null,null,null,null,"LICENCIATURA EN ADMINISTRACIÓN Y DIRECCIÓN EMPRESARIAL",22,39,61]
[null,null,null,null,null,"LICENCIATURA EN CIENCIAS Y TÉCNICAS DE LA COMUNICACIÓN",37,48,85]
[null,null,null,null,null,"LICENCIATURA EN DERECHO",95,60,155]
[null,null,null,null,null,"LICENCIATURA EN DISEÑO E INDUSTRIA DEL VESTIDO",1,4,5]
[null,null,null,null,null,"LICENCIATURA EN ENFERMERÍA",101,361,462]
[null,null,null,null,null,"LICENCIATURA EN INGENIERÍA EN SISTEMAS DE INFORMACIÓN",0,0,0]
[null,null,null,null,null,"LICENCIATURA EN MERCADOTECNIA",28,3,31]
[null,null,null,null,null,"LICENCIATURA EN TECNOLOGÍA EDUCATIVA",1,4,5]
[null,null,null,null,null,"LICENCIATURA EN EDUCACIÓN FÍSICA Y DEPORTES",88,14,102]
[null,null,null,null,null,"UNIVERSIDAD METROPOLITANA DEL CENTRO",3,30,33]
[null,null,null,null,null,"LICENCIATURA EN ENFERMERÍA",2,16,18]
[null,null,null,null,null,"LICENCIATURA EN NUTRICIÓN",0,4,4]
[null,null,null,null,null,"LICENCIATURA EN PSICOLOGÍA Y COMUNICACIÓN SOCIAL",1,10,11]
[null,null,null,null,null,"UNIVERSIDAD PEDAGÓGICA NACIONAL UNIDAD-ZACATECAS",59,190,249]
[null,null,null,null,null,"LICENCIATURA EN EDUCACIÓN",0,0,0]
[null,null,null,null,null,"LICENCIATURA EN EDUCACIÓN E INNOVACIÓN PEDAGÓGICA",37,98,135]
[null,null,null,null,null,"LICENCIATURA EN INTERVENCIÓN EDUCATIVA",22,92,114]
[null,null,null,null,null,"UNIVERSIDAD POLITÉCNICA DE ZACATECAS",878,682,1560]
[null,null,null,null,null,"INGENIERÍA EN BIOTECNOLOGÍA",99,176,275]
[null,null,null,null,null,"INGENIERÍA EN ENERGÍA",40,14,54]
[null,null,null,null,null,"INGENIERÍA EN MECATRÓNICA",206,26,232]
[null,null,null,null,null,"INGENIERÍA EN SISTEMAS COMPUTACIONALES",71,33,104]
[null,null,null,null,null,"INGENIERÍA INDUSTRIAL",341,172,513]
[null,null,null,null,null,"LICENCIATURA EN ADMINISTRACIÓN Y GESTIÓN DE PEQUEÑAS Y MEDIANAS EMPRESAS",45,139,184]
[null,null,null,null,null,"LICENCIATURA EN NEGOCIOS INTERNACIONALES",76,122,198]
[null,null,null,null,null,"UNIVERSIDAD POLITÉCNICA DEL SUR DE ZACATECAS",298,154,452]
[null,null,null,null,null,"INGENIERÍA EN AGROTECNOLOGÍA",113,38,151]
[null,null,null,null,null,"INGENIERÍA EN MECATRÓNICA",81,9,90]
[null,null,null,null,null,"LICENCIATURA EN ADMINISTRACIÓN DE EMPRESAS TURÍSTICAS",6,14,20]
[null,null,null,null,null,"LICENCIATURA EN NEGOCIOS INTERNACIONALES",98,93,191]
[null,null,null,null,null,"UNIVERSIDAD SIERRA MADRE",116,427,543]
[null,null,null,null,null,"LICENCIATURA EN ADMINISTRACIÓN DE EMPRESAS TURÍSTICAS",4,19,23]
[null,null,null,null,null,"LICENCIATURA EN ADMINISTRACIÓN Y GESTIÓN DE EMPRESAS",18,20,38]
[null,null,null,null,null,"LICENCIATURA EN CONTADURÍA PÚBLICA",14,27,41]
[null,null,null,null,null,"LICENCIATURA EN DERECHO",35,32,67]
[null,null,null,null,null,"LICENCIATURA EN INGENIERÍA EN SISTEMAS COMPUTACIONALES",24,6,30]
[null,null,null,null,null,"LICENCIATURA EN MERCADOTECNIA Y PUBLICIDAD",5,11,16]
[null,null,null,null,null,"LICENCIATURA EN PSICOLOGÍA",15,47,62]
[null,null,null,null,null,"LICENCIATURA EN PUERICULTURA",1,265,266]
[null,null,null,null,null,"UNIVERSIDAD TECNOLÓGICA DEL ESTADO DE ZACATECAS",1652,865,2517]
[null,null,null,null,null,"INGENIERÍA EN DESARROLLO DE NEGOCIOS E INNOVACIÓN EMPRESARIAL",20,28,48]
[null,null,null,null,null,"INGENIERÍA EN DESARROLLO E INNOVACIÓN EMPRESARIAL",51,110,161]
[null,null,null,null,null,"INGENIERÍA EN ENERGÍAS RENOVABLES",28,11,39]
[null,null,null,null,null,"INGENIERÍA EN MANTENIMIENTO INDUSTRIAL",82,5,87]
[null,null,null,null,null,"INGENIERÍA EN MECATRÓNICA",161,11,172]
[null,null,null,null,null,"INGENIERÍA EN MINERÍA",124,67,191]
[null,null,null,null,null,"INGENIERÍA EN PROCESOS Y OPERACIONES INDUSTRIALES",47,24,71]
[null,null,null,null,null,"INGENIERÍA EN TECNOLOGÍAS DE LA INFORMACIÓN Y COMUNICACIONES",81,53,134]
[null,null,null,null,null,"TÉCNICO SUPERIOR UNIVERSITARIO EN ADMINISTRACIÓN ÁREA RECURSOS HUMANOS",25,60,85]
[null,null,null,null,null,"TÉCNICO SUPERIOR UNIVERSITARIO EN AGRICULTURA SUSTENTABLE Y PROTEGIDA",33,19,52]
[null,null,null,null,null,"TÉCNICO SUPERIOR UNIVERSITARIO EN DESARROLLO DE NEGOCIOS",114,144,258]
[null,null,null,null,null,"TÉCNICO SUPERIOR UNIVERSITARIO EN ENERGÍAS RENOVABLES ÁREA CALIDAD Y AHORRO DE ENERGÍA",55,33,88]
[null,null,null,null,null,"TÉCNICO SUPERIOR UNIVERSITARIO EN MANTENIMIENTO ÁREA INDUSTRIAL",144,11,155]
[null,null,null,null,null,"TÉCNICO SUPERIOR UNIVERSITARIO EN MANTENIMIENTO ÁREA MAQUINARIA PESADA",69,4,73]
[null,null,null,null,null,"TÉCNICO SUPERIOR UNIVERSITARIO EN MECATRÓNICA ÁREA SISTEMAS DE MANUFACTURA FLEXIBLE",94,12,106]
[null,null,null,null,null,"TÉCNICO SUPERIOR UNIVERSITARIO EN MECATRÓNICA, ÁREA AUTOMATIZACIÓN",142,14,156]
[null,null,null,null,null,"TÉCNICO SUPERIOR UNIVERSITARIO EN MINERÍA",138,53,191]
[null,null,null,null,null,"TÉCNICO SUPERIOR UNIVERSITARIO EN PROCESOS INDUSTRIALES",74,39,113]
[null,null,null,null,null,"TÉCNICO SUPERIOR UNIVERSITARIO EN TECNOLOGÍAS DE LA INFORMACIÓN Y COMUNICACIÓN ÁREA REDES Y TELECOMUNICACIONES",24,16,40]
[null,null,null,null,null,"TÉCNICO SUPERIOR UNIVERSITARIO EN TECNOLOGÍAS DE LA INFORMACIÓN Y COMUNICACIÓN ÁREA SISTEMAS INFORMÁTICOS",31,8,39]
[null,null,null,null,null,"TÉCNICO SUPERIOR UNIVERSITARIO EN TERAPIA FÍSICA ÁREA REHABILITACIÓN",55,107,162]
[null,null,null,null,null,"TÉCNICO SUPERIOR UNIVERSITARIO EN TECNOLOGÍAS DE LA INFORMACIÓN Y COMUNICACIÓN ÁREA MULTIMEDIA Y COMERCIO ELECTRÓNICO",18,12,30]
[null,null,null,null,null,"TÉCNICO SUPERIOR UNIVERSITARIO EN TECNOLOGÍAS DE LA INFORMACIÓN Y LA COMUNICACIÓN ÁREA INFORMÁTICA ADMINISTRATIVA",42,24,66]
[null,null,null,null,null,"ESCUELA NORMAL RURAL GENERAL MATÍAS RAMOS SANTOS",250,294,544]
[null,null,null,null,null,"LICENCIATURA EN EDUCACIÓN PRIMARIA",250,294,544]
[null,null,null,null,null,"Total general",2055179,2040961,4096139]